Workbook

Sheet Coverpage
B27: 2023-11-30
B29: Ausgrid’s 2024-29 Revised Proposal
B31: Attachment 5.3: Capex model - FY25-29

Sheet Index
A1: ='Input| Setup'!E5&" "&'Input| Escalations'!D8 -> Ausgrid 2024-25
B2: AER Capex Forecast Model
B3: =IFERROR(MID(CELL("filename",A2),FIND("]",CELL("filename",A2))+1,255),"") -> Index | C3: Overall Check: | D3: ='Model Validation'!$C$5 -> 1 | E3: NOTE: if there is an error code here you can unhide the Model Validation tab to help you identify the error source.
B5: A guide to the cell colours used in this workbook
B7: Input | C7: This is where you must enter data. Green cells are in all of the green worksheets, and not in any other worksheet.
B8: Input - optional | C8: Entering data into these cells is optional. Most relate to decisions you make about the forecasting and allocation of capitalised overheads.
B9: Do not edit cell | C9: =" These cells are found in table "&LEFT('Input| Escalations'!B21,2)&" only. They cover a dynamic that depends on your selection of base year for inputs. Please only enter data in the green cells." -> These cells are found in table 12 only. They cover a dynamic that depends on your selection of base year for inputs. Please only enter data in the green cells.
B10: Formula - do not edit | C10: These cells have formulas and validations in them, including when they appear blank. Please do not edit these cells. All cells in the blue and orange worksheets are this type.
C11: These cells indicate where a data input column has been added or calculation formula have been adjusted by Ausgrid to enable the mapping of direct network overheads to the appropriate Output|RIN and Output|AER categories.
B12: AER Draft Decision | C12: These cells indicate where a data input has been amended for the purposes of the AER's draft decision.
B14: Worksheet summary
B16: Worksheet name (links) | C16: Check | E16: Input required? | G16: Description
B17: =IFERROR('Input| Setup'!B3,"") -> Input| Setup | C17: N/A | E17: Y | G17: Sets up the model with relevant years and output categories
B18: =IFERROR('Input| Escalations'!B3,"") -> Input| Escalations | C18: N/A | E18: Y | G18: Sets up the inflation and labour escalations
B19: =IFERROR('Input| Projects'!C3,"") -> Input| Projects | C19: ='Model Validation'!C9 -> 0 | E19: Y | G19: Forecast direct costs and other relevant forecast parameters are entered here.
B20: =IFERROR('Input| Disposals'!C3,"") -> Input| Disposals | C20: ='Model Validation'!C10 -> 0 | E20: Y | G20: Input for forecast disposals by PTRM category.
B21: =IFERROR('Input| Type 2 capcons'!B3,"") -> Input| Type 2 capcons | C21: ='Model Validation'!C11 -> 0 | E21: Y | G21: ="Input for type 2 capital contributions (a definition is given at table "&LEFT('Input| Type 2 capcons'!B5,2)&")" -> Input for type 2 capital contributions (a definition is given at table 24)
B22: =IFERROR('Input| Expensing'!B3,"") -> Input| Expensing | C22: ='Model Validation'!C12 -> 0 | E22: Y | G22: Input for forecast immediate expensing by PTRM category.
B23: =IFERROR('Input| Overheads'!B3,"") -> Input| Overheads | C23: ='Model Validation'!C13 -> 0 | E23: Y | G23: Input tables used to calculate forecast capitalised overheads.
B24: =IFERROR('Calc| Overheads Allocation'!B3,"") -> Calc| Overheads Allocation | C24: ='Model Validation'!C14 -> 1 | E24: N | G24: Calculation tables for forecast capitalised overheads and yearly allocation rates.
B25: =IFERROR('Calc| Project Costs'!C3,"") -> Calc| Project Costs | C25: ='Model Validation'!C15 -> 0 | E25: N | G25: Calculation tables for forecast capex outputs.
B26: =IFERROR('Output| PTRM (D)'!C3,"") -> Output| PTRM (D) | C26: ='Model Validation'!C16 -> 0 | E26: N | G26: Produces forecast capex and immediate expensing tables in PTRM format for distribution assets.
B27: Output| PTRM (T) | C27: ='Model Validation'!C17 -> 0 | E27: N | G27: Produces forecast capex and immediate expensing tables in PTRM format for transmission assets.
B28: =IFERROR('Output| RIN'!B3,"") -> Output| RIN | C28: ='Model Validation'!C18 -> 0 | E28: N | G28: Produces forecast capex tables analogous to Reset RIN table 2.1.1.
B29: =IFERROR('Output| AER'!B3,"") -> Output| AER | C29: ='Model Validation'!C19 -> 0 | E29: N | G29: Produces forecast capex by capex drivers that align with AER's standard assessment approach.
B30: =IFERROR('Model Validation'!B3,"") -> Model Validation | C30: ='Model Validation'!C5 -> 1 | E30: N | G30: Hidden tab. Compiles all validation cells in the model to facilitate troubleshooting.
B32: Table listing and description
B34: Table name | C34: Worksheet | E34: Input required? | G34: Description
B35: ='Input| Setup'!A5 -> 1. Business name | C35: =B17 -> Input| Setup | E35: Y | G35: Please enter your business name. This is shown in cell A1 in each worksheet in the model.
B36: ='Input| Setup'!B7 -> 2. Financial years | C36: =B17 -> Input| Setup | E36: N | G36: ="Provides reference range for FY drop-down boxes, based on your input in table "&LEFT(B44,2)&"." -> Provides reference range for FY drop-down boxes, based on your input in table 10.
B37: ='Input| Setup'!B18 -> 3. RIN categories | C37: =B17 -> Input| Setup | E37: N | G37: Aligns with Reset RIN table 2.1.1.
B38: ='Input| Setup'!B27 -> 4. AER categories | C38: =B17 -> Input| Setup | E38: N | G38: Aligns with AER's current assessment categories.
B39: ='Input| Setup'!B38 -> 5. Months | C39: =B17 -> Input| Setup | E39: N | G39: Provides reference range for month drop-down boxes (i.e. June for end-year and December for mid-year).
B40: ='Input| Setup'!B43 -> 6. Overhead switch | C40: =B17 -> Input| Setup | E40: N | G40: ="Assigns yes or no response in table "&LEFT(B52,2)&" as to whether the project attracts capitalised overheads." -> Assigns yes or no response in table 18 as to whether the project attracts capitalised overheads.
B41: ='Input| Setup'!B47 -> 7. Distribution/transmission switch | C41: =C40 -> Input| Setup | E41: N | G41: ="Assigns Distribution or Transmission response in table "&LEFT(B43,1)&"." -> Assigns Distribution or Transmission response in table 9.
B42: ='Input| Setup'!B51 -> 8. Overhead allocation method | C42: =C41 -> Input| Setup | E42: N | G42: ="Assigns the methodology for allocating overheads in table "&LEFT(B69,2)&"." -> Assigns the methodology for allocating overheads in table 35.
B43: ='Input| Setup'!E7 -> 9. PTRM asset classes | C43: =B17 -> Input| Setup | E43: Y | G43: Please enter your PTRM classes.
B44: ='Input| Escalations'!B5 -> 10. Inflation table setup | C44: =B18 -> Input| Escalations | E44: Y | G44: Please enter the first year of the forecast regulatory control period, and the real year basis for cost inputs. Please ensure it is in YYYY-YY format
B45: ='Input| Escalations'!B12 -> 11. Inflation | C45: =C44 -> Input| Escalations | E45: Y | G45: Calculates CPI escalators. Please enter CPI (year-on-year change, lagged 12-months).
B46: ='Input| Escalations'!B21 -> 12. Forecast real price escalation | C46: =C45 -> Input| Escalations | E46: N | G46: Calculates real price escalators. Please enter forecast yearly escalation for internal labour, contract labour and non-labour.
B47: ='Input| Projects'!C7 -> 13. Project Details | C47: =B19 -> Input| Projects | E47: Y | G47: Please enter full list of forecast projects and programs. The 'Unique ID' input refers to your own internal project code.
B48: ='Input| Projects'!F7 -> 14. RIN and optional DNSP mapping categories | C48: =B19 -> Input| Projects | E48: Y | G48: Please allocate project to a RIN category. You can also add a DNSP-defined category for your internal validation purposes (optional), but note this will not map to an output table.
B49: ='Input| Projects'!I7 -> 15. Unescalated direct costs (excluding type 2 capital contributions) ($'000s 2021-22 June) | C49: =B19 -> Input| Projects | E49: Y | G49: ="Please enter annual forecast direct capex for each project and in real dollars as set out in table "&LEFT(B44,2)&". Where applicable, rebates are to be included in gross connections capex. For clarity, 'direct costs' means all costs excluding capitalised overheads." -> Please enter annual forecast direct capex for each project and in real dollars as set out in table 10. Where applicable, rebates are to be included in gross connections capex. For clarity, 'direct costs' means all costs excluding capitalised overheads.
B50: ='Input| Projects'!Q7 -> 16. Type 1 capital contributions included in table 15 ($'000s 2021-22 June) | C50: =C49 -> Input| Projects | E50: Y | G50: ="Please enter total type 1 capital contributions, as defined in table "&LEFT(B58,2)&"." -> Please enter total type 1 capital contributions, as defined in table 24.
B51: ='Input| Projects'!Y7 -> 17. Cost components as % of direct costs | C51: =B19 -> Input| Projects | E51: Y | G51: Please enter the proportion of internal labour, contract labour and non-labour costs to total direct costs for each project (average over regulatory control period).
B52: ='Input| Projects'!AC7 -> 18. Capitalised overheads allocation | C52: =B19 -> Input| Projects | E52: Y | G52: Please indicate whether each project attracts capitalised network and/or corporate overheads.
B53: ='Input| Projects'!AF7 -> 19. Allocation of capitalised overheads - DNSP defined | C53: =C52 -> Input| Projects | E53: optional | G53: The model allows for allocation of overheads by direct costs, internal labour or a custom allocation method. Please complete this table only if you wish to do a custom allocation method.
B54: ='Input| Projects'!AI7 -> 20. AER categories as % of direct costs (i.e. total costs reported in table 15, excluding capitalised overheads) | C54: =B19 -> Input| Projects | E54: Y | G54: Please enter the proportion of directs costs for each project and program to be allocated to each AER category.
B55: ='Input| Projects'!AS7 -> 21. PTRM asset classes as % of direct costs (i.e. total costs reported in table 15, excluding capitalised overheads) | C55: =B19 -> Input| Projects | E55: Y | G55: Please enter the proportion of directs costs for each project and program to be allocated to each PTRM asset class.
B56: ='Input| Disposals'!D5 -> 22. Forecast asset disposals ($'000s 2021-22 June) | C56: =B20 -> Input| Disposals | E56: Y | G56: Please enter your forecast asset disposals by PTRM asset class.
B57: ='Input| Disposals'!O5 -> 23. Forecast asset disposals ($'000s June 2024) | C57: =B20 -> Input| Disposals | E57: N | G57: ="Converts table "&LEFT(B56,2)&" data to correct real year basis." -> Converts table 22 data to correct real year basis.
B58: ='Input| Type 2 capcons'!B5 -> 24. Forecast type 2 capital contributions ($'000s 2021-22 June) | C58: =B21 -> Input| Type 2 capcons | E58: Y | G58: Please enter your forecast type 2 capital contributions by RIN category. The definitions for type 1 and type 2 capcons are given at this table.
B59: ='Input| Type 2 capcons'!B22 -> 25. Cost components of type 2 capital contributions | C59: =B21 -> Input| Type 2 capcons | E59: Y | G59: Please enter internal labour, contract labour and non-labour costs as a proportion of forecast type 2 capcons.
B60: ='Input| Type 2 capcons'!B28 -> 26. Real price escalators for type 2 capital contributions | C60: =B21 -> Input| Type 2 capcons | E60: N | G60: ="Calculates real price escalation based on the inputs from table "&LEFT(B59,2)&"." -> Calculates real price escalation based on the inputs from table 25.
B61: ='Input| Type 2 capcons'!B34 -> 27. Forecast type 2 capital contributions, escalated ($'000s June 2024) | C61: =B21 -> Input| Type 2 capcons | E61: N | G61: ="Converts table "&LEFT(B58,2)&" data to correct escalated, real year basis." -> Converts table 24 data to correct escalated, real year basis.
B62: ='Input| Expensing'!C5 -> 28. Immediate expensing (% to be immediately expensed) | C62: =B22 -> Input| Expensing | E62: Y | G62: Please enter forecast immediate expensing of capex as a percentage of total gross capex by PTRM asset class.
B63: ='Input| Expensing'!M5 -> 29. Immediate expensing (% to be immediately expensed) - Distribution | C63: =B22 -> Input| Expensing | E63: N | G63: Filters the immediate expensing for distribution assets
B64: ='Input| Expensing'!W5 -> 30. Immediate expensing (% to be immediately expensed) - Transmission | C64: =B22 -> Input| Expensing | E64: N | G64: Filterts the immediate expensing for transmission assets
B65: ='Input| Overheads'!B5 -> 31. Forecast capitalised overheads for current period | C65: =B23 -> Input| Overheads | E65: Y | G65: ="Please enter forecast costs for the current period. If costs for year 4 are actuals, please enter them in table "&LEFT(B67,2)&" only." -> Please enter forecast costs for the current period. If costs for year 4 are actuals, please enter them in table 33 only.
B66: ='Input| Overheads'!B13 -> 32. Forecast capitalised overheads for forecast period - alternative method | C66: =B23 -> Input| Overheads | E66: optional | G66: OPTIONAL: please enter unescalated capitalised overheads in this table only if you wish to enter a substitute forecast for capitalised overheads instead of the default methodology (i.e. based on historicals).
B67: ='Input| Overheads'!B21 -> 33. Historical expenditure (nominal) | C67: =B23 -> Input| Overheads | E67: Y | G67: Please enter historical actual gross capex in nominal terms. Do not enter any forecast/estimated current period capex.
B68: ='Input| Overheads'!B33 -> 34. Forecast cost components of capitalised overheads | C68: =B23 -> Input| Overheads | E68: Y | G68: Please enter internal labour, contract labour and non-labour costs as a proportion of capitalised overheads.
B69: ='Input| Overheads'!B40 -> 35. Select an overheads allocation method | C69: =B23 -> Input| Overheads | E69: Y | G69: Please specify method to allocate capitalised overheads: allocation by direct costs, internal labour or own method (if you select own method, than instructions will appear below your selection).
B70: ='Calc| Overheads Allocation'!B5 -> 36. Overheads rate to be applied to forecast escalated direct costs (%) | C70: =$B$24 -> Calc| Overheads Allocation | E70: N | G70: Rate at which capitalised overheads are allocated to costs attracting overheads for each project.
B71: ='Calc| Overheads Allocation'!B14 -> 37. Capitalised overheads ($'000s June 2024) | C71: =$B$24 -> Calc| Overheads Allocation | E71: N | G71: Inflates historical actual capitalised overheads from nominal to real regulatory base dollars using CPI.
B72: ='Calc| Overheads Allocation'!B19 -> 38. Total costs that attract capitalised overheads ($'000s June 2024) | C72: Calc| Overheads Allocation | E72: N | G72: Inflates historical actual costs that attracts capitalised overheads from nominal to real regulatory base dollars using CPI.
B73: ='Calc| Overheads Allocation'!B26 -> 39. Escalated costs that attract overheads ($'000s June 2024) | C73: Calc| Overheads Allocation | E73: N | G73: Default method of forecasting capitalised overheads: compiles forecast direct capex that attracts capitalised overheads.
B74: ='Calc| Overheads Allocation'!B31 -> 40. Escalated capitalised internal labour costs that attract overheads ($'000s June 2024) | C74: Calc| Overheads Allocation | E74: N | G74: Default method of forecasting capitalised overheads: compiles forecast capitalised internal labour that attracts capitalised overheads.
B75: ='Calc| Overheads Allocation'!B35 -> 41. Change in costs attracting capitalised overheads | C75: Calc| Overheads Allocation | E75: N | G75: Default method of forecasting capitalised overheads: calculates the change in costs that attract capitalised overheads between current period actuals and forecast.
B76: ='Calc| Overheads Allocation'!B41 -> 42. Unescalated capitalised overheads ($'000s June 2024) | C76: Calc| Overheads Allocation | E76: N | G76: Default method of forecasting capitalised overheads: calculates forecast capitalised overheads based on the change in costs attracting overheads and assuming 25 per cent of capitalised overheads vary with changes in these costs.
B77: ='Calc| Overheads Allocation'!B47 -> 43. Annual unescalated capitalised overheads ($'000s June 2024) | C77: Calc| Overheads Allocation | E77: N | G77: ="Calculates annual forecast capitalised overheads either using data input by the distributor in table "&LEFT('Input| Overheads'!B21, 2)&" or based on the overhead rate calculated in table "&LEFT('Calc| Overheads Allocation'!B41,2)&"." -> Calculates annual forecast capitalised overheads either using data input by the distributor in table 33 or based on the overhead rate calculated in table 42.
B78: ='Calc| Overheads Allocation'!B53 -> 44. Real cost escalation - cumulative | C78: Calc| Overheads Allocation | E78: N | G78: Calculates real cost escalation applicable to forecast capitalised overheads.
B79: ='Calc| Overheads Allocation'!B58 -> 45. Forecast capitalised overheads | C79: Calc| Overheads Allocation | E79: N | G79: Output: total forecast capitalised overheads to be allocated to gross capex.
B80: ='Calc| Project Costs'!G7 -> 46. Direct unescalated costs, $000s ($2024 June) | C80: =$B$25 -> Calc| Project Costs | E80: N | G80: Inflates forecast direct costs from real base year for inputs to real regulatory base dollars using CPI.
B81: ='Calc| Project Costs'!O7 -> 47. Compound real cost escalation rates | C81: =$B$25 -> Calc| Project Costs | E81: N | G81: Calculates real price escalators for each project and program based on the proportion of internal labour, contract labour and non-labour costs to total gross direct capex.
B82: ='Calc| Project Costs'!W7 -> 48. Direct escalated costs ($'000s June 2024) | C82: =$B$25 -> Calc| Project Costs | E82: N | G82: Escalates direct costs using real price escalators.
B83: ='Calc| Project Costs'!AE7 -> 49. Direct escalated type 1 (cash) capcons ($'000s June 2024) | C83: Calc| Project Costs | E83: N | G83: Calculates escalated type 1 capital contributions.
B84: ='Calc| Project Costs'!AM7 -> 50. Network overheads ($'000s June 2024) | C84: Calc| Project Costs | E84: N | G84: ="Applies overhead rate based on selection in table "&LEFT(B69,2)&" to calculate allocation of capitalised network overheads." -> Applies overhead rate based on selection in table 35 to calculate allocation of capitalised network overheads.
B85: ='Calc| Project Costs'!AU7 -> 51. Corporate overheads ($'000s June 2024) | C85: Calc| Project Costs | E85: N | G85: ="Applies overhead rate based on selection in table "&LEFT(B69,2)&" to calculate allocation of capitalised corporate overheads." -> Applies overhead rate based on selection in table 35 to calculate allocation of capitalised corporate overheads.
B86: ='Calc| Project Costs'!BC7 -> 52. Total capitalised overheads ($'000s June 2024) | C86: Calc| Project Costs | E86: N | G86: Sums the total capitalised overheads.
B87: ='Calc| Project Costs'!BK7 -> 53. Total overheads allocated to type 1 contributions ($'000s June 2024) | C87: Calc| Project Costs | E87: N | G87: Calculates allocation of capitalised overheads to type 1 capital contributions.
B88: ='Calc| Project Costs'!BS7 -> 54. Total escalated costs (excl. type 2 capcons) ($'000s June 2024) | C88: =$B$25 -> Calc| Project Costs | E88: N | G88: Calculates escalated gross capex (excluding type 2 capital contributions) for input into PTRM table.
B89: ='Calc| Project Costs'!CA7 -> 55. Allocation to distribution and transmission | C89: =$B$25 -> Calc| Project Costs | E89: N | G89: Calculates proportion of costs allocated to either distribution or transmission, based on the PTRM asset class.
B90: ='Output| PTRM (D)'!C5 -> 56. Forecast gross capital expenditure – as incurred ($millions June 2024) (Distribution) | C90: =$B$26 -> Output| PTRM (D) | E90: N | G90: Output - distribution: gross forecast capex by PTRM asset class.
B91: ='Output| PTRM (D)'!C60 -> 57. Forecast capital contributions – Type 1 – as incurred ($millions June 2024) (Distribution) | C91: =$B$26 -> Output| PTRM (D) | E91: N | G91: Output - distribution: forecast type 1 (cash) capital contributions by PTRM asset class.
B92: ='Output| PTRM (D)'!C115 -> 58. Forecast asset disposals – as incurred ($millions June 2024) (Distribution) | C92: =$B$26 -> Output| PTRM (D) | E92: N | G92: Output - distribution: forecast asset disposals by PTRM asset class.
B93: ='Output| PTRM (D)'!C170 -> 59. Forecast net capital expenditure – as incurred ($millions June 2024) (Distribution) | C93: =$B$26 -> Output| PTRM (D) | E93: N | G93: Output - distribution: net forecast capex by PTRM asset class.
B94: ='Output| PTRM (D)'!L5 -> 60. Forecast immediate expensing of capital expenditure – as incurred ($millions June 2024) (Distribution) | C94: =$B$26 -> Output| PTRM (D) | E94: N | G94: Output - distribution: immediate expensing of capex by PTRM asset class.
B95: ='Output| PTRM (T)'!C5 -> 61. Forecast gross capital expenditure – as incurred ($millions June 2024) (Transmission) | C95: =$B$27 -> Output| PTRM (T) | E95: N | G95: Output - transmission: gross forecast capex by PTRM asset class.
B96: ='Output| PTRM (T)'!C60 -> 62. Forecast capital contributions – Type 1 – as incurred ($millions June 2024) (Transmission) | C96: =$B$27 -> Output| PTRM (T) | E96: N | G96: Output - transmission: forecast type 1 (cash) capital contributions by PTRM asset class.
B97: ='Output| PTRM (T)'!C115 -> 63. Forecast asset disposals – as incurred ($millions June 2024) (Transmission) | C97: =$B$27 -> Output| PTRM (T) | E97: N | G97: Output - transmission: forecast asset disposals by PTRM asset class.
B98: ='Output| PTRM (T)'!C170 -> 64. Forecast net capital expenditure – as incurred ($millions June 2024) (Transmission) | C98: =$B$27 -> Output| PTRM (T) | E98: N | G98: Output - transmission: net forecast capex by PTRM asset class.
B99: ='Output| PTRM (T)'!L5 -> 65. Forecast immediate expensing of capital expenditure – as incurred ($millions June 2024) (Transmission) | C99: =$B$27 -> Output| PTRM (T) | E99: N | G99: Output - transmission: immediate expensing of capex by PTRM asset class.
B100: ='Output| RIN'!B5 -> 66. RIN capex drivers: forecast capex ($000s June 2024) | C100: =B28 -> Output| RIN | E100: N | G100: Output: forecast capex - including gifted assets - by RIN category.
B101: ='Output| AER'!B5 -> 67. AER categories: forecast capex ($000s June 2024) | C101: =B29 -> Output| AER | E101: N | G101: Output: forecast capex by AER category.

Sheet Input| Setup
A1: ='Input| Setup'!E5&" "&'Input| Escalations'!D8 -> Ausgrid 2024-25
B2: =IFERROR(Index!B2,"") -> AER Capex Forecast Model | C2: Key: | E2: Input | F2: Formula - do not edit
B3: =IFERROR(MID(CELL("filename",A2),FIND("]",CELL("filename",A2))+1,255),"") -> Input| Setup | E3: AER Draft decision
A5: 1. Business name | E5: Ausgrid
B7: =LEFT(A5,1)+1&". Financial years" -> 2. Financial years | E7: =LEFT(B51,1)+1&". PTRM asset classes" -> 9. PTRM asset classes | F7: Distribution or transmission
B8: =LEFT(B9,4)-1&"-"&RIGHT(B9,2)-1 -> 2017-18 | D8: 1 | E8: Ancillary substation equipment (dx) | F8: Dx
B9: 2018-19 | D9: =D8+1 -> 2 | E9: Buildings (non-system) (dx) | F9: Dx
B10: 2019-20 | D10: 3 | E10: Buildings (system) (dx) | F10: Dx
B11: 2020-21 | D11: 4 | E11: Cable tunnel (dx) | F11: Dx
B12: 2021-22 | D12: 5 | E12: Distribution lines and cables (dx) | F12: Dx
B13: 2022-23 | D13: 6 | E13: Furniture, fittings, plant and equipment (dx) | F13: Dx
B14: 2023-24 | D14: 7 | E14: IT systems (dx) | F14: Dx
B15: ='Input| Escalations'!D8 -> 2024-25 | D15: 8 | E15: In-house software (dx) | F15: Dx
D16: 9 | E16: Land and Easements (dx) | F16: Dx
D17: 10 | E17: Low Voltage Lines and Cables (dx) | F17: Dx
B18: =LEFT(B7,1)+1&". RIN categories" -> 3. RIN categories | D18: 11 | E18: Motor vehicles (dx) | F18: Dx
B19: Replacement | D19: 12 | E19: Sub-transmission lines and cables (dx) | F19: Dx
B20: Augmentation | D20: 13 | E20: Substations (dx) | F20: Dx
B21: Connections | D21: 14 | E21: System IT (dx) | F21: Dx
B22: Other Non-network capex | D22: 15 | E22: Transformers (dx) | F22: Dx
B23: Capitalised network overheads | D23: 16 | E23: Land (non-system) (dx) | F23: Dx
B24: Capitalised corporate overheads | D24: =D23+1 -> 17 | E24: ERP (dx) | F24: Dx
D25: 18 | E25: Distribution Leases (dx) | F25: Dx
D26: 19 | E26: Distribution Leases (non-network) (dx) | F26: Dx
B27: =LEFT(B18,1)+1&". AER categories" -> 4. AER categories | D27: 20 | E27: Composite poles (dx) | F27: Dx
B28: Replacement | D28: 21 | E28: 132kV concrete & steel pole lines (tx) | F28: Tx
B29: DER capex | D29: 22 | E29: 132kV feeders underground (tx) | F29: Tx
B30: Augmentation | D30: 23 | E30: 132kV tower lines (tx) | F30: Tx
B31: Connections | D31: 24 | E31: 132kV wood pole lines (tx) | F31: Tx
B32: ICT capex | D32: 25 | E32: Ancillary substation equipment (tx) | F32: Tx
B33: Property capex | D33: 26 | E33: Buildings (non-system) (tx) | F33: Tx
B34: Fleet capex | D34: 27 | E34: Buildings (system) (tx) | F34: Tx
B35: Other non-network capex | D35: 28 | E35: Furniture, fittings, plant and equipment (tx) | F35: Tx
B36: Capitalised network overhead | D36: 29 | E36: IT systems (tx) | F36: Tx
D37: 30 | E37: In-house software (tx) | F37: Tx
B38: =LEFT(B27,1)+1&". Months" -> 5. Months | D38: 31 | E38: Motor vehicles (tx) | F38: Tx
B39: June | D39: 32 | E39: System IT (tx) | F39: Tx
B40: December | D40: 33 | E40: Transmission & Zone land & easements (tx) | F40: Tx
D41: 34 | E41: Transmission substation equip 132/66kV (tx) | F41: Tx
D42: 35 | E42: Transmission transformers 132/66kV (tx) | F42: Tx
B43: =LEFT(B38,1)+1&". Overhead switch" -> 6. Overhead switch | D43: 36 | E43: Zone substation equip 132/66kV (tx) | F43: Tx
B44: Yes | D44: 37 | E44: Zone transformers 132/66kV (tx) | F44: Tx
B45: No | D45: 38 | E45: Land (non-system) (tx) | F45: Tx
D46: 39 | E46: ERP (tx) | F46: Tx
B47: =LEFT(B43,1)+1&". Distribution/transmission switch" -> 7. Distribution/transmission switch | D47: 40 | E47: Transmission Leases (tx) | F47: Tx
B48: Dx | D48: 41 | E48: Transmission Leases (non-network) (tx) | F48: Tx
B49: Tx | D49: 42 | E49: Composite poles (tx) | F49: Tx
D50: 43
B51: =LEFT(B47,1)+1&". Overhead allocation method" -> 8. Overhead allocation method | D51: 44
B52: Direct costs | D52: 45
B53: Internal labour | D53: 46
B54: DNSP defined | D54: 47
D55: 48
D56: 49
D57: 50

Sheet Input| Escalations
A1: ='Input| Setup'!E5&" "&'Input| Escalations'!D8 -> Ausgrid 2024-25
B2: =IFERROR(Index!B2,"") -> AER Capex Forecast Model | D2: Key: | E2: Input | F2: Do not edit cell | I2: Formula - do not edit
B3: =IFERROR(MID(CELL("filename",A2),FIND("]",CELL("filename",A2))+1,255),"") -> Input| Escalations | E3: AER Draft decision
B5: =LEFT('Input| Setup'!E7,1)+1&". Inflation table setup" -> 10. Inflation table setup
D7: Year | E7: Month
B8: First year of forecast regulatory control period (YYYY-YY) | D8: 2024-25
B9: Base year for inputs | D9: 2021-22 | E9: June
B10: Base year for outputs | D10: =IFERROR(LEFT(D8,4),"") -> 2024 | E10: June
B12: =LEFT(B5,2)+1&". Inflation" -> 11. Inflation | D12: NOTE: please use a one year-lagged CPI series.
D14: =IFERROR((LEFT(E14,4)-1&IF(MID(E14,5,1)="","","-"&TEXT(MOD(MID(E14,6,2)-1,100),"00"))),"") -> 2018-19 | E14: 2019-20 | F14: 2020-21 | G14: 2021-22 | H14: 2022-23 | I14: 2023-24 | J14: =D8 -> 2024-25 | K14: =E10&" "&D10 -> June 2024
B15: CPI year on year change (%) - lagged one year (actual/estimate) | G15: 0.03498 | H15: 0.0783182 | I15: 0.041
B16: =E10&" "&D10&" estimate" -> June 2024 estimate
B17: Cumulative Inflation Index | D17: =IFERROR(1+D15,"") -> 1 | E17: =IFERROR(D17*(1+E15),"") -> 1 | F17: =E17*(1+F15) -> 1 | G17: =F17*(1+G15) -> 1.03498 | H17: =G17*(1+H15) -> 1.116037771 | I17: =H17*(1+I15) -> 1.161795319 | J17: =I17*(1+J15) -> 1.161795319
B18: =IFERROR("Index: Nominal "&E9&" to "& "Real "&D10 &" "&LEFT(E10,9),"") -> Index: Nominal June to Real 2024 June | D18: =INDEX($D$17:$J$17,MATCH($D$10- 1,_xlfn.NUMBERVALUE(LEFT($D$14:$J$14,4)),0))/D$17*(1+D$15)^IF($E$9='Input| Setup'!$B$40,0.5,0) -> 1.161795319 | E18: =INDEX($D$17:$J$17,MATCH($D$10- 1,_xlfn.NUMBERVALUE(LEFT($D$14:$J$14,4)),0))/E$17*(1+E$15)^IF($E$9='Input| Setup'!$B$40,0.5,0) -> 1.161795319 | F18: =INDEX($D$17:$J$17,MATCH($D$10- 1,_xlfn.NUMBERVALUE(LEFT($D$14:$J$14,4)),0))/F$17*(1+F$15)^IF($E$9='Input| Setup'!$B$40,0.5,0) -> 1.161795319 | G18: =INDEX($D$17:$J$17,MATCH($D$10- 1,_xlfn.NUMBERVALUE(LEFT($D$14:$J$14,4)),0))/G$17*(1+G$15)^IF($E$9='Input| Setup'!$B$40,0.5,0) -> 1.122529246 | H18: =INDEX($D$17:$J$17,MATCH($D$10- 1,_xlfn.NUMBERVALUE(LEFT($D$14:$J$14,4)),0))/H$17*(1+H$15)^IF($E$9='Input| Setup'!$B$40,0.5,0) -> 1.041 | I18: =INDEX($D$17:$J$17,MATCH($D$10- 1,_xlfn.NUMBERVALUE(LEFT($D$14:$J$14,4)),0))/I$17*(1+I$15)^IF($E$9='Input| Setup'!$B$40,0.5,0) -> 1 | J18: =INDEX($D$17:$J$17,MATCH($D$10- 1,_xlfn.NUMBERVALUE(LEFT($D$14:$J$14,4)),0))/J$17*(1+J$15)^IF($E$9='Input| Setup'!$B$40,0.5,0) -> 1
B19: =IFERROR("Real "&D9 &" "&LEFT(E9,9)&" to "& "Real "&D10 &" "&LEFT(E10,9),"") -> Real 2021-22 June to Real 2024 June | K19: =INDEX(D14:J18,5,MATCH(D9,D14:J14)) -> 1.122529246
B21: =LEFT(B12,2)+1&". Forecast real price escalation" -> 12. Forecast real price escalation | D21: =IF(E9="June","NOTE: because you selected "&D9&" "&E9&" for inputs, please ensure you enter 6-month escalations for "&(LEFT(D9,4)+1&IF(MID(D9,5,1)="","","-"&TEXT(MOD(MID(D9,6,2)+1,100),"00"))),"") -> NOTE: because you selected 2021-22 June for inputs, please ensure you enter 6-month escalations for 2022-23
D23: =IF(C14<$D$9,"",D14) ->  | H23: 2022-23 | I23: 2023-24 | J23: =J14 -> 2024-25 | K23: =IFERROR((LEFT(J23,4)+1&IF(MID(J23,5,1)="","","-"&TEXT(MOD(MID(J23,6,2)+1,100),"00"))),"") -> 2025-26 | L23: =IFERROR((LEFT(K23,4)+1&IF(MID(K23,5,1)="","","-"&TEXT(MOD(MID(K23,6,2)+1,100),"00"))),"") -> 2026-27 | M23: =IFERROR((LEFT(L23,4)+1&IF(MID(L23,5,1)="","","-"&TEXT(MOD(MID(L23,6,2)+1,100),"00"))),"") -> 2027-28 | N23: =IFERROR((LEFT(M23,4)+1&IF(MID(M23,5,1)="","","-"&TEXT(MOD(MID(M23,6,2)+1,100),"00"))),"") -> 2028-29
B24: Annual escalation
B25: Internal labour | H25: -0.0344023 | I25: 0.0058851 | J25: 0.0135385 | K25: 0.0142706 | L25: 0.0089237 | M25: 0.0081686 | N25: 0.0097638
B26: Contract labour | H26: 0 | I26: 0 | J26: 0 | K26: 0 | L26: 0 | M26: 0 | N26: 0
B27: Non-labour | J27: 0 | K27: 0 | L27: 0 | M27: 0 | N27: 0
B28: Index
B29: Internal labour | C29: 1 | D29: =IFERROR(C29*(1+D25),"") -> 1 | E29: 1 | F29: 1 | G29: 1 | H29: 0.9655977 | I29: 0.971280339 | J29: 0.9844300179 | K29: 0.9984784249 | L29: 1.007388547 | M29: 1.015617501 | N29: 1.025533787
B30: Contract labour | C30: 1 | D30: =IFERROR(C30*(1+D26),"") -> 1 | E30: 1 | F30: 1 | G30: 1 | H30: 1 | I30: =IFERROR(H30*(1+I26),"") -> 1 | J30: 1 | K30: 1 | L30: 1 | M30: 1 | N30: 1
B31: Non-labour | C31: 1 | D31: =IFERROR(C31*(1+D27),"") -> 1 | E31: 1 | F31: 1 | G31: 1 | H31: 1 | I31: 1 | J31: 1 | K31: 1 | L31: 1 | M31: 1 | N31: 1
B32: Cumulative
B33: Internal labour | D33: =IF(D29-1=0,0,D29-1) -> 0 | E33: 0 | F33: 0 | G33: =IF(G29-1=0,0,G29-1) -> 0 | H33: -0.0344023 | I33: -0.02871966098 | J33: -0.01556998211 | K33: -0.001521575092 | L33: 0.007388546828 | M33: 0.01561750091 | N33: 0.02553378707
B34: Contract labour | D34: 0 | E34: 0 | F34: 0 | G34: 0 | H34: 0 | I34: 0 | J34: 0 | K34: 0 | L34: 0 | M34: 0 | N34: 0
B35: Non-labour | D35: 0 | E35: 0 | F35: 0 | G35: 0 | H35: 0 | I35: 0 | J35: 0 | K35: 0 | L35: 0 | M35: 0 | N35: 0
D37: ="Note: the grey cells below the enable conditional formatting in table "&LEFT(B21,2)&". Do not delete." -> Note: the grey cells below the enable conditional formatting in table 12. Do not delete.
D38: =IF(AND(D23="",E23=""),1,"") -> 1 | E38: 1 | F38: 1
D39: =IF(D23="",0,"") -> 0 | E39: 0 | F39: 0 | G39: 0

Sheet Input| Projects
A1: ='Input| Setup'!E5&" "&'Input| Escalations'!D8 -> Ausgrid 2024-25
C2: =IFERROR(Index!B2,"") -> AER Capex Forecast Model | D2: Sheet Validation | E2: ='Model Validation'!$C$9 -> 0 | I2: Key: | J2: Input | K2: Input - optional | L2: Formula - do not edit
C3: =IFERROR(MID(CELL("filename",B2),FIND("]",CELL("filename",B2))+1,255),"") -> Input| Projects
I5: ="Total annual direct costs excl. type 2 capcons, unescalated (note: please include type 1 capital contributions as defined in table "&LEFT('Input| Type 2 capcons'!B5,2)&" and rebates where applicable)" -> Total annual direct costs excl. type 2 capcons, unescalated (note: please include type 1 capital contributions as defined in table 24 and rebates where applicable) | Q5: ="Total annual type 1 capital contributions, direct costs, unescalated (note: see table "&LEFT('Input| Type 2 capcons'!B5,2)&" for definitions of type 1 and 2 capcons)" -> Total annual type 1 capital contributions, direct costs, unescalated (note: see table 24 for definitions of type 1 and 2 capcons) | AF5: =IF(SUM(AF10:AF1005)=0,0,IF(SUM(AF10:AF1005)=1,0,1)) -> 0 | AG5: =IF(SUM(AG10:AG1005)=0,0,IF(SUM(AG10:AG1005)=1,0,1)) -> 0
I6: =SUM(I10:I1005) -> 0 | J6: 0 | K6: 524809.429 | L6: 475658.0241 | M6: 505110.4022 | N6: 482131.7951 | O6: 420520.8465 | Q6: =SUM(Q10:Q1005) -> 0 | R6: 0 | S6: 0 | T6: 0 | U6: 0 | V6: 0 | W6: 0 | AF6: ="NOTE: fill in table only if you select 'DNSP defined' overhead allocation in table "&LEFT('Input| Overheads'!B40,2) -> NOTE: fill in table only if you select 'DNSP defined' overhead allocation in table 35 | AS6: 1 | AT6: =AS6+1 -> 2 | AU6: =AT6+1 -> 3 | AV6: 4 | AW6: 5 | AX6: 6 | AY6: 7 | AZ6: 8 | BA6: 9 | BB6: 10 | BC6: 11 | BD6: 12 | BE6: 13 | BF6: 14 | BG6: 15 | BH6: 16 | BI6: 17 | BJ6: 18 | BK6: 19 | BL6: 20 | BM6: 21 | BN6: 22 | BO6: 23 | BP6: 24 | BQ6: 25 | BR6: =BQ6+1 -> 26 | BS6: 27 | BT6: 28 | BU6: 29 | BV6: 30 | BW6: 31 | BX6: 32 | BY6: 33 | BZ6: 34 | CA6: 35 | CB6: 36 | CC6: 37 | CD6: 38 | CE6: 39 | CF6: 40 | CG6: 41 | CH6: 42 | CI6: 43 | CJ6: 44 | CK6: 45 | CL6: 46 | CM6: 47 | CN6: 48 | CO6: 49 | CP6: 50
C7: =LEFT('Input| Escalations'!B21,2)+1&". Project Details" -> 13. Project Details | F7: =LEFT(C7,2)+1&". RIN and optional DNSP mapping categories" -> 14. RIN and optional DNSP mapping categories | I7: =IFERROR(LEFT(F7,2)+1&". Unescalated direct costs (excluding type 2 capital contributions) ($'000s "&'Input| Escalations'!$D$9&" "&'Input| Escalations'!$E$9&")","") -> 15. Unescalated direct costs (excluding type 2 capital contributions) ($'000s 2021-22 June) | Q7: =LEFT(I7,2)+1&". Type 1 capital contributions included in table "&LEFT(I7,2)&" ($'000s "&'Input| Escalations'!$D$9&" "&'Input| Escalations'!$E$9&")" -> 16. Type 1 capital contributions included in table 15 ($'000s 2021-22 June) | Y7: =LEFT(Q7,2)+1&". Cost components as % of direct costs " -> 17. Cost components as % of direct costs | AC7: =LEFT(Y7,2)+1&". Capitalised overheads allocation" -> 18. Capitalised overheads allocation | AF7: =LEFT(AC7,2)+1&". Allocation of capitalised overheads - DNSP defined" -> 19. Allocation of capitalised overheads - DNSP defined | AI7: =LEFT(AF7,2)+1&". AER categories as % of direct costs (i.e. total costs reported in table "&LEFT(I7,2)& ", excluding capitalised overheads)" -> 20. AER categories as % of direct costs (i.e. total costs reported in table 15, excluding capitalised overheads) | AS7: =LEFT(AI7,2)+1&". PTRM asset classes as % of direct costs (i.e. total costs reported in table "&LEFT(I7,2)& ", excluding capitalised overheads)" -> 21. PTRM asset classes as % of direct costs (i.e. total costs reported in table 15, excluding capitalised overheads)
AB8: =IF(SUM(AB10:AB1005)=0,0,1) -> 0 | AF8: % of total capitalised overheads allocated to project: | AR8: =IF(SUM(AR10:AR1005)=0,0,1) -> 0 | AS8: =IFERROR(IF(VLOOKUP(AS$6,'Input| Setup'!$D$8:$F$57,3,0)=0,"",VLOOKUP(AS$6,'Input| Setup'!$D$8:$F$57,3,0)),"") -> Dx | AT8: =IFERROR(IF(VLOOKUP(AT$6,'Input| Setup'!$D$8:$F$57,3,0)=0,"",VLOOKUP(AT$6,'Input| Setup'!$D$8:$F$57,3,0)),"") -> Dx | AU8: =IFERROR(IF(VLOOKUP(AU$6,'Input| Setup'!$D$8:$F$57,3,0)=0,"",VLOOKUP(AU$6,'Input| Setup'!$D$8:$F$57,3,0)),"") -> Dx | AV8: =IFERROR(IF(VLOOKUP(AV$6,'Input| Setup'!$D$8:$F$57,3,0)=0,"",VLOOKUP(AV$6,'Input| Setup'!$D$8:$F$57,3,0)),"") -> Dx | AW8: =IFERROR(IF(VLOOKUP(AW$6,'Input| Setup'!$D$8:$F$57,3,0)=0,"",VLOOKUP(AW$6,'Input| Setup'!$D$8:$F$57,3,0)),"") -> Dx | AX8: =IFERROR(IF(VLOOKUP(AX$6,'Input| Setup'!$D$8:$F$57,3,0)=0,"",VLOOKUP(AX$6,'Input| Setup'!$D$8:$F$57,3,0)),"") -> Dx | AY8: =IFERROR(IF(VLOOKUP(AY$6,'Input| Setup'!$D$8:$F$57,3,0)=0,"",VLOOKUP(AY$6,'Input| Setup'!$D$8:$F$57,3,0)),"") -> Dx | AZ8: =IFERROR(IF(VLOOKUP(AZ$6,'Input| Setup'!$D$8:$F$57,3,0)=0,"",VLOOKUP(AZ$6,'Input| Setup'!$D$8:$F$57,3,0)),"") -> Dx | BA8: =IFERROR(IF(VLOOKUP(BA$6,'Input| Setup'!$D$8:$F$57,3,0)=0,"",VLOOKUP(BA$6,'Input| Setup'!$D$8:$F$57,3,0)),"") -> Dx | BB8: =IFERROR(IF(VLOOKUP(BB$6,'Input| Setup'!$D$8:$F$57,3,0)=0,"",VLOOKUP(BB$6,'Input| Setup'!$D$8:$F$57,3,0)),"") -> Dx | BC8: =IFERROR(IF(VLOOKUP(BC$6,'Input| Setup'!$D$8:$F$57,3,0)=0,"",VLOOKUP(BC$6,'Input| Setup'!$D$8:$F$57,3,0)),"") -> Dx | BD8: =IFERROR(IF(VLOOKUP(BD$6,'Input| Setup'!$D$8:$F$57,3,0)=0,"",VLOOKUP(BD$6,'Input| Setup'!$D$8:$F$57,3,0)),"") -> Dx | BE8: =IFERROR(IF(VLOOKUP(BE$6,'Input| Setup'!$D$8:$F$57,3,0)=0,"",VLOOKUP(BE$6,'Input| Setup'!$D$8:$F$57,3,0)),"") -> Dx | BF8: =IFERROR(IF(VLOOKUP(BF$6,'Input| Setup'!$D$8:$F$57,3,0)=0,"",VLOOKUP(BF$6,'Input| Setup'!$D$8:$F$57,3,0)),"") -> Dx | BG8: =IFERROR(IF(VLOOKUP(BG$6,'Input| Setup'!$D$8:$F$57,3,0)=0,"",VLOOKUP(BG$6,'Input| Setup'!$D$8:$F$57,3,0)),"") -> Dx | BH8: =IFERROR(IF(VLOOKUP(BH$6,'Input| Setup'!$D$8:$F$57,3,0)=0,"",VLOOKUP(BH$6,'Input| Setup'!$D$8:$F$57,3,0)),"") -> Dx | BI8: =IFERROR(IF(VLOOKUP(BI$6,'Input| Setup'!$D$8:$F$57,3,0)=0,"",VLOOKUP(BI$6,'Input| Setup'!$D$8:$F$57,3,0)),"") -> Dx | BJ8: =IFERROR(IF(VLOOKUP(BJ$6,'Input| Setup'!$D$8:$F$57,3,0)=0,"",VLOOKUP(BJ$6,'Input| Setup'!$D$8:$F$57,3,0)),"") -> Dx | BK8: =IFERROR(IF(VLOOKUP(BK$6,'Input| Setup'!$D$8:$F$57,3,0)=0,"",VLOOKUP(BK$6,'Input| Setup'!$D$8:$F$57,3,0)),"") -> Dx | BL8: =IFERROR(IF(VLOOKUP(BL$6,'Input| Setup'!$D$8:$F$57,3,0)=0,"",VLOOKUP(BL$6,'Input| Setup'!$D$8:$F$57,3,0)),"") -> Dx | BM8: =IFERROR(IF(VLOOKUP(BM$6,'Input| Setup'!$D$8:$F$57,3,0)=0,"",VLOOKUP(BM$6,'Input| Setup'!$D$8:$F$57,3,0)),"") -> Tx | BN8: =IFERROR(IF(VLOOKUP(BN$6,'Input| Setup'!$D$8:$F$57,3,0)=0,"",VLOOKUP(BN$6,'Input| Setup'!$D$8:$F$57,3,0)),"") -> Tx | BO8: =IFERROR(IF(VLOOKUP(BO$6,'Input| Setup'!$D$8:$F$57,3,0)=0,"",VLOOKUP(BO$6,'Input| Setup'!$D$8:$F$57,3,0)),"") -> Tx | BP8: =IFERROR(IF(VLOOKUP(BP$6,'Input| Setup'!$D$8:$F$57,3,0)=0,"",VLOOKUP(BP$6,'Input| Setup'!$D$8:$F$57,3,0)),"") -> Tx | BQ8: =IFERROR(IF(VLOOKUP(BQ$6,'Input| Setup'!$D$8:$F$57,3,0)=0,"",VLOOKUP(BQ$6,'Input| Setup'!$D$8:$F$57,3,0)),"") -> Tx | BR8: =IFERROR(IF(VLOOKUP(BR$6,'Input| Setup'!$D$8:$F$57,3,0)=0,"",VLOOKUP(BR$6,'Input| Setup'!$D$8:$F$57,3,0)),"") -> Tx | BS8: =IFERROR(IF(VLOOKUP(BS$6,'Input| Setup'!$D$8:$F$57,3,0)=0,"",VLOOKUP(BS$6,'Input| Setup'!$D$8:$F$57,3,0)),"") -> Tx | BT8: =IFERROR(IF(VLOOKUP(BT$6,'Input| Setup'!$D$8:$F$57,3,0)=0,"",VLOOKUP(BT$6,'Input| Setup'!$D$8:$F$57,3,0)),"") -> Tx | BU8: =IFERROR(IF(VLOOKUP(BU$6,'Input| Setup'!$D$8:$F$57,3,0)=0,"",VLOOKUP(BU$6,'Input| Setup'!$D$8:$F$57,3,0)),"") -> Tx | BV8: =IFERROR(IF(VLOOKUP(BV$6,'Input| Setup'!$D$8:$F$57,3,0)=0,"",VLOOKUP(BV$6,'Input| Setup'!$D$8:$F$57,3,0)),"") -> Tx | BW8: =IFERROR(IF(VLOOKUP(BW$6,'Input| Setup'!$D$8:$F$57,3,0)=0,"",VLOOKUP(BW$6,'Input| Setup'!$D$8:$F$57,3,0)),"") -> Tx | BX8: =IFERROR(IF(VLOOKUP(BX$6,'Input| Setup'!$D$8:$F$57,3,0)=0,"",VLOOKUP(BX$6,'Input| Setup'!$D$8:$F$57,3,0)),"") -> Tx | BY8: =IFERROR(IF(VLOOKUP(BY$6,'Input| Setup'!$D$8:$F$57,3,0)=0,"",VLOOKUP(BY$6,'Input| Setup'!$D$8:$F$57,3,0)),"") -> Tx | BZ8: =IFERROR(IF(VLOOKUP(BZ$6,'Input| Setup'!$D$8:$F$57,3,0)=0,"",VLOOKUP(BZ$6,'Input| Setup'!$D$8:$F$57,3,0)),"") -> Tx | CA8: =IFERROR(IF(VLOOKUP(CA$6,'Input| Setup'!$D$8:$F$57,3,0)=0,"",VLOOKUP(CA$6,'Input| Setup'!$D$8:$F$57,3,0)),"") -> Tx | CB8: =IFERROR(IF(VLOOKUP(CB$6,'Input| Setup'!$D$8:$F$57,3,0)=0,"",VLOOKUP(CB$6,'Input| Setup'!$D$8:$F$57,3,0)),"") -> Tx | CC8: =IFERROR(IF(VLOOKUP(CC$6,'Input| Setup'!$D$8:$F$57,3,0)=0,"",VLOOKUP(CC$6,'Input| Setup'!$D$8:$F$57,3,0)),"") -> Tx | CD8: =IFERROR(IF(VLOOKUP(CD$6,'Input| Setup'!$D$8:$F$57,3,0)=0,"",VLOOKUP(CD$6,'Input| Setup'!$D$8:$F$57,3,0)),"") -> Tx | CE8: =IFERROR(IF(VLOOKUP(CE$6,'Input| Setup'!$D$8:$F$57,3,0)=0,"",VLOOKUP(CE$6,'Input| Setup'!$D$8:$F$57,3,0)),"") -> Tx | CF8: =IFERROR(IF(VLOOKUP(CF$6,'Input| Setup'!$D$8:$F$57,3,0)=0,"",VLOOKUP(CF$6,'Input| Setup'!$D$8:$F$57,3,0)),"") -> Tx | CG8: =IFERROR(IF(VLOOKUP(CG$6,'Input| Setup'!$D$8:$F$57,3,0)=0,"",VLOOKUP(CG$6,'Input| Setup'!$D$8:$F$57,3,0)),"") -> Tx | CH8: =IFERROR(IF(VLOOKUP(CH$6,'Input| Setup'!$D$8:$F$57,3,0)=0,"",VLOOKUP(CH$6,'Input| Setup'!$D$8:$F$57,3,0)),"") -> Tx | CI8: =IFERROR(IF(VLOOKUP(CI$6,'Input| Setup'!$D$8:$F$57,3,0)=0,"",VLOOKUP(CI$6,'Input| Setup'!$D$8:$F$57,3,0)),"") ->  | CJ8: =IFERROR(IF(VLOOKUP(CJ$6,'Input| Setup'!$D$8:$F$57,3,0)=0,"",VLOOKUP(CJ$6,'Input| Setup'!$D$8:$F$57,3,0)),"") ->  | CK8: =IFERROR(IF(VLOOKUP(CK$6,'Input| Setup'!$D$8:$F$57,3,0)=0,"",VLOOKUP(CK$6,'Input| Setup'!$D$8:$F$57,3,0)),"") ->  | CL8: =IFERROR(IF(VLOOKUP(CL$6,'Input| Setup'!$D$8:$F$57,3,0)=0,"",VLOOKUP(CL$6,'Input| Setup'!$D$8:$F$57,3,0)),"") ->  | CM8: =IFERROR(IF(VLOOKUP(CM$6,'Input| Setup'!$D$8:$F$57,3,0)=0,"",VLOOKUP(CM$6,'Input| Setup'!$D$8:$F$57,3,0)),"") ->  | CN8: =IFERROR(IF(VLOOKUP(CN$6,'Input| Setup'!$D$8:$F$57,3,0)=0,"",VLOOKUP(CN$6,'Input| Setup'!$D$8:$F$57,3,0)),"") ->  | CO8: =IFERROR(IF(VLOOKUP(CO$6,'Input| Setup'!$D$8:$F$57,3,0)=0,"",VLOOKUP(CO$6,'Input| Setup'!$D$8:$F$57,3,0)),"") ->  | CP8: =IFERROR(IF(VLOOKUP(CP$6,'Input| Setup'!$D$8:$F$57,3,0)=0,"",VLOOKUP(CP$6,'Input| Setup'!$D$8:$F$57,3,0)),"") ->  | CQ8: =IF(SUM(CQ10:CQ1005)=0,0,1) -> 0
C9: Project/Program Inputs | D9: Unique ID | F9: =MID('Input| Setup'!B18, 4, LEN('Input| Setup'!B18)) -> RIN categories | G9: DNSP category (free-fill) | I9: =IFERROR('Input| Escalations'!H23,"") -> 2022-23 | J9: =IFERROR('Input| Escalations'!I23,"") -> 2023-24 | K9: =IFERROR('Input| Escalations'!J23,"") -> 2024-25 | L9: =IFERROR('Input| Escalations'!K23,"") -> 2025-26 | M9: =IFERROR('Input| Escalations'!L23,"") -> 2026-27 | N9: =IFERROR('Input| Escalations'!M23,"") -> 2027-28 | O9: =IFERROR('Input| Escalations'!N23,"") -> 2028-29 | Q9: =IFERROR('Input| Escalations'!H23,"") -> 2022-23 | R9: =IFERROR('Input| Escalations'!I23,"") -> 2023-24 | S9: =IFERROR('Input| Escalations'!J23,"") -> 2024-25 | T9: =IFERROR('Input| Escalations'!K23,"") -> 2025-26 | U9: =IFERROR('Input| Escalations'!L23,"") -> 2026-27 | V9: =IFERROR('Input| Escalations'!M23,"") -> 2027-28 | W9: =IFERROR('Input| Escalations'!N23,"") -> 2028-29 | Y9: Internal labour | Z9: Contract labour | AA9: Non-labour | AC9: Network Overheads Applies | AD9: Corporate Overheads Applies | AF9: % of total network overheads | AG9: % of total corporate overheads | AI9: =IF('Input| Setup'!B28="","!Check",'Input| Setup'!B28) -> Replacement | AJ9: =IF('Input| Setup'!B29="","!Check",'Input| Setup'!B29) -> DER capex | AK9: =IF('Input| Setup'!B30="","!Check",'Input| Setup'!B30) -> Augmentation | AL9: =IF('Input| Setup'!B31="","!Check",'Input| Setup'!B31) -> Connections | AM9: =IF('Input| Setup'!B32="","!Check",'Input| Setup'!B32) -> ICT capex | AN9: =IF('Input| Setup'!B33="","!Check",'Input| Setup'!B33) -> Property capex | AO9: =IF('Input| Setup'!B34="","!Check",'Input| Setup'!B34) -> Fleet capex | AP9: =IF('Input| Setup'!B35="","!Check",'Input| Setup'!B35) -> Other non-network capex | AQ9: =IF('Input| Setup'!B36="","!Check",'Input| Setup'!B36) -> Capitalised network overhead | AS9: =IFERROR(IF(VLOOKUP(AS$6,'Input| Setup'!$D$8:$E$57,2,0)=0,"",VLOOKUP(AS$6,'Input| Setup'!$D$8:$E$57,2,0)),"") -> Ancillary substation equipment (dx) | AT9: =IF(VLOOKUP(AT$6,'Input| Setup'!$D$8:$E$57,2,0)=0,"",VLOOKUP(AT$6,'Input| Setup'!$D$8:$E$57,2,0)) -> Buildings (non-system) (dx) | AU9: =IFERROR(IF(VLOOKUP(AU$6,'Input| Setup'!$D$8:$E$57,2,0)=0,"",VLOOKUP(AU$6,'Input| Setup'!$D$8:$E$57,2,0)),"") -> Buildings (system) (dx) | AV9: =IFERROR(IF(VLOOKUP(AV$6,'Input| Setup'!$D$8:$E$57,2,0)=0,"",VLOOKUP(AV$6,'Input| Setup'!$D$8:$E$57,2,0)),"") -> Cable tunnel (dx) | AW9: =IFERROR(IF(VLOOKUP(AW$6,'Input| Setup'!$D$8:$E$57,2,0)=0,"",VLOOKUP(AW$6,'Input| Setup'!$D$8:$E$57,2,0)),"") -> Distribution lines and cables (dx) | AX9: =IFERROR(IF(VLOOKUP(AX$6,'Input| Setup'!$D$8:$E$57,2,0)=0,"",VLOOKUP(AX$6,'Input| Setup'!$D$8:$E$57,2,0)),"") -> Furniture, fittings, plant and equipment (dx) | AY9: =IFERROR(IF(VLOOKUP(AY$6,'Input| Setup'!$D$8:$E$57,2,0)=0,"",VLOOKUP(AY$6,'Input| Setup'!$D$8:$E$57,2,0)),"") -> IT systems (dx) | AZ9: =IFERROR(IF(VLOOKUP(AZ$6,'Input| Setup'!$D$8:$E$57,2,0)=0,"",VLOOKUP(AZ$6,'Input| Setup'!$D$8:$E$57,2,0)),"") -> In-house software (dx) | BA9: =IFERROR(IF(VLOOKUP(BA$6,'Input| Setup'!$D$8:$E$57,2,0)=0,"",VLOOKUP(BA$6,'Input| Setup'!$D$8:$E$57,2,0)),"") -> Land and Easements (dx) | BB9: =IFERROR(IF(VLOOKUP(BB$6,'Input| Setup'!$D$8:$E$57,2,0)=0,"",VLOOKUP(BB$6,'Input| Setup'!$D$8:$E$57,2,0)),"") -> Low Voltage Lines and Cables (dx) | BC9: =IFERROR(IF(VLOOKUP(BC$6,'Input| Setup'!$D$8:$E$57,2,0)=0,"",VLOOKUP(BC$6,'Input| Setup'!$D$8:$E$57,2,0)),"") -> Motor vehicles (dx) | BD9: =IFERROR(IF(VLOOKUP(BD$6,'Input| Setup'!$D$8:$E$57,2,0)=0,"",VLOOKUP(BD$6,'Input| Setup'!$D$8:$E$57,2,0)),"") -> Sub-transmission lines and cables (dx) | BE9: =IFERROR(IF(VLOOKUP(BE$6,'Input| Setup'!$D$8:$E$57,2,0)=0,"",VLOOKUP(BE$6,'Input| Setup'!$D$8:$E$57,2,0)),"") -> Substations (dx) | BF9: =IFERROR(IF(VLOOKUP(BF$6,'Input| Setup'!$D$8:$E$57,2,0)=0,"",VLOOKUP(BF$6,'Input| Setup'!$D$8:$E$57,2,0)),"") -> System IT (dx) | BG9: =IFERROR(IF(VLOOKUP(BG$6,'Input| Setup'!$D$8:$E$57,2,0)=0,"",VLOOKUP(BG$6,'Input| Setup'!$D$8:$E$57,2,0)),"") -> Transformers (dx) | BH9: =IFERROR(IF(VLOOKUP(BH$6,'Input| Setup'!$D$8:$E$57,2,0)=0,"",VLOOKUP(BH$6,'Input| Setup'!$D$8:$E$57,2,0)),"") -> Land (non-system) (dx) | BI9: =IFERROR(IF(VLOOKUP(BI$6,'Input| Setup'!$D$8:$E$57,2,0)=0,"",VLOOKUP(BI$6,'Input| Setup'!$D$8:$E$57,2,0)),"") -> ERP (dx) | BJ9: =IFERROR(IF(VLOOKUP(BJ$6,'Input| Setup'!$D$8:$E$57,2,0)=0,"",VLOOKUP(BJ$6,'Input| Setup'!$D$8:$E$57,2,0)),"") -> Distribution Leases (dx) | BK9: =IFERROR(IF(VLOOKUP(BK$6,'Input| Setup'!$D$8:$E$57,2,0)=0,"",VLOOKUP(BK$6,'Input| Setup'!$D$8:$E$57,2,0)),"") -> Distribution Leases (non-network) (dx) | BL9: =IFERROR(IF(VLOOKUP(BL$6,'Input| Setup'!$D$8:$E$57,2,0)=0,"",VLOOKUP(BL$6,'Input| Setup'!$D$8:$E$57,2,0)),"") -> Composite poles (dx) | BM9: =IFERROR(IF(VLOOKUP(BM$6,'Input| Setup'!$D$8:$E$57,2,0)=0,"",VLOOKUP(BM$6,'Input| Setup'!$D$8:$E$57,2,0)),"") -> 132kV concrete & steel pole lines (tx) | BN9: =IFERROR(IF(VLOOKUP(BN$6,'Input| Setup'!$D$8:$E$57,2,0)=0,"",VLOOKUP(BN$6,'Input| Setup'!$D$8:$E$57,2,0)),"") -> 132kV feeders underground (tx) | BO9: =IFERROR(IF(VLOOKUP(BO$6,'Input| Setup'!$D$8:$E$57,2,0)=0,"",VLOOKUP(BO$6,'Input| Setup'!$D$8:$E$57,2,0)),"") -> 132kV tower lines (tx) | BP9: =IFERROR(IF(VLOOKUP(BP$6,'Input| Setup'!$D$8:$E$57,2,0)=0,"",VLOOKUP(BP$6,'Input| Setup'!$D$8:$E$57,2,0)),"") -> 132kV wood pole lines (tx) | BQ9: =IFERROR(IF(VLOOKUP(BQ$6,'Input| Setup'!$D$8:$E$57,2,0)=0,"",VLOOKUP(BQ$6,'Input| Setup'!$D$8:$E$57,2,0)),"") -> Ancillary substation equipment (tx) | BR9: =IFERROR(IF(VLOOKUP(BR$6,'Input| Setup'!$D$8:$E$57,2,0)=0,"",VLOOKUP(BR$6,'Input| Setup'!$D$8:$E$57,2,0)),"") -> Buildings (non-system) (tx) | BS9: =IFERROR(IF(VLOOKUP(BS$6,'Input| Setup'!$D$8:$E$57,2,0)=0,"",VLOOKUP(BS$6,'Input| Setup'!$D$8:$E$57,2,0)),"") -> Buildings (system) (tx) | BT9: =IFERROR(IF(VLOOKUP(BT$6,'Input| Setup'!$D$8:$E$57,2,0)=0,"",VLOOKUP(BT$6,'Input| Setup'!$D$8:$E$57,2,0)),"") -> Furniture, fittings, plant and equipment (tx) | BU9: =IFERROR(IF(VLOOKUP(BU$6,'Input| Setup'!$D$8:$E$57,2,0)=0,"",VLOOKUP(BU$6,'Input| Setup'!$D$8:$E$57,2,0)),"") -> IT systems (tx) | BV9: =IFERROR(IF(VLOOKUP(BV$6,'Input| Setup'!$D$8:$E$57,2,0)=0,"",VLOOKUP(BV$6,'Input| Setup'!$D$8:$E$57,2,0)),"") -> In-house software (tx) | BW9: =IFERROR(IF(VLOOKUP(BW$6,'Input| Setup'!$D$8:$E$57,2,0)=0,"",VLOOKUP(BW$6,'Input| Setup'!$D$8:$E$57,2,0)),"") -> Motor vehicles (tx) | BX9: =IFERROR(IF(VLOOKUP(BX$6,'Input| Setup'!$D$8:$E$57,2,0)=0,"",VLOOKUP(BX$6,'Input| Setup'!$D$8:$E$57,2,0)),"") -> System IT (tx) | BY9: =IFERROR(IF(VLOOKUP(BY$6,'Input| Setup'!$D$8:$E$57,2,0)=0,"",VLOOKUP(BY$6,'Input| Setup'!$D$8:$E$57,2,0)),"") -> Transmission & Zone land & easements (tx) | BZ9: =IFERROR(IF(VLOOKUP(BZ$6,'Input| Setup'!$D$8:$E$57,2,0)=0,"",VLOOKUP(BZ$6,'Input| Setup'!$D$8:$E$57,2,0)),"") -> Transmission substation equip 132/66kV (tx) | CA9: =IFERROR(IF(VLOOKUP(CA$6,'Input| Setup'!$D$8:$E$57,2,0)=0,"",VLOOKUP(CA$6,'Input| Setup'!$D$8:$E$57,2,0)),"") -> Transmission transformers 132/66kV (tx) | CB9: =IFERROR(IF(VLOOKUP(CB$6,'Input| Setup'!$D$8:$E$57,2,0)=0,"",VLOOKUP(CB$6,'Input| Setup'!$D$8:$E$57,2,0)),"") -> Zone substation equip 132/66kV (tx) | CC9: =IFERROR(IF(VLOOKUP(CC$6,'Input| Setup'!$D$8:$E$57,2,0)=0,"",VLOOKUP(CC$6,'Input| Setup'!$D$8:$E$57,2,0)),"") -> Zone transformers 132/66kV (tx) | CD9: =IFERROR(IF(VLOOKUP(CD$6,'Input| Setup'!$D$8:$E$57,2,0)=0,"",VLOOKUP(CD$6,'Input| Setup'!$D$8:$E$57,2,0)),"") -> Land (non-system) (tx) | CE9: =IFERROR(IF(VLOOKUP(CE$6,'Input| Setup'!$D$8:$E$57,2,0)=0,"",VLOOKUP(CE$6,'Input| Setup'!$D$8:$E$57,2,0)),"") -> ERP (tx) | CF9: =IFERROR(IF(VLOOKUP(CF$6,'Input| Setup'!$D$8:$E$57,2,0)=0,"",VLOOKUP(CF$6,'Input| Setup'!$D$8:$E$57,2,0)),"") -> Transmission Leases (tx) | CG9: =IFERROR(IF(VLOOKUP(CG$6,'Input| Setup'!$D$8:$E$57,2,0)=0,"",VLOOKUP(CG$6,'Input| Setup'!$D$8:$E$57,2,0)),"") -> Transmission Leases (non-network) (tx) | CH9: =IFERROR(IF(VLOOKUP(CH$6,'Input| Setup'!$D$8:$E$57,2,0)=0,"",VLOOKUP(CH$6,'Input| Setup'!$D$8:$E$57,2,0)),"") -> Composite poles (tx) | CI9: =IFERROR(IF(VLOOKUP(CI$6,'Input| Setup'!$D$8:$E$57,2,0)=0,"",VLOOKUP(CI$6,'Input| Setup'!$D$8:$E$57,2,0)),"") ->  | CJ9: =IFERROR(IF(VLOOKUP(CJ$6,'Input| Setup'!$D$8:$E$57,2,0)=0,"",VLOOKUP(CJ$6,'Input| Setup'!$D$8:$E$57,2,0)),"") ->  | CK9: =IFERROR(IF(VLOOKUP(CK$6,'Input| Setup'!$D$8:$E$57,2,0)=0,"",VLOOKUP(CK$6,'Input| Setup'!$D$8:$E$57,2,0)),"") ->  | CL9: =IFERROR(IF(VLOOKUP(CL$6,'Input| Setup'!$D$8:$E$57,2,0)=0,"",VLOOKUP(CL$6,'Input| Setup'!$D$8:$E$57,2,0)),"") ->  | CM9: =IFERROR(IF(VLOOKUP(CM$6,'Input| Setup'!$D$8:$E$57,2,0)=0,"",VLOOKUP(CM$6,'Input| Setup'!$D$8:$E$57,2,0)),"") ->  | CN9: =IFERROR(IF(VLOOKUP(CN$6,'Input| Setup'!$D$8:$E$57,2,0)=0,"",VLOOKUP(CN$6,'Input| Setup'!$D$8:$E$57,2,0)),"") ->  | CO9: =IFERROR(IF(VLOOKUP(CO$6,'Input| Setup'!$D$8:$E$57,2,0)=0,"",VLOOKUP(CO$6,'Input| Setup'!$D$8:$E$57,2,0)),"") ->  | CP9: =IFERROR(IF(VLOOKUP(CP$6,'Input| Setup'!$D$8:$E$57,2,0)=0,"",VLOOKUP(CP$6,'Input| Setup'!$D$8:$E$57,2,0)),"") -> 
B10: 1 | C10: CONDITIONAL PROJECTS | D10: ARA_01.0007A | F10: Connections | K10: 500.5047415 | L10: 278.6036685 | M10: 374.9414823 | N10: 863.0860974 | O10: 0 | Y10: 0.3987408519 | Z10: 0.3372757912 | AA10: 0.263983357 | AB10: =IF(SUM(Y10:AA10,I10:O10)=0,"",IF(SUM(Y10:AA10)=1,"",1)) ->  | AC10: Yes | AD10: No | AF10: 0.00112446088 | AG10: 0 | AI10: 0 | AJ10: 0 | AK10: 0 | AL10: 1 | AM10: 0 | AN10: 0 | AO10: 0 | AP10: 0 | AQ10: 0 | AS10: 0.003663695664 | AT10: 0 | AU10: 0 | AV10: 0 | AW10: 0 | AX10: 0 | AY10: 0 | AZ10: 0 | BA10: 0 | BB10: 0 | BC10: 0 | BD10: 0.2107444039 | BE10: 0.2071785493 | BF10: 0 | BG10: 0 | BH10: 0 | BI10: 0 | BJ10: 0 | BK10: 0 | BL10: 0 | BM10: 0.008537010707 | BN10: 0.2709703297 | BO10: 0 | BP10: 0 | BQ10: 0 | BR10: 0 | BS10: 0 | BT10: 0 | BU10: 0 | BV10: 0 | BW10: 0 | BX10: 0 | BY10: 0 | BZ10: 0.1510507631 | CA10: 0 | CB10: 0.1478552477 | CC10: 0 | CD10: 0 | CE10: 0 | CF10: 0 | CG10: 0 | CH10: 0 | CI10: 0 | CJ10: 0 | CK10: 0 | CL10: 0 | CM10: 0 | CN10: 0 | CO10: 0 | CP10: 0 | CQ10: =IF(COUNT(AI10:AQ10)=0,"",IF(SUM(AI10:AQ10)=1,"",1)) -> 
B11: =IFERROR(B10+1,"") -> 2 | C11: CONDITIONAL PROJECTS | D11: ARA_01.0007A | F11: Augmentation | K11: 261.4431478 | L11: 1155.152903 | M11: 2648.262988 | N11: 1838.642854 | O11: 311.2186429 | Y11: 0.265901988 | Z11: 0.5452523443 | AA11: 0.1888456676 | AB11: =IF(SUM(Y11:AA11,I11:O11)=0,"",IF(SUM(Y11:AA11)=1,"",1)) ->  | AC11: Yes | AD11: No | AF11: 0.002310264097 | AG11: 0 | AI11: 0 | AJ11: 0 | AK11: 1 | AL11: 0 | AM11: 0 | AN11: 0 | AO11: 0 | AP11: 0 | AQ11: 0 | AS11: 0.1395648436 | AT11: 0 | AU11: 0.27512133 | AV11: 0 | AW11: 0.06207120598 | AX11: 0 | AY11: 0 | AZ11: 0 | BA11: 0.0006700811684 | BB11: 0 | BC11: 0 | BD11: 0.06606333347 | BE11: 0.1303780097 | BF11: 0 | BG11: 0.3261311961 | BH11: 0 | BI11: 0 | BJ11: 0 | BK11: 0 | BL11: 0 | BM11: 0 | BN11: 0 | BO11: 0 | BP11: 0 | BQ11: 0 | BR11: 0 | BS11: 0 | BT11: 0 | BU11: 0 | BV11: 0 | BW11: 0 | BX11: 0 | BY11: 0 | BZ11: 0 | CA11: 0 | CB11: 0 | CC11: 0 | CD11: 0 | CE11: 0 | CF11: 0 | CG11: 0 | CH11: 0 | CQ11: =IF(COUNT(AI11:AQ11)=0,"",IF(SUM(AI11:AQ11)=1,"",1)) -> 
B12: =IFERROR(B11+1,"") -> 3 | C12: CONDITIONAL PROJECTS | D12: ARA_01.0007A | F12: Replacement | K12: 65.16978682 | L12: 260.6791473 | M12: 685.9296039 | N12: 623.2300804 | O12: 336.5534086 | Y12: 0.2799204518 | Z12: 0.5036538695 | AA12: 0.2164256787 | AC12: Yes | AD12: No | AF12: 0.0007715490055 | AG12: 0 | AI12: 1 | AJ12: 0 | AK12: 0 | AL12: 0 | AM12: 0 | AN12: 0 | AO12: 0 | AP12: 0 | AQ12: 0 | AS12: 0.1296643599 | AT12: 0 | AU12: 0.3690412749 | AV12: 0 | AW12: 0.08385414927 | AX12: 0 | AY12: 0 | AZ12: 0 | BA12: 0.000905235937 | BB12: 0 | BC12: 0 | BD12: 0.03959658757 | BE12: 0.2047758623 | BF12: 0 | BG12: 0.1721625301 | BH12: 0 | BI12: 0 | BJ12: 0 | BK12: 0 | BL12: 0 | BM12: 0 | BN12: 0 | BO12: 0 | BP12: 0 | BQ12: 0 | BR12: 0 | BS12: 0 | BT12: 0 | BU12: 0 | BV12: 0 | BW12: 0 | BX12: 0 | BY12: 0 | BZ12: 0 | CA12: 0 | CB12: 0 | CC12: 0 | CD12: 0 | CE12: 0 | CF12: 0 | CG12: 0 | CH12: 0
B13: 4 | C13: DECOM 132KV FDR 928/3 & 929/1 LCOVE-DAL | D13: ARA_01.1.0026 | F13: Replacement | K13: 1030.039334 | L13: 0 | M13: 0 | N13: 0 | O13: 0 | Y13: 0.1512537395 | Z13: 0.8468149829 | AA13: 0.001931277655 | AC13: Yes | AD13: No | AF13: 0.0002178102787 | AG13: 0 | AI13: 1 | AJ13: 0 | AK13: 0 | AL13: 0 | AM13: 0 | AN13: 0 | AO13: 0 | AP13: 0 | AQ13: 0 | AS13: 0 | AT13: 0 | AU13: 0 | AV13: 0 | AW13: 0 | AX13: 0 | AY13: 0 | AZ13: 0 | BA13: 0 | BB13: 0 | BC13: 0 | BD13: 0 | BE13: 0 | BF13: 0 | BG13: 0 | BH13: 0 | BI13: 0 | BJ13: 0 | BK13: 0 | BL13: 0 | BM13: 0 | BN13: 1 | BO13: 0 | BP13: 0 | BQ13: 0 | BR13: 0 | BS13: 0 | BT13: 0 | BU13: 0 | BV13: 0 | BW13: 0 | BX13: 0 | BY13: 0 | BZ13: 0 | CA13: 0 | CB13: 0 | CC13: 0 | CD13: 0 | CE13: 0 | CF13: 0 | CG13: 0 | CH13: 0
B14: 5 | C14: REP 132KV FDR 9SA & 92P | D14: ARA_01.1.0028A | F14: Replacement | K14: 3682.408442 | L14: 1110.567625 | M14: 0 | N14: 0 | O14: 0 | Y14: 0.03418610214 | Z14: 0.9423607746 | AA14: 0.0234531233 | AC14: Yes | AD14: No | AF14: 0.0002290726747 | AG14: 0 | AI14: 1 | AJ14: 0 | AK14: 0 | AL14: 0 | AM14: 0 | AN14: 0 | AO14: 0 | AP14: 0 | AQ14: 0 | AS14: 0 | AT14: 0 | AU14: 0 | AV14: 0 | AW14: 0 | AX14: 0 | AY14: 0 | AZ14: 0 | BA14: 0 | BB14: 0 | BC14: 0 | BD14: 0 | BE14: 0 | BF14: 0 | BG14: 0 | BH14: 0 | BI14: 0 | BJ14: 0 | BK14: 0 | BL14: 0 | BM14: 0 | BN14: 1 | BO14: 0 | BP14: 0 | BQ14: 0 | BR14: 0 | BS14: 0 | BT14: 0 | BU14: 0 | BV14: 0 | BW14: 0 | BX14: 0 | BY14: 0 | BZ14: 0 | CA14: 0 | CB14: 0 | CC14: 0 | CD14: 0 | CE14: 0 | CF14: 0 | CG14: 0 | CH14: 0
B15: 6 | C15: DECOM 132KV FDR 91X & 91Y | D15: ARA_01.1.0029A | F15: Replacement | K15: 0 | L15: 0 | M15: 263.6369701 | N15: 1713.640306 | O15: 659.0924253 | Y15: 0.1277894583 | Z15: 0.870178355 | AA15: 0.00203218676 | AC15: Yes | AD15: No | AF15: 0.0004709987791 | AG15: 0 | AI15: 1 | AJ15: 0 | AK15: 0 | AL15: 0 | AM15: 0 | AN15: 0 | AO15: 0 | AP15: 0 | AQ15: 0 | AS15: 0 | AT15: 0 | AU15: 0 | AV15: 0 | AW15: 0 | AX15: 0 | AY15: 0 | AZ15: 0 | BA15: 0 | BB15: 0 | BC15: 0 | BD15: 0 | BE15: 0 | BF15: 0 | BG15: 0 | BH15: 0 | BI15: 0 | BJ15: 0 | BK15: 0 | BL15: 0 | BM15: 0 | BN15: 1 | BO15: 0 | BP15: 0 | BQ15: 0 | BR15: 0 | BS15: 0 | BT15: 0 | BU15: 0 | BV15: 0 | BW15: 0 | BX15: 0 | BY15: 0 | BZ15: 0 | CA15: 0 | CB15: 0 | CC15: 0 | CD15: 0 | CE15: 0 | CF15: 0 | CG15: 0 | CH15: 0
B16: 7 | C16: REP 132KV FDR 91A/1 & 91B/1 BFLD-ST PET | D16: ARA_01.1.0030A | F16: Replacement | K16: 0 | L16: 0 | M16: 528.7271463 | N16: 5287.271463 | O16: 8812.119104 | Y16: 0.03413993108 | Z16: 0.9450787966 | AA16: 0.02078127228 | AC16: Yes | AD16: No | AF16: 0.0006981834132 | AG16: 0 | AI16: 1 | AJ16: 0 | AK16: 0 | AL16: 0 | AM16: 0 | AN16: 0 | AO16: 0 | AP16: 0 | AQ16: 0 | AS16: 0 | AT16: 0 | AU16: 0 | AV16: 0 | AW16: 0 | AX16: 0 | AY16: 0 | AZ16: 0 | BA16: 0 | BB16: 0 | BC16: 0 | BD16: 0 | BE16: 0 | BF16: 0 | BG16: 0 | BH16: 0 | BI16: 0 | BJ16: 0 | BK16: 0 | BL16: 0 | BM16: 0 | BN16: 1 | BO16: 0 | BP16: 0 | BQ16: 0 | BR16: 0 | BS16: 0 | BT16: 0 | BU16: 0 | BV16: 0 | BW16: 0 | BX16: 0 | BY16: 0 | BZ16: 0 | CA16: 0 | CB16: 0 | CC16: 0 | CD16: 0 | CE16: 0 | CF16: 0 | CG16: 0 | CH16: 0
B17: 8 | C17: DECOM 132KV FDR 92X & 92C | D17: ARA_01.1.0034A | F17: Replacement | K17: 0 | L17: 0 | M17: 285.2796234 | N17: 1854.317552 | O17: 713.1990586 | Y17: 0.1430979025 | Z17: 0.8548383045 | AA17: 0.002063793035 | AC17: Yes | AD17: No | AF17: 0.0005707191708 | AG17: 0 | AI17: 1 | AJ17: 0 | AK17: 0 | AL17: 0 | AM17: 0 | AN17: 0 | AO17: 0 | AP17: 0 | AQ17: 0 | AS17: 0 | AT17: 0 | AU17: 0 | AV17: 0 | AW17: 0 | AX17: 0 | AY17: 0 | AZ17: 0 | BA17: 0 | BB17: 0 | BC17: 0 | BD17: 0 | BE17: 0 | BF17: 0 | BG17: 0 | BH17: 0 | BI17: 0 | BJ17: 0 | BK17: 0 | BL17: 0 | BM17: 0 | BN17: 1 | BO17: 0 | BP17: 0 | BQ17: 0 | BR17: 0 | BS17: 0 | BT17: 0 | BU17: 0 | BV17: 0 | BW17: 0 | BX17: 0 | BY17: 0 | BZ17: 0 | CA17: 0 | CB17: 0 | CC17: 0 | CD17: 0 | CE17: 0 | CF17: 0 | CG17: 0 | CH17: 0
B18: 9 | C18: DECOM CAP BANKS VARIOUS SITES | D18: ARA_01.1.0039A | F18: Replacement | K18: 0 | L18: 368.2819625 | M18: 1841.409812 | N18: 1473.12785 | O18: 0 | Y18: 0.1306627528 | Z18: 0.5974673812 | AA18: 0.271869866 | AC18: Yes | AD18: No | AF18: 0.000672745332 | AG18: 0 | AI18: 1 | AJ18: 0 | AK18: 0 | AL18: 0 | AM18: 0 | AN18: 0 | AO18: 0 | AP18: 0 | AQ18: 0 | AS18: 0 | AT18: 0 | AU18: 0 | AV18: 0 | AW18: 0 | AX18: 0 | AY18: 0 | AZ18: 0 | BA18: 0 | BB18: 0 | BC18: 0 | BD18: 0 | BE18: 1 | BF18: 0 | BG18: 0 | BH18: 0 | BI18: 0 | BJ18: 0 | BK18: 0 | BL18: 0 | BM18: 0 | BN18: 0 | BO18: 0 | BP18: 0 | BQ18: 0 | BR18: 0 | BS18: 0 | BT18: 0 | BU18: 0 | BV18: 0 | BW18: 0 | BX18: 0 | BY18: 0 | BZ18: 0 | CA18: 0 | CB18: 0 | CC18: 0 | CD18: 0 | CE18: 0 | CF18: 0 | CG18: 0 | CH18: 0
B19: 10 | C19: VOLTAGE OPTIMISATION TRANSMISSION NETWORK | D19: ARA_01.1.0041A | F19: Replacement | K19: 0 | L19: 179.1210713 | M19: 1253.847499 | N19: 1074.726428 | O19: 1074.726428 | Y19: 0.1614580712 | Z19: 0.5584489988 | AA19: 0.28009293 | AC19: Yes | AD19: No | AF19: 0.0008086393557 | AG19: 0 | AI19: 1 | AJ19: 0 | AK19: 0 | AL19: 0 | AM19: 0 | AN19: 0 | AO19: 0 | AP19: 0 | AQ19: 0 | AS19: 0 | AT19: 0 | AU19: 0 | AV19: 0 | AW19: 0 | AX19: 0 | AY19: 0 | AZ19: 0 | BA19: 0 | BB19: 0 | BC19: 0 | BD19: 0 | BE19: 0 | BF19: 0 | BG19: 0 | BH19: 0 | BI19: 0 | BJ19: 0 | BK19: 0 | BL19: 0 | BM19: 0 | BN19: 0 | BO19: 0 | BP19: 0 | BQ19: 0 | BR19: 0 | BS19: 0 | BT19: 0 | BU19: 0 | BV19: 0 | BW19: 0 | BX19: 0 | BY19: 0 | BZ19: 0.3881375153 | CA19: 0 | CB19: 0.6118624847 | CC19: 0 | CD19: 0 | CE19: 0 | CF19: 0 | CG19: 0 | CH19: 0
B20: 11 | C20: NEW SERIES REACTORS INNER METRO | D20: ARA_01.1.0044 | F20: Replacement | K20: 0 | L20: 0 | M20: 762.7526546 | N20: 4957.892255 | O20: 1906.881637 | Y20: 0.07586141198 | Z20: 0.5294959381 | AA20: 0.3946426499 | AC20: Yes | AD20: No | AF20: 0.0008089526279 | AG20: 0 | AI20: 1 | AJ20: 0 | AK20: 0 | AL20: 0 | AM20: 0 | AN20: 0 | AO20: 0 | AP20: 0 | AQ20: 0 | AS20: 0 | AT20: 0 | AU20: 0 | AV20: 0 | AW20: 0 | AX20: 0 | AY20: 0 | AZ20: 0 | BA20: 0 | BB20: 0 | BC20: 0 | BD20: 0 | BE20: 0 | BF20: 0 | BG20: 0 | BH20: 0 | BI20: 0 | BJ20: 0 | BK20: 0 | BL20: 0 | BM20: 0 | BN20: 1 | BO20: 0 | BP20: 0 | BQ20: 0 | BR20: 0 | BS20: 0 | BT20: 0 | BU20: 0 | BV20: 0 | BW20: 0 | BX20: 0 | BY20: 0 | BZ20: 0 | CA20: 0 | CB20: 0 | CC20: 0 | CD20: 0 | CE20: 0 | CF20: 0 | CG20: 0 | CH20: 0
B21: 12 | C21: REP 132KV FDR 202 ROZELLE-DMOYNE | D21: ARA_01.1.0128 | F21: Replacement | K21: 152.0041273 | L21: 1064.028891 | M21: 4560.123819 | N21: 6840.185728 | O21: 1824.049527 | Y21: 0.05409925543 | Z21: 0.7542702976 | AA21: 0.191630447 | AC21: Yes | AD21: No | AF21: 0.001092166155 | AG21: 0 | AI21: 1 | AJ21: 0 | AK21: 0 | AL21: 0 | AM21: 0 | AN21: 0 | AO21: 0 | AP21: 0 | AQ21: 0 | AS21: 0 | AT21: 0 | AU21: 0 | AV21: 0 | AW21: 0 | AX21: 0 | AY21: 0 | AZ21: 0 | BA21: 0 | BB21: 0 | BC21: 0 | BD21: 0.9970248197 | BE21: 0.002975180325 | BF21: 0 | BG21: 0 | BH21: 0 | BI21: 0 | BJ21: 0 | BK21: 0 | BL21: 0 | BM21: 0 | BN21: 0 | BO21: 0 | BP21: 0 | BQ21: 0 | BR21: 0 | BS21: 0 | BT21: 0 | BU21: 0 | BV21: 0 | BW21: 0 | BX21: 0 | BY21: 0 | BZ21: 0 | CA21: 0 | CB21: 0 | CC21: 0 | CD21: 0 | CE21: 0 | CF21: 0 | CG21: 0 | CH21: 0
B22: 13 | C22: REP 132KV FDR 203 & 204 MPARK-DMOYNE | D22: ARA_01.1.0129 | F22: Replacement | K22: 431.7717395 | L22: 3022.402176 | M22: 12953.15218 | N22: 19429.72828 | O22: 5181.260874 | Y22: 0.04030646198 | Z22: 0.9360038237 | AA22: 0.02368971432 | AC22: Yes | AD22: No | AF22: 0.002311377799 | AG22: 0 | AI22: 1 | AJ22: 0 | AK22: 0 | AL22: 0 | AM22: 0 | AN22: 0 | AO22: 0 | AP22: 0 | AQ22: 0 | AS22: 0 | AT22: 0 | AU22: 0 | AV22: 0 | AW22: 0 | AX22: 0 | AY22: 0 | AZ22: 0 | BA22: 0 | BB22: 0 | BC22: 0 | BD22: 0.9979747348 | BE22: 0.002025265197 | BF22: 0 | BG22: 0 | BH22: 0 | BI22: 0 | BJ22: 0 | BK22: 0 | BL22: 0 | BM22: 0 | BN22: 0 | BO22: 0 | BP22: 0 | BQ22: 0 | BR22: 0 | BS22: 0 | BT22: 0 | BU22: 0 | BV22: 0 | BW22: 0 | BX22: 0 | BY22: 0 | BZ22: 0 | CA22: 0 | CB22: 0 | CC22: 0 | CD22: 0 | CE22: 0 | CF22: 0 | CG22: 0 | CH22: 0
B23: 14 | C23: REFURB 33KV SWG MEREWETHER STS | D23: ARA_01.4.0037A | F23: Replacement | K23: 208.3450224 | L23: 2916.830314 | M23: 7292.075784 | N23: 7292.075784 | O23: 3125.175336 | Y23: 0 | Z23: 0.5509732667 | AA23: 0.4490267333 | AC23: Yes | AD23: No | AF23: 0 | AG23: 0 | AI23: 1 | AJ23: 0 | AK23: 0 | AL23: 0 | AM23: 0 | AN23: 0 | AO23: 0 | AP23: 0 | AQ23: 0 | AS23: 0 | AT23: 0 | AU23: 0 | AV23: 0 | AW23: 0 | AX23: 0 | AY23: 0 | AZ23: 0 | BA23: 0 | BB23: 0 | BC23: 0 | BD23: 0 | BE23: 1 | BF23: 0 | BG23: 0 | BH23: 0 | BI23: 0 | BJ23: 0 | BK23: 0 | BL23: 0 | BM23: 0 | BN23: 0 | BO23: 0 | BP23: 0 | BQ23: 0 | BR23: 0 | BS23: 0 | BT23: 0 | BU23: 0 | BV23: 0 | BW23: 0 | BX23: 0 | BY23: 0 | BZ23: 0 | CA23: 0 | CB23: 0 | CC23: 0 | CD23: 0 | CE23: 0 | CF23: 0 | CG23: 0 | CH23: 0
B24: 15 | C24: DECOM 132KV FDR 929/2, 92L/1, 928/1 & 92M/2 | D24: ARA_02.1.0017 | F24: Replacement | K24: 613.2556191 | L24: 0 | M24: 0 | N24: 0 | O24: 0 | Y24: 0.1516969557 | Z24: 0.8467104655 | AA24: 0.001592578836 | AC24: Yes | AD24: No | AF24: 0.0001300579314 | AG24: 0 | AI24: 1 | AJ24: 0 | AK24: 0 | AL24: 0 | AM24: 0 | AN24: 0 | AO24: 0 | AP24: 0 | AQ24: 0 | AS24: 0 | AT24: 0 | AU24: 0 | AV24: 0 | AW24: 0 | AX24: 0 | AY24: 0 | AZ24: 0 | BA24: 0 | BB24: 0 | BC24: 0 | BD24: 1 | BE24: 0 | BF24: 0 | BG24: 0 | BH24: 0 | BI24: 0 | BJ24: 0 | BK24: 0 | BL24: 0 | BM24: 0 | BN24: 0 | BO24: 0 | BP24: 0 | BQ24: 0 | BR24: 0 | BS24: 0 | BT24: 0 | BU24: 0 | BV24: 0 | BW24: 0 | BX24: 0 | BY24: 0 | BZ24: 0 | CA24: 0 | CB24: 0 | CC24: 0 | CD24: 0 | CE24: 0 | CF24: 0 | CG24: 0 | CH24: 0
B25: 16 | C25: DECOM 132/11KV DALLEY ST ZN | D25: ARA_02.1.0134A | F25: Replacement | K25: 629.1315435 | L25: 0 | M25: 0 | N25: 0 | O25: 0 | Y25: 0.05861996896 | Z25: 0.8134480648 | AA25: 0.1279319663 | AC25: Yes | AD25: No | AF25: 5.155911867e-05 | AG25: 0 | AI25: 1 | AJ25: 0 | AK25: 0 | AL25: 0 | AM25: 0 | AN25: 0 | AO25: 0 | AP25: 0 | AQ25: 0 | AS25: 0 | AT25: 0 | AU25: 0 | AV25: 0 | AW25: 1 | AX25: 0 | AY25: 0 | AZ25: 0 | BA25: 0 | BB25: 0 | BC25: 0 | BD25: 0 | BE25: 0 | BF25: 0 | BG25: 0 | BH25: 0 | BI25: 0 | BJ25: 0 | BK25: 0 | BL25: 0 | BM25: 0 | BN25: 0 | BO25: 0 | BP25: 0 | BQ25: 0 | BR25: 0 | BS25: 0 | BT25: 0 | BU25: 0 | BV25: 0 | BW25: 0 | BX25: 0 | BY25: 0 | BZ25: 0 | CA25: 0 | CB25: 0 | CC25: 0 | CD25: 0 | CE25: 0 | CF25: 0 | CG25: 0 | CH25: 0
B26: 17 | C26: REP 33KV FDR 380, 381 & 382 SHILLS-PAD | D26: ARA_03.1A.0018 | F26: Replacement | K26: 0 | L26: 0 | M26: 87.42098017 | N26: 786.7888216 | O26: 3496.839207 | Y26: 0.07908935399 | Z26: 0.8804777413 | AA26: 0.0404329047 | AC26: Yes | AD26: No | AF26: 0.0004833059531 | AG26: 0 | AI26: 1 | AJ26: 0 | AK26: 0 | AL26: 0 | AM26: 0 | AN26: 0 | AO26: 0 | AP26: 0 | AQ26: 0 | AS26: 0 | AT26: 0 | AU26: 0 | AV26: 0 | AW26: 0 | AX26: 0 | AY26: 0 | AZ26: 0 | BA26: 0 | BB26: 0 | BC26: 0 | BD26: 0.9688714932 | BE26: 0.03112850675 | BF26: 0 | BG26: 0 | BH26: 0 | BI26: 0 | BJ26: 0 | BK26: 0 | BL26: 0 | BM26: 0 | BN26: 0 | BO26: 0 | BP26: 0 | BQ26: 0 | BR26: 0 | BS26: 0 | BT26: 0 | BU26: 0 | BV26: 0 | BW26: 0 | BX26: 0 | BY26: 0 | BZ26: 0 | CA26: 0 | CB26: 0 | CC26: 0 | CD26: 0 | CE26: 0 | CF26: 0 | CG26: 0 | CH26: 0
B27: 18 | C27: DECOM 33/11KV DARLINGHURST ZN STG 2 | D27: ARA_03.1A.0029A | F27: Replacement | K27: 405.8879634 | L27: 2300.031792 | M27: 5411.839511 | N27: 4058.879634 | O27: 1352.959878 | Y27: 0.1539313846 | Z27: 0.6439270375 | AA27: 0.2021415779 | AC27: Yes | AD27: No | AF27: 0.002911592112 | AG27: 0 | AI27: 1 | AJ27: 0 | AK27: 0 | AL27: 0 | AM27: 0 | AN27: 0 | AO27: 0 | AP27: 0 | AQ27: 0 | AS27: 0.07721777765 | AT27: 0 | AU27: 0.224319153 | AV27: 0 | AW27: 0.450949817 | AX27: 0 | AY27: 0 | AZ27: 0 | BA27: 0 | BB27: 0 | BC27: 0 | BD27: 0.03138952992 | BE27: 0.2161237224 | BF27: 0 | BG27: 0 | BH27: 0 | BI27: 0 | BJ27: 0 | BK27: 0 | BL27: 0 | BM27: 0 | BN27: 0 | BO27: 0 | BP27: 0 | BQ27: 0 | BR27: 0 | BS27: 0 | BT27: 0 | BU27: 0 | BV27: 0 | BW27: 0 | BX27: 0 | BY27: 0 | BZ27: 0 | CA27: 0 | CB27: 0 | CC27: 0 | CD27: 0 | CE27: 0 | CF27: 0 | CG27: 0 | CH27: 0
B28: 19 | C28: CONNECT 132KV RMCB TO TX1 MARRICKVILLE ZN | D28: ARA_03.1A.0034 | F28: Replacement | K28: 0 | L28: 0 | M28: 87.07591874 | N28: 565.9934718 | O28: 217.6897969 | Y28: 0.07479590841 | Z28: 0.8213972408 | AA28: 0.1038068507 | AC28: Yes | AD28: No | AF28: 9.105301838e-05 | AG28: 0 | AI28: 1 | AJ28: 0 | AK28: 0 | AL28: 0 | AM28: 0 | AN28: 0 | AO28: 0 | AP28: 0 | AQ28: 0 | AS28: 0 | AT28: 0 | AU28: 0 | AV28: 0 | AW28: 0 | AX28: 0 | AY28: 0 | AZ28: 0 | BA28: 0 | BB28: 0 | BC28: 0 | BD28: 0 | BE28: 0 | BF28: 0 | BG28: 0 | BH28: 0 | BI28: 0 | BJ28: 0 | BK28: 0 | BL28: 0 | BM28: 0 | BN28: 1 | BO28: 0 | BP28: 0 | BQ28: 0 | BR28: 0 | BS28: 0 | BT28: 0 | BU28: 0 | BV28: 0 | BW28: 0 | BX28: 0 | BY28: 0 | BZ28: 0 | CA28: 0 | CB28: 0 | CC28: 0 | CD28: 0 | CE28: 0 | CF28: 0 | CG28: 0 | CH28: 0
B29: 20 | C29: DECOM 4x33KV REACTORS BUNNERONG STS | D29: ARA_03.1B.0010 | F29: Replacement | K29: 77.64421785 | L29: 0 | M29: 0 | N29: 0 | O29: 0 | Y29: 0.3248736326 | Z29: 0.6580608185 | AA29: 0.01706554894 | AC29: Yes | AD29: No | AF29: 3.526484867e-05 | AG29: 0 | AI29: 1 | AJ29: 0 | AK29: 0 | AL29: 0 | AM29: 0 | AN29: 0 | AO29: 0 | AP29: 0 | AQ29: 0 | AS29: 0 | AT29: 0 | AU29: 0 | AV29: 0 | AW29: 0 | AX29: 0 | AY29: 0 | AZ29: 0 | BA29: 0 | BB29: 0 | BC29: 0 | BD29: 0.5571025352 | BE29: 0.4428974648 | BF29: 0 | BG29: 0 | BH29: 0 | BI29: 0 | BJ29: 0 | BK29: 0 | BL29: 0 | BM29: 0 | BN29: 0 | BO29: 0 | BP29: 0 | BQ29: 0 | BR29: 0 | BS29: 0 | BT29: 0 | BU29: 0 | BV29: 0 | BW29: 0 | BX29: 0 | BY29: 0 | BZ29: 0 | CA29: 0 | CB29: 0 | CC29: 0 | CD29: 0 | CE29: 0 | CF29: 0 | CG29: 0 | CH29: 0
B30: 21 | C30: REP 11KV SWG COMPOUND MASCOT ZN | D30: ARA_03.1B.0017 | F30: Replacement | K30: 3380.109448 | L30: 1690.054724 | M30: 0 | N30: 0 | O30: 0 | Y30: 0.4711963689 | Z30: 0.2579127404 | AA30: 0.2708908907 | AC30: Yes | AD30: No | AF30: 0.003339968705 | AG30: 0 | AI30: 1 | AJ30: 0 | AK30: 0 | AL30: 0 | AM30: 0 | AN30: 0 | AO30: 0 | AP30: 0 | AQ30: 0 | AS30: 0.1805355615 | AT30: 0 | AU30: 0.1225644042 | AV30: 0 | AW30: 0.02972873672 | AX30: 0 | AY30: 0 | AZ30: 0 | BA30: 0 | BB30: 0 | BC30: 0 | BD30: 0.2531159652 | BE30: 0.4140553324 | BF30: 0 | BG30: 0 | BH30: 0 | BI30: 0 | BJ30: 0 | BK30: 0 | BL30: 0 | BM30: 0 | BN30: 0 | BO30: 0 | BP30: 0 | BQ30: 0 | BR30: 0 | BS30: 0 | BT30: 0 | BU30: 0 | BV30: 0 | BW30: 0 | BX30: 0 | BY30: 0 | BZ30: 0 | CA30: 0 | CB30: 0 | CC30: 0 | CD30: 0 | CE30: 0 | CF30: 0 | CG30: 0 | CH30: 0
B31: 22 | C31: REP 11KV SWG (GRP 1) BOTANY ZN | D31: ARA_03.1B.0032A | F31: Replacement | K31: 1190.873164 | L31: 2679.464619 | M31: 1548.135113 | N31: 297.718291 | O31: 0 | Y31: 0.4853605648 | Z31: 0.2379827248 | AA31: 0.2766567104 | AC31: Yes | AD31: No | AF31: 0.003878731114 | AG31: 0 | AI31: 1 | AJ31: 0 | AK31: 0 | AL31: 0 | AM31: 0 | AN31: 0 | AO31: 0 | AP31: 0 | AQ31: 0 | AS31: 0.2090774247 | AT31: 0 | AU31: 0.2146899533 | AV31: 0 | AW31: 0.03628126898 | AX31: 0 | AY31: 0 | AZ31: 0 | BA31: 0 | BB31: 0 | BC31: 0 | BD31: 0.02233402739 | BE31: 0.5176173256 | BF31: 0 | BG31: 0 | BH31: 0 | BI31: 0 | BJ31: 0 | BK31: 0 | BL31: 0 | BM31: 0 | BN31: 0 | BO31: 0 | BP31: 0 | BQ31: 0 | BR31: 0 | BS31: 0 | BT31: 0 | BU31: 0 | BV31: 0 | BW31: 0 | BX31: 0 | BY31: 0 | BZ31: 0 | CA31: 0 | CB31: 0 | CC31: 0 | CD31: 0 | CE31: 0 | CF31: 0 | CG31: 0 | CH31: 0
B32: 23 | D32: ARA_03.1B.0034A | F32: Augmentation | K32: 10.78991786 | L32: 0 | M32: 0 | N32: 0 | O32: 0 | Y32: 0.301828664 | Z32: 0.3147142709 | AA32: 0.3834570651 | AC32: Yes | AD32: No | AF32: 4.552993817e-06 | AG32: 0 | AI32: 0 | AJ32: 0 | AK32: 1 | AL32: 0 | AM32: 0 | AN32: 0 | AO32: 0 | AP32: 0 | AQ32: 0 | AS32: 0 | AT32: 0 | AU32: 0.1861095588 | AV32: 0 | AW32: 0 | AX32: 0 | AY32: 0 | AZ32: 0 | BA32: 0 | BB32: 0 | BC32: 0 | BD32: 0 | BE32: 0.8138904412 | BF32: 0 | BG32: 0 | BH32: 0 | BI32: 0 | BJ32: 0 | BK32: 0 | BL32: 0 | BM32: 0 | BN32: 0 | BO32: 0 | BP32: 0 | BQ32: 0 | BR32: 0 | BS32: 0 | BT32: 0 | BU32: 0 | BV32: 0 | BW32: 0 | BX32: 0 | BY32: 0 | BZ32: 0 | CA32: 0 | CB32: 0 | CC32: 0 | CD32: 0 | CE32: 0 | CF32: 0 | CG32: 0 | CH32: 0
B33: 24 | D33: ARA_03.1B.0034A | F33: Replacement | K33: 99.74053823 | L33: 0 | M33: 0 | N33: 0 | O33: 0 | Y33: 0.3024003045 | Z33: 0.3191372446 | AA33: 0.3784624508 | AC33: Yes | AD33: No | AF33: 4.216696779e-05 | AG33: 0 | AI33: 1 | AJ33: 0 | AK33: 0 | AL33: 0 | AM33: 0 | AN33: 0 | AO33: 0 | AP33: 0 | AQ33: 0 | AS33: 0 | AT33: 0 | AU33: 0.1811997609 | AV33: 0 | AW33: 0 | AX33: 0 | AY33: 0 | AZ33: 0 | BA33: 0 | BB33: 0 | BC33: 0 | BD33: 0.020660234 | BE33: 0.7981400052 | BF33: 0 | BG33: 0 | BH33: 0 | BI33: 0 | BJ33: 0 | BK33: 0 | BL33: 0 | BM33: 0 | BN33: 0 | BO33: 0 | BP33: 0 | BQ33: 0 | BR33: 0 | BS33: 0 | BT33: 0 | BU33: 0 | BV33: 0 | BW33: 0 | BX33: 0 | BY33: 0 | BZ33: 0 | CA33: 0 | CB33: 0 | CC33: 0 | CD33: 0 | CE33: 0 | CF33: 0 | CG33: 0 | CH33: 0
B34: 25 | C34: DECOM 132KV FDRS 260/1 & 261/1 | D34: ARA_03.1C.0030 | F34: Replacement | K34: 110.4948542 | L34: 441.9794168 | M34: 0 | N34: 0 | O34: 0 | Y34: 0.1432608473 | Z34: 0.8546413963 | AA34: 0.002097756332 | AC34: Yes | AD34: No | AF34: 0.0001106516804 | AG34: 0 | AI34: 1 | AJ34: 0 | AK34: 0 | AL34: 0 | AM34: 0 | AN34: 0 | AO34: 0 | AP34: 0 | AQ34: 0 | AS34: 0 | AT34: 0 | AU34: 0 | AV34: 0 | AW34: 0 | AX34: 0 | AY34: 0 | AZ34: 0 | BA34: 0 | BB34: 0 | BC34: 0 | BD34: 1 | BE34: 0 | BF34: 0 | BG34: 0 | BH34: 0 | BI34: 0 | BJ34: 0 | BK34: 0 | BL34: 0 | BM34: 0 | BN34: 0 | BO34: 0 | BP34: 0 | BQ34: 0 | BR34: 0 | BS34: 0 | BT34: 0 | BU34: 0 | BV34: 0 | BW34: 0 | BX34: 0 | BY34: 0 | BZ34: 0 | CA34: 0 | CB34: 0 | CC34: 0 | CD34: 0 | CE34: 0 | CF34: 0 | CG34: 0 | CH34: 0
B35: 26 | C35: REP 132KV FDR 264 BFLD-KINGSFORD | D35: ARA_03.1C.0038A | F35: Replacement | K35: 2984.524087 | L35: 1095.879938 | M35: 0 | N35: 0 | O35: 0 | Y35: 0.05422662703 | Z35: 0.7598926838 | AA35: 0.1858806892 | AC35: Yes | AD35: No | AF35: 0.0003093386596 | AG35: 0 | AI35: 1 | AJ35: 0 | AK35: 0 | AL35: 0 | AM35: 0 | AN35: 0 | AO35: 0 | AP35: 0 | AQ35: 0 | AS35: 0 | AT35: 0 | AU35: 0 | AV35: 0 | AW35: 0 | AX35: 0 | AY35: 0 | AZ35: 0 | BA35: 0 | BB35: 0 | BC35: 0 | BD35: 0 | BE35: 0 | BF35: 0 | BG35: 0 | BH35: 0 | BI35: 0 | BJ35: 0 | BK35: 0 | BL35: 0 | BM35: 0 | BN35: 1 | BO35: 0 | BP35: 0 | BQ35: 0 | BR35: 0 | BS35: 0 | BT35: 0 | BU35: 0 | BV35: 0 | BW35: 0 | BX35: 0 | BY35: 0 | BZ35: 0 | CA35: 0 | CB35: 0 | CC35: 0 | CD35: 0 | CE35: 0 | CF35: 0 | CG35: 0 | CH35: 0
B36: 27 | C36: REA 33KV FDRS BLAKEHURST ZN | D36: ARA_04.1.0007 | F36: Replacement | K36: 5067.812809 | L36: 4941.117489 | M36: 1900.429803 | N36: 0 | O36: 0 | Y36: 0.0687144729 | Z36: 0.9102277878 | AA36: 0.02105773927 | AC36: Yes | AD36: No | AF36: 0.001144076558 | AG36: 0 | AI36: 1 | AJ36: 0 | AK36: 0 | AL36: 0 | AM36: 0 | AN36: 0 | AO36: 0 | AP36: 0 | AQ36: 0 | AS36: 0 | AT36: 0 | AU36: 0 | AV36: 0 | AW36: 0.2787362198 | AX36: 0 | AY36: 0 | AZ36: 0 | BA36: 0 | BB36: 0 | BC36: 0 | BD36: 0.7212637802 | BE36: 0 | BF36: 0 | BG36: 0 | BH36: 0 | BI36: 0 | BJ36: 0 | BK36: 0 | BL36: 0 | BM36: 0 | BN36: 0 | BO36: 0 | BP36: 0 | BQ36: 0 | BR36: 0 | BS36: 0 | BT36: 0 | BU36: 0 | BV36: 0 | BW36: 0 | BX36: 0 | BY36: 0 | BZ36: 0 | CA36: 0 | CB36: 0 | CC36: 0 | CD36: 0 | CE36: 0 | CF36: 0 | CG36: 0 | CH36: 0
B37: 28 | C37: REP 11KV SWG LEIGHTONFIELD ZN | D37: ARA_04.3A.0035A | F37: Replacement | K37: 0 | L37: 0 | M37: 239.183548 | N37: 956.7341922 | O37: 2690.814915 | Y37: 0.4835177294 | Z37: 0.2409750859 | AA37: 0.2755071847 | AC37: Yes | AD37: No | AF37: 0.002627335373 | AG37: 0 | AI37: 1 | AJ37: 0 | AK37: 0 | AL37: 0 | AM37: 0 | AN37: 0 | AO37: 0 | AP37: 0 | AQ37: 0 | AS37: 0.208195502 | AT37: 0 | AU37: 0.2137843561 | AV37: 0 | AW37: 0.04034639172 | AX37: 0 | AY37: 0 | AZ37: 0 | BA37: 0 | BB37: 0 | BC37: 0 | BD37: 0.02223981882 | BE37: 0.5154339313 | BF37: 0 | BG37: 0 | BH37: 0 | BI37: 0 | BJ37: 0 | BK37: 0 | BL37: 0 | BM37: 0 | BN37: 0 | BO37: 0 | BP37: 0 | BQ37: 0 | BR37: 0 | BS37: 0 | BT37: 0 | BU37: 0 | BV37: 0 | BW37: 0 | BX37: 0 | BY37: 0 | BZ37: 0 | CA37: 0 | CB37: 0 | CC37: 0 | CD37: 0 | CE37: 0 | CF37: 0 | CG37: 0 | CH37: 0
B38: 29 | C38: REP 11KV SWG MILPERRA ZN | D38: ARA_04.3B.0008 | F38: Replacement | K38: 2571.264606 | L38: 799.346844 | M38: 0 | N38: 0 | O38: 0 | Y38: 0.4407779272 | Z38: 0.2533895918 | AA38: 0.3058324811 | AC38: Yes | AD38: No | AF38: 0.002077050092 | AG38: 0 | AI38: 1 | AJ38: 0 | AK38: 0 | AL38: 0 | AM38: 0 | AN38: 0 | AO38: 0 | AP38: 0 | AQ38: 0 | AS38: 0.1992252674 | AT38: 0 | AU38: 0.2113956265 | AV38: 0 | AW38: 0.07170338921 | AX38: 0 | AY38: 0 | AZ38: 0 | BA38: 0 | BB38: 0 | BC38: 0 | BD38: 0.02158698292 | BE38: 0.496088734 | BF38: 0 | BG38: 0 | BH38: 0 | BI38: 0 | BJ38: 0 | BK38: 0 | BL38: 0 | BM38: 0 | BN38: 0 | BO38: 0 | BP38: 0 | BQ38: 0 | BR38: 0 | BS38: 0 | BT38: 0 | BU38: 0 | BV38: 0 | BW38: 0 | BX38: 0 | BY38: 0 | BZ38: 0 | CA38: 0 | CB38: 0 | CC38: 0 | CD38: 0 | CE38: 0 | CF38: 0 | CG38: 0 | CH38: 0
B39: 30 | C39: REP 132KV SWG DRUMMOYNE ZN | D39: ARA_04.4.A.0010 | F39: Replacement | K39: 273.9629428 | L39: 1780.759128 | M39: 3424.536785 | N39: 5479.258855 | O39: 2054.722071 | Y39: 0.2195365744 | Z39: 0.4654152394 | AA39: 0.3150481862 | AC39: Yes | AD39: No | AF39: 0.003994024789 | AG39: 0 | AI39: 1 | AJ39: 0 | AK39: 0 | AL39: 0 | AM39: 0 | AN39: 0 | AO39: 0 | AP39: 0 | AQ39: 0 | AS39: 0 | AT39: 0 | AU39: 0.4593303572 | AV39: 0 | AW39: 0 | AX39: 0 | AY39: 0 | AZ39: 0 | BA39: 0 | BB39: 0 | BC39: 0 | BD39: 0.002604079747 | BE39: 0.538065563 | BF39: 0 | BG39: 0 | BH39: 0 | BI39: 0 | BJ39: 0 | BK39: 0 | BL39: 0 | BM39: 0 | BN39: 0 | BO39: 0 | BP39: 0 | BQ39: 0 | BR39: 0 | BS39: 0 | BT39: 0 | BU39: 0 | BV39: 0 | BW39: 0 | BX39: 0 | BY39: 0 | BZ39: 0 | CA39: 0 | CB39: 0 | CC39: 0 | CD39: 0 | CE39: 0 | CF39: 0 | CG39: 0 | CH39: 0
B40: 31 | D40: ARA_04.4.A.0025M | F40: Connections | K40: 523.6098174 | L40: 58.1788686 | M40: 0 | N40: 0 | O40: 0 | Y40: 0.3816639821 | Z40: 0.2317551765 | AA40: 0.3865808413 | AC40: Yes | AD40: No | AF40: 0.0003104308608 | AG40: 0 | AI40: 0 | AJ40: 0 | AK40: 0 | AL40: 1 | AM40: 0 | AN40: 0 | AO40: 0 | AP40: 0 | AQ40: 0 | AS40: 0 | AT40: 0 | AU40: 0 | AV40: 0 | AW40: 0 | AX40: 0 | AY40: 0 | AZ40: 0 | BA40: 0 | BB40: 0 | BC40: 0 | BD40: 0.8023997779 | BE40: 0.1976002221 | BF40: 0 | BG40: 0 | BH40: 0 | BI40: 0 | BJ40: 0 | BK40: 0 | BL40: 0 | BM40: 0 | BN40: 0 | BO40: 0 | BP40: 0 | BQ40: 0 | BR40: 0 | BS40: 0 | BT40: 0 | BU40: 0 | BV40: 0 | BW40: 0 | BX40: 0 | BY40: 0 | BZ40: 0 | CA40: 0 | CB40: 0 | CC40: 0 | CD40: 0 | CE40: 0 | CF40: 0 | CG40: 0 | CH40: 0
B41: 32 | C41: REP 11KV SWG CONCORD ZN | D41: ARA_04.4.B.0002 | F41: Replacement | K41: 1103.772552 | L41: 0 | M41: 0 | N41: 0 | O41: 0 | Y41: 0.4501036847 | Z41: 0.2366048721 | AA41: 0.3132914432 | AC41: Yes | AD41: No | AF41: 0.0006945613279 | AG41: 0 | AI41: 1 | AJ41: 0 | AK41: 0 | AL41: 0 | AM41: 0 | AN41: 0 | AO41: 0 | AP41: 0 | AQ41: 0 | AS41: 0.2027100153 | AT41: 0 | AU41: 0.1938356341 | AV41: 0 | AW41: 0.08895608422 | AX41: 0 | AY41: 0 | AZ41: 0 | BA41: 0 | BB41: 0 | BC41: 0 | BD41: 0.02074226578 | BE41: 0.4937560006 | BF41: 0 | BG41: 0 | BH41: 0 | BI41: 0 | BJ41: 0 | BK41: 0 | BL41: 0 | BM41: 0 | BN41: 0 | BO41: 0 | BP41: 0 | BQ41: 0 | BR41: 0 | BS41: 0 | BT41: 0 | BU41: 0 | BV41: 0 | BW41: 0 | BX41: 0 | BY41: 0 | BZ41: 0 | CA41: 0 | CB41: 0 | CC41: 0 | CD41: 0 | CE41: 0 | CF41: 0 | CG41: 0 | CH41: 0
B42: 33 | C42: REP 132KV FDR 923/2 & 924/2 MPARK-BURWOOD | D42: ARA_04.4.B.0022A | F42: Replacement | K42: 815.7635307 | L42: 0 | M42: 0 | N42: 0 | O42: 0 | Y42: 0.03780425955 | Z42: 0.9564136013 | AA42: 0.005782139171 | AC42: Yes | AD42: No | AF42: 4.31145108e-05 | AG42: 0 | AI42: 1 | AJ42: 0 | AK42: 0 | AL42: 0 | AM42: 0 | AN42: 0 | AO42: 0 | AP42: 0 | AQ42: 0 | AS42: 0 | AT42: 0 | AU42: 0 | AV42: 0 | AW42: 0 | AX42: 0 | AY42: 0 | AZ42: 0 | BA42: 0 | BB42: 0 | BC42: 0 | BD42: 0.9852198371 | BE42: 0.01478016294 | BF42: 0 | BG42: 0 | BH42: 0 | BI42: 0 | BJ42: 0 | BK42: 0 | BL42: 0 | BM42: 0 | BN42: 0 | BO42: 0 | BP42: 0 | BQ42: 0 | BR42: 0 | BS42: 0 | BT42: 0 | BU42: 0 | BV42: 0 | BW42: 0 | BX42: 0 | BY42: 0 | BZ42: 0 | CA42: 0 | CB42: 0 | CC42: 0 | CD42: 0 | CE42: 0 | CF42: 0 | CG42: 0 | CH42: 0
B43: 34 | C43: REP 11KV SWG (GRP 1) & FDR 61H LIDCOMBE ZN | D43: ARA_04.4.C.0034A | F43: Replacement | K43: 326.9902304 | L43: 2179.934869 | M43: 4904.853455 | N43: 2833.91533 | O43: 653.9804607 | Y43: 0.3746524732 | Z43: 0.4117905975 | AA43: 0.2135569293 | AC43: Yes | AD43: No | AF43: 0.005709006886 | AG43: 0 | AI43: 1 | AJ43: 0 | AK43: 0 | AL43: 0 | AM43: 0 | AN43: 0 | AO43: 0 | AP43: 0 | AQ43: 0 | AS43: 0.1255127197 | AT43: 0 | AU43: 0.1288820157 | AV43: 0 | AW43: 0.02178026036 | AX43: 0 | AY43: 0 | AZ43: 0 | BA43: 0 | BB43: 0 | BC43: 0 | BD43: 0.4102546686 | BE43: 0.3135703356 | BF43: 0 | BG43: 0 | BH43: 0 | BI43: 0 | BJ43: 0 | BK43: 0 | BL43: 0 | BM43: 0 | BN43: 0 | BO43: 0 | BP43: 0 | BQ43: 0 | BR43: 0 | BS43: 0 | BT43: 0 | BU43: 0 | BV43: 0 | BW43: 0 | BX43: 0 | BY43: 0 | BZ43: 0 | CA43: 0 | CB43: 0 | CC43: 0 | CD43: 0 | CE43: 0 | CF43: 0 | CG43: 0 | CH43: 0
B44: 35 | C44: REFURB 33KV SWG WILLOUGHBY STS | D44: ARA_05.1.0035A | F44: Replacement | K44: 4861.614913 | L44: 5347.776404 | M44: 5185.722574 | N44: 243.0807456 | O44: 0 | Y44: 0.4013855609 | Z44: 0.1102300214 | AA44: 0.4883844177 | AC44: Yes | AD44: No | AF44: 0.008775397547 | AG44: 0 | AI44: 1 | AJ44: 0 | AK44: 0 | AL44: 0 | AM44: 0 | AN44: 0 | AO44: 0 | AP44: 0 | AQ44: 0 | AS44: 0 | AT44: 0 | AU44: 0 | AV44: 0 | AW44: 0 | AX44: 0 | AY44: 0 | AZ44: 0 | BA44: 0 | BB44: 0 | BC44: 0 | BD44: 0 | BE44: 1 | BF44: 0 | BG44: 0 | BH44: 0 | BI44: 0 | BJ44: 0 | BK44: 0 | BL44: 0 | BM44: 0 | BN44: 0 | BO44: 0 | BP44: 0 | BQ44: 0 | BR44: 0 | BS44: 0 | BT44: 0 | BU44: 0 | BV44: 0 | BW44: 0 | BX44: 0 | BY44: 0 | BZ44: 0 | CA44: 0 | CB44: 0 | CC44: 0 | CD44: 0 | CE44: 0 | CF44: 0 | CG44: 0 | CH44: 0
B45: 36 | D45: ARA_05.1.0039M | F45: Connections | K45: 2561.393228 | L45: 0 | M45: 0 | N45: 0 | O45: 0 | Y45: 0.5323903287 | Z45: 0.1998899272 | AA45: 0.2677197441 | AC45: Yes | AD45: No | AF45: 0.001906447522 | AG45: 0 | AI45: 0 | AJ45: 0 | AK45: 0 | AL45: 1 | AM45: 0 | AN45: 0 | AO45: 0 | AP45: 0 | AQ45: 0 | AS45: 0.272333401 | AT45: 0 | AU45: 0.1448185663 | AV45: 0 | AW45: 0 | AX45: 0 | AY45: 0 | AZ45: 0 | BA45: 0 | BB45: 0 | BC45: 0 | BD45: 0.1508099556 | BE45: 0.4320380771 | BF45: 0 | BG45: 0 | BH45: 0 | BI45: 0 | BJ45: 0 | BK45: 0 | BL45: 0 | BM45: 0 | BN45: 0 | BO45: 0 | BP45: 0 | BQ45: 0 | BR45: 0 | BS45: 0 | BT45: 0 | BU45: 0 | BV45: 0 | BW45: 0 | BX45: 0 | BY45: 0 | BZ45: 0 | CA45: 0 | CB45: 0 | CC45: 0 | CD45: 0 | CE45: 0 | CF45: 0 | CG45: 0 | CH45: 0
B46: 37 | C46: REP 11KV SWG PYMBLE ZN | D46: ARA_05.2.0004 | F46: Replacement | K46: 2364.128678 | L46: 4835.717751 | M46: 2149.207889 | N46: 537.3019724 | O46: 214.9207889 | Y46: 0.4847735628 | Z46: 0.2389519843 | AA46: 0.2762744529 | AC46: Yes | AD46: No | AF46: 0.006845948885 | AG46: 0 | AI46: 1 | AJ46: 0 | AK46: 0 | AL46: 0 | AM46: 0 | AN46: 0 | AO46: 0 | AP46: 0 | AQ46: 0 | AS46: 0.2087837436 | AT46: 0 | AU46: 0.2143883885 | AV46: 0 | AW46: 0.03763495891 | AX46: 0 | AY46: 0 | AZ46: 0 | BA46: 0 | BB46: 0 | BC46: 0 | BD46: 0.02230265585 | BE46: 0.5168902531 | BF46: 0 | BG46: 0 | BH46: 0 | BI46: 0 | BJ46: 0 | BK46: 0 | BL46: 0 | BM46: 0 | BN46: 0 | BO46: 0 | BP46: 0 | BQ46: 0 | BR46: 0 | BS46: 0 | BT46: 0 | BU46: 0 | BV46: 0 | BW46: 0 | BX46: 0 | BY46: 0 | BZ46: 0 | CA46: 0 | CB46: 0 | CC46: 0 | CD46: 0 | CE46: 0 | CF46: 0 | CG46: 0 | CH46: 0
B47: 38 | C47: REP 132KV FDR 9E1 & 9E2 OIL SEC SYD EAST-KURINGAI | D47: ARA_05.2.0019 | F47: Replacement | K47: 4446.725693 | L47: 1334.017708 | M47: 0 | N47: 0 | O47: 0 | Y47: 0.05765045352 | Z47: 0.9067666218 | AA47: 0.03558292472 | AC47: Yes | AD47: No | AF47: 0.0004659130347 | AG47: 0 | AI47: 1 | AJ47: 0 | AK47: 0 | AL47: 0 | AM47: 0 | AN47: 0 | AO47: 0 | AP47: 0 | AQ47: 0 | AS47: 0 | AT47: 0 | AU47: 0 | AV47: 0 | AW47: 0 | AX47: 0 | AY47: 0 | AZ47: 0 | BA47: 0 | BB47: 0 | BC47: 0 | BD47: 0.9725513746 | BE47: 0.02744862537 | BF47: 0 | BG47: 0 | BH47: 0 | BI47: 0 | BJ47: 0 | BK47: 0 | BL47: 0 | BM47: 0 | BN47: 0 | BO47: 0 | BP47: 0 | BQ47: 0 | BR47: 0 | BS47: 0 | BT47: 0 | BU47: 0 | BV47: 0 | BW47: 0 | BX47: 0 | BY47: 0 | BZ47: 0 | CA47: 0 | CB47: 0 | CC47: 0 | CD47: 0 | CE47: 0 | CF47: 0 | CG47: 0 | CH47: 0
B48: 39 | C48: NEW 132/33KV TX3 MACQUARIE STS | D48: ARA_05.3.0045U | F48: Augmentation | K48: 3907.343107 | L48: 976.8357767 | M48: 0 | N48: 0 | O48: 0 | Y48: 0.1567656612 | Z48: 0.7816809528 | AA48: 0.06155338603 | AC48: Yes | AD48: No | AF48: 0.001070436577 | AG48: 0 | AI48: 0 | AJ48: 0 | AK48: 1 | AL48: 0 | AM48: 0 | AN48: 0 | AO48: 0 | AP48: 0 | AQ48: 0 | AS48: 0 | AT48: 0 | AU48: 0 | AV48: 0 | AW48: 0 | AX48: 0 | AY48: 0 | AZ48: 0 | BA48: 0 | BB48: 0 | BC48: 0 | BD48: 0 | BE48: 0 | BF48: 0 | BG48: 0 | BH48: 0 | BI48: 0 | BJ48: 0 | BK48: 0 | BL48: 0 | BM48: 0 | BN48: 0.07976326887 | BO48: 0 | BP48: 0 | BQ48: 0.08136081292 | BR48: 0 | BS48: 0.04592178382 | BT48: 0 | BU48: 0 | BV48: 0 | BW48: 0 | BX48: 0 | BY48: 0 | BZ48: 0 | CA48: 0.7929541344 | CB48: 0 | CC48: 0 | CD48: 0 | CE48: 0 | CF48: 0 | CG48: 0 | CH48: 0
B49: 40 | D49: ARA_05.3.0047M | F49: Connections | K49: 82.27496408 | L49: 466.2247965 | M49: 0 | N49: 0 | O49: 0 | Y49: 0.4087665723 | Z49: 0.1786660694 | AA49: 0.4125673582 | AC49: Yes | AD49: No | AF49: 0.0003134514305 | AG49: 0 | AI49: 0 | AJ49: 0 | AK49: 0 | AL49: 1 | AM49: 0 | AN49: 0 | AO49: 0 | AP49: 0 | AQ49: 0 | AS49: 0 | AT49: 0 | AU49: 0 | AV49: 0 | AW49: 0 | AX49: 0 | AY49: 0 | AZ49: 0 | BA49: 0 | BB49: 0 | BC49: 0 | BD49: 0.7935795456 | BE49: 0.2064204544 | BF49: 0 | BG49: 0 | BH49: 0 | BI49: 0 | BJ49: 0 | BK49: 0 | BL49: 0 | BM49: 0 | BN49: 0 | BO49: 0 | BP49: 0 | BQ49: 0 | BR49: 0 | BS49: 0 | BT49: 0 | BU49: 0 | BV49: 0 | BW49: 0 | BX49: 0 | BY49: 0 | BZ49: 0 | CA49: 0 | CB49: 0 | CC49: 0 | CD49: 0 | CE49: 0 | CF49: 0 | CG49: 0 | CH49: 0
B50: 41 | C50: NEW STATCOM WARATAH STS | D50: ARA_07.2.0015 | F50: Replacement | K50: 553.4469396 | L50: 2152.293654 | M50: 2152.293654 | N50: 1229.882088 | O50: 0 | Y50: 0.2953069417 | Z50: 0.5418486573 | AA50: 0.1628444011 | AC50: Yes | AD50: No | AF50: 0.002513395145 | AG50: 0 | AI50: 1 | AJ50: 0 | AK50: 0 | AL50: 0 | AM50: 0 | AN50: 0 | AO50: 0 | AP50: 0 | AQ50: 0 | AS50: 0.1695222566 | AT50: 0 | AU50: 0.3816189084 | AV50: 0 | AW50: 0 | AX50: 0 | AY50: 0 | AZ50: 0 | BA50: 0 | BB50: 0 | BC50: 0 | BD50: 0 | BE50: 0.448858835 | BF50: 0 | BG50: 0 | BH50: 0 | BI50: 0 | BJ50: 0 | BK50: 0 | BL50: 0 | BM50: 0 | BN50: 0 | BO50: 0 | BP50: 0 | BQ50: 0 | BR50: 0 | BS50: 0 | BT50: 0 | BU50: 0 | BV50: 0 | BW50: 0 | BX50: 0 | BY50: 0 | BZ50: 0 | CA50: 0 | CB50: 0 | CC50: 0 | CD50: 0 | CE50: 0 | CF50: 0 | CG50: 0 | CH50: 0
B51: 42 | C51: REA 33KV NETWORK AWABA STS | D51: ARA_07.4.0002 | F51: Replacement | K51: 194.7346805 | L51: 0 | M51: 0 | N51: 0 | O51: 0 | Y51: 0.2547219229 | Z51: 0.7100161339 | AA51: 0.03526194323 | AC51: Yes | AD51: No | AF51: 6.934706219e-05 | AG51: 0 | AI51: 1 | AJ51: 0 | AK51: 0 | AL51: 0 | AM51: 0 | AN51: 0 | AO51: 0 | AP51: 0 | AQ51: 0 | AS51: 0 | AT51: 0 | AU51: 0 | AV51: 0 | AW51: 0 | AX51: 0 | AY51: 0 | AZ51: 0 | BA51: 0 | BB51: 0 | BC51: 0 | BD51: 1 | BE51: 0 | BF51: 0 | BG51: 0 | BH51: 0 | BI51: 0 | BJ51: 0 | BK51: 0 | BL51: 0 | BM51: 0 | BN51: 0 | BO51: 0 | BP51: 0 | BQ51: 0 | BR51: 0 | BS51: 0 | BT51: 0 | BU51: 0 | BV51: 0 | BW51: 0 | BX51: 0 | BY51: 0 | BZ51: 0 | CA51: 0 | CB51: 0 | CC51: 0 | CD51: 0 | CE51: 0 | CF51: 0 | CG51: 0 | CH51: 0
B52: 43 | C52: REP 11KV SWG TARRO ZN | D52: ARA_07.6.0014 | F52: Replacement | K52: 1135.867914 | L52: 0 | M52: 0 | N52: 0 | O52: 0 | Y52: 0.4931895127 | Z52: 0.2264686233 | AA52: 0.2803418641 | AC52: Yes | AD52: No | AF52: 0.0007831773256 | AG52: 0 | AI52: 1 | AJ52: 0 | AK52: 0 | AL52: 0 | AM52: 0 | AN52: 0 | AO52: 0 | AP52: 0 | AQ52: 0 | AS52: 0.2117589168 | AT52: 0 | AU52: 0.1939539646 | AV52: 0 | AW52: 0.0608895269 | AX52: 0 | AY52: 0 | AZ52: 0 | BA52: 0 | BB52: 0 | BC52: 0 | BD52: 0.02127417065 | BE52: 0.512123421 | BF52: 0 | BG52: 0 | BH52: 0 | BI52: 0 | BJ52: 0 | BK52: 0 | BL52: 0 | BM52: 0 | BN52: 0 | BO52: 0 | BP52: 0 | BQ52: 0 | BR52: 0 | BS52: 0 | BT52: 0 | BU52: 0 | BV52: 0 | BW52: 0 | BX52: 0 | BY52: 0 | BZ52: 0 | CA52: 0 | CB52: 0 | CC52: 0 | CD52: 0 | CE52: 0 | CF52: 0 | CG52: 0 | CH52: 0
B53: 44 | C53: NEW 66KV CAP BANKS SINGLETON STS | D53: ARA_08.1.0004 | F53: Replacement | K53: 1384.08787 | L53: 161.4769181 | M53: 0 | N53: 0 | O53: 0 | Y53: 0.3478504291 | Z53: 0.2555096942 | AA53: 0.3966398767 | AC53: Yes | AD53: No | AF53: 0.0007516197766 | AG53: 0 | AI53: 1 | AJ53: 0 | AK53: 0 | AL53: 0 | AM53: 0 | AN53: 0 | AO53: 0 | AP53: 0 | AQ53: 0 | AS53: 0.102386379 | AT53: 0 | AU53: 0.1035088659 | AV53: 0 | AW53: 0 | AX53: 0 | AY53: 0 | AZ53: 0 | BA53: 0 | BB53: 0 | BC53: 0 | BD53: 0.1851645577 | BE53: 0.6089401975 | BF53: 0 | BG53: 0 | BH53: 0 | BI53: 0 | BJ53: 0 | BK53: 0 | BL53: 0 | BM53: 0 | BN53: 0 | BO53: 0 | BP53: 0 | BQ53: 0 | BR53: 0 | BS53: 0 | BT53: 0 | BU53: 0 | BV53: 0 | BW53: 0 | BX53: 0 | BY53: 0 | BZ53: 0 | CA53: 0 | CB53: 0 | CC53: 0 | CD53: 0 | CE53: 0 | CF53: 0 | CG53: 0 | CH53: 0
B54: 45 | C54: Commercial Customer Connections (< 100A) | D54: CC_66.01.06 | F54: Connections | K54: 210.94484 | L54: 200.5446658 | M54: 202.3238622 | N54: 207.5332301 | O54: 212.2675712 | Y54: 0.7760282293 | Z54: 0.1720892527 | AA54: 0.05188251802 | AC54: Yes | AD54: No | AF54: 0.001121384153 | AG54: 0 | AI54: 0 | AJ54: 0 | AK54: 0 | AL54: 1 | AM54: 0 | AN54: 0 | AO54: 0 | AP54: 0 | AQ54: 0 | AS54: 0 | AT54: 0 | AU54: 0 | AV54: 0 | AW54: 0 | AX54: 0 | AY54: 0 | AZ54: 0 | BA54: 0 | BB54: 1 | BC54: 0 | BD54: 0 | BE54: 0 | BF54: 0 | BG54: 0 | BH54: 0 | BI54: 0 | BJ54: 0 | BK54: 0 | BL54: 0 | BM54: 0 | BN54: 0 | BO54: 0 | BP54: 0 | BQ54: 0 | BR54: 0 | BS54: 0 | BT54: 0 | BU54: 0 | BV54: 0 | BW54: 0 | BX54: 0 | BY54: 0 | BZ54: 0 | CA54: 0 | CB54: 0 | CC54: 0 | CD54: 0 | CE54: 0 | CF54: 0 | CG54: 0 | CH54: 0
B55: 46 | C55: Commercial Customer Connections (> 100A) | D55: CC_66.01.07 | F55: Connections | K55: 331.6546507 | L55: 315.3059293 | M55: 318.0948288 | N55: 326.2868415 | O55: 333.7383112 | Y55: 0.544206289 | Z55: 0.2762142443 | AA55: 0.1795794667 | AC55: Yes | AD55: No | AF55: 0.00123639401 | AG55: 0 | AI55: 0 | AJ55: 0 | AK55: 0 | AL55: 1 | AM55: 0 | AN55: 0 | AO55: 0 | AP55: 0 | AQ55: 0 | AS55: 0 | AT55: 0 | AU55: 0 | AV55: 0 | AW55: 0 | AX55: 0 | AY55: 0 | AZ55: 0 | BA55: 0 | BB55: 1 | BC55: 0 | BD55: 0 | BE55: 0 | BF55: 0 | BG55: 0 | BH55: 0 | BI55: 0 | BJ55: 0 | BK55: 0 | BL55: 0 | BM55: 0 | BN55: 0 | BO55: 0 | BP55: 0 | BQ55: 0 | BR55: 0 | BS55: 0 | BT55: 0 | BU55: 0 | BV55: 0 | BW55: 0 | BX55: 0 | BY55: 0 | BZ55: 0 | CA55: 0 | CB55: 0 | CC55: 0 | CD55: 0 | CE55: 0 | CF55: 0 | CG55: 0 | CH55: 0
B56: 47 | C56: Residential Customer Connections (< 100A) | D56: CC_66.01.08 | F56: Connections | K56: 1.480060962 | L56: 1.417587169 | M56: 1.40026489 | N56: 1.405944325 | O56: 1.454361515 | Y56: 0.5148375807 | Z56: 0.2894054385 | AA56: 0.1957569809 | AC56: Yes | AD56: No | AF56: 5.15221116e-06 | AG56: 0 | AI56: 0 | AJ56: 0 | AK56: 0 | AL56: 1 | AM56: 0 | AN56: 0 | AO56: 0 | AP56: 0 | AQ56: 0 | AS56: 0 | AT56: 0 | AU56: 0 | AV56: 0 | AW56: 0 | AX56: 0 | AY56: 0 | AZ56: 0 | BA56: 0 | BB56: 1 | BC56: 0 | BD56: 0 | BE56: 0 | BF56: 0 | BG56: 0 | BH56: 0 | BI56: 0 | BJ56: 0 | BK56: 0 | BL56: 0 | BM56: 0 | BN56: 0 | BO56: 0 | BP56: 0 | BQ56: 0 | BR56: 0 | BS56: 0 | BT56: 0 | BU56: 0 | BV56: 0 | BW56: 0 | BX56: 0 | BY56: 0 | BZ56: 0 | CA56: 0 | CB56: 0 | CC56: 0 | CD56: 0 | CE56: 0 | CF56: 0 | CG56: 0 | CH56: 0
B57: 48 | C57: Ausgrid Funded Capex (CIA95B) | D57: CC_66.01.12 | F57: Connections | K57: 3200.398612 | L57: 3043.141471 | M57: 3068.611321 | N57: 3146.028856 | O57: 3218.657789 | Y57: 0.7080674048 | Z57: 0.2026145044 | AA57: 0.08931809087 | AC57: Yes | AD57: No | AF57: 0.0155185634 | AG57: 0 | AI57: 0 | AJ57: 0 | AK57: 0 | AL57: 1 | AM57: 0 | AN57: 0 | AO57: 0 | AP57: 0 | AQ57: 0 | AS57: 0 | AT57: 0 | AU57: 0 | AV57: 0 | AW57: 0 | AX57: 0 | AY57: 0 | AZ57: 0 | BA57: 0 | BB57: 1 | BC57: 0 | BD57: 0 | BE57: 0 | BF57: 0 | BG57: 0 | BH57: 0 | BI57: 0 | BJ57: 0 | BK57: 0 | BL57: 0 | BM57: 0 | BN57: 0 | BO57: 0 | BP57: 0 | BQ57: 0 | BR57: 0 | BS57: 0 | BT57: 0 | BU57: 0 | BV57: 0 | BW57: 0 | BX57: 0 | BY57: 0 | BZ57: 0 | CA57: 0 | CB57: 0 | CC57: 0 | CD57: 0 | CE57: 0 | CF57: 0 | CG57: 0 | CH57: 0
B58: 49 | C58: Distribution Chamber Substation Program | D58: DOC_11.03.01 | F58: Replacement | K58: 843.14609 | L58: 843.14609 | M58: 843.14609 | N58: 843.14609 | O58: 843.14609 | Y58: 0.06432881637 | Z58: 0.9356711836 | AA58: 0 | AC58: Yes | AD58: No | AF58: 0.0003791375819 | AG58: 0 | AI58: 1 | AJ58: 0 | AK58: 0 | AL58: 0 | AM58: 0 | AN58: 0 | AO58: 0 | AP58: 0 | AQ58: 0 | AS58: 0 | AT58: 0 | AU58: 1 | AV58: 0 | AW58: 0 | AX58: 0 | AY58: 0 | AZ58: 0 | BA58: 0 | BB58: 0 | BC58: 0 | BD58: 0 | BE58: 0 | BF58: 0 | BG58: 0 | BH58: 0 | BI58: 0 | BJ58: 0 | BK58: 0 | BL58: 0 | BM58: 0 | BN58: 0 | BO58: 0 | BP58: 0 | BQ58: 0 | BR58: 0 | BS58: 0 | BT58: 0 | BU58: 0 | BV58: 0 | BW58: 0 | BX58: 0 | BY58: 0 | BZ58: 0 | CA58: 0 | CB58: 0 | CC58: 0 | CD58: 0 | CE58: 0 | CF58: 0 | CG58: 0 | CH58: 0
B59: 50 | C59: Brick Wall OE Substations | D59: DOC_11.03.10 | F59: Replacement | K59: 473.7924447 | L59: 1.287813907 | M59: 1.287813907 | N59: 1.287813907 | O59: 1.287813907 | Y59: 0.2175330351 | Z59: 0.7616845149 | AA59: 0.02078244999 | AC59: Yes | AD59: No | AF59: 0.0001456559148 | AG59: 0 | AI59: 1 | AJ59: 0 | AK59: 0 | AL59: 0 | AM59: 0 | AN59: 0 | AO59: 0 | AP59: 0 | AQ59: 0 | AS59: 0 | AT59: 0 | AU59: 1 | AV59: 0 | AW59: 0 | AX59: 0 | AY59: 0 | AZ59: 0 | BA59: 0 | BB59: 0 | BC59: 0 | BD59: 0 | BE59: 0 | BF59: 0 | BG59: 0 | BH59: 0 | BI59: 0 | BJ59: 0 | BK59: 0 | BL59: 0 | BM59: 0 | BN59: 0 | BO59: 0 | BP59: 0 | BQ59: 0 | BR59: 0 | BS59: 0 | BT59: 0 | BU59: 0 | BV59: 0 | BW59: 0 | BX59: 0 | BY59: 0 | BZ59: 0 | CA59: 0 | CB59: 0 | CC59: 0 | CD59: 0 | CE59: 0 | CF59: 0 | CG59: 0 | CH59: 0
B60: 51 | C60: Water Crossings - DM | D60: DOC_11.03.11-1 | F60: Replacement | K60: 21.98204295 | L60: 21.98204295 | M60: 21.98204295 | N60: 21.98204295 | O60: 21.98204295 | Y60: 0.3903430345 | Z60: 0 | AA60: 0.6096569655 | AC60: Yes | AD60: No | AF60: 5.997951242e-05 | AG60: 0 | AI60: 1 | AJ60: 0 | AK60: 0 | AL60: 0 | AM60: 0 | AN60: 0 | AO60: 0 | AP60: 0 | AQ60: 0 | AS60: 0 | AT60: 0 | AU60: 0 | AV60: 0 | AW60: 1 | AX60: 0 | AY60: 0 | AZ60: 0 | BA60: 0 | BB60: 0 | BC60: 0 | BD60: 0 | BE60: 0 | BF60: 0 | BG60: 0 | BH60: 0 | BI60: 0 | BJ60: 0 | BK60: 0 | BL60: 0 | BM60: 0 | BN60: 0 | BO60: 0 | BP60: 0 | BQ60: 0 | BR60: 0 | BS60: 0 | BT60: 0 | BU60: 0 | BV60: 0 | BW60: 0 | BX60: 0 | BY60: 0 | BZ60: 0 | CA60: 0 | CB60: 0 | CC60: 0 | CD60: 0 | CE60: 0 | CF60: 0 | CG60: 0 | CH60: 0
B61: 52 | C61: Fire Mitigation - ZN | D61: DOC_11.03.24 | F61: Replacement | K61: 320.2838809 | L61: 320.2838809 | M61: 320.2838809 | N61: 320.2838809 | O61: 320.2838809 | Y61: 0.3903430337 | Z61: 0 | AA61: 0.6096569663 | AC61: Yes | AD61: No | AF61: 0.0008739165423 | AG61: 0 | AI61: 1 | AJ61: 0 | AK61: 0 | AL61: 0 | AM61: 0 | AN61: 0 | AO61: 0 | AP61: 0 | AQ61: 0 | AS61: 0 | AT61: 0 | AU61: 0.939 | AV61: 0 | AW61: 0 | AX61: 0 | AY61: 0 | AZ61: 0 | BA61: 0 | BB61: 0 | BC61: 0 | BD61: 0 | BE61: 0 | BF61: 0 | BG61: 0 | BH61: 0 | BI61: 0 | BJ61: 0 | BK61: 0 | BL61: 0 | BM61: 0 | BN61: 0 | BO61: 0 | BP61: 0 | BQ61: 0 | BR61: 0 | BS61: 0.061 | BT61: 0 | BU61: 0 | BV61: 0 | BW61: 0 | BX61: 0 | BY61: 0 | BZ61: 0 | CA61: 0 | CB61: 0 | CC61: 0 | CD61: 0 | CE61: 0 | CF61: 0 | CG61: 0 | CH61: 0
B62: 53 | C62: Smoke Detection Installation - ZN | D62: DOC_11.03.25 | F62: Replacement | K62: 1284.619939 | L62: 1284.619939 | M62: 1284.619939 | N62: 1284.619939 | O62: 1284.619939 | Y62: 0.4056273653 | Z62: 0.4934183107 | AA62: 0.100954324 | AC62: Yes | AD62: No | AF62: 0.00364242275 | AG62: 0 | AI62: 1 | AJ62: 0 | AK62: 0 | AL62: 0 | AM62: 0 | AN62: 0 | AO62: 0 | AP62: 0 | AQ62: 0 | AS62: 0 | AT62: 0 | AU62: 0.87 | AV62: 0 | AW62: 0 | AX62: 0 | AY62: 0 | AZ62: 0 | BA62: 0 | BB62: 0 | BC62: 0 | BD62: 0 | BE62: 0 | BF62: 0 | BG62: 0 | BH62: 0 | BI62: 0 | BJ62: 0 | BK62: 0 | BL62: 0 | BM62: 0 | BN62: 0 | BO62: 0 | BP62: 0 | BQ62: 0 | BR62: 0 | BS62: 0.13 | BT62: 0 | BU62: 0 | BV62: 0 | BW62: 0 | BX62: 0 | BY62: 0 | BZ62: 0 | CA62: 0 | CB62: 0 | CC62: 0 | CD62: 0 | CE62: 0 | CF62: 0 | CG62: 0 | CH62: 0
B63: 54 | C63: Fire Hydrants - ZN | D63: DOC_11.03.26 | F63: Replacement | K63: 668.8253186 | L63: 668.8253186 | M63: 668.8253186 | N63: 668.8253186 | O63: 668.8253186 | Y63: 0.3686167839 | Z63: 0.6306878168 | AA63: 0.0006953993622 | AC63: Yes | AD63: No | AF63: 0.001723360981 | AG63: 0 | AI63: 1 | AJ63: 0 | AK63: 0 | AL63: 0 | AM63: 0 | AN63: 0 | AO63: 0 | AP63: 0 | AQ63: 0 | AS63: 0 | AT63: 0 | AU63: 0.939 | AV63: 0 | AW63: 0 | AX63: 0 | AY63: 0 | AZ63: 0 | BA63: 0 | BB63: 0 | BC63: 0 | BD63: 0 | BE63: 0 | BF63: 0 | BG63: 0 | BH63: 0 | BI63: 0 | BJ63: 0 | BK63: 0 | BL63: 0 | BM63: 0 | BN63: 0 | BO63: 0 | BP63: 0 | BQ63: 0 | BR63: 0 | BS63: 0.061 | BT63: 0 | BU63: 0 | BV63: 0 | BW63: 0 | BX63: 0 | BY63: 0 | BZ63: 0 | CA63: 0 | CB63: 0 | CC63: 0 | CD63: 0 | CE63: 0 | CF63: 0 | CG63: 0 | CH63: 0
B64: 55 | C64: Fire Mitigation - DC | D64: DOC_11.03.28 | F64: Replacement | K64: 119.2604052 | L64: 119.2604052 | M64: 119.2604052 | N64: 119.2604052 | O64: 119.2604052 | Y64: 0.3903430338 | Z64: 0 | AA64: 0.6096569662 | AC64: Yes | AD64: No | AF64: 0.0003254101976 | AG64: 0 | AI64: 1 | AJ64: 0 | AK64: 0 | AL64: 0 | AM64: 0 | AN64: 0 | AO64: 0 | AP64: 0 | AQ64: 0 | AS64: 0 | AT64: 0 | AU64: 1 | AV64: 0 | AW64: 0 | AX64: 0 | AY64: 0 | AZ64: 0 | BA64: 0 | BB64: 0 | BC64: 0 | BD64: 0 | BE64: 0 | BF64: 0 | BG64: 0 | BH64: 0 | BI64: 0 | BJ64: 0 | BK64: 0 | BL64: 0 | BM64: 0 | BN64: 0 | BO64: 0 | BP64: 0 | BQ64: 0 | BR64: 0 | BS64: 0 | BT64: 0 | BU64: 0 | BV64: 0 | BW64: 0 | BX64: 0 | BY64: 0 | BZ64: 0 | CA64: 0 | CB64: 0 | CC64: 0 | CD64: 0 | CE64: 0 | CF64: 0 | CG64: 0 | CH64: 0
B65: 56 | C65: Low Mains - DM | D65: DOC_11.03.34 | F65: Replacement | K65: 599.8014875 | L65: 599.8014875 | M65: 599.8014875 | N65: 599.8014875 | O65: 599.8014875 | Y65: 0.6944710121 | Z65: 0.1715549261 | AA65: 0.1339740619 | AC65: Yes | AD65: No | AF65: 0.002911723328 | AG65: 0 | AI65: 1 | AJ65: 0 | AK65: 0 | AL65: 0 | AM65: 0 | AN65: 0 | AO65: 0 | AP65: 0 | AQ65: 0 | AS65: 0 | AT65: 0 | AU65: 0 | AV65: 0 | AW65: 0 | AX65: 0 | AY65: 0 | AZ65: 0 | BA65: 0 | BB65: 1 | BC65: 0 | BD65: 0 | BE65: 0 | BF65: 0 | BG65: 0 | BH65: 0 | BI65: 0 | BJ65: 0 | BK65: 0 | BL65: 0 | BM65: 0 | BN65: 0 | BO65: 0 | BP65: 0 | BQ65: 0 | BR65: 0 | BS65: 0 | BT65: 0 | BU65: 0 | BV65: 0 | BW65: 0 | BX65: 0 | BY65: 0 | BZ65: 0 | CA65: 0 | CB65: 0 | CC65: 0 | CD65: 0 | CE65: 0 | CF65: 0 | CG65: 0 | CH65: 0
B66: 57 | C66: Low Mains - TM | D66: DOC_11.03.35 | F66: Replacement | K66: 380.3624657 | L66: 380.3624657 | M66: 380.3624657 | N66: 380.3624657 | O66: 380.3624657 | Y66: 0.6709123753 | Z66: 0.09778425249 | AA66: 0.2313033722 | AC66: Yes | AD66: No | AF66: 0.001783823585 | AG66: 0 | AI66: 1 | AJ66: 0 | AK66: 0 | AL66: 0 | AM66: 0 | AN66: 0 | AO66: 0 | AP66: 0 | AQ66: 0 | AS66: 0 | AT66: 0 | AU66: 0 | AV66: 0 | AW66: 0 | AX66: 0 | AY66: 0 | AZ66: 0 | BA66: 0 | BB66: 0 | BC66: 0 | BD66: 0.9 | BE66: 0 | BF66: 0 | BG66: 0 | BH66: 0 | BI66: 0 | BJ66: 0 | BK66: 0 | BL66: 0 | BM66: 0 | BN66: 0 | BO66: 0 | BP66: 0.1 | BQ66: 0 | BR66: 0 | BS66: 0 | BT66: 0 | BU66: 0 | BV66: 0 | BW66: 0 | BX66: 0 | BY66: 0 | BZ66: 0 | CA66: 0 | CB66: 0 | CC66: 0 | CD66: 0 | CE66: 0 | CF66: 0 | CG66: 0 | CH66: 0
B67: 58 | C67: Reactive OH&S Projects - ZN | D67: DOC_11.03.36 | F67: Replacement | K67: 357.6101242 | L67: 357.6101242 | M67: 357.6101242 | N67: 357.6101242 | O67: 357.6101242 | Y67: 0.3903430335 | Z67: 0 | AA67: 0.6096569665 | AC67: Yes | AD67: No | AF67: 0.0009757637577 | AG67: 0 | AI67: 1 | AJ67: 0 | AK67: 0 | AL67: 0 | AM67: 0 | AN67: 0 | AO67: 0 | AP67: 0 | AQ67: 0 | AS67: 0 | AT67: 0 | AU67: 0 | AV67: 0 | AW67: 0 | AX67: 0 | AY67: 0 | AZ67: 0 | BA67: 0 | BB67: 0 | BC67: 0 | BD67: 0 | BE67: 0.67 | BF67: 0 | BG67: 0 | BH67: 0 | BI67: 0 | BJ67: 0 | BK67: 0 | BL67: 0 | BM67: 0 | BN67: 0 | BO67: 0 | BP67: 0 | BQ67: 0 | BR67: 0 | BS67: 0 | BT67: 0 | BU67: 0 | BV67: 0 | BW67: 0 | BX67: 0 | BY67: 0 | BZ67: 0 | CA67: 0 | CB67: 0.33 | CC67: 0 | CD67: 0 | CE67: 0 | CF67: 0 | CG67: 0 | CH67: 0
B68: 59 | C68: Optical Arc Fault Protection | D68: DOC_11.03.38 | F68: Replacement | K68: 504.921523 | L68: 504.921523 | M68: 504.921523 | N68: 504.921523 | O68: 504.921523 | Y68: 0.7699849487 | Z68: 0.01167320015 | AA68: 0.2183418511 | AC68: Yes | AD68: No | AF68: 0.002717656509 | AG68: 0 | AI68: 1 | AJ68: 0 | AK68: 0 | AL68: 0 | AM68: 0 | AN68: 0 | AO68: 0 | AP68: 0 | AQ68: 0 | AS68: 0 | AT68: 0 | AU68: 0 | AV68: 0 | AW68: 0 | AX68: 0 | AY68: 0 | AZ68: 0 | BA68: 0 | BB68: 0 | BC68: 0 | BD68: 0 | BE68: 1 | BF68: 0 | BG68: 0 | BH68: 0 | BI68: 0 | BJ68: 0 | BK68: 0 | BL68: 0 | BM68: 0 | BN68: 0 | BO68: 0 | BP68: 0 | BQ68: 0 | BR68: 0 | BS68: 0 | BT68: 0 | BU68: 0 | BV68: 0 | BW68: 0 | BX68: 0 | BY68: 0 | BZ68: 0 | CA68: 0 | CB68: 0 | CC68: 0 | CD68: 0 | CE68: 0 | CF68: 0 | CG68: 0 | CH68: 0
B69: 60 | C69: Relocate Poles in RMS Blackspots - DM | D69: DOC_11.03.40 | F69: Replacement | K69: 447.377005 | L69: 447.377005 | M69: 447.377005 | N69: 447.377005 | O69: 447.377005 | Y69: 0.8252617856 | Z69: 0.08753891857 | AA69: 0.08719929586 | AC69: Yes | AD69: No | AF69: 0.002580796957 | AG69: 0 | AI69: 1 | AJ69: 0 | AK69: 0 | AL69: 0 | AM69: 0 | AN69: 0 | AO69: 0 | AP69: 0 | AQ69: 0 | AS69: 0 | AT69: 0 | AU69: 0 | AV69: 0 | AW69: 1 | AX69: 0 | AY69: 0 | AZ69: 0 | BA69: 0 | BB69: 0 | BC69: 0 | BD69: 0 | BE69: 0 | BF69: 0 | BG69: 0 | BH69: 0 | BI69: 0 | BJ69: 0 | BK69: 0 | BL69: 0 | BM69: 0 | BN69: 0 | BO69: 0 | BP69: 0 | BQ69: 0 | BR69: 0 | BS69: 0 | BT69: 0 | BU69: 0 | BV69: 0 | BW69: 0 | BX69: 0 | BY69: 0 | BZ69: 0 | CA69: 0 | CB69: 0 | CC69: 0 | CD69: 0 | CE69: 0 | CF69: 0 | CG69: 0 | CH69: 0
B70: 61 | C70: Reactive Electrical Safety - DC | D70: DOC_11.03.42 | F70: Replacement | K70: 44.74328405 | L70: 44.74328405 | M70: 44.74328405 | N70: 44.74328405 | O70: 44.74328405 | Y70: 0.3903430341 | Z70: 0 | AA70: 0.6096569659 | AC70: Yes | AD70: No | AF70: 0.0001220851203 | AG70: 0 | AI70: 1 | AJ70: 0 | AK70: 0 | AL70: 0 | AM70: 0 | AN70: 0 | AO70: 0 | AP70: 0 | AQ70: 0 | AS70: 0 | AT70: 0 | AU70: 0 | AV70: 0 | AW70: 0 | AX70: 0 | AY70: 0 | AZ70: 0 | BA70: 0 | BB70: 0 | BC70: 0 | BD70: 0 | BE70: 1 | BF70: 0 | BG70: 0 | BH70: 0 | BI70: 0 | BJ70: 0 | BK70: 0 | BL70: 0 | BM70: 0 | BN70: 0 | BO70: 0 | BP70: 0 | BQ70: 0 | BR70: 0 | BS70: 0 | BT70: 0 | BU70: 0 | BV70: 0 | BW70: 0 | BX70: 0 | BY70: 0 | BZ70: 0 | CA70: 0 | CB70: 0 | CC70: 0 | CD70: 0 | CE70: 0 | CF70: 0 | CG70: 0 | CH70: 0
B71: 62 | C71: Reactive Electrical Safety - DM | D71: DOC_11.03.43 | F71: Replacement | K71: 1089.140221 | L71: 1089.140221 | M71: 1089.140221 | N71: 1089.140221 | O71: 1089.140221 | Y71: 0.3903430337 | Z71: 0 | AA71: 0.6096569663 | AC71: Yes | AD71: No | AF71: 0.002971793813 | AG71: 0 | AI71: 1 | AJ71: 0 | AK71: 0 | AL71: 0 | AM71: 0 | AN71: 0 | AO71: 0 | AP71: 0 | AQ71: 0 | AS71: 0 | AT71: 0 | AU71: 0 | AV71: 0 | AW71: 0 | AX71: 0 | AY71: 0 | AZ71: 0 | BA71: 0 | BB71: 1 | BC71: 0 | BD71: 0 | BE71: 0 | BF71: 0 | BG71: 0 | BH71: 0 | BI71: 0 | BJ71: 0 | BK71: 0 | BL71: 0 | BM71: 0 | BN71: 0 | BO71: 0 | BP71: 0 | BQ71: 0 | BR71: 0 | BS71: 0 | BT71: 0 | BU71: 0 | BV71: 0 | BW71: 0 | BX71: 0 | BY71: 0 | BZ71: 0 | CA71: 0 | CB71: 0 | CC71: 0 | CD71: 0 | CE71: 0 | CF71: 0 | CG71: 0 | CH71: 0
B72: 63 | C72: Reactive Electrical Safety - TM | D72: DOC_11.03.44 | F72: Replacement | K72: 89.60186973 | L72: 89.60186973 | M72: 89.60186973 | N72: 89.60186973 | O72: 89.60186973 | Y72: 0.3903430334 | Z72: 0 | AA72: 0.6096569666 | AC72: Yes | AD72: No | AF72: 0.0002444848486 | AG72: 0 | AI72: 1 | AJ72: 0 | AK72: 0 | AL72: 0 | AM72: 0 | AN72: 0 | AO72: 0 | AP72: 0 | AQ72: 0 | AS72: 0 | AT72: 0 | AU72: 0 | AV72: 0 | AW72: 0 | AX72: 0 | AY72: 0 | AZ72: 0 | BA72: 0 | BB72: 0 | BC72: 0 | BD72: 0.779 | BE72: 0 | BF72: 0 | BG72: 0 | BH72: 0 | BI72: 0 | BJ72: 0 | BK72: 0 | BL72: 0 | BM72: 0 | BN72: 0 | BO72: 0 | BP72: 0.221 | BQ72: 0 | BR72: 0 | BS72: 0 | BT72: 0 | BU72: 0 | BV72: 0 | BW72: 0 | BX72: 0 | BY72: 0 | BZ72: 0 | CA72: 0 | CB72: 0 | CC72: 0 | CD72: 0 | CE72: 0 | CF72: 0 | CG72: 0 | CH72: 0
B73: 64 | C73: Reactive Electrical Safety - ZN | D73: DOC_11.03.46 | F73: Replacement | K73: 116.2109906 | L73: 116.2109906 | M73: 116.2109906 | N73: 116.2109906 | O73: 116.2109906 | Y73: 0.3903430337 | Z73: 0 | AA73: 0.6096569663 | AC73: Yes | AD73: No | AF73: 0.0003170896606 | AG73: 0 | AI73: 1 | AJ73: 0 | AK73: 0 | AL73: 0 | AM73: 0 | AN73: 0 | AO73: 0 | AP73: 0 | AQ73: 0 | AS73: 0 | AT73: 0 | AU73: 0 | AV73: 0 | AW73: 0 | AX73: 0 | AY73: 0 | AZ73: 0 | BA73: 0 | BB73: 0 | BC73: 0 | BD73: 0 | BE73: 0.94 | BF73: 0 | BG73: 0 | BH73: 0 | BI73: 0 | BJ73: 0 | BK73: 0 | BL73: 0 | BM73: 0 | BN73: 0 | BO73: 0 | BP73: 0 | BQ73: 0 | BR73: 0 | BS73: 0 | BT73: 0 | BU73: 0 | BV73: 0 | BW73: 0 | BX73: 0 | BY73: 0 | BZ73: 0 | CA73: 0 | CB73: 0.06 | CC73: 0 | CD73: 0 | CE73: 0 | CF73: 0 | CG73: 0 | CH73: 0
B74: 65 | C74: Reactive OH&S Projects - DM | D74: DOC_11.03.47 | F74: Replacement | K74: 596.4390923 | L74: 596.4390923 | M74: 596.4390923 | N74: 596.4390923 | O74: 596.4390923 | Y74: 0.3903430337 | Z74: 0 | AA74: 0.6096569663 | AC74: Yes | AD74: No | AF74: 0.001627424982 | AG74: 0 | AI74: 1 | AJ74: 0 | AK74: 0 | AL74: 0 | AM74: 0 | AN74: 0 | AO74: 0 | AP74: 0 | AQ74: 0 | AS74: 0 | AT74: 0 | AU74: 0 | AV74: 0 | AW74: 0 | AX74: 0 | AY74: 0 | AZ74: 0 | BA74: 0 | BB74: 1 | BC74: 0 | BD74: 0 | BE74: 0 | BF74: 0 | BG74: 0 | BH74: 0 | BI74: 0 | BJ74: 0 | BK74: 0 | BL74: 0 | BM74: 0 | BN74: 0 | BO74: 0 | BP74: 0 | BQ74: 0 | BR74: 0 | BS74: 0 | BT74: 0 | BU74: 0 | BV74: 0 | BW74: 0 | BX74: 0 | BY74: 0 | BZ74: 0 | CA74: 0 | CB74: 0 | CC74: 0 | CD74: 0 | CE74: 0 | CF74: 0 | CG74: 0 | CH74: 0
B75: 66 | C75: Reactive OH&S Projects - DC | D75: DOC_11.03.48 | F75: Replacement | K75: 217.3464137 | L75: 217.3464137 | M75: 217.3464137 | N75: 217.3464137 | O75: 217.3464137 | Y75: 0.3903430337 | Z75: 0 | AA75: 0.6096569663 | AB75: =IF(SUM(Y75:AA75,I75:O75)=0,"",IF(SUM(Y75:AA75)=1,"",1)) ->  | AC75: Yes | AD75: No | AF75: 0.0005930446009 | AG75: 0 | AI75: 1 | AJ75: 0 | AK75: 0 | AL75: 0 | AM75: 0 | AN75: 0 | AO75: 0 | AP75: 0 | AQ75: 0 | AS75: 0 | AT75: 0 | AU75: 0 | AV75: 0 | AW75: 0 | AX75: 0 | AY75: 0 | AZ75: 0 | BA75: 0 | BB75: 0 | BC75: 0 | BD75: 0 | BE75: 1 | BF75: 0 | BG75: 0 | BH75: 0 | BI75: 0 | BJ75: 0 | BK75: 0 | BL75: 0 | BM75: 0 | BN75: 0 | BO75: 0 | BP75: 0 | BQ75: 0 | BR75: 0 | BS75: 0 | BT75: 0 | BU75: 0 | BV75: 0 | BW75: 0 | BX75: 0 | BY75: 0 | BZ75: 0 | CA75: 0 | CB75: 0 | CC75: 0 | CD75: 0 | CE75: 0 | CF75: 0 | CG75: 0 | CH75: 0 | CQ75: =IF(COUNT(AI75:AQ75)=0,"",IF(SUM(AI75:AQ75)=1,"",1)) -> 
B76: =IFERROR(B75+1,"") -> 67 | C76: Substation Fencing Upgrade - DC | D76: DOC_11.03.50 | F76: Replacement | K76: 712.4930826 | L76: 712.4930826 | M76: 712.4930826 | N76: 712.4930826 | O76: 712.4930826 | Y76: 0.4337125654 | Z76: 0.5614089593 | AA76: 0.004878475293 | AC76: Yes | AD76: No | AF76: 0.002160086296 | AG76: 0 | AI76: 1 | AJ76: 0 | AK76: 0 | AL76: 0 | AM76: 0 | AN76: 0 | AO76: 0 | AP76: 0 | AQ76: 0 | AS76: 0 | AT76: 0 | AU76: 0 | AV76: 0 | AW76: 0 | AX76: 0 | AY76: 0 | AZ76: 0 | BA76: 1 | BB76: 0 | BC76: 0 | BD76: 0 | BE76: 0 | BF76: 0 | BG76: 0 | BH76: 0 | BI76: 0 | BJ76: 0 | BK76: 0 | BL76: 0 | BM76: 0 | BN76: 0 | BO76: 0 | BP76: 0 | BQ76: 0 | BR76: 0 | BS76: 0 | BT76: 0 | BU76: 0 | BV76: 0 | BW76: 0 | BX76: 0 | BY76: 0 | BZ76: 0 | CA76: 0 | CB76: 0 | CC76: 0 | CD76: 0 | CE76: 0 | CF76: 0 | CG76: 0 | CH76: 0
B77: 68 | C77: Asbestos Fire Doors - DC | D77: DOC_11.03.52 | F77: Replacement | K77: 457.2441051 | L77: 457.2441051 | M77: 457.2441051 | N77: 457.2441051 | O77: 457.2441051 | Y77: 0.3903430336 | Z77: 0 | AA77: 0.6096569664 | AC77: Yes | AD77: No | AF77: 0.00124762191 | AG77: 0 | AI77: 1 | AJ77: 0 | AK77: 0 | AL77: 0 | AM77: 0 | AN77: 0 | AO77: 0 | AP77: 0 | AQ77: 0 | AS77: 0 | AT77: 0 | AU77: 1 | AV77: 0 | AW77: 0 | AX77: 0 | AY77: 0 | AZ77: 0 | BA77: 0 | BB77: 0 | BC77: 0 | BD77: 0 | BE77: 0 | BF77: 0 | BG77: 0 | BH77: 0 | BI77: 0 | BJ77: 0 | BK77: 0 | BL77: 0 | BM77: 0 | BN77: 0 | BO77: 0 | BP77: 0 | BQ77: 0 | BR77: 0 | BS77: 0 | BT77: 0 | BU77: 0 | BV77: 0 | BW77: 0 | BX77: 0 | BY77: 0 | BZ77: 0 | CA77: 0 | CB77: 0 | CC77: 0 | CD77: 0 | CE77: 0 | CF77: 0 | CG77: 0 | CH77: 0
B78: 69 | C78: Asbestos Fire Doors - ZN | D78: DOC_11.03.54 | F78: Replacement | K78: 1176.766973 | L78: 1176.766973 | M78: 1176.766973 | N78: 1176.766973 | O78: 1176.766973 | Y78: 0.2444495903 | Z78: 0.7067703454 | AA78: 0.04878006429 | AC78: Yes | AD78: No | AF78: 0.002010797005 | AG78: 0 | AI78: 1 | AJ78: 0 | AK78: 0 | AL78: 0 | AM78: 0 | AN78: 0 | AO78: 0 | AP78: 0 | AQ78: 0 | AS78: 0 | AT78: 0 | AU78: 0.939 | AV78: 0 | AW78: 0 | AX78: 0 | AY78: 0 | AZ78: 0 | BA78: 0 | BB78: 0 | BC78: 0 | BD78: 0 | BE78: 0 | BF78: 0 | BG78: 0 | BH78: 0 | BI78: 0 | BJ78: 0 | BK78: 0 | BL78: 0 | BM78: 0 | BN78: 0 | BO78: 0 | BP78: 0 | BQ78: 0 | BR78: 0 | BS78: 0.061 | BT78: 0 | BU78: 0 | BV78: 0 | BW78: 0 | BX78: 0 | BY78: 0 | BZ78: 0 | CA78: 0 | CB78: 0 | CC78: 0 | CD78: 0 | CE78: 0 | CF78: 0 | CG78: 0 | CH78: 0
B79: 70 | C79: Reactive Asbestos Projects - DC | D79: DOC_11.03.57 | F79: Replacement | K79: 227.2908067 | L79: 227.2908067 | M79: 227.2908067 | N79: 227.2908067 | O79: 227.2908067 | Y79: 0.3903430337 | Z79: 0 | AA79: 0.6096569663 | AC79: Yes | AD79: No | AF79: 0.0006201785595 | AG79: 0 | AI79: 1 | AJ79: 0 | AK79: 0 | AL79: 0 | AM79: 0 | AN79: 0 | AO79: 0 | AP79: 0 | AQ79: 0 | AS79: 0 | AT79: 0 | AU79: 0 | AV79: 0 | AW79: 0 | AX79: 0 | AY79: 0 | AZ79: 0 | BA79: 0 | BB79: 0 | BC79: 0 | BD79: 0 | BE79: 1 | BF79: 0 | BG79: 0 | BH79: 0 | BI79: 0 | BJ79: 0 | BK79: 0 | BL79: 0 | BM79: 0 | BN79: 0 | BO79: 0 | BP79: 0 | BQ79: 0 | BR79: 0 | BS79: 0 | BT79: 0 | BU79: 0 | BV79: 0 | BW79: 0 | BX79: 0 | BY79: 0 | BZ79: 0 | CA79: 0 | CB79: 0 | CC79: 0 | CD79: 0 | CE79: 0 | CF79: 0 | CG79: 0 | CH79: 0
B80: 71 | C80: Reactive Asbestos Projects - DM | D80: DOC_11.03.58 | F80: Replacement | K80: 67.67103696 | L80: 67.67103696 | M80: 67.67103696 | N80: 67.67103696 | O80: 67.67103696 | Y80: 0.3903430337 | Z80: 0 | AA80: 0.6096569663 | AC80: Yes | AD80: No | AF80: 0.0001846450669 | AG80: 0 | AI80: 1 | AJ80: 0 | AK80: 0 | AL80: 0 | AM80: 0 | AN80: 0 | AO80: 0 | AP80: 0 | AQ80: 0 | AS80: 0 | AT80: 0 | AU80: 0 | AV80: 0 | AW80: 1 | AX80: 0 | AY80: 0 | AZ80: 0 | BA80: 0 | BB80: 0 | BC80: 0 | BD80: 0 | BE80: 0 | BF80: 0 | BG80: 0 | BH80: 0 | BI80: 0 | BJ80: 0 | BK80: 0 | BL80: 0 | BM80: 0 | BN80: 0 | BO80: 0 | BP80: 0 | BQ80: 0 | BR80: 0 | BS80: 0 | BT80: 0 | BU80: 0 | BV80: 0 | BW80: 0 | BX80: 0 | BY80: 0 | BZ80: 0 | CA80: 0 | CB80: 0 | CC80: 0 | CD80: 0 | CE80: 0 | CF80: 0 | CG80: 0 | CH80: 0
B81: 72 | C81: Reactive Asbestos Projects - ZN | D81: DOC_11.03.61 | F81: Replacement | K81: 0.0330159115 | L81: 0.0330159115 | M81: 0.0330159115 | N81: 0.0330159115 | O81: 0.0330159115 | Y81: 0.3903424414 | Z81: 0 | AA81: 0.6096575586 | AC81: Yes | AD81: No | AF81: 9.008604191e-08 | AG81: 0 | AI81: 1 | AJ81: 0 | AK81: 0 | AL81: 0 | AM81: 0 | AN81: 0 | AO81: 0 | AP81: 0 | AQ81: 0 | AS81: 0 | AT81: 0 | AU81: 0 | AV81: 0 | AW81: 0 | AX81: 0 | AY81: 0 | AZ81: 0 | BA81: 0 | BB81: 0 | BC81: 0 | BD81: 0 | BE81: 0.939 | BF81: 0 | BG81: 0 | BH81: 0 | BI81: 0 | BJ81: 0 | BK81: 0 | BL81: 0 | BM81: 0 | BN81: 0 | BO81: 0 | BP81: 0 | BQ81: 0 | BR81: 0 | BS81: 0 | BT81: 0 | BU81: 0 | BV81: 0 | BW81: 0 | BX81: 0 | BY81: 0 | BZ81: 0 | CA81: 0 | CB81: 0.06099999995 | CC81: 0 | CD81: 0 | CE81: 0 | CF81: 0 | CG81: 0 | CH81: 0
B82: 73 | C82: Mackellar Chamber Substation Safety - DC | D82: DOC_11.03.65 | F82: Replacement | K82: 1.478005779 | L82: 1.478005779 | M82: 1.478005779 | N82: 1.478005779 | O82: 1.478005779 | Y82: 0.3903430468 | Z82: 0 | AA82: 0.6096569532 | AC82: Yes | AD82: No | AF82: 4.032840303e-06 | AG82: 0 | AI82: 1 | AJ82: 0 | AK82: 0 | AL82: 0 | AM82: 0 | AN82: 0 | AO82: 0 | AP82: 0 | AQ82: 0 | AS82: 0 | AT82: 0 | AU82: 0 | AV82: 0 | AW82: 0 | AX82: 0 | AY82: 0 | AZ82: 0 | BA82: 0 | BB82: 0 | BC82: 0 | BD82: 0 | BE82: 1 | BF82: 0 | BG82: 0 | BH82: 0 | BI82: 0 | BJ82: 0 | BK82: 0 | BL82: 0 | BM82: 0 | BN82: 0 | BO82: 0 | BP82: 0 | BQ82: 0 | BR82: 0 | BS82: 0 | BT82: 0 | BU82: 0 | BV82: 0 | BW82: 0 | BX82: 0 | BY82: 0 | BZ82: 0 | CA82: 0 | CB82: 0 | CC82: 0 | CD82: 0 | CE82: 0 | CF82: 0 | CG82: 0 | CH82: 0
B83: 74 | C83: Fire Fighting Water Storage Tanks - ZN | D83: DOC_11.03.66 | F83: Replacement | K83: 199.9377845 | L83: 199.9377845 | M83: 199.9377845 | N83: 199.9377845 | O83: 199.9377845 | Y83: 0.3903430338 | Z83: 0 | AA83: 0.6096569662 | AC83: Yes | AD83: No | AF83: 0.000545543962 | AG83: 0 | AI83: 1 | AJ83: 0 | AK83: 0 | AL83: 0 | AM83: 0 | AN83: 0 | AO83: 0 | AP83: 0 | AQ83: 0 | AS83: 0 | AT83: 0 | AU83: 0 | AV83: 0 | AW83: 0 | AX83: 0 | AY83: 0 | AZ83: 0 | BA83: 0 | BB83: 0 | BC83: 0 | BD83: 0 | BE83: 0.939 | BF83: 0 | BG83: 0 | BH83: 0 | BI83: 0 | BJ83: 0 | BK83: 0 | BL83: 0 | BM83: 0 | BN83: 0 | BO83: 0 | BP83: 0 | BQ83: 0 | BR83: 0 | BS83: 0 | BT83: 0 | BU83: 0 | BV83: 0 | BW83: 0 | BX83: 0 | BY83: 0 | BZ83: 0 | CA83: 0 | CB83: 0.061 | CC83: 0 | CD83: 0 | CE83: 0 | CF83: 0 | CG83: 0 | CH83: 0
B84: 75 | C84: Siemens 8DN8 Circuitry Modification - ZN | D84: DOC_11.03.69 | F84: Replacement | K84: 314.2162868 | L84: 203.2500454 | M84: 217.1208255 | N84: 286.4747265 | O84: 286.4747265 | Y84: 0.8751000533 | Z84: 0 | AA84: 0.1248999467 | AC84: Yes | AD84: No | AF84: 0.001599668558 | AG84: 0 | AI84: 1 | AJ84: 0 | AK84: 0 | AL84: 0 | AM84: 0 | AN84: 0 | AO84: 0 | AP84: 0 | AQ84: 0 | AS84: 0.65 | AT84: 0 | AU84: 0 | AV84: 0 | AW84: 0 | AX84: 0 | AY84: 0 | AZ84: 0 | BA84: 0 | BB84: 0 | BC84: 0 | BD84: 0 | BE84: 0 | BF84: 0 | BG84: 0 | BH84: 0 | BI84: 0 | BJ84: 0 | BK84: 0 | BL84: 0 | BM84: 0 | BN84: 0 | BO84: 0 | BP84: 0 | BQ84: 0.35 | BR84: 0 | BS84: 0 | BT84: 0 | BU84: 0 | BV84: 0 | BW84: 0 | BX84: 0 | BY84: 0 | BZ84: 0 | CA84: 0 | CB84: 0 | CC84: 0 | CD84: 0 | CE84: 0 | CF84: 0 | CG84: 0 | CH84: 0
B85: 76 | C85: Dedicated LV Circuit Reconfiguration | D85: DOC_11.03.73 | F85: Replacement | K85: 14316.76627 | L85: 14314.90801 | M85: 14310.92839 | N85: 14310.30632 | O85: 14310.21676 | Y85: 0.2738355975 | Z85: 0.7053687865 | AA85: 0.02079561599 | AC85: Yes | AD85: No | AF85: 0.02739666164 | AG85: 0 | AI85: 1 | AJ85: 0 | AK85: 0 | AL85: 0 | AM85: 0 | AN85: 0 | AO85: 0 | AP85: 0 | AQ85: 0 | AS85: 0 | AT85: 0 | AU85: 0 | AV85: 0 | AW85: 0 | AX85: 0 | AY85: 0 | AZ85: 0 | BA85: 0 | BB85: 1 | BC85: 0 | BD85: 0 | BE85: 0 | BF85: 0 | BG85: 0 | BH85: 0 | BI85: 0 | BJ85: 0 | BK85: 0 | BL85: 0 | BM85: 0 | BN85: 0 | BO85: 0 | BP85: 0 | BQ85: 0 | BR85: 0 | BS85: 0 | BT85: 0 | BU85: 0 | BV85: 0 | BW85: 0 | BX85: 0 | BY85: 0 | BZ85: 0 | CA85: 0 | CB85: 0 | CC85: 0 | CD85: 0 | CE85: 0 | CF85: 0 | CG85: 0 | CH85: 0
B86: 77 | C86: Menai Pillar Retrofits - DM | D86: DOC_11.03.74 | F86: Replacement | K86: 108.4722699 | L86: 109.0173567 | M86: 109.0173567 | N86: 83.39827784 | O86: 0 | Y86: 0.5073628496 | Z86: 0 | AA86: 0.4926371504 | AC86: Yes | AD86: No | AF86: 0.0002907505848 | AG86: 0 | AI86: 1 | AJ86: 0 | AK86: 0 | AL86: 0 | AM86: 0 | AN86: 0 | AO86: 0 | AP86: 0 | AQ86: 0 | AS86: 0 | AT86: 0 | AU86: 0 | AV86: 0 | AW86: 0 | AX86: 0 | AY86: 0 | AZ86: 0 | BA86: 0 | BB86: 1 | BC86: 0 | BD86: 0 | BE86: 0 | BF86: 0 | BG86: 0 | BH86: 0 | BI86: 0 | BJ86: 0 | BK86: 0 | BL86: 0 | BM86: 0 | BN86: 0 | BO86: 0 | BP86: 0 | BQ86: 0 | BR86: 0 | BS86: 0 | BT86: 0 | BU86: 0 | BV86: 0 | BW86: 0 | BX86: 0 | BY86: 0 | BZ86: 0 | CA86: 0 | CB86: 0 | CC86: 0 | CD86: 0 | CE86: 0 | CF86: 0 | CG86: 0 | CH86: 0
B87: 78 | C87: DNSP/TNSP Compliance - ZN | D87: DOC_11.03.75 | F87: Replacement | K87: 18.4788403 | L87: 18.4788403 | M87: 18.4788403 | N87: 18.4788403 | O87: 18.4788403 | Y87: 0.3903430347 | Z87: 0 | AA87: 0.6096569653 | AC87: Yes | AD87: No | AF87: 5.042078365e-05 | AG87: 0 | AI87: 1 | AJ87: 0 | AK87: 0 | AL87: 0 | AM87: 0 | AN87: 0 | AO87: 0 | AP87: 0 | AQ87: 0 | AS87: 0.9 | AT87: 0 | AU87: 0 | AV87: 0 | AW87: 0 | AX87: 0 | AY87: 0 | AZ87: 0 | BA87: 0 | BB87: 0 | BC87: 0 | BD87: 0 | BE87: 0 | BF87: 0 | BG87: 0 | BH87: 0 | BI87: 0 | BJ87: 0 | BK87: 0 | BL87: 0 | BM87: 0 | BN87: 0 | BO87: 0 | BP87: 0 | BQ87: 0.1 | BR87: 0 | BS87: 0 | BT87: 0 | BU87: 0 | BV87: 0 | BW87: 0 | BX87: 0 | BY87: 0 | BZ87: 0 | CA87: 0 | CB87: 0 | CC87: 0 | CD87: 0 | CE87: 0 | CF87: 0 | CG87: 0 | CH87: 0
B88: 79 | C88: Substation Locks Upgrade | D88: DOC_11.03.77 | F88: Replacement | K88: 963.9079682 | L88: 963.9079682 | M88: 963.9079682 | N88: 963.9079682 | O88: 963.9079682 | Y88: 0.2156927581 | Z88: 0 | AA88: 0.7843072419 | AC88: Yes | AD88: No | AF88: 0.001453314408 | AG88: 0 | AI88: 1 | AJ88: 0 | AK88: 0 | AL88: 0 | AM88: 0 | AN88: 0 | AO88: 0 | AP88: 0 | AQ88: 0 | AS88: 0 | AT88: 0 | AU88: 0.867 | AV88: 0 | AW88: 0 | AX88: 0 | AY88: 0 | AZ88: 0 | BA88: 0 | BB88: 0 | BC88: 0 | BD88: 0 | BE88: 0 | BF88: 0 | BG88: 0 | BH88: 0 | BI88: 0 | BJ88: 0 | BK88: 0 | BL88: 0 | BM88: 0 | BN88: 0 | BO88: 0 | BP88: 0 | BQ88: 0 | BR88: 0 | BS88: 0.133 | BT88: 0 | BU88: 0 | BV88: 0 | BW88: 0 | BX88: 0 | BY88: 0 | BZ88: 0 | CA88: 0 | CB88: 0 | CC88: 0 | CD88: 0 | CE88: 0 | CF88: 0 | CG88: 0 | CH88: 0
B89: 80 | C89: Decommission CBD Vault | D89: DOC_11.03.78 | F89: Replacement | K89: 494.1605317 | L89: 494.1605317 | M89: 494.1605317 | N89: 494.1605317 | O89: 494.1605317 | Y89: 0.4435473852 | Z89: 0.523583195 | AA89: 0.03286941987 | AC89: Yes | AD89: No | AF89: 0.001532133201 | AG89: 0 | AI89: 1 | AJ89: 0 | AK89: 0 | AL89: 0 | AM89: 0 | AN89: 0 | AO89: 0 | AP89: 0 | AQ89: 0 | AS89: 0 | AT89: 0 | AU89: 1 | AV89: 0 | AW89: 0 | AX89: 0 | AY89: 0 | AZ89: 0 | BA89: 0 | BB89: 0 | BC89: 0 | BD89: 0 | BE89: 0 | BF89: 0 | BG89: 0 | BH89: 0 | BI89: 0 | BJ89: 0 | BK89: 0 | BL89: 0 | BM89: 0 | BN89: 0 | BO89: 0 | BP89: 0 | BQ89: 0 | BR89: 0 | BS89: 0 | BT89: 0 | BU89: 0 | BV89: 0 | BW89: 0 | BX89: 0 | BY89: 0 | BZ89: 0 | CA89: 0 | CB89: 0 | CC89: 0 | CD89: 0 | CE89: 0 | CF89: 0 | CG89: 0 | CH89: 0
B90: 81 | C90: Reconfig Dist Network - DC | D90: DOC_11.03.79 | F90: Replacement | K90: 33.86164094 | L90: 33.86164094 | M90: 33.86164094 | N90: 33.86164094 | O90: 33.86164094 | Y90: 0.7767444285 | Z90: 0.2162122035 | AA90: 0.007043368053 | AC90: Yes | AD90: No | AF90: 0.0001838546388 | AG90: 0 | AI90: 1 | AJ90: 0 | AK90: 0 | AL90: 0 | AM90: 0 | AN90: 0 | AO90: 0 | AP90: 0 | AQ90: 0 | AS90: 0 | AT90: 0 | AU90: 0 | AV90: 0 | AW90: 0 | AX90: 0 | AY90: 0 | AZ90: 0 | BA90: 0 | BB90: 0 | BC90: 0 | BD90: 0 | BE90: 1 | BF90: 0 | BG90: 0 | BH90: 0 | BI90: 0 | BJ90: 0 | BK90: 0 | BL90: 0 | BM90: 0 | BN90: 0 | BO90: 0 | BP90: 0 | BQ90: 0 | BR90: 0 | BS90: 0 | BT90: 0 | BU90: 0 | BV90: 0 | BW90: 0 | BX90: 0 | BY90: 0 | BZ90: 0 | CA90: 0 | CB90: 0 | CC90: 0 | CD90: 0 | CE90: 0 | CF90: 0 | CG90: 0 | CH90: 0
B91: 82 | C91: Reconfig Dist Network - Mains | D91: DOC_11.03.80 | F91: Replacement | K91: 8.5007933 | L91: 8.5007933 | M91: 8.5007933 | N91: 8.5007933 | O91: 8.5007933 | Y91: 0.4330717346 | Z91: 0.5362664212 | AA91: 0.03066184423 | AC91: Yes | AD91: No | AF91: 2.573402631e-05 | AG91: 0 | AI91: 1 | AJ91: 0 | AK91: 0 | AL91: 0 | AM91: 0 | AN91: 0 | AO91: 0 | AP91: 0 | AQ91: 0 | AS91: 0 | AT91: 0 | AU91: 0 | AV91: 0 | AW91: 0 | AX91: 0 | AY91: 0 | AZ91: 0 | BA91: 0 | BB91: 1 | BC91: 0 | BD91: 0 | BE91: 0 | BF91: 0 | BG91: 0 | BH91: 0 | BI91: 0 | BJ91: 0 | BK91: 0 | BL91: 0 | BM91: 0 | BN91: 0 | BO91: 0 | BP91: 0 | BQ91: 0 | BR91: 0 | BS91: 0 | BT91: 0 | BU91: 0 | BV91: 0 | BW91: 0 | BX91: 0 | BY91: 0 | BZ91: 0 | CA91: 0 | CB91: 0 | CC91: 0 | CD91: 0 | CE91: 0 | CF91: 0 | CG91: 0 | CH91: 0
B92: 83 | C92: Oil Containment - ZN | D92: DOC_11.04.01 | F92: Replacement | K92: 835.6531636 | L92: 1166.300838 | M92: 996.0663919 | N92: 996.0663919 | O92: 832.3794243 | Y92: 0.2651860999 | Z92: 0.7164739122 | AA92: 0.01833998794 | AC92: Yes | AD92: No | AF92: 0.001789363057 | AG92: 0 | AI92: 1 | AJ92: 0 | AK92: 0 | AL92: 0 | AM92: 0 | AN92: 0 | AO92: 0 | AP92: 0 | AQ92: 0 | AS92: 0 | AT92: 0 | AU92: 0.85 | AV92: 0 | AW92: 0 | AX92: 0 | AY92: 0 | AZ92: 0 | BA92: 0 | BB92: 0 | BC92: 0 | BD92: 0 | BE92: 0 | BF92: 0 | BG92: 0 | BH92: 0 | BI92: 0 | BJ92: 0 | BK92: 0 | BL92: 0 | BM92: 0 | BN92: 0 | BO92: 0 | BP92: 0 | BQ92: 0 | BR92: 0 | BS92: 0.15 | BT92: 0 | BU92: 0 | BV92: 0 | BW92: 0 | BX92: 0 | BY92: 0 | BZ92: 0 | CA92: 0 | CB92: 0 | CC92: 0 | CD92: 0 | CE92: 0 | CF92: 0 | CG92: 0 | CH92: 0
B93: 84 | C93: Noisy Tx Replacement - ZN | D93: DOC_11.04.03 | F93: Replacement | K93: 20.02851429 | L93: 20.02851429 | M93: 20.02851429 | N93: 20.02851429 | O93: 20.02851429 | Y93: 0.3903430317 | Z93: 0 | AA93: 0.6096569683 | AC93: Yes | AD93: No | AF93: 5.464917503e-05 | AG93: 0 | AI93: 1 | AJ93: 0 | AK93: 0 | AL93: 0 | AM93: 0 | AN93: 0 | AO93: 0 | AP93: 0 | AQ93: 0 | AS93: 0 | AT93: 0 | AU93: 0 | AV93: 0 | AW93: 0 | AX93: 0 | AY93: 0 | AZ93: 0 | BA93: 0 | BB93: 0 | BC93: 0 | BD93: 0 | BE93: 0 | BF93: 0 | BG93: 0.83 | BH93: 0 | BI93: 0 | BJ93: 0 | BK93: 0 | BL93: 0 | BM93: 0 | BN93: 0 | BO93: 0 | BP93: 0 | BQ93: 0 | BR93: 0 | BS93: 0 | BT93: 0 | BU93: 0 | BV93: 0 | BW93: 0 | BX93: 0 | BY93: 0 | BZ93: 0 | CA93: 0 | CB93: 0 | CC93: 0.17 | CD93: 0 | CE93: 0 | CF93: 0 | CG93: 0 | CH93: 0
B94: 85 | C94: Noisy Tx Replacement - DC | D94: DOC_11.04.03-2 | F94: Replacement | K94: 148.5991625 | L94: 148.5991625 | M94: 148.5991625 | N94: 148.5991625 | O94: 148.5991625 | Y94: 0.3903430338 | Z94: 0 | AA94: 0.6096569662 | AC94: Yes | AD94: No | AF94: 0.0004054630098 | AG94: 0 | AI94: 1 | AJ94: 0 | AK94: 0 | AL94: 0 | AM94: 0 | AN94: 0 | AO94: 0 | AP94: 0 | AQ94: 0 | AS94: 0 | AT94: 0 | AU94: 0 | AV94: 0 | AW94: 0 | AX94: 0 | AY94: 0 | AZ94: 0 | BA94: 0 | BB94: 0 | BC94: 0 | BD94: 0 | BE94: 0 | BF94: 0 | BG94: 1 | BH94: 0 | BI94: 0 | BJ94: 0 | BK94: 0 | BL94: 0 | BM94: 0 | BN94: 0 | BO94: 0 | BP94: 0 | BQ94: 0 | BR94: 0 | BS94: 0 | BT94: 0 | BU94: 0 | BV94: 0 | BW94: 0 | BX94: 0 | BY94: 0 | BZ94: 0 | CA94: 0 | CB94: 0 | CC94: 0 | CD94: 0 | CE94: 0 | CF94: 0 | CG94: 0 | CH94: 0
B95: 86 | C95: Reactive Environmental Projects - DC | D95: DOC_11.04.05 | F95: Replacement | K95: 50.49102538 | L95: 50.49102538 | M95: 50.49102538 | N95: 50.49102538 | O95: 50.49102538 | Y95: 0.3903430329 | Z95: 0 | AA95: 0.6096569671 | AC95: Yes | AD95: No | AF95: 0.0001377682264 | AG95: 0 | AI95: 1 | AJ95: 0 | AK95: 0 | AL95: 0 | AM95: 0 | AN95: 0 | AO95: 0 | AP95: 0 | AQ95: 0 | AS95: 0 | AT95: 0 | AU95: 0 | AV95: 0 | AW95: 0 | AX95: 0 | AY95: 0 | AZ95: 0 | BA95: 1 | BB95: 0 | BC95: 0 | BD95: 0 | BE95: 0 | BF95: 0 | BG95: 0 | BH95: 0 | BI95: 0 | BJ95: 0 | BK95: 0 | BL95: 0 | BM95: 0 | BN95: 0 | BO95: 0 | BP95: 0 | BQ95: 0 | BR95: 0 | BS95: 0 | BT95: 0 | BU95: 0 | BV95: 0 | BW95: 0 | BX95: 0 | BY95: 0 | BZ95: 0 | CA95: 0 | CB95: 0 | CC95: 0 | CD95: 0 | CE95: 0 | CF95: 0 | CG95: 0 | CH95: 0
B96: 87 | C96: Reactive Environmental Projects - ZN | D96: DOC_11.04.05-2 | F96: Replacement | K96: 90.17335845 | L96: 90.17335845 | M96: 90.17335845 | N96: 90.17335845 | O96: 90.17335845 | Y96: 0.3903430332 | Z96: 0 | AA96: 0.6096569668 | AC96: Yes | AD96: No | AF96: 0.0002460441947 | AG96: 0 | AI96: 1 | AJ96: 0 | AK96: 0 | AL96: 0 | AM96: 0 | AN96: 0 | AO96: 0 | AP96: 0 | AQ96: 0 | AS96: 0 | AT96: 0 | AU96: 0 | AV96: 0 | AW96: 0 | AX96: 0 | AY96: 0 | AZ96: 0 | BA96: 0.939 | BB96: 0 | BC96: 0 | BD96: 0 | BE96: 0 | BF96: 0 | BG96: 0 | BH96: 0 | BI96: 0 | BJ96: 0 | BK96: 0 | BL96: 0 | BM96: 0 | BN96: 0 | BO96: 0 | BP96: 0 | BQ96: 0 | BR96: 0 | BS96: 0 | BT96: 0 | BU96: 0 | BV96: 0 | BW96: 0 | BX96: 0 | BY96: 0.061 | BZ96: 0 | CA96: 0 | CB96: 0 | CC96: 0 | CD96: 0 | CE96: 0 | CF96: 0 | CG96: 0 | CH96: 0
B97: 88 | C97: Electronic Security - ZN | D97: DOC_11.05.01 | F97: Replacement | K97: 3682.700437 | L97: 3682.700437 | M97: 3682.700437 | N97: 3682.700437 | O97: 3682.700437 | Y97: 0.1073969248 | Z97: 0.6109647088 | AA97: 0.2816383664 | AC97: Yes | AD97: No | AF97: 0.002764691544 | AG97: 0 | AI97: 1 | AJ97: 0 | AK97: 0 | AL97: 0 | AM97: 0 | AN97: 0 | AO97: 0 | AP97: 0 | AQ97: 0 | AS97: 0 | AT97: 0 | AU97: 0.939 | AV97: 0 | AW97: 0 | AX97: 0 | AY97: 0 | AZ97: 0 | BA97: 0 | BB97: 0 | BC97: 0 | BD97: 0 | BE97: 0 | BF97: 0 | BG97: 0 | BH97: 0 | BI97: 0 | BJ97: 0 | BK97: 0 | BL97: 0 | BM97: 0 | BN97: 0 | BO97: 0 | BP97: 0 | BQ97: 0 | BR97: 0 | BS97: 0.061 | BT97: 0 | BU97: 0 | BV97: 0 | BW97: 0 | BX97: 0 | BY97: 0 | BZ97: 0 | CA97: 0 | CB97: 0 | CC97: 0 | CD97: 0 | CE97: 0 | CF97: 0 | CG97: 0 | CH97: 0
B98: 89 | C98: Reactive Infrastructure Risk Projects - ZN | D98: DOC_11.05.08 | F98: Replacement | K98: 99.73781359 | L98: 99.73781359 | M98: 99.73781359 | N98: 99.73781359 | O98: 99.73781359 | Y98: 0.3903430333 | Z98: 0 | AA98: 0.6096569667 | AC98: Yes | AD98: No | AF98: 0.0002721414667 | AG98: 0 | AI98: 1 | AJ98: 0 | AK98: 0 | AL98: 0 | AM98: 0 | AN98: 0 | AO98: 0 | AP98: 0 | AQ98: 0 | AS98: 0 | AT98: 0 | AU98: 0 | AV98: 0 | AW98: 0 | AX98: 0 | AY98: 0 | AZ98: 0 | BA98: 0.7 | BB98: 0 | BC98: 0 | BD98: 0 | BE98: 0 | BF98: 0 | BG98: 0 | BH98: 0 | BI98: 0 | BJ98: 0 | BK98: 0 | BL98: 0 | BM98: 0 | BN98: 0 | BO98: 0 | BP98: 0 | BQ98: 0 | BR98: 0 | BS98: 0 | BT98: 0 | BU98: 0 | BV98: 0 | BW98: 0 | BX98: 0 | BY98: 0.3 | BZ98: 0 | CA98: 0 | CB98: 0 | CC98: 0 | CD98: 0 | CE98: 0 | CF98: 0 | CG98: 0 | CH98: 0
B99: 90 | C99: Mandatory Protection Links | D99: DOC_11.05.09 | F99: Replacement | K99: 105.3640631 | L99: 0 | M99: 0 | N99: 0 | O99: 0 | Y99: 0.7627274493 | Z99: 0 | AA99: 0.2372725507 | AC99: Yes | AD99: No | AF99: 0.0001123518755 | AG99: 0 | AI99: 1 | AJ99: 0 | AK99: 0 | AL99: 0 | AM99: 0 | AN99: 0 | AO99: 0 | AP99: 0 | AQ99: 0 | AS99: 0.939 | AT99: 0 | AU99: 0 | AV99: 0 | AW99: 0 | AX99: 0 | AY99: 0 | AZ99: 0 | BA99: 0 | BB99: 0 | BC99: 0 | BD99: 0 | BE99: 0 | BF99: 0 | BG99: 0 | BH99: 0 | BI99: 0 | BJ99: 0 | BK99: 0 | BL99: 0 | BM99: 0 | BN99: 0 | BO99: 0 | BP99: 0 | BQ99: 0.061 | BR99: 0 | BS99: 0 | BT99: 0 | BU99: 0 | BV99: 0 | BW99: 0 | BX99: 0 | BY99: 0 | BZ99: 0 | CA99: 0 | CB99: 0 | CC99: 0 | CD99: 0 | CE99: 0 | CF99: 0 | CG99: 0 | CH99: 0
B100: 91 | C100: HV Network Reinforcement Program | D100: HV_102.08 | F100: Augmentation | K100: 8700.933723 | L100: 8576.862707 | M100: 8669.822414 | N100: 8669.822414 | O100: 8669.822414 | Y100: 0.3084927553 | Z100: 0.6221338263 | AA100: 0.0693734184 | AC100: Yes | AD100: No | AF100: 0.01866910694 | AG100: 0 | AI100: 0 | AJ100: 0 | AK100: 1 | AL100: 0 | AM100: 0 | AN100: 0 | AO100: 0 | AP100: 0 | AQ100: 0 | AS100: 0 | AT100: 0 | AU100: 0 | AV100: 0 | AW100: 1 | AX100: 0 | AY100: 0 | AZ100: 0 | BA100: 0 | BB100: 0 | BC100: 0 | BD100: 0 | BE100: 0 | BF100: 0 | BG100: 0 | BH100: 0 | BI100: 0 | BJ100: 0 | BK100: 0 | BL100: 0 | BM100: 0 | BN100: 0 | BO100: 0 | BP100: 0 | BQ100: 0 | BR100: 0 | BS100: 0 | BT100: 0 | BU100: 0 | BV100: 0 | BW100: 0 | BX100: 0 | BY100: 0 | BZ100: 0 | CA100: 0 | CB100: 0 | CC100: 0 | CD100: 0 | CE100: 0 | CF100: 0 | CG100: 0 | CH100: 0
B101: 92 | C101: LV Load Survey | D101: LV_22.01.12 | F101: Augmentation | K101: 537.4125288 | L101: 537.4125288 | M101: 537.4125288 | N101: 537.4125288 | O101: 537.4125288 | Y101: 0.9138335976 | Z101: 0.001120056314 | AA101: 0.08504634605 | AC101: Yes | AD101: No | AF101: 0.003432917392 | AG101: 0 | AI101: 0 | AJ101: 0 | AK101: 1 | AL101: 0 | AM101: 0 | AN101: 0 | AO101: 0 | AP101: 0 | AQ101: 0 | AS101: 0 | AT101: 0 | AU101: 0 | AV101: 0 | AW101: 0 | AX101: 0 | AY101: 0 | AZ101: 0 | BA101: 0 | BB101: 1 | BC101: 0 | BD101: 0 | BE101: 0 | BF101: 0 | BG101: 0 | BH101: 0 | BI101: 0 | BJ101: 0 | BK101: 0 | BL101: 0 | BM101: 0 | BN101: 0 | BO101: 0 | BP101: 0 | BQ101: 0 | BR101: 0 | BS101: 0 | BT101: 0 | BU101: 0 | BV101: 0 | BW101: 0 | BX101: 0 | BY101: 0 | BZ101: 0 | CA101: 0 | CB101: 0 | CC101: 0 | CD101: 0 | CE101: 0 | CF101: 0 | CG101: 0 | CH101: 0
B102: 93 | C102: LV Distributor Capacity Program | D102: LV_22.01.14 | F102: Augmentation | K102: 4019.859337 | L102: 4019.859337 | M102: 4019.859337 | N102: 4019.859337 | O102: 4019.859337 | Y102: 0.5748548761 | Z102: 0.2833086188 | AA102: 0.1418365051 | AC102: Yes | AD102: No | AF102: 0.01615316097 | AG102: 0 | AI102: 0 | AJ102: 0 | AK102: 1 | AL102: 0 | AM102: 0 | AN102: 0 | AO102: 0 | AP102: 0 | AQ102: 0 | AS102: 0 | AT102: 0 | AU102: 0 | AV102: 0 | AW102: 0 | AX102: 0 | AY102: 0 | AZ102: 0 | BA102: 0 | BB102: 0.8095527112 | BC102: 0 | BD102: 0 | BE102: 0.1904472888 | BF102: 0 | BG102: 0 | BH102: 0 | BI102: 0 | BJ102: 0 | BK102: 0 | BL102: 0 | BM102: 0 | BN102: 0 | BO102: 0 | BP102: 0 | BQ102: 0 | BR102: 0 | BS102: 0 | BT102: 0 | BU102: 0 | BV102: 0 | BW102: 0 | BX102: 0 | BY102: 0 | BZ102: 0 | CA102: 0 | CB102: 0 | CC102: 0 | CD102: 0 | CE102: 0 | CF102: 0 | CG102: 0 | CH102: 0
B103: 94 | C103: Distribution Centre Capacity Program | D103: LV_22.01.15 | F103: Augmentation | K103: 1364.470799 | L103: 1364.470799 | M103: 1364.470799 | N103: 1364.470799 | O103: 1364.470799 | Y103: 0.5997763826 | Z103: 0.147294528 | AA103: 0.2529290894 | AC103: Yes | AD103: No | AF103: 0.005720606183 | AG103: 0 | AI103: 0 | AJ103: 0 | AK103: 1 | AL103: 0 | AM103: 0 | AN103: 0 | AO103: 0 | AP103: 0 | AQ103: 0 | AS103: 0 | AT103: 0 | AU103: 0 | AV103: 0 | AW103: 0 | AX103: 0 | AY103: 0 | AZ103: 0 | BA103: 0 | BB103: 0.1825133194 | BC103: 0 | BD103: 0 | BE103: 0.8174866806 | BF103: 0 | BG103: 0 | BH103: 0 | BI103: 0 | BJ103: 0 | BK103: 0 | BL103: 0 | BM103: 0 | BN103: 0 | BO103: 0 | BP103: 0 | BQ103: 0 | BR103: 0 | BS103: 0 | BT103: 0 | BU103: 0 | BV103: 0 | BW103: 0 | BX103: 0 | BY103: 0 | BZ103: 0 | CA103: 0 | CB103: 0 | CC103: 0 | CD103: 0 | CE103: 0 | CF103: 0 | CG103: 0 | CH103: 0
B104: 95 | C104: Non-System: ICT | D104: NS_01.01.01 | F104: Other non-network capex | K104: 68923.4055 | L104: 82748.29139 | M104: 83955.3755 | N104: 63688.55112 | O104: 60235.72812 | Y104: 0.08926035415 | Z104: 0.6805957173 | AA104: 0.2301439286 | AC104: No | AD104: Yes | AF104: 0 | AG104: 0.9169453688 | AI104: 0 | AJ104: 0 | AK104: 0 | AL104: 0 | AM104: 1 | AN104: 0 | AO104: 0 | AP104: 0 | AQ104: 0 | AS104: 0 | AT104: 0 | AU104: 0 | AV104: 0 | AW104: 0 | AX104: 0 | AY104: 0.23114 | AZ104: 0.3953383 | BA104: 0 | BB104: 0 | BC104: 0 | BD104: 0 | BE104: 0 | BF104: 0 | BG104: 0 | BH104: 0 | BI104: 0.2625217 | BJ104: 0 | BK104: 0 | BL104: 0 | BM104: 0 | BN104: 0 | BO104: 0 | BP104: 0 | BQ104: 0 | BR104: 0 | BS104: 0 | BT104: 0 | BU104: 0.02886 | BV104: 0.0493617 | BW104: 0 | BX104: 0 | BY104: 0 | BZ104: 0 | CA104: 0 | CB104: 0 | CC104: 0 | CD104: 0 | CE104: 0.0327783 | CF104: 0 | CG104: 0 | CH104: 0
B105: 96 | C105: Non-System: Building | D105: NS_01.02 | F105: Other non-network capex | K105: 60629.13053 | L105: 13150.56391 | M105: 26272.02544 | N105: 21870.79859 | O105: 7075.80246 | Y105: 0 | Z105: 0.2 | AA105: 0.8 | AC105: No | AD105: Yes | AF105: 0 | AG105: 0 | AI105: 0 | AJ105: 0 | AK105: 0 | AL105: 0 | AM105: 0 | AN105: 1 | AO105: 0 | AP105: 0 | AQ105: 0 | AS105: 0 | AT105: 0.8573074328 | AU105: 0 | AV105: 0 | AW105: 0 | AX105: 0 | AY105: 0 | AZ105: 0 | BA105: 0 | BB105: 0 | BC105: 0 | BD105: 0 | BE105: 0 | BF105: 0 | BG105: 0 | BH105: 0 | BI105: 0 | BJ105: 0 | BK105: 0.03173895608 | BL105: 0 | BM105: 0 | BN105: 0 | BO105: 0 | BP105: 0 | BQ105: 0 | BR105: 0.1069925672 | BS105: 0 | BT105: 0 | BU105: 0 | BV105: 0 | BW105: 0 | BX105: 0 | BY105: 0 | BZ105: 0 | CA105: 0 | CB105: 0 | CC105: 0 | CD105: 0 | CE105: 0 | CF105: 0 | CG105: 0.003961043916 | CH105: 0
B106: 97 | C106: Non-System: Fleet | D106: NS_01.03.01 | F106: Other non-network capex | K106: 31380.65832 | L106: 30694.42197 | M106: 25001.85062 | N106: 18497.42686 | O106: 17987.04995 | Y106: 0 | Z106: 0.2 | AA106: 0.8 | AC106: No | AD106: Yes | AF106: 0 | AG106: 0 | AI106: 0 | AJ106: 0 | AK106: 0 | AL106: 0 | AM106: 0 | AN106: 0 | AO106: 1 | AP106: 0 | AQ106: 0 | AS106: 0 | AT106: 0 | AU106: 0 | AV106: 0 | AW106: 0 | AX106: 0 | AY106: 0 | AZ106: 0 | BA106: 0 | BB106: 0 | BC106: 0.8890463889 | BD106: 0 | BE106: 0 | BF106: 0 | BG106: 0 | BH106: 0 | BI106: 0 | BJ106: 0 | BK106: 0 | BL106: 0 | BM106: 0 | BN106: 0 | BO106: 0 | BP106: 0 | BQ106: 0 | BR106: 0 | BS106: 0 | BT106: 0 | BU106: 0 | BV106: 0 | BW106: 0.1109536111 | BX106: 0 | BY106: 0 | BZ106: 0 | CA106: 0 | CB106: 0 | CC106: 0 | CD106: 0 | CE106: 0 | CF106: 0 | CG106: 0 | CH106: 0
B107: 98 | C107: Non-System: Plant | D107: NS_01.03.02 | F107: Other non-network capex | K107: 1598.921778 | L107: 1554.287472 | M107: 1510.831516 | N107: 1468.57991 | O107: 1427.51594 | Y107: 0 | Z107: 0 | AA107: 1 | AC107: No | AD107: Yes | AF107: 0 | AG107: 0 | AI107: 0 | AJ107: 0 | AK107: 0 | AL107: 0 | AM107: 0 | AN107: 0 | AO107: 1 | AP107: 0 | AQ107: 0 | AS107: 0 | AT107: 0 | AU107: 0 | AV107: 0 | AW107: 0 | AX107: 0.8890463889 | AY107: 0 | AZ107: 0 | BA107: 0 | BB107: 0 | BC107: 0 | BD107: 0 | BE107: 0 | BF107: 0 | BG107: 0 | BH107: 0 | BI107: 0 | BJ107: 0 | BK107: 0 | BL107: 0 | BM107: 0 | BN107: 0 | BO107: 0 | BP107: 0 | BQ107: 0 | BR107: 0 | BS107: 0 | BT107: 0.1109536111 | BU107: 0 | BV107: 0 | BW107: 0 | BX107: 0 | BY107: 0 | BZ107: 0 | CA107: 0 | CB107: 0 | CC107: 0 | CD107: 0 | CE107: 0 | CF107: 0 | CG107: 0 | CH107: 0
B108: 99 | C108: Network Digitisation - Network Data Capture | D108: OTI_03.12-1 | F108: Replacement | K108: 1141.131582 | L108: 1605.703598 | M108: 1101.012276 | N108: 1101.012276 | O108: 1141.131582 | Y108: 0.6788555712 | Z108: 0.2400359287 | AA108: 0.0811085001 | AC108: Yes | AD108: No | AF108: 0.005779795869 | AG108: 0 | AI108: 1 | AJ108: 0 | AK108: 0 | AL108: 0 | AM108: 0 | AN108: 0 | AO108: 0 | AP108: 0 | AQ108: 0 | AS108: 0 | AT108: 0 | AU108: 0 | AV108: 0 | AW108: 0.19 | AX108: 0 | AY108: 0 | AZ108: 0 | BA108: 0 | BB108: 0.7 | BC108: 0 | BD108: 0.09499999999 | BE108: 0 | BF108: 0 | BG108: 0 | BH108: 0 | BI108: 0 | BJ108: 0 | BK108: 0 | BL108: 0 | BM108: 0 | BN108: 0 | BO108: 0.000499999999 | BP108: 0.004499999997 | BQ108: 0 | BR108: 0 | BS108: 0 | BT108: 0 | BU108: 0 | BV108: 0 | BW108: 0 | BX108: 0 | BY108: 0 | BZ108: 0.009999999999 | CA108: 0 | CB108: 0 | CC108: 0 | CD108: 0 | CE108: 0 | CF108: 0 | CG108: 0 | CH108: 0
B109: 100 | C109: Network Digitisation - Drones for BF Surveillance | D109: OTI_03.12-2 | F109: Replacement | K109: 138.1123985 | L109: 138.1123985 | M109: 629.0920548 | N109: 138.1123985 | O109: 629.0920548 | Y109: 0 | Z109: 0 | AA109: 1 | AC109: Yes | AD109: No | AF109: 0 | AG109: 0 | AI109: 1 | AJ109: 0 | AK109: 0 | AL109: 0 | AM109: 0 | AN109: 0 | AO109: 0 | AP109: 0 | AQ109: 0 | AS109: 0 | AT109: 0 | AU109: 0 | AV109: 0 | AW109: 0 | AX109: 0 | AY109: 0 | AZ109: 0 | BA109: 0 | BB109: 0 | BC109: 0 | BD109: 0 | BE109: 0 | BF109: 0.95 | BG109: 0 | BH109: 0 | BI109: 0 | BJ109: 0 | BK109: 0 | BL109: 0 | BM109: 0 | BN109: 0 | BO109: 0 | BP109: 0 | BQ109: 0 | BR109: 0 | BS109: 0 | BT109: 0 | BU109: 0 | BV109: 0 | BW109: 0 | BX109: 0.05 | BY109: 0 | BZ109: 0 | CA109: 0 | CB109: 0 | CC109: 0 | CD109: 0 | CE109: 0 | CF109: 0 | CG109: 0 | CH109: 0
B110: 101 | C110: Network Digitisation - Digital Twin | D110: OTI_03.12-3 | F110: Other non-network capex | K110: 1195.293667 | L110: 1195.293667 | M110: 1195.293667 | N110: 1195.293667 | O110: 1195.293667 | Y110: 0.4864019432 | Z110: 0.5135980568 | AA110: 0 | AC110: No | AD110: Yes | AF110: 0 | AG110: 0.08305463121 | AI110: 0 | AJ110: 0 | AK110: 0 | AL110: 0 | AM110: 0 | AN110: 0 | AO110: 0 | AP110: 1 | AQ110: 0 | AS110: 0 | AT110: 0 | AU110: 0 | AV110: 0 | AW110: 0 | AX110: 0 | AY110: 0 | AZ110: 0 | BA110: 0 | BB110: 0 | BC110: 0 | BD110: 0 | BE110: 0 | BF110: 0.95 | BG110: 0 | BH110: 0 | BI110: 0 | BJ110: 0 | BK110: 0 | BL110: 0 | BM110: 0 | BN110: 0 | BO110: 0 | BP110: 0 | BQ110: 0 | BR110: 0 | BS110: 0 | BT110: 0 | BU110: 0 | BV110: 0 | BW110: 0 | BX110: 0.05 | BY110: 0 | BZ110: 0 | CA110: 0 | CB110: 0 | CC110: 0 | CD110: 0 | CE110: 0 | CF110: 0 | CG110: 0 | CH110: 0
B111: 102 | C111: Advanced Distribution Management System (ADMS) | D111: OTI_03.15 | F111: Replacement | K111: 7680.336073 | L111: 3958.804958 | M111: 0 | N111: 0 | O111: 0 | Y111: 0.2915840181 | Z111: 0.5566125572 | AA111: 0.1518034247 | AC111: Yes | AD111: No | AF111: 0.004744638051 | AG111: 0 | AI111: 1 | AJ111: 0 | AK111: 0 | AL111: 0 | AM111: 0 | AN111: 0 | AO111: 0 | AP111: 0 | AQ111: 0 | AS111: 0 | AT111: 0 | AU111: 0 | AV111: 0 | AW111: 0 | AX111: 0 | AY111: 0 | AZ111: 0 | BA111: 0 | BB111: 0 | BC111: 0 | BD111: 0 | BE111: 0 | BF111: 1 | BG111: 0 | BH111: 0 | BI111: 0 | BJ111: 0 | BK111: 0 | BL111: 0 | BM111: 0 | BN111: 0 | BO111: 0 | BP111: 0 | BQ111: 0 | BR111: 0 | BS111: 0 | BT111: 0 | BU111: 0 | BV111: 0 | BW111: 0 | BX111: 0 | BY111: 0 | BZ111: 0 | CA111: 0 | CB111: 0 | CC111: 0 | CD111: 0 | CE111: 0 | CF111: 0 | CG111: 0 | CH111: 0
B112: 103 | C112: OT Security - Central Control System | D112: OTI_03.16-1 | F112: Replacement | K112: 3701.089496 | L112: 1947.94184 | M112: 2045.338932 | N112: 827.875282 | O112: 438.286914 | Y112: 0.6481414455 | Z112: 0.1788554426 | AA112: 0.1730031118 | AC112: Yes | AD112: No | AF112: 0.008119364744 | AG112: 0 | AI112: 1 | AJ112: 0 | AK112: 0 | AL112: 0 | AM112: 0 | AN112: 0 | AO112: 0 | AP112: 0 | AQ112: 0 | AS112: 0 | AT112: 0 | AU112: 0 | AV112: 0 | AW112: 0 | AX112: 0 | AY112: 0 | AZ112: 0 | BA112: 0 | BB112: 0 | BC112: 0 | BD112: 0 | BE112: 0 | BF112: 0.85 | BG112: 0 | BH112: 0 | BI112: 0 | BJ112: 0 | BK112: 0 | BL112: 0 | BM112: 0 | BN112: 0 | BO112: 0 | BP112: 0 | BQ112: 0 | BR112: 0 | BS112: 0 | BT112: 0 | BU112: 0 | BV112: 0 | BW112: 0 | BX112: 0.15 | BY112: 0 | BZ112: 0 | CA112: 0 | CB112: 0 | CC112: 0 | CD112: 0 | CE112: 0 | CF112: 0 | CG112: 0 | CH112: 0
B113: 104 | C113: OT Security - Field Communications | D113: OTI_03.16-2 | F113: Replacement | K113: 782.895968 | L113: 293.585988 | M113: 0 | N113: 97.861996 | O113: 293.585988 | Y113: 0.5298481343 | Z113: 0.2286893883 | AA113: 0.2414624774 | AC113: Yes | AD113: No | AF113: 0.001087364571 | AG113: 0 | AI113: 1 | AJ113: 0 | AK113: 0 | AL113: 0 | AM113: 0 | AN113: 0 | AO113: 0 | AP113: 0 | AQ113: 0 | AS113: 0 | AT113: 0 | AU113: 0 | AV113: 0 | AW113: 0 | AX113: 0 | AY113: 0 | AZ113: 0 | BA113: 0 | BB113: 0 | BC113: 0 | BD113: 0 | BE113: 0.0925 | BF113: 0.765 | BG113: 0 | BH113: 0 | BI113: 0 | BJ113: 0 | BK113: 0 | BL113: 0 | BM113: 0 | BN113: 0 | BO113: 0 | BP113: 0 | BQ113: 0 | BR113: 0 | BS113: 0 | BT113: 0 | BU113: 0 | BV113: 0 | BW113: 0 | BX113: 0.135 | BY113: 0 | BZ113: 0.0075 | CA113: 0 | CB113: 0 | CC113: 0 | CD113: 0 | CE113: 0 | CF113: 0 | CG113: 0 | CH113: 0
B114: 105 | C114: OT Security - Field Devices / End Points | D114: OTI_03.16-3 | F114: Replacement | K114: 486.1895 | L114: 729.28425 | M114: 486.1895 | N114: 1458.5685 | O114: 2674.04225 | Y114: 0.6889073088 | Z114: 0.171435212 | AA114: 0.1396574792 | AC114: Yes | AD114: No | AF114: 0.005619090855 | AG114: 0 | AI114: 1 | AJ114: 0 | AK114: 0 | AL114: 0 | AM114: 0 | AN114: 0 | AO114: 0 | AP114: 0 | AQ114: 0 | AS114: 0 | AT114: 0 | AU114: 0 | AV114: 0 | AW114: 0 | AX114: 0 | AY114: 0 | AZ114: 0 | BA114: 0 | BB114: 0 | BC114: 0 | BD114: 0 | BE114: 0.37 | BF114: 0.51 | BG114: 0 | BH114: 0 | BI114: 0 | BJ114: 0 | BK114: 0 | BL114: 0 | BM114: 0 | BN114: 0 | BO114: 0 | BP114: 0 | BQ114: 0 | BR114: 0 | BS114: 0 | BT114: 0 | BU114: 0 | BV114: 0 | BW114: 0 | BX114: 0.09 | BY114: 0 | BZ114: 0.03 | CA114: 0 | CB114: 0 | CC114: 0 | CD114: 0 | CE114: 0 | CF114: 0 | CG114: 0 | CH114: 0
B115: 106 | C115: Control System Core Refresh | D115: OTI_03.18 | F115: Replacement | K115: 1554.8313 | L115: 1194.61814 | M115: 2627.977639 | N115: 4437.766554 | O115: 2094.605785 | Y115: 0.3375070457 | Z115: 0.2208309848 | AA115: 0.4416619695 | AC115: Yes | AD115: No | AF115: 0.005619604237 | AG115: 0 | AI115: 1 | AJ115: 0 | AK115: 0 | AL115: 0 | AM115: 0 | AN115: 0 | AO115: 0 | AP115: 0 | AQ115: 0 | AS115: 0 | AT115: 0 | AU115: 0 | AV115: 0 | AW115: 0 | AX115: 0 | AY115: 0 | AZ115: 0 | BA115: 0 | BB115: 0 | BC115: 0 | BD115: 0 | BE115: 0 | BF115: 0.85 | BG115: 0 | BH115: 0 | BI115: 0 | BJ115: 0 | BK115: 0 | BL115: 0 | BM115: 0 | BN115: 0 | BO115: 0 | BP115: 0 | BQ115: 0 | BR115: 0 | BS115: 0 | BT115: 0 | BU115: 0 | BV115: 0 | BW115: 0 | BX115: 0.15 | BY115: 0 | BZ115: 0 | CA115: 0 | CB115: 0 | CC115: 0 | CD115: 0 | CE115: 0 | CF115: 0 | CG115: 0 | CH115: 0
B116: 107 | C116: Network Innovation Program | D116: OTI_03.19 | F116: Augmentation | K116: -489.1884189 | L116: -422.0295797 | M116: -389.267903 | N116: -456.4267422 | O116: -453.046903 | Y116: 0.2523016983 | Z116: 0.2728088398 | AA116: 0.4748894619 | AC116: Yes | AD116: No | AF116: -0.000779512239 | AG116: 0 | AI116: 0 | AJ116: 0 | AK116: 1 | AL116: 0 | AM116: 0 | AN116: 0 | AO116: 0 | AP116: 0 | AQ116: 0 | AS116: 0 | AT116: 0 | AU116: 0 | AV116: 0 | AW116: 0.1105 | AX116: 0 | AY116: 0 | AZ116: 0 | BA116: 0 | BB116: 0 | BC116: 0 | BD116: 0 | BE116: 0.5805 | BF116: 0.204 | BG116: 0 | BH116: 0 | BI116: 0 | BJ116: 0 | BK116: 0 | BL116: 0 | BM116: 0 | BN116: 0 | BO116: 0 | BP116: 0 | BQ116: 0 | BR116: 0 | BS116: 0 | BT116: 0 | BU116: 0 | BV116: 0 | BW116: 0 | BX116: 0.036 | BY116: 0 | BZ116: 0.069 | CA116: 0 | CB116: 0 | CC116: 0 | CD116: 0 | CE116: 0 | CF116: 0 | CG116: 0 | CH116: 0
B117: 108 | C117: Network Innovation Program | D117: OTI_03.19 | F117: Replacement | K117: -489.1884189 | L117: -422.0295797 | M117: -389.267903 | N117: -456.4267422 | O117: -453.046903 | Y117: 0.2523016983 | Z117: 0.2728088398 | AA117: 0.4748894619 | AC117: Yes | AD117: No | AF117: -0.000779512239 | AG117: 0 | AI117: 1 | AJ117: 0 | AK117: 0 | AL117: 0 | AM117: 0 | AN117: 0 | AO117: 0 | AP117: 0 | AQ117: 0 | AS117: 0 | AT117: 0 | AU117: 0 | AV117: 0 | AW117: 0.1105 | AX117: 0 | AY117: 0 | AZ117: 0 | BA117: 0 | BB117: 0 | BC117: 0 | BD117: 0 | BE117: 0.5805 | BF117: 0.204 | BG117: 0 | BH117: 0 | BI117: 0 | BJ117: 0 | BK117: 0 | BL117: 0 | BM117: 0 | BN117: 0 | BO117: 0 | BP117: 0 | BQ117: 0 | BR117: 0 | BS117: 0 | BT117: 0 | BU117: 0 | BV117: 0 | BW117: 0 | BX117: 0.036 | BY117: 0 | BZ117: 0.069 | CA117: 0 | CB117: 0 | CC117: 0 | CD117: 0 | CE117: 0 | CF117: 0 | CG117: 0 | CH117: 0
B118: 109 | C118: Network Innovation - DER & Net Zero | D118: OTI_03.19-1 | F118: Augmentation | K118: 3391.531288 | L118: 2713.22503 | M118: 2034.918773 | N118: 2713.22503 | O118: 2713.22503 | Y118: 0.2840199146 | Z118: 0.1794527701 | AA118: 0.5365273154 | AC118: Yes | AD118: No | AF118: 0.005386703262 | AG118: 0 | AI118: 0 | AJ118: 0 | AK118: 1 | AL118: 0 | AM118: 0 | AN118: 0 | AO118: 0 | AP118: 0 | AQ118: 0 | AS118: 0 | AT118: 0 | AU118: 0 | AV118: 0 | AW118: 0.17 | AX118: 0 | AY118: 0 | AZ118: 0 | BA118: 0 | BB118: 0 | BC118: 0 | BD118: 0 | BE118: 0.71 | BF118: 0 | BG118: 0 | BH118: 0 | BI118: 0 | BJ118: 0 | BK118: 0 | BL118: 0 | BM118: 0 | BN118: 0 | BO118: 0 | BP118: 0 | BQ118: 0 | BR118: 0 | BS118: 0 | BT118: 0 | BU118: 0 | BV118: 0 | BW118: 0 | BX118: 0 | BY118: 0 | BZ118: 0.12 | CA118: 0 | CB118: 0 | CC118: 0 | CD118: 0 | CE118: 0 | CF118: 0 | CG118: 0 | CH118: 0
B119: 110 | C119: Network Innovation - Intelligent Devices | D119: OTI_03.19-2 | F119: Augmentation | K119: 964.2429437 | L119: 482.1214718 | M119: 723.1822078 | N119: 1205.30368 | O119: 1446.364416 | Y119: 0.2892707623 | Z119: 0.1923053962 | AA119: 0.5184238415 | AC119: Yes | AD119: No | AF119: 0.001949752359 | AG119: 0 | AI119: 0 | AJ119: 0 | AK119: 1 | AL119: 0 | AM119: 0 | AN119: 0 | AO119: 0 | AP119: 0 | AQ119: 0 | AS119: 0 | AT119: 0 | AU119: 0 | AV119: 0 | AW119: 0.085 | AX119: 0 | AY119: 0 | AZ119: 0 | BA119: 0 | BB119: 0 | BC119: 0 | BD119: 0 | BE119: 0.795 | BF119: 0 | BG119: 0 | BH119: 0 | BI119: 0 | BJ119: 0 | BK119: 0 | BL119: 0 | BM119: 0 | BN119: 0 | BO119: 0 | BP119: 0 | BQ119: 0 | BR119: 0 | BS119: 0 | BT119: 0 | BU119: 0 | BV119: 0 | BW119: 0 | BX119: 0 | BY119: 0 | BZ119: 0.12 | CA119: 0 | CB119: 0 | CC119: 0 | CD119: 0 | CE119: 0 | CF119: 0 | CG119: 0 | CH119: 0
B120: 111 | C120: Network Innovation - Intelligent Devices | D120: OTI_03.19-2 | F120: Replacement | K120: 1957.705371 | L120: 978.8526853 | M120: 1468.279028 | N120: 2447.131713 | O120: 2936.558056 | Y120: 0.2892707623 | Z120: 0.1923053962 | AA120: 0.5184238415 | AC120: Yes | AD120: No | AF120: 0.003958588122 | AG120: 0 | AI120: 1 | AJ120: 0 | AK120: 0 | AL120: 0 | AM120: 0 | AN120: 0 | AO120: 0 | AP120: 0 | AQ120: 0 | AS120: 0 | AT120: 0 | AU120: 0 | AV120: 0 | AW120: 0.085 | AX120: 0 | AY120: 0 | AZ120: 0 | BA120: 0 | BB120: 0 | BC120: 0 | BD120: 0 | BE120: 0.795 | BF120: 0 | BG120: 0 | BH120: 0 | BI120: 0 | BJ120: 0 | BK120: 0 | BL120: 0 | BM120: 0 | BN120: 0 | BO120: 0 | BP120: 0 | BQ120: 0 | BR120: 0 | BS120: 0 | BT120: 0 | BU120: 0 | BV120: 0 | BW120: 0 | BX120: 0 | BY120: 0 | BZ120: 0.12 | CA120: 0 | CB120: 0 | CC120: 0 | CD120: 0 | CE120: 0 | CF120: 0 | CG120: 0 | CH120: 0
B121: 112 | C121: Network Innovation - Intelligent Systems | D121: OTI_03.19-3 | F121: Augmentation | K121: 1027.17483 | L121: 1232.609796 | M121: 821.739864 | N121: 616.304898 | O121: 410.869932 | Y121: 0.1936134183 | Z121: 0.6350294331 | AA121: 0.1713571486 | AC121: Yes | AD121: No | AF121: 0.001112136907 | AG121: 0 | AI121: 0 | AJ121: 0 | AK121: 1 | AL121: 0 | AM121: 0 | AN121: 0 | AO121: 0 | AP121: 0 | AQ121: 0 | AS121: 0 | AT121: 0 | AU121: 0 | AV121: 0 | AW121: 0 | AX121: 0 | AY121: 0 | AZ121: 0 | BA121: 0 | BB121: 0 | BC121: 0 | BD121: 0 | BE121: 0 | BF121: 0.85 | BG121: 0 | BH121: 0 | BI121: 0 | BJ121: 0 | BK121: 0 | BL121: 0 | BM121: 0 | BN121: 0 | BO121: 0 | BP121: 0 | BQ121: 0 | BR121: 0 | BS121: 0 | BT121: 0 | BU121: 0 | BV121: 0 | BW121: 0 | BX121: 0.15 | BY121: 0 | BZ121: 0 | CA121: 0 | CB121: 0 | CC121: 0 | CD121: 0 | CE121: 0 | CF121: 0 | CG121: 0 | CH121: 0
B122: 113 | C122: Network Innovation - Intelligent Systems | D122: OTI_03.19-3 | F122: Replacement | K122: 2085.47617 | L122: 2502.571404 | M122: 1668.380936 | N122: 1251.285702 | O122: 834.190468 | Y122: 0.1936134183 | Z122: 0.6350294331 | AA122: 0.1713571486 | AC122: Yes | AD122: No | AF122: 0.002257974932 | AG122: 0 | AI122: 1 | AJ122: 0 | AK122: 0 | AL122: 0 | AM122: 0 | AN122: 0 | AO122: 0 | AP122: 0 | AQ122: 0 | AS122: 0 | AT122: 0 | AU122: 0 | AV122: 0 | AW122: 0 | AX122: 0 | AY122: 0 | AZ122: 0 | BA122: 0 | BB122: 0 | BC122: 0 | BD122: 0 | BE122: 0 | BF122: 0.85 | BG122: 0 | BH122: 0 | BI122: 0 | BJ122: 0 | BK122: 0 | BL122: 0 | BM122: 0 | BN122: 0 | BO122: 0 | BP122: 0 | BQ122: 0 | BR122: 0 | BS122: 0 | BT122: 0 | BU122: 0 | BV122: 0 | BW122: 0 | BX122: 0.15 | BY122: 0 | BZ122: 0 | CA122: 0 | CB122: 0 | CC122: 0 | CD122: 0 | CE122: 0 | CF122: 0 | CG122: 0 | CH122: 0
B123: 114 | C123: Network Innovation - Network Resilience | D123: OTI_03.19-4 | F123: Replacement | K123: 356.5758806 | L123: 534.8638209 | M123: 1069.727642 | N123: 891.4397014 | O123: 713.1517612 | Y123: 0.2328867461 | Z123: 0.08113763599 | AA123: 0.6859756179 | AC123: Yes | AD123: No | AF123: 0.00116095444 | AG123: 0 | AI123: 1 | AJ123: 0 | AK123: 0 | AL123: 0 | AM123: 0 | AN123: 0 | AO123: 0 | AP123: 0 | AQ123: 0 | AS123: 0 | AT123: 0 | AU123: 0 | AV123: 0 | AW123: 0.17 | AX123: 0 | AY123: 0 | AZ123: 0 | BA123: 0 | BB123: 0 | BC123: 0 | BD123: 0 | BE123: 0.8 | BF123: 0 | BG123: 0 | BH123: 0 | BI123: 0 | BJ123: 0 | BK123: 0 | BL123: 0 | BM123: 0 | BN123: 0 | BO123: 0 | BP123: 0 | BQ123: 0 | BR123: 0 | BS123: 0 | BT123: 0 | BU123: 0 | BV123: 0 | BW123: 0 | BX123: 0 | BY123: 0 | BZ123: 0.03 | CA123: 0 | CB123: 0 | CC123: 0 | CD123: 0 | CE123: 0 | CF123: 0 | CG123: 0 | CH123: 0
B124: 115 | C124: DER | D124: OTI_03.20 | F124: Connections | K124: 917.878885 | L124: 1835.75777 | M124: 1835.75777 | N124: 1835.75777 | O124: 1835.75777 | Y124: 0.2768383982 | Z124: 0.3327554783 | AA124: 0.3904061235 | AC124: Yes | AD124: No | AF124: 0.003197221001 | AG124: 0 | AI124: 0 | AJ124: 1 | AK124: 0 | AL124: 0 | AM124: 0 | AN124: 0 | AO124: 0 | AP124: 0 | AQ124: 0 | AS124: 0 | AT124: 0 | AU124: 0 | AV124: 0 | AW124: 0 | AX124: 0 | AY124: 0 | AZ124: 0 | BA124: 0 | BB124: 0.4483870897 | BC124: 0 | BD124: 0 | BE124: 0 | BF124: 0 | BG124: 0.5516129103 | BH124: 0 | BI124: 0 | BJ124: 0 | BK124: 0 | BL124: 0 | BM124: 0 | BN124: 0 | BO124: 0 | BP124: 0 | BQ124: 0 | BR124: 0 | BS124: 0 | BT124: 0 | BU124: 0 | BV124: 0 | BW124: 0 | BX124: 0 | BY124: 0 | BZ124: 0 | CA124: 0 | CB124: 0 | CC124: 0 | CD124: 0 | CE124: 0 | CF124: 0 | CG124: 0 | CH124: 0
B125: 116 | C125: DER | D125: OTI_03.20 | F125: Augmentation | K125: 2753.636655 | L125: 5507.27331 | M125: 5507.27331 | N125: 5507.27331 | O125: 5507.27331 | Y125: 0.2768383982 | Z125: 0.3327554783 | AA125: 0.3904061235 | AC125: Yes | AD125: No | AF125: 0.009591663004 | AG125: 0 | AI125: 0 | AJ125: 1 | AK125: 0 | AL125: 0 | AM125: 0 | AN125: 0 | AO125: 0 | AP125: 0 | AQ125: 0 | AS125: 0 | AT125: 0 | AU125: 0 | AV125: 0 | AW125: 0 | AX125: 0 | AY125: 0 | AZ125: 0 | BA125: 0 | BB125: 0.4483870897 | BC125: 0 | BD125: 0 | BE125: 0 | BF125: 0 | BG125: 0.5516129103 | BH125: 0 | BI125: 0 | BJ125: 0 | BK125: 0 | BL125: 0 | BM125: 0 | BN125: 0 | BO125: 0 | BP125: 0 | BQ125: 0 | BR125: 0 | BS125: 0 | BT125: 0 | BU125: 0 | BV125: 0 | BW125: 0 | BX125: 0 | BY125: 0 | BZ125: 0 | CA125: 0 | CB125: 0 | CC125: 0 | CD125: 0 | CE125: 0 | CF125: 0 | CG125: 0 | CH125: 0
B126: 117 | C126: Climate Resilience | D126: OTI_03.21 | F126: Augmentation | K126: 1301.771569 | L126: 1952.657402 | M126: 2603.543138 | N126: 2278.100319 | O126: 1952.657402 | Y126: 0.5236321951 | Z126: 0.1532386248 | AA126: 0.3231291801 | AC126: Yes | AD126: No | AF126: 0.007385523316 | AG126: 0 | AI126: 0 | AJ126: 0 | AK126: 1 | AL126: 0 | AM126: 0 | AN126: 0 | AO126: 0 | AP126: 0 | AQ126: 0 | AS126: 0 | AT126: 0 | AU126: 0 | AV126: 0 | AW126: 0.74905 | AX126: 0 | AY126: 0 | AZ126: 0 | BA126: 0 | BB126: 0.1083 | BC126: 0 | BD126: 0 | BE126: 0.001709999999 | BF126: 0.0279 | BG126: 0 | BH126: 0 | BI126: 0 | BJ126: 0 | BK126: 0 | BL126: 0.05256 | BM126: 0 | BN126: 0 | BO126: 0 | BP126: 0 | BQ126: 0 | BR126: 0 | BS126: 0 | BT126: 0 | BU126: 0 | BV126: 0 | BW126: 0 | BX126: 0.003099999999 | BY126: 0 | BZ126: 0.05154 | CA126: 0 | CB126: 0 | CC126: 0 | CD126: 0 | CE126: 0 | CF126: 0 | CG126: 0 | CH126: 0.005839999999
B127: 118 | C127: Climate Resilience | D127: OTI_03.21 | F127: Replacement | K127: 11715.94412 | L127: 17573.91662 | M127: 23431.88824 | N127: 20502.90287 | O127: 17573.91662 | Y127: 0.5236321951 | Z127: 0.1532386248 | AA127: 0.3231291801 | AC127: Yes | AD127: No | AF127: 0.06646970985 | AG127: 0 | AI127: 1 | AJ127: 0 | AK127: 0 | AL127: 0 | AM127: 0 | AN127: 0 | AO127: 0 | AP127: 0 | AQ127: 0 | AS127: 0 | AT127: 0 | AU127: 0 | AV127: 0 | AW127: 0.74905 | AX127: 0 | AY127: 0 | AZ127: 0 | BA127: 0 | BB127: 0.1083 | BC127: 0 | BD127: 0 | BE127: 0.00171 | BF127: 0.0279 | BG127: 0 | BH127: 0 | BI127: 0 | BJ127: 0 | BK127: 0 | BL127: 0.05256 | BM127: 0 | BN127: 0 | BO127: 0 | BP127: 0 | BQ127: 0 | BR127: 0 | BS127: 0 | BT127: 0 | BU127: 0 | BV127: 0 | BW127: 0 | BX127: 0.0031 | BY127: 0 | BZ127: 0.05154 | CA127: 0 | CB127: 0 | CC127: 0 | CD127: 0 | CE127: 0 | CF127: 0 | CG127: 0 | CH127: 0.00584
B128: 119 | C128: Power Quality Management | D128: OTI_03.22 | F128: Replacement | K128: 2208.076041 | L128: 1980.929592 | M128: 2136.876698 | N128: 2068.823471 | O128: 1925.369447 | Y128: 0.153629563 | Z128: 0.3377786508 | AA128: 0.5085917862 | AC128: Yes | AD128: No | AF128: 0.002216542688 | AG128: 0 | AI128: 1 | AJ128: 0 | AK128: 0 | AL128: 0 | AM128: 0 | AN128: 0 | AO128: 0 | AP128: 0 | AQ128: 0 | AS128: 0 | AT128: 0 | AU128: 0 | AV128: 0 | AW128: 0 | AX128: 0 | AY128: 0 | AZ128: 0 | BA128: 0 | BB128: 0 | BC128: 0 | BD128: 0 | BE128: 0.692 | BF128: 0.108 | BG128: 0 | BH128: 0 | BI128: 0 | BJ128: 0 | BK128: 0 | BL128: 0 | BM128: 0 | BN128: 0 | BO128: 0 | BP128: 0 | BQ128: 0 | BR128: 0 | BS128: 0 | BT128: 0 | BU128: 0 | BV128: 0 | BW128: 0 | BX128: 0.027 | BY128: 0 | BZ128: 0 | CA128: 0 | CB128: 0.173 | CC128: 0 | CD128: 0 | CE128: 0 | CF128: 0 | CG128: 0 | CH128: 0
B129: 120 | C129: Individual Feeder Reliability | D129: REL_33.01.01 | F129: Augmentation | K129: 639.0149211 | L129: 639.0149211 | M129: 639.0149211 | N129: 639.0149211 | O129: 639.0149211 | Y129: 0.390343034 | Z129: 0.203218988 | AA129: 0.4064379779 | AC129: Yes | AD129: No | AF129: 0.001743596054 | AG129: 0 | AI129: 0 | AJ129: 0 | AK129: 1 | AL129: 0 | AM129: 0 | AN129: 0 | AO129: 0 | AP129: 0 | AQ129: 0 | AS129: 0 | AT129: 0 | AU129: 0 | AV129: 0 | AW129: 1 | AX129: 0 | AY129: 0 | AZ129: 0 | BA129: 0 | BB129: 0 | BC129: 0 | BD129: 0 | BE129: 0 | BF129: 0 | BG129: 0 | BH129: 0 | BI129: 0 | BJ129: 0 | BK129: 0 | BL129: 0 | BM129: 0 | BN129: 0 | BO129: 0 | BP129: 0 | BQ129: 0 | BR129: 0 | BS129: 0 | BT129: 0 | BU129: 0 | BV129: 0 | BW129: 0 | BX129: 0 | BY129: 0 | BZ129: 0 | CA129: 0 | CB129: 0 | CC129: 0 | CD129: 0 | CE129: 0 | CF129: 0 | CG129: 0 | CH129: 0
B130: 121 | C130: Individual Feeder Segment Reliability Program | D130: REL_33.01.05 | F130: Augmentation | K130: 556.5613877 | L130: 556.5613877 | M130: 556.5613877 | N130: 556.5613877 | O130: 556.5613877 | Y130: 0.3903430337 | Z130: 0.2032189888 | AA130: 0.4064379776 | AC130: Yes | AD130: No | AF130: 0.001518615929 | AG130: 0 | AI130: 0 | AJ130: 0 | AK130: 1 | AL130: 0 | AM130: 0 | AN130: 0 | AO130: 0 | AP130: 0 | AQ130: 0 | AS130: 0 | AT130: 0 | AU130: 0 | AV130: 0 | AW130: 1 | AX130: 0 | AY130: 0 | AZ130: 0 | BA130: 0 | BB130: 0 | BC130: 0 | BD130: 0 | BE130: 0 | BF130: 0 | BG130: 0 | BH130: 0 | BI130: 0 | BJ130: 0 | BK130: 0 | BL130: 0 | BM130: 0 | BN130: 0 | BO130: 0 | BP130: 0 | BQ130: 0 | BR130: 0 | BS130: 0 | BT130: 0 | BU130: 0 | BV130: 0 | BW130: 0 | BX130: 0 | BY130: 0 | BZ130: 0 | CA130: 0 | CB130: 0 | CC130: 0 | CD130: 0 | CE130: 0 | CF130: 0 | CG130: 0 | CH130: 0
B131: 122 | C131: High Community Impact Assets Reliability Program | D131: REL_33.01.06 | F131: Augmentation | K131: 745.336824 | L131: 745.336824 | M131: 745.336824 | N131: 745.336824 | O131: 745.336824 | Y131: 0.3903430337 | Z131: 0.2032189888 | AA131: 0.4064379776 | AC131: Yes | AD131: No | AF131: 0.002033702658 | AG131: 0 | AI131: 0 | AJ131: 0 | AK131: 1 | AL131: 0 | AM131: 0 | AN131: 0 | AO131: 0 | AP131: 0 | AQ131: 0 | AS131: 0 | AT131: 0 | AU131: 0 | AV131: 0 | AW131: 0 | AX131: 0 | AY131: 0 | AZ131: 0 | BA131: 0 | BB131: 0 | BC131: 0 | BD131: 0 | BE131: 1 | BF131: 0 | BG131: 0 | BH131: 0 | BI131: 0 | BJ131: 0 | BK131: 0 | BL131: 0 | BM131: 0 | BN131: 0 | BO131: 0 | BP131: 0 | BQ131: 0 | BR131: 0 | BS131: 0 | BT131: 0 | BU131: 0 | BV131: 0 | BW131: 0 | BX131: 0 | BY131: 0 | BZ131: 0 | CA131: 0 | CB131: 0 | CC131: 0 | CD131: 0 | CE131: 0 | CF131: 0 | CG131: 0 | CH131: 0
B132: 123 | C132: A,B & C Type Kiosks | D132: REP_01.02.02 | F132: Replacement | K132: 861.160361 | L132: 861.160361 | M132: 861.160361 | N132: 861.160361 | O132: 861.160361 | Y132: 0.2493144247 | Z132: 0.2271893237 | AA132: 0.5234962516 | AC132: Yes | AD132: No | AF132: 0.001500789845 | AG132: 0 | AI132: 1 | AJ132: 0 | AK132: 0 | AL132: 0 | AM132: 0 | AN132: 0 | AO132: 0 | AP132: 0 | AQ132: 0 | AS132: 0 | AT132: 0 | AU132: 0 | AV132: 0 | AW132: 0 | AX132: 0 | AY132: 0 | AZ132: 0 | BA132: 0 | BB132: 0 | BC132: 0 | BD132: 0 | BE132: 0 | BF132: 0 | BG132: 1 | BH132: 0 | BI132: 0 | BJ132: 0 | BK132: 0 | BL132: 0 | BM132: 0 | BN132: 0 | BO132: 0 | BP132: 0 | BQ132: 0 | BR132: 0 | BS132: 0 | BT132: 0 | BU132: 0 | BV132: 0 | BW132: 0 | BX132: 0 | BY132: 0 | BZ132: 0 | CA132: 0 | CB132: 0 | CC132: 0 | CD132: 0 | CE132: 0 | CF132: 0 | CG132: 0 | CH132: 0
B133: 124 | C133: Outdoor Enclosure Substations | D133: REP_01.02.42 | F133: Replacement | K133: 1756.654009 | L133: 1756.654009 | M133: 1756.654009 | N133: 1756.654009 | O133: 1756.654009 | Y133: 0.2578696909 | Z133: 0.2223439551 | AA133: 0.519786354 | AC133: Yes | AD133: No | AF133: 0.003166467068 | AG133: 0 | AI133: 1 | AJ133: 0 | AK133: 0 | AL133: 0 | AM133: 0 | AN133: 0 | AO133: 0 | AP133: 0 | AQ133: 0 | AS133: 0 | AT133: 0 | AU133: 0 | AV133: 0 | AW133: 0 | AX133: 0 | AY133: 0 | AZ133: 0 | BA133: 0 | BB133: 0 | BC133: 0 | BD133: 0 | BE133: 0 | BF133: 0 | BG133: 1 | BH133: 0 | BI133: 0 | BJ133: 0 | BK133: 0 | BL133: 0 | BM133: 0 | BN133: 0 | BO133: 0 | BP133: 0 | BQ133: 0 | BR133: 0 | BS133: 0 | BT133: 0 | BU133: 0 | BV133: 0 | BW133: 0 | BX133: 0 | BY133: 0 | BZ133: 0 | CA133: 0 | CB133: 0 | CC133: 0 | CD133: 0 | CE133: 0 | CF133: 0 | CG133: 0 | CH133: 0
B134: 125 | C134: HV OCB Subs | D134: REP_01.02.43 | F134: Replacement | K134: 3506.467319 | L134: 2921.590288 | M134: 3155.541096 | N134: 3038.565703 | O134: 3038.565703 | Y134: 0.4792339019 | Z134: 0.2311108917 | AA134: 0.2896552065 | AC134: Yes | AD134: No | AF134: 0.01049247587 | AG134: 0 | AI134: 1 | AJ134: 0 | AK134: 0 | AL134: 0 | AM134: 0 | AN134: 0 | AO134: 0 | AP134: 0 | AQ134: 0 | AS134: 0 | AT134: 0 | AU134: 0 | AV134: 0 | AW134: 0 | AX134: 0 | AY134: 0 | AZ134: 0 | BA134: 0 | BB134: 0 | BC134: 0 | BD134: 0 | BE134: 1 | BF134: 0 | BG134: 0 | BH134: 0 | BI134: 0 | BJ134: 0 | BK134: 0 | BL134: 0 | BM134: 0 | BN134: 0 | BO134: 0 | BP134: 0 | BQ134: 0 | BR134: 0 | BS134: 0 | BT134: 0 | BU134: 0 | BV134: 0 | BW134: 0 | BX134: 0 | BY134: 0 | BZ134: 0 | CA134: 0 | CB134: 0 | CC134: 0 | CD134: 0 | CE134: 0 | CF134: 0 | CG134: 0 | CH134: 0
B135: 126 | C135: STGW Kiosks | D135: REP_01.02.44 | F135: Replacement | K135: 179.8643986 | L135: 179.8643986 | M135: 179.8643986 | N135: 179.8643986 | O135: 179.8643986 | Y135: 0.3903430337 | Z135: 0 | AA135: 0.6096569663 | AC135: Yes | AD135: No | AF135: 0.0004907723513 | AG135: 0 | AI135: 1 | AJ135: 0 | AK135: 0 | AL135: 0 | AM135: 0 | AN135: 0 | AO135: 0 | AP135: 0 | AQ135: 0 | AS135: 0 | AT135: 0 | AU135: 0 | AV135: 0 | AW135: 0 | AX135: 0 | AY135: 0 | AZ135: 0 | BA135: 0 | BB135: 0 | BC135: 0 | BD135: 0 | BE135: 0 | BF135: 0 | BG135: 1 | BH135: 0 | BI135: 0 | BJ135: 0 | BK135: 0 | BL135: 0 | BM135: 0 | BN135: 0 | BO135: 0 | BP135: 0 | BQ135: 0 | BR135: 0 | BS135: 0 | BT135: 0 | BU135: 0 | BV135: 0 | BW135: 0 | BX135: 0 | BY135: 0 | BZ135: 0 | CA135: 0 | CB135: 0 | CC135: 0 | CD135: 0 | CE135: 0 | CF135: 0 | CG135: 0 | CH135: 0
B136: 127 | C136: Statter_ALM_Godfrey HV Fuse Switches | D136: REP_01.02.45 | F136: Replacement | K136: 861.8809102 | L136: 693.926226 | M136: 903.8695813 | N136: 441.9941956 | O136: 861.8809102 | Y136: 0.2642446505 | Z136: 0.3650083789 | AA136: 0.3707469706 | AC136: Yes | AD136: No | AF136: 0.00139034489 | AG136: 0 | AI136: 1 | AJ136: 0 | AK136: 0 | AL136: 0 | AM136: 0 | AN136: 0 | AO136: 0 | AP136: 0 | AQ136: 0 | AS136: 0 | AT136: 0 | AU136: 0 | AV136: 0 | AW136: 0 | AX136: 0 | AY136: 0 | AZ136: 0 | BA136: 0 | BB136: 0 | BC136: 0 | BD136: 0 | BE136: 1 | BF136: 0 | BG136: 0 | BH136: 0 | BI136: 0 | BJ136: 0 | BK136: 0 | BL136: 0 | BM136: 0 | BN136: 0 | BO136: 0 | BP136: 0 | BQ136: 0 | BR136: 0 | BS136: 0 | BT136: 0 | BU136: 0 | BV136: 0 | BW136: 0 | BX136: 0 | BY136: 0 | BZ136: 0 | CA136: 0 | CB136: 0 | CC136: 0 | CD136: 0 | CE136: 0 | CF136: 0 | CG136: 0 | CH136: 0
B137: 128 | C137: Reyrolle JKSS RMIs C_EB | D137: REP_01.02.47 | F137: Replacement | K137: 466.1202293 | L137: 466.1202293 | M137: 466.1202293 | N137: 466.1202293 | O137: 65.71644382 | Y137: 0.2910374641 | Z137: 0.3005336139 | AA137: 0.4084289219 | AC137: Yes | AD137: No | AF137: 0.0007853605022 | AG137: 0 | AI137: 1 | AJ137: 0 | AK137: 0 | AL137: 0 | AM137: 0 | AN137: 0 | AO137: 0 | AP137: 0 | AQ137: 0 | AS137: 0 | AT137: 0 | AU137: 0 | AV137: 0 | AW137: 0 | AX137: 0 | AY137: 0 | AZ137: 0 | BA137: 0 | BB137: 0 | BC137: 0 | BD137: 0 | BE137: 1 | BF137: 0 | BG137: 0 | BH137: 0 | BI137: 0 | BJ137: 0 | BK137: 0 | BL137: 0 | BM137: 0 | BN137: 0 | BO137: 0 | BP137: 0 | BQ137: 0 | BR137: 0 | BS137: 0 | BT137: 0 | BU137: 0 | BV137: 0 | BW137: 0 | BX137: 0 | BY137: 0 | BZ137: 0 | CA137: 0 | CB137: 0 | CC137: 0 | CD137: 0 | CE137: 0 | CF137: 0 | CG137: 0 | CH137: 0
B138: 129 | C138: Obsolete Chamber Substations | D138: REP_01.02.48 | F138: Replacement | K138: 939.935574 | L138: 939.935574 | M138: 939.935574 | N138: 939.935574 | O138: 939.935574 | Y138: 0.3903430336 | Z138: 0 | AA138: 0.6096569664 | AC138: Yes | AD138: No | AF138: 0.002564678698 | AG138: 0 | AI138: 1 | AJ138: 0 | AK138: 0 | AL138: 0 | AM138: 0 | AN138: 0 | AO138: 0 | AP138: 0 | AQ138: 0 | AS138: 0 | AT138: 0 | AU138: 0 | AV138: 0 | AW138: 0 | AX138: 0 | AY138: 0 | AZ138: 0 | BA138: 0 | BB138: 0 | BC138: 0 | BD138: 0 | BE138: 0 | BF138: 0 | BG138: 1 | BH138: 0 | BI138: 0 | BJ138: 0 | BK138: 0 | BL138: 0 | BM138: 0 | BN138: 0 | BO138: 0 | BP138: 0 | BQ138: 0 | BR138: 0 | BS138: 0 | BT138: 0 | BU138: 0 | BV138: 0 | BW138: 0 | BX138: 0 | BY138: 0 | BZ138: 0 | CA138: 0 | CB138: 0 | CC138: 0 | CD138: 0 | CE138: 0 | CF138: 0 | CG138: 0 | CH138: 0
B139: 130 | C139: Obsolete RMIs & FSs | D139: REP_01.02.52 | F139: Replacement | K139: 4356.586089 | L139: 4356.586089 | M139: 4356.586089 | N139: 4356.586089 | O139: 4356.586089 | Y139: 0.2726039149 | Z139: 0.350905036 | AA139: 0.3764910491 | AB139: =IF(SUM(Y139:AA139,I139:O139)=0,"",IF(SUM(Y139:AA139)=1,"",1)) ->  | AC139: Yes | AD139: No | AF139: 0.008301696149 | AG139: 0 | AI139: 1 | AJ139: 0 | AK139: 0 | AL139: 0 | AM139: 0 | AN139: 0 | AO139: 0 | AP139: 0 | AQ139: 0 | AS139: 0 | AT139: 0 | AU139: 0 | AV139: 0 | AW139: 0 | AX139: 0 | AY139: 0 | AZ139: 0 | BA139: 0 | BB139: 0 | BC139: 0 | BD139: 0 | BE139: 1 | BF139: 0 | BG139: 0 | BH139: 0 | BI139: 0 | BJ139: 0 | BK139: 0 | BL139: 0 | BM139: 0 | BN139: 0 | BO139: 0 | BP139: 0 | BQ139: 0 | BR139: 0 | BS139: 0 | BT139: 0 | BU139: 0 | BV139: 0 | BW139: 0 | BX139: 0 | BY139: 0 | BZ139: 0 | CA139: 0 | CB139: 0 | CC139: 0 | CD139: 0 | CE139: 0 | CF139: 0 | CG139: 0 | CH139: 0 | CQ139: =IF(COUNT(AI139:AQ139)=0,"",IF(SUM(AI139:AQ139)=1,"",1)) -> 
B140: =IFERROR(B139+1,"") -> 131 | C140: ABB 11kV Series V EDO Fuse Carriers | D140: REP_01.02.57 | F140: Replacement | K140: 225.8927925 | L140: 0.4399583943 | M140: 0.4399583943 | N140: 0.4399583943 | O140: 0.4399583943 | Y140: 0.6771357767 | Z140: 0.1014997733 | AA140: 0.22136445 | AC140: Yes | AD140: No | AF140: 0.0002155097214 | AG140: 0 | AI140: 1 | AJ140: 0 | AK140: 0 | AL140: 0 | AM140: 0 | AN140: 0 | AO140: 0 | AP140: 0 | AQ140: 0 | AS140: 0 | AT140: 0 | AU140: 0 | AV140: 0 | AW140: 0 | AX140: 0 | AY140: 0 | AZ140: 0 | BA140: 0 | BB140: 0 | BC140: 0 | BD140: 0 | BE140: 1 | BF140: 0 | BG140: 0 | BH140: 0 | BI140: 0 | BJ140: 0 | BK140: 0 | BL140: 0 | BM140: 0 | BN140: 0 | BO140: 0 | BP140: 0 | BQ140: 0 | BR140: 0 | BS140: 0 | BT140: 0 | BU140: 0 | BV140: 0 | BW140: 0 | BX140: 0 | BY140: 0 | BZ140: 0 | CA140: 0 | CB140: 0 | CC140: 0 | CD140: 0 | CE140: 0 | CF140: 0 | CG140: 0 | CH140: 0
B141: 132 | C141: SCADA Equipment - DC | D141: REP_01.02.59 | F141: Replacement | K141: 694.8078324 | L141: 694.8078324 | M141: 694.8078324 | N141: 694.8078324 | O141: 694.8078324 | Y141: 0.4106064571 | Z141: 0.09788102095 | AA141: 0.491512522 | AC141: Yes | AD141: No | AF141: 0.001994246897 | AG141: 0 | AI141: 1 | AJ141: 0 | AK141: 0 | AL141: 0 | AM141: 0 | AN141: 0 | AO141: 0 | AP141: 0 | AQ141: 0 | AS141: 0 | AT141: 0 | AU141: 0 | AV141: 0 | AW141: 0 | AX141: 0 | AY141: 0 | AZ141: 0 | BA141: 0 | BB141: 0 | BC141: 0 | BD141: 0 | BE141: 1 | BF141: 0 | BG141: 0 | BH141: 0 | BI141: 0 | BJ141: 0 | BK141: 0 | BL141: 0 | BM141: 0 | BN141: 0 | BO141: 0 | BP141: 0 | BQ141: 0 | BR141: 0 | BS141: 0 | BT141: 0 | BU141: 0 | BV141: 0 | BW141: 0 | BX141: 0 | BY141: 0 | BZ141: 0 | CA141: 0 | CB141: 0 | CC141: 0 | CD141: 0 | CE141: 0 | CF141: 0 | CG141: 0 | CH141: 0
B142: 133 | C142: Intertripping Schemes - DC | D142: REP_01.02.61 | F142: Replacement | K142: 1018.705771 | L142: 1018.705771 | M142: 1018.705771 | N142: 1018.705771 | O142: 1018.705771 | Y142: 0.3136585464 | Z142: 0.1472456564 | AA142: 0.5390957972 | AC142: Yes | AD142: No | AF142: 0.002233543098 | AG142: 0 | AI142: 1 | AJ142: 0 | AK142: 0 | AL142: 0 | AM142: 0 | AN142: 0 | AO142: 0 | AP142: 0 | AQ142: 0 | AS142: 0 | AT142: 0 | AU142: 0 | AV142: 0 | AW142: 0 | AX142: 0 | AY142: 0 | AZ142: 0 | BA142: 0 | BB142: 0 | BC142: 0 | BD142: 0 | BE142: 1 | BF142: 0 | BG142: 0 | BH142: 0 | BI142: 0 | BJ142: 0 | BK142: 0 | BL142: 0 | BM142: 0 | BN142: 0 | BO142: 0 | BP142: 0 | BQ142: 0 | BR142: 0 | BS142: 0 | BT142: 0 | BU142: 0 | BV142: 0 | BW142: 0 | BX142: 0 | BY142: 0 | BZ142: 0 | CA142: 0 | CB142: 0 | CC142: 0 | CD142: 0 | CE142: 0 | CF142: 0 | CG142: 0 | CH142: 0
B143: 134 | C143: Low Voltage OCB Subs | D143: REP_01.03.01 | F143: Replacement | K143: 23.29419297 | L143: 23.29419297 | M143: 23.29419297 | N143: 23.29419297 | O143: 23.29419297 | Y143: 0.3903430345 | Z143: 0 | AA143: 0.6096569655 | AC143: Yes | AD143: No | AF143: 6.355980377e-05 | AG143: 0 | AI143: 1 | AJ143: 0 | AK143: 0 | AL143: 0 | AM143: 0 | AN143: 0 | AO143: 0 | AP143: 0 | AQ143: 0 | AS143: 0 | AT143: 0 | AU143: 0 | AV143: 0 | AW143: 0 | AX143: 0 | AY143: 0 | AZ143: 0 | BA143: 0 | BB143: 0 | BC143: 0 | BD143: 0 | BE143: 1 | BF143: 0 | BG143: 0 | BH143: 0 | BI143: 0 | BJ143: 0 | BK143: 0 | BL143: 0 | BM143: 0 | BN143: 0 | BO143: 0 | BP143: 0 | BQ143: 0 | BR143: 0 | BS143: 0 | BT143: 0 | BU143: 0 | BV143: 0 | BW143: 0 | BX143: 0 | BY143: 0 | BZ143: 0 | CA143: 0 | CB143: 0 | CC143: 0 | CD143: 0 | CE143: 0 | CF143: 0 | CG143: 0 | CH143: 0
B144: 135 | C144: Low Voltage ACB Subs | D144: REP_01.03.02 | F144: Replacement | K144: 88.23562842 | L144: 88.23562842 | M144: 88.23562842 | N144: 88.23562842 | O144: 88.23562842 | Y144: 0.4226573695 | Z144: 0 | AA144: 0.5773426305 | AC144: Yes | AD144: No | AF144: 0.0002606879001 | AG144: 0 | AI144: 1 | AJ144: 0 | AK144: 0 | AL144: 0 | AM144: 0 | AN144: 0 | AO144: 0 | AP144: 0 | AQ144: 0 | AS144: 0 | AT144: 0 | AU144: 0 | AV144: 0 | AW144: 0 | AX144: 0 | AY144: 0 | AZ144: 0 | BA144: 0 | BB144: 0 | BC144: 0 | BD144: 0 | BE144: 1 | BF144: 0 | BG144: 0 | BH144: 0 | BI144: 0 | BJ144: 0 | BK144: 0 | BL144: 0 | BM144: 0 | BN144: 0 | BO144: 0 | BP144: 0 | BQ144: 0 | BR144: 0 | BS144: 0 | BT144: 0 | BU144: 0 | BV144: 0 | BW144: 0 | BX144: 0 | BY144: 0 | BZ144: 0 | CA144: 0 | CB144: 0 | CC144: 0 | CD144: 0 | CE144: 0 | CF144: 0 | CG144: 0 | CH144: 0
B145: 136 | C145: Single Circuit Breaker Switchgear | D145: REP_01.03.04 | F145: Replacement | K145: 233.7017617 | L145: 467.4035467 | M145: 467.4035467 | N145: 467.4035467 | O145: 0 | Y145: 0.4917875361 | Z145: 0.2446801166 | AA145: 0.2635323474 | AC145: Yes | AD145: No | AF145: 0.001124750003 | AG145: 0 | AI145: 1 | AJ145: 0 | AK145: 0 | AL145: 0 | AM145: 0 | AN145: 0 | AO145: 0 | AP145: 0 | AQ145: 0 | AS145: 0 | AT145: 0 | AU145: 0 | AV145: 0 | AW145: 0 | AX145: 0 | AY145: 0 | AZ145: 0 | BA145: 0 | BB145: 0 | BC145: 0 | BD145: 0 | BE145: 1 | BF145: 0 | BG145: 0 | BH145: 0 | BI145: 0 | BJ145: 0 | BK145: 0 | BL145: 0 | BM145: 0 | BN145: 0 | BO145: 0 | BP145: 0 | BQ145: 0 | BR145: 0 | BS145: 0 | BT145: 0 | BU145: 0 | BV145: 0 | BW145: 0 | BX145: 0 | BY145: 0 | BZ145: 0 | CA145: 0 | CB145: 0 | CC145: 0 | CD145: 0 | CE145: 0 | CF145: 0 | CG145: 0 | CH145: 0
B146: 137 | C146: Network Protectors (West CM2/22) | D146: REP_01.03.06 | F146: Replacement | K146: 4407.626237 | L146: 4407.626237 | M146: 4407.626237 | N146: 4407.626237 | O146: 4407.626237 | Y146: 0.5053729084 | Z146: 0.09600033547 | AA146: 0.3986267561 | AC146: Yes | AD146: No | AF146: 0.01557059331 | AG146: 0 | AI146: 1 | AJ146: 0 | AK146: 0 | AL146: 0 | AM146: 0 | AN146: 0 | AO146: 0 | AP146: 0 | AQ146: 0 | AS146: 0 | AT146: 0 | AU146: 0 | AV146: 0 | AW146: 0 | AX146: 0 | AY146: 0 | AZ146: 0 | BA146: 0 | BB146: 0 | BC146: 0 | BD146: 0 | BE146: 1 | BF146: 0 | BG146: 0 | BH146: 0 | BI146: 0 | BJ146: 0 | BK146: 0 | BL146: 0 | BM146: 0 | BN146: 0 | BO146: 0 | BP146: 0 | BQ146: 0 | BR146: 0 | BS146: 0 | BT146: 0 | BU146: 0 | BV146: 0 | BW146: 0 | BX146: 0 | BY146: 0 | BZ146: 0 | CA146: 0 | CB146: 0 | CC146: 0 | CD146: 0 | CE146: 0 | CF146: 0 | CG146: 0 | CH146: 0
B147: 138 | C147: 400kVA Sydney CBD Conservator Type Tx | D147: REP_01.03.07 | F147: Replacement | K147: 1618.931168 | L147: 1618.931168 | M147: 1618.931168 | N147: 1618.931168 | O147: 1618.931168 | Y147: 0.459258508 | Z147: 0.1681855169 | AA147: 0.3725559751 | AC147: Yes | AD147: No | AF147: 0.005197255168 | AG147: 0 | AI147: 1 | AJ147: 0 | AK147: 0 | AL147: 0 | AM147: 0 | AN147: 0 | AO147: 0 | AP147: 0 | AQ147: 0 | AS147: 0 | AT147: 0 | AU147: 0 | AV147: 0 | AW147: 0 | AX147: 0 | AY147: 0 | AZ147: 0 | BA147: 0 | BB147: 0 | BC147: 0 | BD147: 0 | BE147: 0 | BF147: 0 | BG147: 1 | BH147: 0 | BI147: 0 | BJ147: 0 | BK147: 0 | BL147: 0 | BM147: 0 | BN147: 0 | BO147: 0 | BP147: 0 | BQ147: 0 | BR147: 0 | BS147: 0 | BT147: 0 | BU147: 0 | BV147: 0 | BW147: 0 | BX147: 0 | BY147: 0 | BZ147: 0 | CA147: 0 | CB147: 0 | CC147: 0 | CD147: 0 | CE147: 0 | CF147: 0 | CG147: 0 | CH147: 0
B148: 139 | C148: Kiosk Housings | D148: REP_01.03.10 | F148: Replacement | K148: 428.9227932 | L148: 428.9227932 | M148: 428.9227932 | N148: 428.9227932 | O148: 428.9227932 | Y148: 0.3903430337 | Z148: 0 | AA148: 0.6096569663 | AC148: Yes | AD148: No | AF148: 0.001170345268 | AG148: 0 | AI148: 1 | AJ148: 0 | AK148: 0 | AL148: 0 | AM148: 0 | AN148: 0 | AO148: 0 | AP148: 0 | AQ148: 0 | AS148: 0 | AT148: 0 | AU148: 0 | AV148: 0 | AW148: 0 | AX148: 0 | AY148: 0 | AZ148: 0 | BA148: 0 | BB148: 0 | BC148: 0 | BD148: 0 | BE148: 1 | BF148: 0 | BG148: 0 | BH148: 0 | BI148: 0 | BJ148: 0 | BK148: 0 | BL148: 0 | BM148: 0 | BN148: 0 | BO148: 0 | BP148: 0 | BQ148: 0 | BR148: 0 | BS148: 0 | BT148: 0 | BU148: 0 | BV148: 0 | BW148: 0 | BX148: 0 | BY148: 0 | BZ148: 0 | CA148: 0 | CB148: 0 | CC148: 0 | CD148: 0 | CE148: 0 | CF148: 0 | CG148: 0 | CH148: 0
B149: 140 | C149: G' Type LV Board Timber Housings | D149: REP_01.03.11 | F149: Replacement | K149: 50.55081152 | L149: 50.55081152 | M149: 50.55081152 | N149: 50.55081152 | O149: 50.55081152 | Y149: 0.3903430337 | Z149: 0 | AA149: 0.6096569663 | AC149: Yes | AD149: No | AF149: 0.0001379313573 | AG149: 0 | AI149: 1 | AJ149: 0 | AK149: 0 | AL149: 0 | AM149: 0 | AN149: 0 | AO149: 0 | AP149: 0 | AQ149: 0 | AS149: 0 | AT149: 0 | AU149: 0 | AV149: 0 | AW149: 0 | AX149: 0 | AY149: 0 | AZ149: 0 | BA149: 0 | BB149: 0 | BC149: 0 | BD149: 0 | BE149: 1 | BF149: 0 | BG149: 0 | BH149: 0 | BI149: 0 | BJ149: 0 | BK149: 0 | BL149: 0 | BM149: 0 | BN149: 0 | BO149: 0 | BP149: 0 | BQ149: 0 | BR149: 0 | BS149: 0 | BT149: 0 | BU149: 0 | BV149: 0 | BW149: 0 | BX149: 0 | BY149: 0 | BZ149: 0 | CA149: 0 | CB149: 0 | CC149: 0 | CD149: 0 | CE149: 0 | CF149: 0 | CG149: 0 | CH149: 0
B150: 141 | C150: Bass & Saunders Isolation & Earthing Switchgear | D150: REP_01.03.13 | F150: Replacement | K150: 945.6376711 | L150: 945.6376711 | M150: 945.6376711 | N150: 945.6376711 | O150: 945.6376711 | Y150: 0.7260607551 | Z150: 0.08438394793 | AA150: 0.189555297 | AC150: Yes | AD150: No | AF150: 0.00479939144 | AG150: 0 | AI150: 1 | AJ150: 0 | AK150: 0 | AL150: 0 | AM150: 0 | AN150: 0 | AO150: 0 | AP150: 0 | AQ150: 0 | AS150: 0 | AT150: 0 | AU150: 0 | AV150: 0 | AW150: 0 | AX150: 0 | AY150: 0 | AZ150: 0 | BA150: 0 | BB150: 0 | BC150: 0 | BD150: 0 | BE150: 1 | BF150: 0 | BG150: 0 | BH150: 0 | BI150: 0 | BJ150: 0 | BK150: 0 | BL150: 0 | BM150: 0 | BN150: 0 | BO150: 0 | BP150: 0 | BQ150: 0 | BR150: 0 | BS150: 0 | BT150: 0 | BU150: 0 | BV150: 0 | BW150: 0 | BX150: 0 | BY150: 0 | BZ150: 0 | CA150: 0 | CB150: 0 | CC150: 0 | CD150: 0 | CE150: 0 | CF150: 0 | CG150: 0 | CH150: 0
B151: 142 | C151: Muswellbrook Kiosks | D151: REP_01.03.16 | F151: Replacement | K151: 141.0052534 | L151: 141.0052534 | M151: 141.0052534 | N151: 141.0052534 | O151: 141.0052534 | Y151: 0.29072132 | Z151: 0.2560418788 | AA151: 0.4532368012 | AC151: Yes | AD151: No | AF151: 0.0002865501368 | AG151: 0 | AI151: 1 | AJ151: 0 | AK151: 0 | AL151: 0 | AM151: 0 | AN151: 0 | AO151: 0 | AP151: 0 | AQ151: 0 | AS151: 0 | AT151: 0 | AU151: 0 | AV151: 0 | AW151: 0 | AX151: 0 | AY151: 0 | AZ151: 0 | BA151: 0 | BB151: 0 | BC151: 0 | BD151: 0 | BE151: 0 | BF151: 0 | BG151: 1 | BH151: 0 | BI151: 0 | BJ151: 0 | BK151: 0 | BL151: 0 | BM151: 0 | BN151: 0 | BO151: 0 | BP151: 0 | BQ151: 0 | BR151: 0 | BS151: 0 | BT151: 0 | BU151: 0 | BV151: 0 | BW151: 0 | BX151: 0 | BY151: 0 | BZ151: 0 | CA151: 0 | CB151: 0 | CC151: 0 | CD151: 0 | CE151: 0 | CF151: 0 | CG151: 0 | CH151: 0
B152: 143 | C152: Hazemeyer RMIs - Harsh Environment | D152: REP_01.03.17 | F152: Replacement | K152: 321.0057087 | L152: 321.0057087 | M152: 321.0057087 | N152: 321.0057087 | O152: 321.0057087 | Y152: 0.3157780207 | Z152: 0.2474346863 | AA152: 0.436787293 | AC152: Yes | AD152: No | AF152: 0.0007085705516 | AG152: 0 | AI152: 1 | AJ152: 0 | AK152: 0 | AL152: 0 | AM152: 0 | AN152: 0 | AO152: 0 | AP152: 0 | AQ152: 0 | AS152: 0 | AT152: 0 | AU152: 0 | AV152: 0 | AW152: 0 | AX152: 0 | AY152: 0 | AZ152: 0 | BA152: 0 | BB152: 0 | BC152: 0 | BD152: 0 | BE152: 1 | BF152: 0 | BG152: 0 | BH152: 0 | BI152: 0 | BJ152: 0 | BK152: 0 | BL152: 0 | BM152: 0 | BN152: 0 | BO152: 0 | BP152: 0 | BQ152: 0 | BR152: 0 | BS152: 0 | BT152: 0 | BU152: 0 | BV152: 0 | BW152: 0 | BX152: 0 | BY152: 0 | BZ152: 0 | CA152: 0 | CB152: 0 | CC152: 0 | CD152: 0 | CE152: 0 | CF152: 0 | CG152: 0 | CH152: 0
B153: 144 | C153: Long & Crawford T3GF3 Ring Main Isolators | D153: REP_01.04.01 | F153: Replacement | K153: 116.9270958 | L153: 116.9270958 | M153: 116.9270958 | N153: 116.9270958 | O153: 116.9270958 | Y153: 0.390343034 | Z153: 0 | AA153: 0.609656966 | AC153: Yes | AD153: No | AF153: 0.0003190436031 | AG153: 0 | AI153: 1 | AJ153: 0 | AK153: 0 | AL153: 0 | AM153: 0 | AN153: 0 | AO153: 0 | AP153: 0 | AQ153: 0 | AS153: 0 | AT153: 0 | AU153: 0 | AV153: 0 | AW153: 0 | AX153: 0 | AY153: 0 | AZ153: 0 | BA153: 0 | BB153: 0 | BC153: 0 | BD153: 0 | BE153: 1 | BF153: 0 | BG153: 0 | BH153: 0 | BI153: 0 | BJ153: 0 | BK153: 0 | BL153: 0 | BM153: 0 | BN153: 0 | BO153: 0 | BP153: 0 | BQ153: 0 | BR153: 0 | BS153: 0 | BT153: 0 | BU153: 0 | BV153: 0 | BW153: 0 | BX153: 0 | BY153: 0 | BZ153: 0 | CA153: 0 | CB153: 0 | CC153: 0 | CD153: 0 | CE153: 0 | CF153: 0 | CG153: 0 | CH153: 0
B154: 145 | C154: Refurbishment of Pole Transformer Substations | D154: REP_01.04.02 | F154: Replacement | K154: 4.34061652 | L154: 4.34061652 | M154: 4.34061652 | N154: 4.34061652 | O154: 4.34061652 | Y154: 0.3903430336 | Z154: 0 | AA154: 0.6096569664 | AC154: Yes | AD154: No | AF154: 1.184366997e-05 | AG154: 0 | AI154: 1 | AJ154: 0 | AK154: 0 | AL154: 0 | AM154: 0 | AN154: 0 | AO154: 0 | AP154: 0 | AQ154: 0 | AS154: 0 | AT154: 0 | AU154: 0 | AV154: 0 | AW154: 0 | AX154: 0 | AY154: 0 | AZ154: 0 | BA154: 0 | BB154: 0 | BC154: 0 | BD154: 0 | BE154: 1 | BF154: 0 | BG154: 0 | BH154: 0 | BI154: 0 | BJ154: 0 | BK154: 0 | BL154: 0 | BM154: 0 | BN154: 0 | BO154: 0 | BP154: 0 | BQ154: 0 | BR154: 0 | BS154: 0 | BT154: 0 | BU154: 0 | BV154: 0 | BW154: 0 | BX154: 0 | BY154: 0 | BZ154: 0 | CA154: 0 | CB154: 0 | CC154: 0 | CD154: 0 | CE154: 0 | CF154: 0 | CG154: 0 | CH154: 0
B155: 146 | C155: Distribution Centre Reactive Replacement (< $50k) | D155: REP_01.04.03 | F155: Replacement | K155: 3670.730769 | L155: 3670.730769 | M155: 3670.730769 | N155: 3670.730769 | O155: 3670.730769 | Y155: 0.3903430336 | Z155: 0 | AA155: 0.6096569664 | AC155: Yes | AD155: No | AF155: 0.01001584073 | AG155: 0 | AI155: 1 | AJ155: 0 | AK155: 0 | AL155: 0 | AM155: 0 | AN155: 0 | AO155: 0 | AP155: 0 | AQ155: 0 | AS155: 0 | AT155: 0 | AU155: 0 | AV155: 0 | AW155: 0 | AX155: 0 | AY155: 0 | AZ155: 0 | BA155: 0 | BB155: 0 | BC155: 0 | BD155: 0 | BE155: 1 | BF155: 0 | BG155: 0 | BH155: 0 | BI155: 0 | BJ155: 0 | BK155: 0 | BL155: 0 | BM155: 0 | BN155: 0 | BO155: 0 | BP155: 0 | BQ155: 0 | BR155: 0 | BS155: 0 | BT155: 0 | BU155: 0 | BV155: 0 | BW155: 0 | BX155: 0 | BY155: 0 | BZ155: 0 | CA155: 0 | CB155: 0 | CC155: 0 | CD155: 0 | CE155: 0 | CF155: 0 | CG155: 0 | CH155: 0
B156: 147 | C156: Distribution Substation Buildings & Grounds | D156: REP_01.04.05 | F156: Replacement | K156: 110.7008371 | L156: 110.7008371 | M156: 110.7008371 | N156: 110.7008371 | O156: 110.7008371 | Y156: 0.390343034 | Z156: 0 | AA156: 0.609656966 | AC156: Yes | AD156: No | AF156: 0.0003020548291 | AG156: 0 | AI156: 1 | AJ156: 0 | AK156: 0 | AL156: 0 | AM156: 0 | AN156: 0 | AO156: 0 | AP156: 0 | AQ156: 0 | AS156: 0 | AT156: 0 | AU156: 1 | AV156: 0 | AW156: 0 | AX156: 0 | AY156: 0 | AZ156: 0 | BA156: 0 | BB156: 0 | BC156: 0 | BD156: 0 | BE156: 0 | BF156: 0 | BG156: 0 | BH156: 0 | BI156: 0 | BJ156: 0 | BK156: 0 | BL156: 0 | BM156: 0 | BN156: 0 | BO156: 0 | BP156: 0 | BQ156: 0 | BR156: 0 | BS156: 0 | BT156: 0 | BU156: 0 | BV156: 0 | BW156: 0 | BX156: 0 | BY156: 0 | BZ156: 0 | CA156: 0 | CB156: 0 | CC156: 0 | CD156: 0 | CE156: 0 | CF156: 0 | CG156: 0 | CH156: 0
B157: 148 | C157: SF6 Switchgear - Low Gas | D157: REP_01.04.07 | F157: Replacement | K157: 86.45834941 | L157: 86.45834941 | M157: 86.45834941 | N157: 86.45834941 | O157: 86.45834941 | Y157: 0.3903430339 | Z157: 0 | AA157: 0.6096569661 | AC157: Yes | AD157: No | AF157: 0.000235907538 | AG157: 0 | AI157: 1 | AJ157: 0 | AK157: 0 | AL157: 0 | AM157: 0 | AN157: 0 | AO157: 0 | AP157: 0 | AQ157: 0 | AS157: 0 | AT157: 0 | AU157: 0 | AV157: 0 | AW157: 0 | AX157: 0 | AY157: 0 | AZ157: 0 | BA157: 0 | BB157: 0 | BC157: 0 | BD157: 0 | BE157: 1 | BF157: 0 | BG157: 0 | BH157: 0 | BI157: 0 | BJ157: 0 | BK157: 0 | BL157: 0 | BM157: 0 | BN157: 0 | BO157: 0 | BP157: 0 | BQ157: 0 | BR157: 0 | BS157: 0 | BT157: 0 | BU157: 0 | BV157: 0 | BW157: 0 | BX157: 0 | BY157: 0 | BZ157: 0 | CA157: 0 | CB157: 0 | CC157: 0 | CD157: 0 | CE157: 0 | CF157: 0 | CG157: 0 | CH157: 0
B158: 149 | C158: Single Pole PT Substations | D158: REP_01.04.11 | F158: Replacement | K158: 5630.996158 | L158: 5630.996158 | M158: 5630.996158 | N158: 5630.996158 | O158: 5630.996158 | Y158: 0.5369664029 | Z158: 0.06005473819 | AA158: 0.4029788589 | AC158: Yes | AD158: No | AF158: 0.02113590214 | AG158: 0 | AI158: 1 | AJ158: 0 | AK158: 0 | AL158: 0 | AM158: 0 | AN158: 0 | AO158: 0 | AP158: 0 | AQ158: 0 | AS158: 0 | AT158: 0 | AU158: 0 | AV158: 0 | AW158: 0 | AX158: 0 | AY158: 0 | AZ158: 0 | BA158: 0 | BB158: 0 | BC158: 0 | BD158: 0 | BE158: 0 | BF158: 0 | BG158: 1 | BH158: 0 | BI158: 0 | BJ158: 0 | BK158: 0 | BL158: 0 | BM158: 0 | BN158: 0 | BO158: 0 | BP158: 0 | BQ158: 0 | BR158: 0 | BS158: 0 | BT158: 0 | BU158: 0 | BV158: 0 | BW158: 0 | BX158: 0 | BY158: 0 | BZ158: 0 | CA158: 0 | CB158: 0 | CC158: 0 | CD158: 0 | CE158: 0 | CF158: 0 | CG158: 0 | CH158: 0
B159: 150 | C159: Distribution Substation Heritage Buildings | D159: REP_01.04.12 | F159: Replacement | K159: 65.16740606 | L159: 65.16740606 | M159: 65.16740606 | N159: 65.16740606 | O159: 65.16740606 | Y159: 0.3903430334 | Z159: 0 | AA159: 0.6096569666 | AC159: Yes | AD159: No | AF159: 0.0001778137381 | AG159: 0 | AI159: 1 | AJ159: 0 | AK159: 0 | AL159: 0 | AM159: 0 | AN159: 0 | AO159: 0 | AP159: 0 | AQ159: 0 | AS159: 0 | AT159: 0 | AU159: 1 | AV159: 0 | AW159: 0 | AX159: 0 | AY159: 0 | AZ159: 0 | BA159: 0 | BB159: 0 | BC159: 0 | BD159: 0 | BE159: 0 | BF159: 0 | BG159: 0 | BH159: 0 | BI159: 0 | BJ159: 0 | BK159: 0 | BL159: 0 | BM159: 0 | BN159: 0 | BO159: 0 | BP159: 0 | BQ159: 0 | BR159: 0 | BS159: 0 | BT159: 0 | BU159: 0 | BV159: 0 | BW159: 0 | BX159: 0 | BY159: 0 | BZ159: 0 | CA159: 0 | CB159: 0 | CC159: 0 | CD159: 0 | CE159: 0 | CF159: 0 | CG159: 0 | CH159: 0
B160: 151 | C160: System Spares Equipment - DC Subs | D160: REP_01.04.13 | F160: Replacement | K160: 163.2592896 | L160: 163.2592896 | M160: 163.2592896 | N160: 163.2592896 | O160: 163.2592896 | Y160: 0.3903430338 | Z160: 0 | AA160: 0.6096569662 | AC160: Yes | AD160: No | AF160: 0.0004454641723 | AG160: 0 | AI160: 1 | AJ160: 0 | AK160: 0 | AL160: 0 | AM160: 0 | AN160: 0 | AO160: 0 | AP160: 0 | AQ160: 0 | AS160: 0 | AT160: 0 | AU160: 0 | AV160: 0 | AW160: 0 | AX160: 0 | AY160: 0 | AZ160: 0 | BA160: 0 | BB160: 0 | BC160: 0 | BD160: 0 | BE160: 1 | BF160: 0 | BG160: 0 | BH160: 0 | BI160: 0 | BJ160: 0 | BK160: 0 | BL160: 0 | BM160: 0 | BN160: 0 | BO160: 0 | BP160: 0 | BQ160: 0 | BR160: 0 | BS160: 0 | BT160: 0 | BU160: 0 | BV160: 0 | BW160: 0 | BX160: 0 | BY160: 0 | BZ160: 0 | CA160: 0 | CB160: 0 | CC160: 0 | CD160: 0 | CE160: 0 | CF160: 0 | CG160: 0 | CH160: 0
B161: 152 | C161: 11kV Air Insulated Switchboards - Vacuum CB - ZN | D161: REP_02.02.01 | F161: Replacement | K161: 3.745298137 | L161: 3.745298137 | M161: 3.745298137 | N161: 3.745298137 | O161: 3.745298137 | Y161: 0.3903430336 | Z161: 0 | AA161: 0.6096569664 | AC161: Yes | AD161: No | AF161: 1.021930291e-05 | AG161: 0 | AI161: 1 | AJ161: 0 | AK161: 0 | AL161: 0 | AM161: 0 | AN161: 0 | AO161: 0 | AP161: 0 | AQ161: 0 | AS161: 0 | AT161: 0 | AU161: 0 | AV161: 0 | AW161: 0 | AX161: 0 | AY161: 0 | AZ161: 0 | BA161: 0 | BB161: 0 | BC161: 0 | BD161: 0 | BE161: 1 | BF161: 0 | BG161: 0 | BH161: 0 | BI161: 0 | BJ161: 0 | BK161: 0 | BL161: 0 | BM161: 0 | BN161: 0 | BO161: 0 | BP161: 0 | BQ161: 0 | BR161: 0 | BS161: 0 | BT161: 0 | BU161: 0 | BV161: 0 | BW161: 0 | BX161: 0 | BY161: 0 | BZ161: 0 | CA161: 0 | CB161: 0 | CC161: 0 | CD161: 0 | CE161: 0 | CF161: 0 | CG161: 0 | CH161: 0
B162: 153 | C162: System Spare Transformers - ZN | D162: REP_02.02.06 | F162: Replacement | K162: 1492.45926 | L162: 1492.45926 | M162: 1492.45926 | N162: 1492.45926 | O162: 1492.45926 | Y162: 0.3903430337 | Z162: 0 | AA162: 0.6096569663 | AC162: Yes | AD162: No | AF162: 0.004072277483 | AG162: 0 | AI162: 1 | AJ162: 0 | AK162: 0 | AL162: 0 | AM162: 0 | AN162: 0 | AO162: 0 | AP162: 0 | AQ162: 0 | AS162: 0 | AT162: 0 | AU162: 0 | AV162: 0 | AW162: 0 | AX162: 0 | AY162: 0 | AZ162: 0 | BA162: 0 | BB162: 0 | BC162: 0 | BD162: 0 | BE162: 0.83 | BF162: 0 | BG162: 0 | BH162: 0 | BI162: 0 | BJ162: 0 | BK162: 0 | BL162: 0 | BM162: 0 | BN162: 0 | BO162: 0 | BP162: 0 | BQ162: 0 | BR162: 0 | BS162: 0 | BT162: 0 | BU162: 0 | BV162: 0 | BW162: 0 | BX162: 0 | BY162: 0 | BZ162: 0 | CA162: 0 | CB162: 0.17 | CC162: 0 | CD162: 0 | CE162: 0 | CF162: 0 | CG162: 0 | CH162: 0
B163: 154 | C163: Earthing system - ZN | D163: REP_02.02.09 | F163: Replacement | K163: 196.8183735 | L163: 224.935284 | M163: 196.8183735 | N163: 224.935284 | O163: 224.935284 | Y163: 1 | Z163: 0 | AA163: 0 | AC163: Yes | AD163: No | AF163: 0.001493721512 | AG163: 0 | AI163: 1 | AJ163: 0 | AK163: 0 | AL163: 0 | AM163: 0 | AN163: 0 | AO163: 0 | AP163: 0 | AQ163: 0 | AS163: 0 | AT163: 0 | AU163: 0 | AV163: 0 | AW163: 0 | AX163: 0 | AY163: 0 | AZ163: 0 | BA163: 0 | BB163: 0 | BC163: 0 | BD163: 0 | BE163: 0.931 | BF163: 0 | BG163: 0 | BH163: 0 | BI163: 0 | BJ163: 0 | BK163: 0 | BL163: 0 | BM163: 0 | BN163: 0 | BO163: 0 | BP163: 0 | BQ163: 0 | BR163: 0 | BS163: 0 | BT163: 0 | BU163: 0 | BV163: 0 | BW163: 0 | BX163: 0 | BY163: 0 | BZ163: 0 | CA163: 0 | CB163: 0.069 | CC163: 0 | CD163: 0 | CE163: 0 | CF163: 0 | CG163: 0 | CH163: 0
B164: 155 | C164: 33KV I&Es - ZN | D164: REP_02.02.38 | F164: Replacement | K164: 778.0902404 | L164: 778.0902404 | M164: 778.0902404 | N164: 778.0902404 | O164: 778.0902404 | Y164: 0.4511039824 | Z164: 0.09083779275 | AA164: 0.4580582248 | AC164: Yes | AD164: No | AF164: 0.002453550911 | AG164: 0 | AI164: 1 | AJ164: 0 | AK164: 0 | AL164: 0 | AM164: 0 | AN164: 0 | AO164: 0 | AP164: 0 | AQ164: 0 | AS164: 0 | AT164: 0 | AU164: 0 | AV164: 0 | AW164: 0 | AX164: 0 | AY164: 0 | AZ164: 0 | BA164: 0 | BB164: 0 | BC164: 0 | BD164: 0 | BE164: 1 | BF164: 0 | BG164: 0 | BH164: 0 | BI164: 0 | BJ164: 0 | BK164: 0 | BL164: 0 | BM164: 0 | BN164: 0 | BO164: 0 | BP164: 0 | BQ164: 0 | BR164: 0 | BS164: 0 | BT164: 0 | BU164: 0 | BV164: 0 | BW164: 0 | BX164: 0 | BY164: 0 | BZ164: 0 | CA164: 0 | CB164: 0 | CC164: 0 | CD164: 0 | CE164: 0 | CF164: 0 | CG164: 0 | CH164: 0
B165: 156 | C165: Post VTs - ZN | D165: REP_02.02.41 | F165: Replacement | K165: 468.0422159 | L165: 468.0422159 | M165: 468.0422159 | N165: 468.0422159 | O165: 468.0422159 | Y165: 0.5164957407 | Z165: 0.04069598612 | AA165: 0.4428082732 | AC165: Yes | AD165: No | AF165: 0.001689819106 | AG165: 0 | AI165: 1 | AJ165: 0 | AK165: 0 | AL165: 0 | AM165: 0 | AN165: 0 | AO165: 0 | AP165: 0 | AQ165: 0 | AS165: 0.65 | AT165: 0 | AU165: 0 | AV165: 0 | AW165: 0 | AX165: 0 | AY165: 0 | AZ165: 0 | BA165: 0 | BB165: 0 | BC165: 0 | BD165: 0 | BE165: 0 | BF165: 0 | BG165: 0 | BH165: 0 | BI165: 0 | BJ165: 0 | BK165: 0 | BL165: 0 | BM165: 0 | BN165: 0 | BO165: 0 | BP165: 0 | BQ165: 0.35 | BR165: 0 | BS165: 0 | BT165: 0 | BU165: 0 | BV165: 0 | BW165: 0 | BX165: 0 | BY165: 0 | BZ165: 0 | CA165: 0 | CB165: 0 | CC165: 0 | CD165: 0 | CE165: 0 | CF165: 0 | CG165: 0 | CH165: 0
B166: 157 | C166: Substation Roof - ZN | D166: REP_02.02.42 | F166: Replacement | K166: 1129.690076 | L166: 1129.690076 | M166: 1129.690076 | N166: 1129.690076 | O166: 1129.690076 | Y166: 0.2645311795 | Z166: 0.6888959339 | AA166: 0.04657288659 | AC166: Yes | AD166: No | AF166: 0.002088933559 | AG166: 0 | AI166: 1 | AJ166: 0 | AK166: 0 | AL166: 0 | AM166: 0 | AN166: 0 | AO166: 0 | AP166: 0 | AQ166: 0 | AS166: 0 | AT166: 0 | AU166: 0.83 | AV166: 0 | AW166: 0 | AX166: 0 | AY166: 0 | AZ166: 0 | BA166: 0 | BB166: 0 | BC166: 0 | BD166: 0 | BE166: 0 | BF166: 0 | BG166: 0 | BH166: 0 | BI166: 0 | BJ166: 0 | BK166: 0 | BL166: 0 | BM166: 0 | BN166: 0 | BO166: 0 | BP166: 0 | BQ166: 0 | BR166: 0 | BS166: 0.17 | BT166: 0 | BU166: 0 | BV166: 0 | BW166: 0 | BX166: 0 | BY166: 0 | BZ166: 0 | CA166: 0 | CB166: 0 | CC166: 0 | CD166: 0 | CE166: 0 | CF166: 0 | CG166: 0 | CH166: 0
B167: 158 | C167: Pits Lids - ZN | D167: REP_02.02.43 | F167: Replacement | K167: 10.10789244 | L167: 10.10789244 | M167: 10.10789244 | N167: 10.10789244 | O167: 10.10789244 | Y167: 0.3903430375 | Z167: 0 | AA167: 0.6096569625 | AC167: Yes | AD167: No | AF167: 2.758007824e-05 | AG167: 0 | AI167: 1 | AJ167: 0 | AK167: 0 | AL167: 0 | AM167: 0 | AN167: 0 | AO167: 0 | AP167: 0 | AQ167: 0 | AS167: 0 | AT167: 0 | AU167: 0.939 | AV167: 0 | AW167: 0 | AX167: 0 | AY167: 0 | AZ167: 0 | BA167: 0 | BB167: 0 | BC167: 0 | BD167: 0 | BE167: 0 | BF167: 0 | BG167: 0 | BH167: 0 | BI167: 0 | BJ167: 0 | BK167: 0 | BL167: 0 | BM167: 0 | BN167: 0 | BO167: 0 | BP167: 0 | BQ167: 0 | BR167: 0 | BS167: 0.061 | BT167: 0 | BU167: 0 | BV167: 0 | BW167: 0 | BX167: 0 | BY167: 0 | BZ167: 0 | CA167: 0 | CB167: 0 | CC167: 0 | CD167: 0 | CE167: 0 | CF167: 0 | CG167: 0 | CH167: 0
B168: 159 | C168: SCADA Schemes - ZN | D168: REP_02.02.46 | F168: Replacement | K168: 740.4517237 | L168: 403.6201742 | M168: 403.6201742 | N168: 403.6201742 | O168: 403.6201742 | Y168: 0.235332243 | Z168: 0.0008580373612 | AA168: 0.7638097196 | AC168: Yes | AD168: No | AF168: 0.0007747798609 | AG168: 0 | AI168: 1 | AJ168: 0 | AK168: 0 | AL168: 0 | AM168: 0 | AN168: 0 | AO168: 0 | AP168: 0 | AQ168: 0 | AS168: 0 | AT168: 0 | AU168: 0 | AV168: 0 | AW168: 0 | AX168: 0 | AY168: 0 | AZ168: 0 | BA168: 0 | BB168: 0 | BC168: 0 | BD168: 0 | BE168: 0 | BF168: 0.77 | BG168: 0 | BH168: 0 | BI168: 0 | BJ168: 0 | BK168: 0 | BL168: 0 | BM168: 0 | BN168: 0 | BO168: 0 | BP168: 0 | BQ168: 0 | BR168: 0 | BS168: 0 | BT168: 0 | BU168: 0 | BV168: 0 | BW168: 0 | BX168: 0.23 | BY168: 0 | BZ168: 0 | CA168: 0 | CB168: 0 | CC168: 0 | CD168: 0 | CE168: 0 | CF168: 0 | CG168: 0 | CH168: 0
B169: 160 | C169: Steel Structures - ZN | D169: REP_02.02.47 | F169: Replacement | K169: 208.8595663 | L169: 208.8595663 | M169: 208.8595663 | N169: 208.8595663 | O169: 208.8595663 | Y169: 0.3413945585 | Z169: 0.1754740788 | AA169: 0.4831313627 | AC169: Yes | AD169: No | AF169: 0.0004984245339 | AG169: 0 | AI169: 1 | AJ169: 0 | AK169: 0 | AL169: 0 | AM169: 0 | AN169: 0 | AO169: 0 | AP169: 0 | AQ169: 0 | AS169: 0 | AT169: 0 | AU169: 0.939 | AV169: 0 | AW169: 0 | AX169: 0 | AY169: 0 | AZ169: 0 | BA169: 0 | BB169: 0 | BC169: 0 | BD169: 0 | BE169: 0 | BF169: 0 | BG169: 0 | BH169: 0 | BI169: 0 | BJ169: 0 | BK169: 0 | BL169: 0 | BM169: 0 | BN169: 0 | BO169: 0 | BP169: 0 | BQ169: 0 | BR169: 0 | BS169: 0.061 | BT169: 0 | BU169: 0 | BV169: 0 | BW169: 0 | BX169: 0 | BY169: 0 | BZ169: 0 | CA169: 0 | CB169: 0 | CC169: 0 | CD169: 0 | CE169: 0 | CF169: 0 | CG169: 0 | CH169: 0
B170: 161 | C170: PINC/MPLS Edge - ZN | D170: REP_02.02.48 | F170: Replacement | K170: 70.76055946 | L170: 70.76055946 | M170: 70.76055946 | N170: 70.76055946 | O170: 70.76055946 | Y170: 0.3903430339 | Z170: 0 | AA170: 0.6096569661 | AC170: Yes | AD170: No | AF170: 0.0001930750412 | AG170: 0 | AI170: 1 | AJ170: 0 | AK170: 0 | AL170: 0 | AM170: 0 | AN170: 0 | AO170: 0 | AP170: 0 | AQ170: 0 | AS170: 0 | AT170: 0 | AU170: 0 | AV170: 0 | AW170: 0 | AX170: 0 | AY170: 0 | AZ170: 0 | BA170: 0 | BB170: 0 | BC170: 0 | BD170: 0 | BE170: 0 | BF170: 0.939 | BG170: 0 | BH170: 0 | BI170: 0 | BJ170: 0 | BK170: 0 | BL170: 0 | BM170: 0 | BN170: 0 | BO170: 0 | BP170: 0 | BQ170: 0 | BR170: 0 | BS170: 0 | BT170: 0 | BU170: 0 | BV170: 0 | BW170: 0 | BX170: 0.061 | BY170: 0 | BZ170: 0 | CA170: 0 | CB170: 0 | CC170: 0 | CD170: 0 | CE170: 0 | CF170: 0 | CG170: 0 | CH170: 0
B171: 162 | C171: Lightning Spires - ZN | D171: REP_02.02.49 | F171: Replacement | K171: 104.5138976 | L171: 104.5138976 | M171: 104.5138976 | N171: 104.5138976 | O171: 104.5138976 | Y171: 0.390343034 | Z171: 0 | AA171: 0.609656966 | AC171: Yes | AD171: No | AF171: 0.0002851733401 | AG171: 0 | AI171: 1 | AJ171: 0 | AK171: 0 | AL171: 0 | AM171: 0 | AN171: 0 | AO171: 0 | AP171: 0 | AQ171: 0 | AS171: 0 | AT171: 0 | AU171: 0.939 | AV171: 0 | AW171: 0 | AX171: 0 | AY171: 0 | AZ171: 0 | BA171: 0 | BB171: 0 | BC171: 0 | BD171: 0 | BE171: 0 | BF171: 0 | BG171: 0 | BH171: 0 | BI171: 0 | BJ171: 0 | BK171: 0 | BL171: 0 | BM171: 0 | BN171: 0 | BO171: 0 | BP171: 0 | BQ171: 0 | BR171: 0 | BS171: 0.061 | BT171: 0 | BU171: 0 | BV171: 0 | BW171: 0 | BX171: 0 | BY171: 0 | BZ171: 0 | CA171: 0 | CB171: 0 | CC171: 0 | CD171: 0 | CE171: 0 | CF171: 0 | CG171: 0 | CH171: 0
B172: 163 | C172: Protection Schemes - ZN | D172: REP_02.02.51 | F172: Replacement | K172: 1985.066138 | L172: 1985.066138 | M172: 2107.277076 | N172: 1985.066138 | O172: 2107.277076 | Y172: 0.6375243639 | Z172: 0 | AA172: 0.3624756361 | AC172: Yes | AD172: No | AF172: 0.009064119314 | AG172: 0 | AI172: 1 | AJ172: 0 | AK172: 0 | AL172: 0 | AM172: 0 | AN172: 0 | AO172: 0 | AP172: 0 | AQ172: 0 | AS172: 0.88 | AT172: 0 | AU172: 0 | AV172: 0 | AW172: 0 | AX172: 0 | AY172: 0 | AZ172: 0 | BA172: 0 | BB172: 0 | BC172: 0 | BD172: 0 | BE172: 0 | BF172: 0 | BG172: 0 | BH172: 0 | BI172: 0 | BJ172: 0 | BK172: 0 | BL172: 0 | BM172: 0 | BN172: 0 | BO172: 0 | BP172: 0 | BQ172: 0.12 | BR172: 0 | BS172: 0 | BT172: 0 | BU172: 0 | BV172: 0 | BW172: 0 | BX172: 0 | BY172: 0 | BZ172: 0 | CA172: 0 | CB172: 0 | CC172: 0 | CD172: 0 | CE172: 0 | CF172: 0 | CG172: 0 | CH172: 0
B173: 164 | C173: Power Reactors - ZN | D173: REP_02.02.52 | F173: Replacement | K173: 216.3716401 | L173: 216.3716401 | M173: 216.3716401 | N173: 216.3716401 | O173: 216.3716401 | Y173: 0.3903430337 | Z173: 0 | AA173: 0.6096569663 | AC173: Yes | AD173: No | AF173: 0.0005903848643 | AG173: 0 | AI173: 1 | AJ173: 0 | AK173: 0 | AL173: 0 | AM173: 0 | AN173: 0 | AO173: 0 | AP173: 0 | AQ173: 0 | AS173: 0 | AT173: 0 | AU173: 0 | AV173: 0 | AW173: 0 | AX173: 0 | AY173: 0 | AZ173: 0 | BA173: 0 | BB173: 0 | BC173: 0 | BD173: 0 | BE173: 1 | BF173: 0 | BG173: 0 | BH173: 0 | BI173: 0 | BJ173: 0 | BK173: 0 | BL173: 0 | BM173: 0 | BN173: 0 | BO173: 0 | BP173: 0 | BQ173: 0 | BR173: 0 | BS173: 0 | BT173: 0 | BU173: 0 | BV173: 0 | BW173: 0 | BX173: 0 | BY173: 0 | BZ173: 0 | CA173: 0 | CB173: 0 | CC173: 0 | CD173: 0 | CE173: 0 | CF173: 0 | CG173: 0 | CH173: 0
B174: 165 | C174: Transformer Replacement (utilising existing holdings) - ZN | D174: REP_02.02.53 | F174: Replacement | K174: 6351.654762 | L174: 6351.654762 | M174: 6351.654762 | N174: 6351.654762 | O174: 6351.654762 | Y174: 0.1872464005 | Z174: 0.07205924081 | AA174: 0.7406943587 | AC174: Yes | AD174: No | AF174: 0.008313593913 | AG174: 0 | AI174: 1 | AJ174: 0 | AK174: 0 | AL174: 0 | AM174: 0 | AN174: 0 | AO174: 0 | AP174: 0 | AQ174: 0 | AS174: 0 | AT174: 0 | AU174: 0 | AV174: 0 | AW174: 0 | AX174: 0 | AY174: 0 | AZ174: 0 | BA174: 0 | BB174: 0 | BC174: 0 | BD174: 0 | BE174: 0 | BF174: 0 | BG174: 0.83 | BH174: 0 | BI174: 0 | BJ174: 0 | BK174: 0 | BL174: 0 | BM174: 0 | BN174: 0 | BO174: 0 | BP174: 0 | BQ174: 0 | BR174: 0 | BS174: 0 | BT174: 0 | BU174: 0 | BV174: 0 | BW174: 0 | BX174: 0 | BY174: 0 | BZ174: 0 | CA174: 0 | CB174: 0 | CC174: 0.17 | CD174: 0 | CE174: 0 | CF174: 0 | CG174: 0 | CH174: 0
B175: 166 | C175: CLC Controllers - ZN | D175: REP_02.02.54 | F175: Replacement | K175: 0.1786703113 | L175: 0.1786703113 | M175: 0.1786703113 | N175: 0.1786703113 | O175: 0.1786703113 | Y175: 0.3903430334 | Z175: 0 | AA175: 0.6096569666 | AC175: Yes | AD175: No | AF175: 4.875142017e-07 | AG175: 0 | AI175: 1 | AJ175: 0 | AK175: 0 | AL175: 0 | AM175: 0 | AN175: 0 | AO175: 0 | AP175: 0 | AQ175: 0 | AS175: 1 | AT175: 0 | AU175: 0 | AV175: 0 | AW175: 0 | AX175: 0 | AY175: 0 | AZ175: 0 | BA175: 0 | BB175: 0 | BC175: 0 | BD175: 0 | BE175: 0 | BF175: 0 | BG175: 0 | BH175: 0 | BI175: 0 | BJ175: 0 | BK175: 0 | BL175: 0 | BM175: 0 | BN175: 0 | BO175: 0 | BP175: 0 | BQ175: 0 | BR175: 0 | BS175: 0 | BT175: 0 | BU175: 0 | BV175: 0 | BW175: 0 | BX175: 0 | BY175: 0 | BZ175: 0 | CA175: 0 | CB175: 0 | CC175: 0 | CD175: 0 | CE175: 0 | CF175: 0 | CG175: 0 | CH175: 0
B176: 167 | C176: Neutral Earthing Resistors - ZN | D176: REP_02.02.59 | F176: Replacement | K176: 770.7958661 | L176: 385.3979331 | M176: 0 | N176: 0 | O176: 0 | Y176: 0.0997975333 | Z176: 0 | AA176: 0.9002024667 | AC176: Yes | AD176: No | AF176: 0.00016131282 | AG176: 0 | AI176: 1 | AJ176: 0 | AK176: 0 | AL176: 0 | AM176: 0 | AN176: 0 | AO176: 0 | AP176: 0 | AQ176: 0 | AS176: 0 | AT176: 0 | AU176: 0 | AV176: 0 | AW176: 0 | AX176: 0 | AY176: 0 | AZ176: 0 | BA176: 0 | BB176: 0 | BC176: 0 | BD176: 0 | BE176: 0 | BF176: 0 | BG176: 0 | BH176: 0 | BI176: 0 | BJ176: 0 | BK176: 0 | BL176: 0 | BM176: 0 | BN176: 0 | BO176: 0 | BP176: 0 | BQ176: 0 | BR176: 0 | BS176: 0 | BT176: 0 | BU176: 0 | BV176: 0 | BW176: 0 | BX176: 0 | BY176: 0 | BZ176: 0 | CA176: 0 | CB176: 1 | CC176: 0 | CD176: 0 | CE176: 0 | CF176: 0 | CG176: 0 | CH176: 0
B177: 168 | C177: 11kV Switchboard Protection - ZN | D177: REP_02.02.60 | F177: Replacement | K177: 307.21946 | L177: 307.21946 | M177: 0 | N177: 0 | O177: 0 | Y177: 0.7388199627 | Z177: 0 | AA177: 0.2611800373 | AC177: Yes | AD177: No | AF177: 0.0006346521842 | AG177: 0 | AI177: 1 | AJ177: 0 | AK177: 0 | AL177: 0 | AM177: 0 | AN177: 0 | AO177: 0 | AP177: 0 | AQ177: 0 | AS177: 1 | AT177: 0 | AU177: 0 | AV177: 0 | AW177: 0 | AX177: 0 | AY177: 0 | AZ177: 0 | BA177: 0 | BB177: 0 | BC177: 0 | BD177: 0 | BE177: 0 | BF177: 0 | BG177: 0 | BH177: 0 | BI177: 0 | BJ177: 0 | BK177: 0 | BL177: 0 | BM177: 0 | BN177: 0 | BO177: 0 | BP177: 0 | BQ177: 0 | BR177: 0 | BS177: 0 | BT177: 0 | BU177: 0 | BV177: 0 | BW177: 0 | BX177: 0 | BY177: 0 | BZ177: 0 | CA177: 0 | CB177: 0 | CC177: 0 | CD177: 0 | CE177: 0 | CF177: 0 | CG177: 0 | CH177: 0
B178: 169 | C178: High Impedance Busbar Protection - ZN | D178: REP_02.02.61 | F178: Replacement | K178: 284.1254211 | L178: 0 | M178: 0 | N178: 0 | O178: 0 | Y178: 0.710219488 | Z178: 0 | AA178: 0.289780512 | AC178: Yes | AD178: No | AF178: 0.0002821117129 | AG178: 0 | AI178: 1 | AJ178: 0 | AK178: 0 | AL178: 0 | AM178: 0 | AN178: 0 | AO178: 0 | AP178: 0 | AQ178: 0 | AS178: 0.4 | AT178: 0 | AU178: 0 | AV178: 0 | AW178: 0 | AX178: 0 | AY178: 0 | AZ178: 0 | BA178: 0 | BB178: 0 | BC178: 0 | BD178: 0 | BE178: 0 | BF178: 0 | BG178: 0 | BH178: 0 | BI178: 0 | BJ178: 0 | BK178: 0 | BL178: 0 | BM178: 0 | BN178: 0 | BO178: 0 | BP178: 0 | BQ178: 0.6 | BR178: 0 | BS178: 0 | BT178: 0 | BU178: 0 | BV178: 0 | BW178: 0 | BX178: 0 | BY178: 0 | BZ178: 0 | CA178: 0 | CB178: 0 | CC178: 0 | CD178: 0 | CE178: 0 | CF178: 0 | CG178: 0 | CH178: 0
B179: 170 | C179: SCADA Equipment - ZN | D179: REP_02.02.62 | F179: Replacement | K179: 258.7097689 | L179: 258.7097689 | M179: 258.7097689 | N179: 258.7097689 | O179: 258.7097689 | Y179: 0.647621192 | Z179: 0 | AA179: 0.352378808 | AC179: Yes | AD179: No | AF179: 0.001171176433 | AG179: 0 | AI179: 1 | AJ179: 0 | AK179: 0 | AL179: 0 | AM179: 0 | AN179: 0 | AO179: 0 | AP179: 0 | AQ179: 0 | AS179: 0 | AT179: 0 | AU179: 0 | AV179: 0 | AW179: 0 | AX179: 0 | AY179: 0 | AZ179: 0 | BA179: 0 | BB179: 0 | BC179: 0 | BD179: 0 | BE179: 0 | BF179: 0.95 | BG179: 0 | BH179: 0 | BI179: 0 | BJ179: 0 | BK179: 0 | BL179: 0 | BM179: 0 | BN179: 0 | BO179: 0 | BP179: 0 | BQ179: 0 | BR179: 0 | BS179: 0 | BT179: 0 | BU179: 0 | BV179: 0 | BW179: 0 | BX179: 0.05 | BY179: 0 | BZ179: 0 | CA179: 0 | CB179: 0 | CC179: 0 | CD179: 0 | CE179: 0 | CF179: 0 | CG179: 0 | CH179: 0
B180: 171 | C180: Audio Frequency Load Control Equipment - ZN | D180: REP_02.02.64 | F180: Replacement | K180: 3.618229006 | L180: 3.618229006 | M180: 3.618229006 | N180: 3.618229006 | O180: 3.618229006 | Y180: 0.390343039 | Z180: 0 | AA180: 0.609656961 | AC180: Yes | AD180: No | AF180: 9.87258621e-06 | AG180: 0 | AI180: 1 | AJ180: 0 | AK180: 0 | AL180: 0 | AM180: 0 | AN180: 0 | AO180: 0 | AP180: 0 | AQ180: 0 | AS180: 1 | AT180: 0 | AU180: 0 | AV180: 0 | AW180: 0 | AX180: 0 | AY180: 0 | AZ180: 0 | BA180: 0 | BB180: 0 | BC180: 0 | BD180: 0 | BE180: 0 | BF180: 0 | BG180: 0 | BH180: 0 | BI180: 0 | BJ180: 0 | BK180: 0 | BL180: 0 | BM180: 0 | BN180: 0 | BO180: 0 | BP180: 0 | BQ180: 0 | BR180: 0 | BS180: 0 | BT180: 0 | BU180: 0 | BV180: 0 | BW180: 0 | BX180: 0 | BY180: 0 | BZ180: 0 | CA180: 0 | CB180: 0 | CC180: 0 | CD180: 0 | CE180: 0 | CF180: 0 | CG180: 0 | CH180: 0
B181: 172 | C181: 132 kV Circuit Breakers - ZN | D181: REP_02.03.01 | F181: Replacement | K181: 86.59237823 | L181: 86.59237823 | M181: 86.59237823 | N181: 86.59237823 | O181: 86.59237823 | Y181: 0.3903430339 | Z181: 0 | AA181: 0.6096569661 | AC181: Yes | AD181: No | AF181: 0.0002362732449 | AG181: 0 | AI181: 1 | AJ181: 0 | AK181: 0 | AL181: 0 | AM181: 0 | AN181: 0 | AO181: 0 | AP181: 0 | AQ181: 0 | AS181: 0 | AT181: 0 | AU181: 0 | AV181: 0 | AW181: 0 | AX181: 0 | AY181: 0 | AZ181: 0 | BA181: 0 | BB181: 0 | BC181: 0 | BD181: 0 | BE181: 0.3 | BF181: 0 | BG181: 0 | BH181: 0 | BI181: 0 | BJ181: 0 | BK181: 0 | BL181: 0 | BM181: 0 | BN181: 0 | BO181: 0 | BP181: 0 | BQ181: 0 | BR181: 0 | BS181: 0 | BT181: 0 | BU181: 0 | BV181: 0 | BW181: 0 | BX181: 0 | BY181: 0 | BZ181: 0 | CA181: 0 | CB181: 0.7 | CC181: 0 | CD181: 0 | CE181: 0 | CF181: 0 | CG181: 0 | CH181: 0
B182: 173 | C182: 66kV Circuit Breakers - ZN | D182: REP_02.03.03 | F182: Replacement | K182: 24.39478481 | L182: 24.39478481 | M182: 24.39478481 | N182: 24.39478481 | O182: 24.39478481 | Y182: 0.3903430337 | Z182: 0 | AA182: 0.6096569663 | AC182: Yes | AD182: No | AF182: 6.656284396e-05 | AG182: 0 | AI182: 1 | AJ182: 0 | AK182: 0 | AL182: 0 | AM182: 0 | AN182: 0 | AO182: 0 | AP182: 0 | AQ182: 0 | AS182: 0 | AT182: 0 | AU182: 0 | AV182: 0 | AW182: 0 | AX182: 0 | AY182: 0 | AZ182: 0 | BA182: 0 | BB182: 0 | BC182: 0 | BD182: 0 | BE182: 0.96 | BF182: 0 | BG182: 0 | BH182: 0 | BI182: 0 | BJ182: 0 | BK182: 0 | BL182: 0 | BM182: 0 | BN182: 0 | BO182: 0 | BP182: 0 | BQ182: 0 | BR182: 0 | BS182: 0 | BT182: 0 | BU182: 0 | BV182: 0 | BW182: 0 | BX182: 0 | BY182: 0 | BZ182: 0 | CA182: 0 | CB182: 0.04 | CC182: 0 | CD182: 0 | CE182: 0 | CF182: 0 | CG182: 0 | CH182: 0
B183: 174 | C183: 33kV Circuit Breakers - ZN | D183: REP_02.03.04 | F183: Replacement | K183: 93.63749202 | L183: 93.63749202 | M183: 93.63749202 | N183: 93.63749202 | O183: 93.63749202 | Y183: 0.3903430339 | Z183: 0 | AA183: 0.6096569661 | AC183: Yes | AD183: No | AF183: 0.0002554963212 | AG183: 0 | AI183: 1 | AJ183: 0 | AK183: 0 | AL183: 0 | AM183: 0 | AN183: 0 | AO183: 0 | AP183: 0 | AQ183: 0 | AS183: 0 | AT183: 0 | AU183: 0 | AV183: 0 | AW183: 0 | AX183: 0 | AY183: 0 | AZ183: 0 | BA183: 0 | BB183: 0 | BC183: 0 | BD183: 0 | BE183: 1 | BF183: 0 | BG183: 0 | BH183: 0 | BI183: 0 | BJ183: 0 | BK183: 0 | BL183: 0 | BM183: 0 | BN183: 0 | BO183: 0 | BP183: 0 | BQ183: 0 | BR183: 0 | BS183: 0 | BT183: 0 | BU183: 0 | BV183: 0 | BW183: 0 | BX183: 0 | BY183: 0 | BZ183: 0 | CA183: 0 | CB183: 0 | CC183: 0 | CD183: 0 | CE183: 0 | CF183: 0 | CG183: 0 | CH183: 0
B184: 175 | C184: 132/66kV Bushings - ZN | D184: REP_02.03.05 | F184: Replacement | K184: 594.0823191 | L184: 884.800413 | M184: 12.64613142 | N184: 12.64613142 | O184: 12.64613142 | Y184: 0.3721830518 | Z184: 0.2449115413 | AA184: 0.3829054068 | AC184: Yes | AD184: No | AF184: 0.000789240571 | AG184: 0 | AI184: 1 | AJ184: 0 | AK184: 0 | AL184: 0 | AM184: 0 | AN184: 0 | AO184: 0 | AP184: 0 | AQ184: 0 | AS184: 0 | AT184: 0 | AU184: 0 | AV184: 0 | AW184: 0 | AX184: 0 | AY184: 0 | AZ184: 0 | BA184: 0 | BB184: 0 | BC184: 0 | BD184: 0 | BE184: 0 | BF184: 0 | BG184: 0.813 | BH184: 0 | BI184: 0 | BJ184: 0 | BK184: 0 | BL184: 0 | BM184: 0 | BN184: 0 | BO184: 0 | BP184: 0 | BQ184: 0 | BR184: 0 | BS184: 0 | BT184: 0 | BU184: 0 | BV184: 0 | BW184: 0 | BX184: 0 | BY184: 0 | BZ184: 0 | CA184: 0 | CB184: 0 | CC184: 0.187 | CD184: 0 | CE184: 0 | CF184: 0 | CG184: 0 | CH184: 0
B185: 176 | C185: Protection Relays - ZN | D185: REP_02.03.07 | F185: Replacement | K185: 1139.940801 | L185: 1030.441441 | M185: 1030.441441 | N185: 1030.441441 | O185: 1030.441441 | Y185: 0.587609382 | Z185: 0 | AA185: 0.412390618 | AC185: Yes | AD185: No | AF185: 0.004322487901 | AG185: 0 | AI185: 1 | AJ185: 0 | AK185: 0 | AL185: 0 | AM185: 0 | AN185: 0 | AO185: 0 | AP185: 0 | AQ185: 0 | AS185: 0.54 | AT185: 0 | AU185: 0 | AV185: 0 | AW185: 0 | AX185: 0 | AY185: 0 | AZ185: 0 | BA185: 0 | BB185: 0 | BC185: 0 | BD185: 0 | BE185: 0 | BF185: 0 | BG185: 0 | BH185: 0 | BI185: 0 | BJ185: 0 | BK185: 0 | BL185: 0 | BM185: 0 | BN185: 0 | BO185: 0 | BP185: 0 | BQ185: 0.46 | BR185: 0 | BS185: 0 | BT185: 0 | BU185: 0 | BV185: 0 | BW185: 0 | BX185: 0 | BY185: 0 | BZ185: 0 | CA185: 0 | CB185: 0 | CC185: 0 | CD185: 0 | CE185: 0 | CF185: 0 | CG185: 0 | CH185: 0
B186: 177 | C186: High Priority Relays - ZN | D186: REP_02.03.08 | F186: Replacement | K186: 839.5758257 | L186: 839.5758257 | M186: 839.5758257 | N186: 839.5758257 | O186: 839.5758257 | Y186: 0.721210635 | Z186: 0 | AA186: 0.278789365 | AC186: Yes | AD186: No | AF186: 0.004232631818 | AG186: 0 | AI186: 1 | AJ186: 0 | AK186: 0 | AL186: 0 | AM186: 0 | AN186: 0 | AO186: 0 | AP186: 0 | AQ186: 0 | AS186: 0.78 | AT186: 0 | AU186: 0 | AV186: 0 | AW186: 0 | AX186: 0 | AY186: 0 | AZ186: 0 | BA186: 0 | BB186: 0 | BC186: 0 | BD186: 0 | BE186: 0 | BF186: 0 | BG186: 0 | BH186: 0 | BI186: 0 | BJ186: 0 | BK186: 0 | BL186: 0 | BM186: 0 | BN186: 0 | BO186: 0 | BP186: 0 | BQ186: 0.22 | BR186: 0 | BS186: 0 | BT186: 0 | BU186: 0 | BV186: 0 | BW186: 0 | BX186: 0 | BY186: 0 | BZ186: 0 | CA186: 0 | CB186: 0 | CC186: 0 | CD186: 0 | CE186: 0 | CF186: 0 | CG186: 0 | CH186: 0
B187: 178 | C187: Voltage Regulation Equipment - ZN | D187: REP_02.03.10 | F187: Replacement | K187: 232.4163745 | L187: 84.35065819 | M187: 84.35065819 | N187: 84.35065819 | O187: 84.35065819 | Y187: 0.4702151242 | Z187: 0 | AA187: 0.5297848758 | AC187: Yes | AD187: No | AF187: 0.000374586366 | AG187: 0 | AI187: 1 | AJ187: 0 | AK187: 0 | AL187: 0 | AM187: 0 | AN187: 0 | AO187: 0 | AP187: 0 | AQ187: 0 | AS187: 0.933 | AT187: 0 | AU187: 0 | AV187: 0 | AW187: 0 | AX187: 0 | AY187: 0 | AZ187: 0 | BA187: 0 | BB187: 0 | BC187: 0 | BD187: 0 | BE187: 0 | BF187: 0 | BG187: 0 | BH187: 0 | BI187: 0 | BJ187: 0 | BK187: 0 | BL187: 0 | BM187: 0 | BN187: 0 | BO187: 0 | BP187: 0 | BQ187: 0.067 | BR187: 0 | BS187: 0 | BT187: 0 | BU187: 0 | BV187: 0 | BW187: 0 | BX187: 0 | BY187: 0 | BZ187: 0 | CA187: 0 | CB187: 0 | CC187: 0 | CD187: 0 | CE187: 0 | CF187: 0 | CG187: 0 | CH187: 0
B188: 179 | C188: Batteries and Battery Charging Equipment - ZN | D188: REP_02.03.11 | F188: Replacement | K188: 1118.426814 | L188: 534.9722172 | M188: 1312.911679 | N188: 1312.911679 | O188: 437.7297845 | Y188: 0.4835041354 | Z188: 0.1950411974 | AA188: 0.3214546672 | AC188: Yes | AD188: No | AF188: 0.003188453637 | AG188: 0 | AI188: 1 | AJ188: 0 | AK188: 0 | AL188: 0 | AM188: 0 | AN188: 0 | AO188: 0 | AP188: 0 | AQ188: 0 | AS188: 0.894 | AT188: 0 | AU188: 0 | AV188: 0 | AW188: 0 | AX188: 0 | AY188: 0 | AZ188: 0 | BA188: 0 | BB188: 0 | BC188: 0 | BD188: 0 | BE188: 0 | BF188: 0 | BG188: 0 | BH188: 0 | BI188: 0 | BJ188: 0 | BK188: 0 | BL188: 0 | BM188: 0 | BN188: 0 | BO188: 0 | BP188: 0 | BQ188: 0.106 | BR188: 0 | BS188: 0 | BT188: 0 | BU188: 0 | BV188: 0 | BW188: 0 | BX188: 0 | BY188: 0 | BZ188: 0 | CA188: 0 | CB188: 0 | CC188: 0 | CD188: 0 | CE188: 0 | CF188: 0 | CG188: 0 | CH188: 0
B189: 180 | C189: Post CTs - ZN | D189: REP_02.03.12 | F189: Replacement | K189: 360.3557303 | L189: 360.3557303 | M189: 360.3557303 | N189: 360.3557303 | O189: 360.3557303 | Y189: 0.273736902 | Z189: 0.02642866124 | AA189: 0.6998344368 | AC189: Yes | AD189: No | AF189: 0.0006895300937 | AG189: 0 | AI189: 1 | AJ189: 0 | AK189: 0 | AL189: 0 | AM189: 0 | AN189: 0 | AO189: 0 | AP189: 0 | AQ189: 0 | AS189: 0.832 | AT189: 0 | AU189: 0 | AV189: 0 | AW189: 0 | AX189: 0 | AY189: 0 | AZ189: 0 | BA189: 0 | BB189: 0 | BC189: 0 | BD189: 0 | BE189: 0 | BF189: 0 | BG189: 0 | BH189: 0 | BI189: 0 | BJ189: 0 | BK189: 0 | BL189: 0 | BM189: 0 | BN189: 0 | BO189: 0 | BP189: 0 | BQ189: 0.168 | BR189: 0 | BS189: 0 | BT189: 0 | BU189: 0 | BV189: 0 | BW189: 0 | BX189: 0 | BY189: 0 | BZ189: 0 | CA189: 0 | CB189: 0 | CC189: 0 | CD189: 0 | CE189: 0 | CF189: 0 | CG189: 0 | CH189: 0
B190: 181 | C190: PINC/MPLS Core - ZN | D190: REP_02.03.15 | F190: Replacement | K190: 119.2240535 | L190: 119.2240535 | M190: 119.2240535 | N190: 119.2240535 | O190: 119.2240535 | Y190: 0.3903430337 | Z190: 0 | AA190: 0.6096569663 | AC190: Yes | AD190: No | AF190: 0.0003253110095 | AG190: 0 | AI190: 1 | AJ190: 0 | AK190: 0 | AL190: 0 | AM190: 0 | AN190: 0 | AO190: 0 | AP190: 0 | AQ190: 0 | AS190: 0 | AT190: 0 | AU190: 0 | AV190: 0 | AW190: 0 | AX190: 0 | AY190: 0 | AZ190: 0 | BA190: 0 | BB190: 0 | BC190: 0 | BD190: 0 | BE190: 0 | BF190: 0.54 | BG190: 0 | BH190: 0 | BI190: 0 | BJ190: 0 | BK190: 0 | BL190: 0 | BM190: 0 | BN190: 0 | BO190: 0 | BP190: 0 | BQ190: 0 | BR190: 0 | BS190: 0 | BT190: 0 | BU190: 0 | BV190: 0 | BW190: 0 | BX190: 0.46 | BY190: 0 | BZ190: 0 | CA190: 0 | CB190: 0 | CC190: 0 | CD190: 0 | CE190: 0 | CF190: 0 | CG190: 0 | CH190: 0
B191: 182 | C191: System Spare Equipment - ZN | D191: REP_02.04.04 | F191: Replacement | K191: 28.08175247 | L191: 28.08175247 | M191: 28.08175247 | N191: 28.08175247 | O191: 28.08175247 | Y191: 0.3903430343 | Z191: 0 | AA191: 0.6096569657 | AC191: Yes | AD191: No | AF191: 7.662298831e-05 | AG191: 0 | AI191: 1 | AJ191: 0 | AK191: 0 | AL191: 0 | AM191: 0 | AN191: 0 | AO191: 0 | AP191: 0 | AQ191: 0 | AS191: 0 | AT191: 0 | AU191: 0 | AV191: 0 | AW191: 0 | AX191: 0 | AY191: 0 | AZ191: 0 | BA191: 0 | BB191: 0 | BC191: 0 | BD191: 0 | BE191: 0.93 | BF191: 0 | BG191: 0 | BH191: 0 | BI191: 0 | BJ191: 0 | BK191: 0 | BL191: 0 | BM191: 0 | BN191: 0 | BO191: 0 | BP191: 0 | BQ191: 0 | BR191: 0 | BS191: 0 | BT191: 0 | BU191: 0 | BV191: 0 | BW191: 0 | BX191: 0 | BY191: 0 | BZ191: 0 | CA191: 0 | CB191: 0.07 | CC191: 0 | CD191: 0 | CE191: 0 | CF191: 0 | CG191: 0 | CH191: 0
B192: 183 | C192: Zone Substation Building Refurbishment/Replacement Works | D192: REP_02.04.05 | F192: Replacement | K192: 1349.550942 | L192: 1349.550942 | M192: 1349.550942 | N192: 1349.550942 | O192: 1349.550942 | Y192: 0.2398763103 | Z192: 0.3038047601 | AA192: 0.4563189296 | AC192: Yes | AD192: No | AF192: 0.002262898567 | AG192: 0 | AI192: 1 | AJ192: 0 | AK192: 0 | AL192: 0 | AM192: 0 | AN192: 0 | AO192: 0 | AP192: 0 | AQ192: 0 | AS192: 0 | AT192: 0 | AU192: 0.87 | AV192: 0 | AW192: 0 | AX192: 0 | AY192: 0 | AZ192: 0 | BA192: 0 | BB192: 0 | BC192: 0 | BD192: 0 | BE192: 0 | BF192: 0 | BG192: 0 | BH192: 0 | BI192: 0 | BJ192: 0 | BK192: 0 | BL192: 0 | BM192: 0 | BN192: 0 | BO192: 0 | BP192: 0 | BQ192: 0 | BR192: 0 | BS192: 0.13 | BT192: 0 | BU192: 0 | BV192: 0 | BW192: 0 | BX192: 0 | BY192: 0 | BZ192: 0 | CA192: 0 | CB192: 0 | CC192: 0 | CD192: 0 | CE192: 0 | CF192: 0 | CG192: 0 | CH192: 0
B193: 184 | C193: Controlled Load - ZN | D193: REP_02.04.07 | F193: Replacement | K193: 101.2292595 | L193: 101.2292595 | M193: 101.2292595 | N193: 101.2292595 | O193: 101.2292595 | Y193: 0.3903430335 | Z193: 0 | AA193: 0.6096569665 | AC193: Yes | AD193: No | AF193: 0.0002762109794 | AG193: 0 | AI193: 1 | AJ193: 0 | AK193: 0 | AL193: 0 | AM193: 0 | AN193: 0 | AO193: 0 | AP193: 0 | AQ193: 0 | AS193: 1 | AT193: 0 | AU193: 0 | AV193: 0 | AW193: 0 | AX193: 0 | AY193: 0 | AZ193: 0 | BA193: 0 | BB193: 0 | BC193: 0 | BD193: 0 | BE193: 0 | BF193: 0 | BG193: 0 | BH193: 0 | BI193: 0 | BJ193: 0 | BK193: 0 | BL193: 0 | BM193: 0 | BN193: 0 | BO193: 0 | BP193: 0 | BQ193: 0 | BR193: 0 | BS193: 0 | BT193: 0 | BU193: 0 | BV193: 0 | BW193: 0 | BX193: 0 | BY193: 0 | BZ193: 0 | CA193: 0 | CB193: 0 | CC193: 0 | CD193: 0 | CE193: 0 | CF193: 0 | CG193: 0 | CH193: 0
B194: 185 | C194: Surge Arrestors - ZN | D194: REP_02.04.08 | F194: Replacement | K194: 27.84380138 | L194: 27.84380138 | M194: 27.84380138 | N194: 27.84380138 | O194: 27.84380138 | Y194: 0.3903430329 | Z194: 0 | AA194: 0.6096569671 | AC194: Yes | AD194: No | AF194: 7.597372217e-05 | AG194: 0 | AI194: 1 | AJ194: 0 | AK194: 0 | AL194: 0 | AM194: 0 | AN194: 0 | AO194: 0 | AP194: 0 | AQ194: 0 | AS194: 0 | AT194: 0 | AU194: 0 | AV194: 0 | AW194: 0 | AX194: 0 | AY194: 0 | AZ194: 0 | BA194: 0 | BB194: 0 | BC194: 0 | BD194: 0 | BE194: 0.939 | BF194: 0 | BG194: 0 | BH194: 0 | BI194: 0 | BJ194: 0 | BK194: 0 | BL194: 0 | BM194: 0 | BN194: 0 | BO194: 0 | BP194: 0 | BQ194: 0 | BR194: 0 | BS194: 0 | BT194: 0 | BU194: 0 | BV194: 0 | BW194: 0 | BX194: 0 | BY194: 0 | BZ194: 0 | CA194: 0 | CB194: 0.061 | CC194: 0 | CD194: 0 | CE194: 0 | CF194: 0 | CG194: 0 | CH194: 0
B195: 186 | C195: Earthing Equipment - ZN | D195: REP_02.04.09 | F195: Replacement | K195: 0.2792268593 | L195: 0.2792268593 | M195: 0.2792268593 | N195: 0.2792268593 | O195: 0.2792268593 | Y195: 0.3903430335 | Z195: 0 | AA195: 0.6096569665 | AC195: Yes | AD195: No | AF195: 7.618896413e-07 | AG195: 0 | AI195: 1 | AJ195: 0 | AK195: 0 | AL195: 0 | AM195: 0 | AN195: 0 | AO195: 0 | AP195: 0 | AQ195: 0 | AS195: 0 | AT195: 0 | AU195: 0 | AV195: 0 | AW195: 0 | AX195: 0 | AY195: 0 | AZ195: 0 | BA195: 0 | BB195: 0 | BC195: 0 | BD195: 0 | BE195: 0.9390000001 | BF195: 0 | BG195: 0 | BH195: 0 | BI195: 0 | BJ195: 0 | BK195: 0 | BL195: 0 | BM195: 0 | BN195: 0 | BO195: 0 | BP195: 0 | BQ195: 0 | BR195: 0 | BS195: 0 | BT195: 0 | BU195: 0 | BV195: 0 | BW195: 0 | BX195: 0 | BY195: 0 | BZ195: 0 | CA195: 0 | CB195: 0.06099999994 | CC195: 0 | CD195: 0 | CE195: 0 | CF195: 0 | CG195: 0 | CH195: 0
B196: 187 | C196: Zone Substation Reactive Replacement Programme - ZN | D196: REP_02.04.10 | F196: Replacement | K196: 1385.755126 | L196: 1385.755126 | M196: 1385.755126 | N196: 1385.755126 | O196: 1385.755126 | Y196: 0.3903430337 | Z196: 0 | AA196: 0.6096569663 | AC196: Yes | AD196: No | AF196: 0.003781127933 | AG196: 0 | AI196: 1 | AJ196: 0 | AK196: 0 | AL196: 0 | AM196: 0 | AN196: 0 | AO196: 0 | AP196: 0 | AQ196: 0 | AS196: 0 | AT196: 0 | AU196: 0 | AV196: 0 | AW196: 0 | AX196: 0 | AY196: 0 | AZ196: 0 | BA196: 0 | BB196: 0 | BC196: 0 | BD196: 0 | BE196: 0.939 | BF196: 0 | BG196: 0 | BH196: 0 | BI196: 0 | BJ196: 0 | BK196: 0 | BL196: 0 | BM196: 0 | BN196: 0 | BO196: 0 | BP196: 0 | BQ196: 0 | BR196: 0 | BS196: 0 | BT196: 0 | BU196: 0 | BV196: 0 | BW196: 0 | BX196: 0 | BY196: 0 | BZ196: 0 | CA196: 0 | CB196: 0.061 | CC196: 0 | CD196: 0 | CE196: 0 | CF196: 0 | CG196: 0 | CH196: 0
B197: 188 | C197: Steel Mains (km) | D197: REP_04.02.01 | F197: Replacement | K197: 3519.641761 | L197: 3519.641761 | M197: 3519.641761 | N197: 3519.641761 | O197: 3519.641761 | Y197: 0.6137508071 | Z197: 0.1419112463 | AA197: 0.2443379466 | AC197: Yes | AD197: No | AF197: 0.01510007079 | AG197: 0 | AI197: 1 | AJ197: 0 | AK197: 0 | AL197: 0 | AM197: 0 | AN197: 0 | AO197: 0 | AP197: 0 | AQ197: 0 | AS197: 0 | AT197: 0 | AU197: 0 | AV197: 0 | AW197: 1 | AX197: 0 | AY197: 0 | AZ197: 0 | BA197: 0 | BB197: 0 | BC197: 0 | BD197: 0 | BE197: 0 | BF197: 0 | BG197: 0 | BH197: 0 | BI197: 0 | BJ197: 0 | BK197: 0 | BL197: 0 | BM197: 0 | BN197: 0 | BO197: 0 | BP197: 0 | BQ197: 0 | BR197: 0 | BS197: 0 | BT197: 0 | BU197: 0 | BV197: 0 | BW197: 0 | BX197: 0 | BY197: 0 | BZ197: 0 | CA197: 0 | CB197: 0 | CC197: 0 | CD197: 0 | CE197: 0 | CF197: 0 | CG197: 0 | CH197: 0
B198: 189 | C198: Condemned Poles - Replacement - DM | D198: REP_04.02.02 | F198: Replacement | K198: 17758.79826 | L198: 17758.79826 | M198: 17758.79826 | N198: 17758.79826 | O198: 17758.79826 | Y198: 0.5575927117 | Z198: 0.2909651342 | AA198: 0.1514421541 | AC198: Yes | AD198: No | AF198: 0.06921800964 | AG198: 0 | AI198: 1 | AJ198: 0 | AK198: 0 | AL198: 0 | AM198: 0 | AN198: 0 | AO198: 0 | AP198: 0 | AQ198: 0 | AS198: 0 | AT198: 0 | AU198: 0 | AV198: 0 | AW198: 0 | AX198: 0 | AY198: 0 | AZ198: 0 | BA198: 0 | BB198: 0.8019972977 | BC198: 0 | BD198: 0 | BE198: 0 | BF198: 0 | BG198: 0 | BH198: 0 | BI198: 0 | BJ198: 0 | BK198: 0 | BL198: 0.1980027023 | BM198: 0 | BN198: 0 | BO198: 0 | BP198: 0 | BQ198: 0 | BR198: 0 | BS198: 0 | BT198: 0 | BU198: 0 | BV198: 0 | BW198: 0 | BX198: 0 | BY198: 0 | BZ198: 0 | CA198: 0 | CB198: 0 | CC198: 0 | CD198: 0 | CE198: 0 | CF198: 0 | CG198: 0 | CH198: 0
B199: 190 | C199: Low Voltage (LV) Overhead Services (No.) | D199: REP_04.02.04 | F199: Replacement | K199: 8122.634138 | L199: 8122.634138 | M199: 8122.634138 | N199: 8122.634138 | O199: 8122.634138 | Y199: 0.6157627133 | Z199: 0.1344853137 | AA199: 0.249751973 | AC199: Yes | AD199: No | AF199: 0.03496219769 | AG199: 0 | AI199: 1 | AJ199: 0 | AK199: 0 | AL199: 0 | AM199: 0 | AN199: 0 | AO199: 0 | AP199: 0 | AQ199: 0 | AS199: 0 | AT199: 0 | AU199: 0 | AV199: 0 | AW199: 0 | AX199: 0 | AY199: 0 | AZ199: 0 | BA199: 0 | BB199: 1 | BC199: 0 | BD199: 0 | BE199: 0 | BF199: 0 | BG199: 0 | BH199: 0 | BI199: 0 | BJ199: 0 | BK199: 0 | BL199: 0 | BM199: 0 | BN199: 0 | BO199: 0 | BP199: 0 | BQ199: 0 | BR199: 0 | BS199: 0 | BT199: 0 | BU199: 0 | BV199: 0 | BW199: 0 | BX199: 0 | BY199: 0 | BZ199: 0 | CA199: 0 | CB199: 0 | CC199: 0 | CD199: 0 | CE199: 0 | CF199: 0 | CG199: 0 | CH199: 0
B200: 191 | C200: LV Consac Cables (km) | D200: REP_04.02.05 | F200: Replacement | K200: 15541.10765 | L200: 15029.74813 | M200: 16010.21795 | N200: 16018.95913 | O200: 14553.35321 | Y200: 0.1398400619 | Z200: 0.7300996068 | AA200: 0.1300603312 | AC200: Yes | AD200: No | AF200: 0.01508360112 | AG200: 0 | AI200: 1 | AJ200: 0 | AK200: 0 | AL200: 0 | AM200: 0 | AN200: 0 | AO200: 0 | AP200: 0 | AQ200: 0 | AS200: 0 | AT200: 0 | AU200: 0 | AV200: 0 | AW200: 0 | AX200: 0 | AY200: 0 | AZ200: 0 | BA200: 0 | BB200: 1 | BC200: 0 | BD200: 0 | BE200: 0 | BF200: 0 | BG200: 0 | BH200: 0 | BI200: 0 | BJ200: 0 | BK200: 0 | BL200: 0 | BM200: 0 | BN200: 0 | BO200: 0 | BP200: 0 | BQ200: 0 | BR200: 0 | BS200: 0 | BT200: 0 | BU200: 0 | BV200: 0 | BW200: 0 | BX200: 0 | BY200: 0 | BZ200: 0 | CA200: 0 | CB200: 0 | CC200: 0 | CD200: 0 | CE200: 0 | CF200: 0 | CG200: 0 | CH200: 0
B201: 192 | C201: Low Voltage HDPE Cables (km) | D201: REP_04.02.06 | F201: Replacement | K201: 7127.190281 | L201: 7118.53324 | M201: 7133.373793 | N201: 7128.426983 | O201: 7075.248778 | Y201: 0.2209571904 | Z201: 0.5844230152 | AA201: 0.1946197944 | AC201: Yes | AD201: No | AF201: 0.01099173806 | AG201: 0 | AI201: 1 | AJ201: 0 | AK201: 0 | AL201: 0 | AM201: 0 | AN201: 0 | AO201: 0 | AP201: 0 | AQ201: 0 | AS201: 0 | AT201: 0 | AU201: 0 | AV201: 0 | AW201: 0 | AX201: 0 | AY201: 0 | AZ201: 0 | BA201: 0 | BB201: 1 | BC201: 0 | BD201: 0 | BE201: 0 | BF201: 0 | BG201: 0 | BH201: 0 | BI201: 0 | BJ201: 0 | BK201: 0 | BL201: 0 | BM201: 0 | BN201: 0 | BO201: 0 | BP201: 0 | BQ201: 0 | BR201: 0 | BS201: 0 | BT201: 0 | BU201: 0 | BV201: 0 | BW201: 0 | BX201: 0 | BY201: 0 | BZ201: 0 | CA201: 0 | CB201: 0 | CC201: 0 | CD201: 0 | CE201: 0 | CF201: 0 | CG201: 0 | CH201: 0
... 804 more rows

Sheet Input| Disposals
A1: ='Input| Setup'!E5&" "&'Input| Escalations'!D8 -> Ausgrid 2024-25
C2: =IFERROR(Index!B2,"") -> AER Capex Forecast Model | E2: Sheet Validation | G2: ='Model Validation'!$C$10 -> 0 | I2: Key: | J2: Input | K2: Formula - do not edit
C3: =IFERROR(MID(CELL("filename",B2),FIND("]",CELL("filename",B2))+1,255),"") -> Input| Disposals | J3: AER Draft decision
D5: =IFERROR(LEFT('Input| Projects'!AS7,2)+1&". Forecast asset disposals ($'000s "&'Input| Escalations'!$D$9&" "&'Input| Escalations'!$E$9&")","") -> 22. Forecast asset disposals ($'000s 2021-22 June) | O5: =IFERROR(LEFT(D5,2)+1&". Forecast asset disposals ($'000s "&'Input| Escalations'!$K$14&")","") -> 23. Forecast asset disposals ($'000s June 2024)
O6: =IF(ABS(D58*'Input| Escalations'!$K$19-O58)<0.000001,0,1) -> 0 | P6: =IF(ABS(E58*'Input| Escalations'!$K$19-P58)<0.000001,0,1) -> 0 | Q6: =IF(ABS(F58*'Input| Escalations'!$K$19-Q58)<0.000001,0,1) -> 0 | R6: =IF(ABS(G58*'Input| Escalations'!$K$19-R58)<0.000001,0,1) -> 0 | S6: =IF(ABS(H58*'Input| Escalations'!$K$19-S58)<0.000001,0,1) -> 0 | T6: =IF(ABS(I58*'Input| Escalations'!$K$19-T58)<0.000001,0,1) -> 0 | U6: =IF(ABS(J58*'Input| Escalations'!$K$19-U58)<0.000001,0,1) -> 0
C7: PTRM asset class | D7: =IFERROR('Input| Escalations'!H23,"") -> 2022-23 | E7: =IFERROR('Input| Escalations'!I23,"") -> 2023-24 | F7: =IFERROR('Input| Escalations'!J23,"") -> 2024-25 | G7: =IFERROR('Input| Escalations'!K23,"") -> 2025-26 | H7: =IFERROR('Input| Escalations'!L23,"") -> 2026-27 | I7: =IFERROR('Input| Escalations'!M23,"") -> 2027-28 | J7: =IFERROR('Input| Escalations'!N23,"") -> 2028-29 | K7: Forecast period | M7: PTRM asset class | N7: Sector | O7: =D7 -> 2022-23 | P7: 2023-24 | Q7: 2024-25 | R7: 2025-26 | S7: 2026-27 | T7: 2027-28 | U7: 2028-29 | V7: Forecast period
B8: 1 | C8: =IFERROR(IF('Input| Setup'!E8="","",'Input| Setup'!E8),"") -> Ancillary substation equipment (dx) | F8: 0 | G8: 0 | H8: 0 | I8: 0 | J8: 0 | K8: =IFERROR(IF(SUM(F8:J8)=0,"",SUM(F8:J8)),"") ->  | M8: =C8 -> Ancillary substation equipment (dx) | N8: =IFERROR(VLOOKUP(M8,'Input| Setup'!$E$8:$F$57,2,FALSE),"") -> Dx | O8: =IFERROR(D8*'Input| Escalations'!$K$19,"") -> 0 | P8: =IFERROR(E8*'Input| Escalations'!$K$19,"") -> 0 | Q8: =IFERROR(F8*'Input| Escalations'!$K$19,"") -> 0 | R8: =IFERROR(G8*'Input| Escalations'!$K$19,"") -> 0 | S8: =IFERROR(H8*'Input| Escalations'!$K$19,"") -> 0 | T8: =IFERROR(I8*'Input| Escalations'!$K$19,"") -> 0 | U8: =IFERROR(J8*'Input| Escalations'!$K$19,"") -> 0 | V8: =IFERROR(IF(SUM(Q8:U8)=0,"",SUM(Q8:U8)),"") -> 
B9: =IFERROR(B8+1,"") -> 2 | C9: =IFERROR(IF('Input| Setup'!E9="","",'Input| Setup'!E9),"") -> Buildings (non-system) (dx) | F9: 0 | G9: 0 | H9: 0 | I9: 15326.22382 | J9: 3103.741339 | K9: =IFERROR(IF(SUM(F9:J9)=0,"",SUM(F9:J9)),"") -> 18429.96516 | M9: =C9 -> Buildings (non-system) (dx) | N9: =IFERROR(VLOOKUP(M9,'Input| Setup'!$E$8:$F$57,2,FALSE),"") -> Dx | O9: =IFERROR(D9*'Input| Escalations'!$K$19,"") -> 0 | P9: =IFERROR(E9*'Input| Escalations'!$K$19,"") -> 0 | Q9: =IFERROR(F9*'Input| Escalations'!$K$19,"") -> 0 | R9: =IFERROR(G9*'Input| Escalations'!$K$19,"") -> 0 | S9: =IFERROR(H9*'Input| Escalations'!$K$19,"") -> 0 | T9: =IFERROR(I9*'Input| Escalations'!$K$19,"") -> 17204.13447 | U9: =IFERROR(J9*'Input| Escalations'!$K$19,"") -> 3484.040425 | V9: =IFERROR(IF(SUM(Q9:U9)=0,"",SUM(Q9:U9)),"") -> 20688.17489
B10: =IFERROR(B9+1,"") -> 3 | C10: =IFERROR(IF('Input| Setup'!E10="","",'Input| Setup'!E10),"") -> Buildings (system) (dx) | F10: 0 | G10: 0 | H10: 0 | I10: 0 | J10: 0 | M10: Buildings (system) (dx) | N10: =IFERROR(VLOOKUP(M10,'Input| Setup'!$E$8:$F$57,2,FALSE),"") -> Dx | O10: =IFERROR(D10*'Input| Escalations'!$K$19,"") -> 0 | P10: =IFERROR(E10*'Input| Escalations'!$K$19,"") -> 0 | Q10: =IFERROR(F10*'Input| Escalations'!$K$19,"") -> 0 | R10: =IFERROR(G10*'Input| Escalations'!$K$19,"") -> 0 | S10: =IFERROR(H10*'Input| Escalations'!$K$19,"") -> 0 | T10: =IFERROR(I10*'Input| Escalations'!$K$19,"") -> 0 | U10: =IFERROR(J10*'Input| Escalations'!$K$19,"") -> 0
B11: 4 | C11: =IFERROR(IF('Input| Setup'!E11="","",'Input| Setup'!E11),"") -> Cable tunnel (dx) | F11: 0 | G11: 0 | H11: 0 | I11: 0 | J11: 0 | M11: Cable tunnel (dx) | N11: =IFERROR(VLOOKUP(M11,'Input| Setup'!$E$8:$F$57,2,FALSE),"") -> Dx | O11: =IFERROR(D11*'Input| Escalations'!$K$19,"") -> 0 | P11: =IFERROR(E11*'Input| Escalations'!$K$19,"") -> 0 | Q11: =IFERROR(F11*'Input| Escalations'!$K$19,"") -> 0 | R11: =IFERROR(G11*'Input| Escalations'!$K$19,"") -> 0 | S11: =IFERROR(H11*'Input| Escalations'!$K$19,"") -> 0 | T11: =IFERROR(I11*'Input| Escalations'!$K$19,"") -> 0 | U11: =IFERROR(J11*'Input| Escalations'!$K$19,"") -> 0
B12: 5 | C12: =IFERROR(IF('Input| Setup'!E12="","",'Input| Setup'!E12),"") -> Distribution lines and cables (dx) | F12: 0 | G12: 0 | H12: 0 | I12: 0 | J12: 0 | M12: Distribution lines and cables (dx) | N12: =IFERROR(VLOOKUP(M12,'Input| Setup'!$E$8:$F$57,2,FALSE),"") -> Dx | O12: =IFERROR(D12*'Input| Escalations'!$K$19,"") -> 0 | P12: =IFERROR(E12*'Input| Escalations'!$K$19,"") -> 0 | Q12: =IFERROR(F12*'Input| Escalations'!$K$19,"") -> 0 | R12: =IFERROR(G12*'Input| Escalations'!$K$19,"") -> 0 | S12: =IFERROR(H12*'Input| Escalations'!$K$19,"") -> 0 | T12: =IFERROR(I12*'Input| Escalations'!$K$19,"") -> 0 | U12: =IFERROR(J12*'Input| Escalations'!$K$19,"") -> 0
B13: 6 | C13: =IFERROR(IF('Input| Setup'!E13="","",'Input| Setup'!E13),"") -> Furniture, fittings, plant and equipment (dx) | F13: 0 | G13: 0 | H13: 0 | I13: 0 | J13: 0 | M13: Furniture, fittings, plant and equipment (dx) | N13: =IFERROR(VLOOKUP(M13,'Input| Setup'!$E$8:$F$57,2,FALSE),"") -> Dx | O13: =IFERROR(D13*'Input| Escalations'!$K$19,"") -> 0 | P13: =IFERROR(E13*'Input| Escalations'!$K$19,"") -> 0 | Q13: =IFERROR(F13*'Input| Escalations'!$K$19,"") -> 0 | R13: =IFERROR(G13*'Input| Escalations'!$K$19,"") -> 0 | S13: =IFERROR(H13*'Input| Escalations'!$K$19,"") -> 0 | T13: =IFERROR(I13*'Input| Escalations'!$K$19,"") -> 0 | U13: =IFERROR(J13*'Input| Escalations'!$K$19,"") -> 0
B14: 7 | C14: =IFERROR(IF('Input| Setup'!E14="","",'Input| Setup'!E14),"") -> IT systems (dx) | F14: 0 | G14: 0 | H14: 0 | I14: 0 | J14: 0 | M14: IT systems (dx) | N14: =IFERROR(VLOOKUP(M14,'Input| Setup'!$E$8:$F$57,2,FALSE),"") -> Dx | O14: =IFERROR(D14*'Input| Escalations'!$K$19,"") -> 0 | P14: =IFERROR(E14*'Input| Escalations'!$K$19,"") -> 0 | Q14: =IFERROR(F14*'Input| Escalations'!$K$19,"") -> 0 | R14: =IFERROR(G14*'Input| Escalations'!$K$19,"") -> 0 | S14: =IFERROR(H14*'Input| Escalations'!$K$19,"") -> 0 | T14: =IFERROR(I14*'Input| Escalations'!$K$19,"") -> 0 | U14: =IFERROR(J14*'Input| Escalations'!$K$19,"") -> 0
B15: 8 | C15: =IFERROR(IF('Input| Setup'!E15="","",'Input| Setup'!E15),"") -> In-house software (dx) | F15: 0 | G15: 0 | H15: 0 | I15: 0 | J15: 0 | M15: In-house software (dx) | N15: =IFERROR(VLOOKUP(M15,'Input| Setup'!$E$8:$F$57,2,FALSE),"") -> Dx | O15: =IFERROR(D15*'Input| Escalations'!$K$19,"") -> 0 | P15: =IFERROR(E15*'Input| Escalations'!$K$19,"") -> 0 | Q15: =IFERROR(F15*'Input| Escalations'!$K$19,"") -> 0 | R15: =IFERROR(G15*'Input| Escalations'!$K$19,"") -> 0 | S15: =IFERROR(H15*'Input| Escalations'!$K$19,"") -> 0 | T15: =IFERROR(I15*'Input| Escalations'!$K$19,"") -> 0 | U15: =IFERROR(J15*'Input| Escalations'!$K$19,"") -> 0
B16: 9 | C16: =IFERROR(IF('Input| Setup'!E16="","",'Input| Setup'!E16),"") -> Land and Easements (dx) | F16: 0 | G16: 0 | H16: 0 | I16: 0 | J16: 0 | M16: Land and Easements (dx) | N16: =IFERROR(VLOOKUP(M16,'Input| Setup'!$E$8:$F$57,2,FALSE),"") -> Dx | O16: =IFERROR(D16*'Input| Escalations'!$K$19,"") -> 0 | P16: =IFERROR(E16*'Input| Escalations'!$K$19,"") -> 0 | Q16: =IFERROR(F16*'Input| Escalations'!$K$19,"") -> 0 | R16: =IFERROR(G16*'Input| Escalations'!$K$19,"") -> 0 | S16: =IFERROR(H16*'Input| Escalations'!$K$19,"") -> 0 | T16: =IFERROR(I16*'Input| Escalations'!$K$19,"") -> 0 | U16: =IFERROR(J16*'Input| Escalations'!$K$19,"") -> 0
B17: 10 | C17: =IFERROR(IF('Input| Setup'!E17="","",'Input| Setup'!E17),"") -> Low Voltage Lines and Cables (dx) | F17: 0 | G17: 0 | H17: 0 | I17: 0 | J17: 0 | M17: Low Voltage Lines and Cables (dx) | N17: =IFERROR(VLOOKUP(M17,'Input| Setup'!$E$8:$F$57,2,FALSE),"") -> Dx | O17: =IFERROR(D17*'Input| Escalations'!$K$19,"") -> 0 | P17: =IFERROR(E17*'Input| Escalations'!$K$19,"") -> 0 | Q17: =IFERROR(F17*'Input| Escalations'!$K$19,"") -> 0 | R17: =IFERROR(G17*'Input| Escalations'!$K$19,"") -> 0 | S17: =IFERROR(H17*'Input| Escalations'!$K$19,"") -> 0 | T17: =IFERROR(I17*'Input| Escalations'!$K$19,"") -> 0 | U17: =IFERROR(J17*'Input| Escalations'!$K$19,"") -> 0
B18: 11 | C18: =IFERROR(IF('Input| Setup'!E18="","",'Input| Setup'!E18),"") -> Motor vehicles (dx) | F18: 6281.434141 | G18: 7201.250179 | H18: 5509.294188 | I18: 4196.267948 | J18: 5024.036253 | K18: 28212.28271 | M18: Motor vehicles (dx) | N18: =IFERROR(VLOOKUP(M18,'Input| Setup'!$E$8:$F$57,2,FALSE),"") -> Dx | O18: =IFERROR(D18*'Input| Escalations'!$K$19,"") -> 0 | P18: =IFERROR(E18*'Input| Escalations'!$K$19,"") -> 0 | Q18: =IFERROR(F18*'Input| Escalations'!$K$19,"") -> 7051.093532 | R18: =IFERROR(G18*'Input| Escalations'!$K$19,"") -> 8083.613936 | S18: =IFERROR(H18*'Input| Escalations'!$K$19,"") -> 6184.343852 | T18: =IFERROR(I18*'Input| Escalations'!$K$19,"") -> 4710.433497 | U18: =IFERROR(J18*'Input| Escalations'!$K$19,"") -> 5639.627628 | V18: 31669.11244
B19: 12 | C19: =IFERROR(IF('Input| Setup'!E19="","",'Input| Setup'!E19),"") -> Sub-transmission lines and cables (dx) | F19: 0 | G19: 0 | H19: 0 | I19: 0 | J19: 0 | M19: Sub-transmission lines and cables (dx) | N19: =IFERROR(VLOOKUP(M19,'Input| Setup'!$E$8:$F$57,2,FALSE),"") -> Dx | O19: =IFERROR(D19*'Input| Escalations'!$K$19,"") -> 0 | P19: =IFERROR(E19*'Input| Escalations'!$K$19,"") -> 0 | Q19: =IFERROR(F19*'Input| Escalations'!$K$19,"") -> 0 | R19: =IFERROR(G19*'Input| Escalations'!$K$19,"") -> 0 | S19: =IFERROR(H19*'Input| Escalations'!$K$19,"") -> 0 | T19: =IFERROR(I19*'Input| Escalations'!$K$19,"") -> 0 | U19: =IFERROR(J19*'Input| Escalations'!$K$19,"") -> 0
B20: 13 | C20: =IFERROR(IF('Input| Setup'!E20="","",'Input| Setup'!E20),"") -> Substations (dx) | F20: 0 | G20: 0 | H20: 0 | I20: 0 | J20: 0 | M20: Substations (dx) | N20: =IFERROR(VLOOKUP(M20,'Input| Setup'!$E$8:$F$57,2,FALSE),"") -> Dx | O20: =IFERROR(D20*'Input| Escalations'!$K$19,"") -> 0 | P20: =IFERROR(E20*'Input| Escalations'!$K$19,"") -> 0 | Q20: =IFERROR(F20*'Input| Escalations'!$K$19,"") -> 0 | R20: =IFERROR(G20*'Input| Escalations'!$K$19,"") -> 0 | S20: =IFERROR(H20*'Input| Escalations'!$K$19,"") -> 0 | T20: =IFERROR(I20*'Input| Escalations'!$K$19,"") -> 0 | U20: =IFERROR(J20*'Input| Escalations'!$K$19,"") -> 0
B21: 14 | C21: =IFERROR(IF('Input| Setup'!E21="","",'Input| Setup'!E21),"") -> System IT (dx) | F21: 0 | G21: 0 | H21: 0 | I21: 0 | J21: 0 | M21: System IT (dx) | N21: =IFERROR(VLOOKUP(M21,'Input| Setup'!$E$8:$F$57,2,FALSE),"") -> Dx | O21: =IFERROR(D21*'Input| Escalations'!$K$19,"") -> 0 | P21: =IFERROR(E21*'Input| Escalations'!$K$19,"") -> 0 | Q21: =IFERROR(F21*'Input| Escalations'!$K$19,"") -> 0 | R21: =IFERROR(G21*'Input| Escalations'!$K$19,"") -> 0 | S21: =IFERROR(H21*'Input| Escalations'!$K$19,"") -> 0 | T21: =IFERROR(I21*'Input| Escalations'!$K$19,"") -> 0 | U21: =IFERROR(J21*'Input| Escalations'!$K$19,"") -> 0
B22: 15 | C22: =IFERROR(IF('Input| Setup'!E22="","",'Input| Setup'!E22),"") -> Transformers (dx) | F22: 0 | G22: 0 | H22: 0 | I22: 0 | J22: 0 | M22: Transformers (dx) | N22: =IFERROR(VLOOKUP(M22,'Input| Setup'!$E$8:$F$57,2,FALSE),"") -> Dx | O22: =IFERROR(D22*'Input| Escalations'!$K$19,"") -> 0 | P22: =IFERROR(E22*'Input| Escalations'!$K$19,"") -> 0 | Q22: =IFERROR(F22*'Input| Escalations'!$K$19,"") -> 0 | R22: =IFERROR(G22*'Input| Escalations'!$K$19,"") -> 0 | S22: =IFERROR(H22*'Input| Escalations'!$K$19,"") -> 0 | T22: =IFERROR(I22*'Input| Escalations'!$K$19,"") -> 0 | U22: =IFERROR(J22*'Input| Escalations'!$K$19,"") -> 0
B23: 16 | C23: =IFERROR(IF('Input| Setup'!E23="","",'Input| Setup'!E23),"") -> Land (non-system) (dx) | F23: 0 | G23: 0 | H23: 0 | I23: 0 | J23: 18371.04498 | K23: 18371.04498 | M23: Land (non-system) (dx) | N23: =IFERROR(VLOOKUP(M23,'Input| Setup'!$E$8:$F$57,2,FALSE),"") -> Dx | O23: =IFERROR(D23*'Input| Escalations'!$K$19,"") -> 0 | P23: =IFERROR(E23*'Input| Escalations'!$K$19,"") -> 0 | Q23: =IFERROR(F23*'Input| Escalations'!$K$19,"") -> 0 | R23: =IFERROR(G23*'Input| Escalations'!$K$19,"") -> 0 | S23: =IFERROR(H23*'Input| Escalations'!$K$19,"") -> 0 | T23: =IFERROR(I23*'Input| Escalations'!$K$19,"") -> 0 | U23: =IFERROR(J23*'Input| Escalations'!$K$19,"") -> 20622.03528 | V23: 20622.03528
B24: 17 | C24: =IFERROR(IF('Input| Setup'!E24="","",'Input| Setup'!E24),"") -> ERP (dx) | F24: 0 | G24: 0 | H24: 0 | I24: 0 | J24: 0 | M24: ERP (dx) | N24: =IFERROR(VLOOKUP(M24,'Input| Setup'!$E$8:$F$57,2,FALSE),"") -> Dx | O24: =IFERROR(D24*'Input| Escalations'!$K$19,"") -> 0 | P24: =IFERROR(E24*'Input| Escalations'!$K$19,"") -> 0 | Q24: =IFERROR(F24*'Input| Escalations'!$K$19,"") -> 0 | R24: =IFERROR(G24*'Input| Escalations'!$K$19,"") -> 0 | S24: =IFERROR(H24*'Input| Escalations'!$K$19,"") -> 0 | T24: =IFERROR(I24*'Input| Escalations'!$K$19,"") -> 0 | U24: =IFERROR(J24*'Input| Escalations'!$K$19,"") -> 0
B25: 18 | C25: =IFERROR(IF('Input| Setup'!E25="","",'Input| Setup'!E25),"") -> Distribution Leases (dx) | F25: 0 | G25: 0 | H25: 0 | I25: 0 | J25: 0 | M25: Distribution Leases (dx) | N25: =IFERROR(VLOOKUP(M25,'Input| Setup'!$E$8:$F$57,2,FALSE),"") -> Dx | O25: =IFERROR(D25*'Input| Escalations'!$K$19,"") -> 0 | P25: =IFERROR(E25*'Input| Escalations'!$K$19,"") -> 0 | Q25: =IFERROR(F25*'Input| Escalations'!$K$19,"") -> 0 | R25: =IFERROR(G25*'Input| Escalations'!$K$19,"") -> 0 | S25: =IFERROR(H25*'Input| Escalations'!$K$19,"") -> 0 | T25: =IFERROR(I25*'Input| Escalations'!$K$19,"") -> 0 | U25: =IFERROR(J25*'Input| Escalations'!$K$19,"") -> 0
B26: 19 | C26: =IFERROR(IF('Input| Setup'!E26="","",'Input| Setup'!E26),"") -> Distribution Leases (non-network) (dx) | F26: 0 | G26: 0 | H26: 0 | I26: 0 | J26: 0 | M26: Distribution Leases (non-network) (dx) | N26: =IFERROR(VLOOKUP(M26,'Input| Setup'!$E$8:$F$57,2,FALSE),"") -> Dx | O26: =IFERROR(D26*'Input| Escalations'!$K$19,"") -> 0 | P26: =IFERROR(E26*'Input| Escalations'!$K$19,"") -> 0 | Q26: =IFERROR(F26*'Input| Escalations'!$K$19,"") -> 0 | R26: =IFERROR(G26*'Input| Escalations'!$K$19,"") -> 0 | S26: =IFERROR(H26*'Input| Escalations'!$K$19,"") -> 0 | T26: =IFERROR(I26*'Input| Escalations'!$K$19,"") -> 0 | U26: =IFERROR(J26*'Input| Escalations'!$K$19,"") -> 0
B27: 20 | C27: =IFERROR(IF('Input| Setup'!E27="","",'Input| Setup'!E27),"") -> Composite poles (dx) | F27: 0 | G27: 0 | H27: 0 | I27: 0 | J27: 0 | M27: Composite poles (dx) | N27: =IFERROR(VLOOKUP(M27,'Input| Setup'!$E$8:$F$57,2,FALSE),"") -> Dx | O27: =IFERROR(D27*'Input| Escalations'!$K$19,"") -> 0 | P27: =IFERROR(E27*'Input| Escalations'!$K$19,"") -> 0 | Q27: =IFERROR(F27*'Input| Escalations'!$K$19,"") -> 0 | R27: =IFERROR(G27*'Input| Escalations'!$K$19,"") -> 0 | S27: =IFERROR(H27*'Input| Escalations'!$K$19,"") -> 0 | T27: =IFERROR(I27*'Input| Escalations'!$K$19,"") -> 0 | U27: =IFERROR(J27*'Input| Escalations'!$K$19,"") -> 0
B28: 21 | C28: =IFERROR(IF('Input| Setup'!E28="","",'Input| Setup'!E28),"") -> 132kV concrete & steel pole lines (tx) | F28: 0 | G28: 0 | H28: 0 | I28: 0 | J28: 0 | M28: 132kV concrete & steel pole lines (tx) | N28: =IFERROR(VLOOKUP(M28,'Input| Setup'!$E$8:$F$57,2,FALSE),"") -> Tx | O28: =IFERROR(D28*'Input| Escalations'!$K$19,"") -> 0 | P28: =IFERROR(E28*'Input| Escalations'!$K$19,"") -> 0 | Q28: =IFERROR(F28*'Input| Escalations'!$K$19,"") -> 0 | R28: =IFERROR(G28*'Input| Escalations'!$K$19,"") -> 0 | S28: =IFERROR(H28*'Input| Escalations'!$K$19,"") -> 0 | T28: =IFERROR(I28*'Input| Escalations'!$K$19,"") -> 0 | U28: =IFERROR(J28*'Input| Escalations'!$K$19,"") -> 0
B29: 22 | C29: =IFERROR(IF('Input| Setup'!E29="","",'Input| Setup'!E29),"") -> 132kV feeders underground (tx) | F29: 0 | G29: 0 | H29: 0 | I29: 0 | J29: 0 | M29: 132kV feeders underground (tx) | N29: =IFERROR(VLOOKUP(M29,'Input| Setup'!$E$8:$F$57,2,FALSE),"") -> Tx | O29: =IFERROR(D29*'Input| Escalations'!$K$19,"") -> 0 | P29: =IFERROR(E29*'Input| Escalations'!$K$19,"") -> 0 | Q29: =IFERROR(F29*'Input| Escalations'!$K$19,"") -> 0 | R29: =IFERROR(G29*'Input| Escalations'!$K$19,"") -> 0 | S29: =IFERROR(H29*'Input| Escalations'!$K$19,"") -> 0 | T29: =IFERROR(I29*'Input| Escalations'!$K$19,"") -> 0 | U29: =IFERROR(J29*'Input| Escalations'!$K$19,"") -> 0
B30: 23 | C30: =IFERROR(IF('Input| Setup'!E30="","",'Input| Setup'!E30),"") -> 132kV tower lines (tx) | F30: 0 | G30: 0 | H30: 0 | I30: 0 | J30: 0 | M30: 132kV tower lines (tx) | N30: =IFERROR(VLOOKUP(M30,'Input| Setup'!$E$8:$F$57,2,FALSE),"") -> Tx | O30: =IFERROR(D30*'Input| Escalations'!$K$19,"") -> 0 | P30: =IFERROR(E30*'Input| Escalations'!$K$19,"") -> 0 | Q30: =IFERROR(F30*'Input| Escalations'!$K$19,"") -> 0 | R30: =IFERROR(G30*'Input| Escalations'!$K$19,"") -> 0 | S30: =IFERROR(H30*'Input| Escalations'!$K$19,"") -> 0 | T30: =IFERROR(I30*'Input| Escalations'!$K$19,"") -> 0 | U30: =IFERROR(J30*'Input| Escalations'!$K$19,"") -> 0
B31: 24 | C31: =IFERROR(IF('Input| Setup'!E31="","",'Input| Setup'!E31),"") -> 132kV wood pole lines (tx) | F31: 0 | G31: 0 | H31: 0 | I31: 0 | J31: 0 | M31: 132kV wood pole lines (tx) | N31: =IFERROR(VLOOKUP(M31,'Input| Setup'!$E$8:$F$57,2,FALSE),"") -> Tx | O31: =IFERROR(D31*'Input| Escalations'!$K$19,"") -> 0 | P31: =IFERROR(E31*'Input| Escalations'!$K$19,"") -> 0 | Q31: =IFERROR(F31*'Input| Escalations'!$K$19,"") -> 0 | R31: =IFERROR(G31*'Input| Escalations'!$K$19,"") -> 0 | S31: =IFERROR(H31*'Input| Escalations'!$K$19,"") -> 0 | T31: =IFERROR(I31*'Input| Escalations'!$K$19,"") -> 0 | U31: =IFERROR(J31*'Input| Escalations'!$K$19,"") -> 0
B32: 25 | C32: =IFERROR(IF('Input| Setup'!E32="","",'Input| Setup'!E32),"") -> Ancillary substation equipment (tx) | F32: 0 | G32: 0 | H32: 0 | I32: 0 | J32: 0 | M32: Ancillary substation equipment (tx) | N32: =IFERROR(VLOOKUP(M32,'Input| Setup'!$E$8:$F$57,2,FALSE),"") -> Tx | O32: =IFERROR(D32*'Input| Escalations'!$K$19,"") -> 0 | P32: =IFERROR(E32*'Input| Escalations'!$K$19,"") -> 0 | Q32: =IFERROR(F32*'Input| Escalations'!$K$19,"") -> 0 | R32: =IFERROR(G32*'Input| Escalations'!$K$19,"") -> 0 | S32: =IFERROR(H32*'Input| Escalations'!$K$19,"") -> 0 | T32: =IFERROR(I32*'Input| Escalations'!$K$19,"") -> 0 | U32: =IFERROR(J32*'Input| Escalations'!$K$19,"") -> 0
B33: 26 | C33: =IFERROR(IF('Input| Setup'!E33="","",'Input| Setup'!E33),"") -> Buildings (non-system) (tx) | F33: 0 | G33: 0 | H33: 0 | I33: 2113.721355 | J33: 428.0535392 | K33: 2541.774894 | M33: Buildings (non-system) (tx) | N33: =IFERROR(VLOOKUP(M33,'Input| Setup'!$E$8:$F$57,2,FALSE),"") -> Tx | O33: =IFERROR(D33*'Input| Escalations'!$K$19,"") -> 0 | P33: =IFERROR(E33*'Input| Escalations'!$K$19,"") -> 0 | Q33: =IFERROR(F33*'Input| Escalations'!$K$19,"") -> 0 | R33: =IFERROR(G33*'Input| Escalations'!$K$19,"") -> 0 | S33: =IFERROR(H33*'Input| Escalations'!$K$19,"") -> 0 | T33: =IFERROR(I33*'Input| Escalations'!$K$19,"") -> 2372.714039 | U33: =IFERROR(J33*'Input| Escalations'!$K$19,"") -> 480.5026167 | V33: 2853.216656
B34: 27 | C34: =IFERROR(IF('Input| Setup'!E34="","",'Input| Setup'!E34),"") -> Buildings (system) (tx) | F34: 0 | G34: 0 | H34: 0 | I34: 0 | J34: 0 | M34: Buildings (system) (tx) | N34: =IFERROR(VLOOKUP(M34,'Input| Setup'!$E$8:$F$57,2,FALSE),"") -> Tx | O34: =IFERROR(D34*'Input| Escalations'!$K$19,"") -> 0 | P34: =IFERROR(E34*'Input| Escalations'!$K$19,"") -> 0 | Q34: =IFERROR(F34*'Input| Escalations'!$K$19,"") -> 0 | R34: =IFERROR(G34*'Input| Escalations'!$K$19,"") -> 0 | S34: =IFERROR(H34*'Input| Escalations'!$K$19,"") -> 0 | T34: =IFERROR(I34*'Input| Escalations'!$K$19,"") -> 0 | U34: =IFERROR(J34*'Input| Escalations'!$K$19,"") -> 0
B35: 28 | C35: =IFERROR(IF('Input| Setup'!E35="","",'Input| Setup'!E35),"") -> Furniture, fittings, plant and equipment (tx) | F35: 0 | G35: 0 | H35: 0 | I35: 0 | J35: 0 | M35: Furniture, fittings, plant and equipment (tx) | N35: =IFERROR(VLOOKUP(M35,'Input| Setup'!$E$8:$F$57,2,FALSE),"") -> Tx | O35: =IFERROR(D35*'Input| Escalations'!$K$19,"") -> 0 | P35: =IFERROR(E35*'Input| Escalations'!$K$19,"") -> 0 | Q35: =IFERROR(F35*'Input| Escalations'!$K$19,"") -> 0 | R35: =IFERROR(G35*'Input| Escalations'!$K$19,"") -> 0 | S35: =IFERROR(H35*'Input| Escalations'!$K$19,"") -> 0 | T35: =IFERROR(I35*'Input| Escalations'!$K$19,"") -> 0 | U35: =IFERROR(J35*'Input| Escalations'!$K$19,"") -> 0
B36: 29 | C36: =IFERROR(IF('Input| Setup'!E36="","",'Input| Setup'!E36),"") -> IT systems (tx) | F36: 0 | G36: 0 | H36: 0 | I36: 0 | J36: 0 | M36: IT systems (tx) | N36: =IFERROR(VLOOKUP(M36,'Input| Setup'!$E$8:$F$57,2,FALSE),"") -> Tx | O36: =IFERROR(D36*'Input| Escalations'!$K$19,"") -> 0 | P36: =IFERROR(E36*'Input| Escalations'!$K$19,"") -> 0 | Q36: =IFERROR(F36*'Input| Escalations'!$K$19,"") -> 0 | R36: =IFERROR(G36*'Input| Escalations'!$K$19,"") -> 0 | S36: =IFERROR(H36*'Input| Escalations'!$K$19,"") -> 0 | T36: =IFERROR(I36*'Input| Escalations'!$K$19,"") -> 0 | U36: =IFERROR(J36*'Input| Escalations'!$K$19,"") -> 0
B37: 30 | C37: =IFERROR(IF('Input| Setup'!E37="","",'Input| Setup'!E37),"") -> In-house software (tx) | F37: 0 | G37: 0 | H37: 0 | I37: 0 | J37: 0 | M37: In-house software (tx) | N37: =IFERROR(VLOOKUP(M37,'Input| Setup'!$E$8:$F$57,2,FALSE),"") -> Tx | O37: =IFERROR(D37*'Input| Escalations'!$K$19,"") -> 0 | P37: =IFERROR(E37*'Input| Escalations'!$K$19,"") -> 0 | Q37: =IFERROR(F37*'Input| Escalations'!$K$19,"") -> 0 | R37: =IFERROR(G37*'Input| Escalations'!$K$19,"") -> 0 | S37: =IFERROR(H37*'Input| Escalations'!$K$19,"") -> 0 | T37: =IFERROR(I37*'Input| Escalations'!$K$19,"") -> 0 | U37: =IFERROR(J37*'Input| Escalations'!$K$19,"") -> 0
B38: 31 | C38: =IFERROR(IF('Input| Setup'!E38="","",'Input| Setup'!E38),"") -> Motor vehicles (tx) | F38: 784.2960514 | G38: 899.1437232 | H38: 687.8871258 | I38: 523.9434671 | J38: 627.2981148 | K38: 3522.568482 | M38: Motor vehicles (tx) | N38: =IFERROR(VLOOKUP(M38,'Input| Setup'!$E$8:$F$57,2,FALSE),"") -> Tx | O38: =IFERROR(D38*'Input| Escalations'!$K$19,"") -> 0 | P38: =IFERROR(E38*'Input| Escalations'!$K$19,"") -> 0 | Q38: =IFERROR(F38*'Input| Escalations'!$K$19,"") -> 880.3952554 | R38: =IFERROR(G38*'Input| Escalations'!$K$19,"") -> 1009.315126 | S38: =IFERROR(H38*'Input| Escalations'!$K$19,"") -> 772.1734168 | T38: =IFERROR(I38*'Input| Escalations'!$K$19,"") -> 588.1418652 | U38: =IFERROR(J38*'Input| Escalations'!$K$19,"") -> 704.1604799 | V38: 3954.186143
B39: 32 | C39: =IFERROR(IF('Input| Setup'!E39="","",'Input| Setup'!E39),"") -> System IT (tx) | F39: 0 | G39: 0 | H39: 0 | I39: 0 | J39: 0 | M39: System IT (tx) | N39: =IFERROR(VLOOKUP(M39,'Input| Setup'!$E$8:$F$57,2,FALSE),"") -> Tx | O39: =IFERROR(D39*'Input| Escalations'!$K$19,"") -> 0 | P39: =IFERROR(E39*'Input| Escalations'!$K$19,"") -> 0 | Q39: =IFERROR(F39*'Input| Escalations'!$K$19,"") -> 0 | R39: =IFERROR(G39*'Input| Escalations'!$K$19,"") -> 0 | S39: =IFERROR(H39*'Input| Escalations'!$K$19,"") -> 0 | T39: =IFERROR(I39*'Input| Escalations'!$K$19,"") -> 0 | U39: =IFERROR(J39*'Input| Escalations'!$K$19,"") -> 0
B40: 33 | C40: =IFERROR(IF('Input| Setup'!E40="","",'Input| Setup'!E40),"") -> Transmission & Zone land & easements (tx) | F40: 0 | G40: 0 | H40: 0 | I40: 0 | J40: 0 | M40: Transmission & Zone land & easements (tx) | N40: =IFERROR(VLOOKUP(M40,'Input| Setup'!$E$8:$F$57,2,FALSE),"") -> Tx | O40: =IFERROR(D40*'Input| Escalations'!$K$19,"") -> 0 | P40: =IFERROR(E40*'Input| Escalations'!$K$19,"") -> 0 | Q40: =IFERROR(F40*'Input| Escalations'!$K$19,"") -> 0 | R40: =IFERROR(G40*'Input| Escalations'!$K$19,"") -> 0 | S40: =IFERROR(H40*'Input| Escalations'!$K$19,"") -> 0 | T40: =IFERROR(I40*'Input| Escalations'!$K$19,"") -> 0 | U40: =IFERROR(J40*'Input| Escalations'!$K$19,"") -> 0
B41: 34 | C41: =IFERROR(IF('Input| Setup'!E41="","",'Input| Setup'!E41),"") -> Transmission substation equip 132/66kV (tx) | F41: 0 | G41: 0 | H41: 0 | I41: 0 | J41: 0 | M41: Transmission substation equip 132/66kV (tx) | N41: =IFERROR(VLOOKUP(M41,'Input| Setup'!$E$8:$F$57,2,FALSE),"") -> Tx | O41: =IFERROR(D41*'Input| Escalations'!$K$19,"") -> 0 | P41: =IFERROR(E41*'Input| Escalations'!$K$19,"") -> 0 | Q41: =IFERROR(F41*'Input| Escalations'!$K$19,"") -> 0 | R41: =IFERROR(G41*'Input| Escalations'!$K$19,"") -> 0 | S41: =IFERROR(H41*'Input| Escalations'!$K$19,"") -> 0 | T41: =IFERROR(I41*'Input| Escalations'!$K$19,"") -> 0 | U41: =IFERROR(J41*'Input| Escalations'!$K$19,"") -> 0
B42: 35 | C42: =IFERROR(IF('Input| Setup'!E42="","",'Input| Setup'!E42),"") -> Transmission transformers 132/66kV (tx) | F42: 0 | G42: 0 | H42: 0 | I42: 0 | J42: 0 | M42: Transmission transformers 132/66kV (tx) | N42: =IFERROR(VLOOKUP(M42,'Input| Setup'!$E$8:$F$57,2,FALSE),"") -> Tx | O42: =IFERROR(D42*'Input| Escalations'!$K$19,"") -> 0 | P42: =IFERROR(E42*'Input| Escalations'!$K$19,"") -> 0 | Q42: =IFERROR(F42*'Input| Escalations'!$K$19,"") -> 0 | R42: =IFERROR(G42*'Input| Escalations'!$K$19,"") -> 0 | S42: =IFERROR(H42*'Input| Escalations'!$K$19,"") -> 0 | T42: =IFERROR(I42*'Input| Escalations'!$K$19,"") -> 0 | U42: =IFERROR(J42*'Input| Escalations'!$K$19,"") -> 0
B43: 36 | C43: =IFERROR(IF('Input| Setup'!E43="","",'Input| Setup'!E43),"") -> Zone substation equip 132/66kV (tx) | F43: 0 | G43: 0 | H43: 0 | I43: 0 | J43: 0 | M43: Zone substation equip 132/66kV (tx) | N43: =IFERROR(VLOOKUP(M43,'Input| Setup'!$E$8:$F$57,2,FALSE),"") -> Tx | O43: =IFERROR(D43*'Input| Escalations'!$K$19,"") -> 0 | P43: =IFERROR(E43*'Input| Escalations'!$K$19,"") -> 0 | Q43: =IFERROR(F43*'Input| Escalations'!$K$19,"") -> 0 | R43: =IFERROR(G43*'Input| Escalations'!$K$19,"") -> 0 | S43: =IFERROR(H43*'Input| Escalations'!$K$19,"") -> 0 | T43: =IFERROR(I43*'Input| Escalations'!$K$19,"") -> 0 | U43: =IFERROR(J43*'Input| Escalations'!$K$19,"") -> 0
B44: 37 | C44: =IFERROR(IF('Input| Setup'!E44="","",'Input| Setup'!E44),"") -> Zone transformers 132/66kV (tx) | F44: 0 | G44: 0 | H44: 0 | I44: 0 | J44: 0 | M44: Zone transformers 132/66kV (tx) | N44: =IFERROR(VLOOKUP(M44,'Input| Setup'!$E$8:$F$57,2,FALSE),"") -> Tx | O44: =IFERROR(D44*'Input| Escalations'!$K$19,"") -> 0 | P44: =IFERROR(E44*'Input| Escalations'!$K$19,"") -> 0 | Q44: =IFERROR(F44*'Input| Escalations'!$K$19,"") -> 0 | R44: =IFERROR(G44*'Input| Escalations'!$K$19,"") -> 0 | S44: =IFERROR(H44*'Input| Escalations'!$K$19,"") -> 0 | T44: =IFERROR(I44*'Input| Escalations'!$K$19,"") -> 0 | U44: =IFERROR(J44*'Input| Escalations'!$K$19,"") -> 0
B45: 38 | C45: =IFERROR(IF('Input| Setup'!E45="","",'Input| Setup'!E45),"") -> Land (non-system) (tx) | F45: 0 | G45: 0 | H45: 0 | I45: 0 | J45: 2533.648898 | K45: 2533.648898 | M45: Land (non-system) (tx) | N45: =IFERROR(VLOOKUP(M45,'Input| Setup'!$E$8:$F$57,2,FALSE),"") -> Tx | O45: =IFERROR(D45*'Input| Escalations'!$K$19,"") -> 0 | P45: =IFERROR(E45*'Input| Escalations'!$K$19,"") -> 0 | Q45: =IFERROR(F45*'Input| Escalations'!$K$19,"") -> 0 | R45: =IFERROR(G45*'Input| Escalations'!$K$19,"") -> 0 | S45: =IFERROR(H45*'Input| Escalations'!$K$19,"") -> 0 | T45: =IFERROR(I45*'Input| Escalations'!$K$19,"") -> 0 | U45: =IFERROR(J45*'Input| Escalations'!$K$19,"") -> 2844.094988 | V45: 2844.094988
B46: 39 | C46: =IFERROR(IF('Input| Setup'!E46="","",'Input| Setup'!E46),"") -> ERP (tx) | F46: 0 | G46: 0 | H46: 0 | I46: 0 | J46: 0 | M46: ERP (tx) | N46: =IFERROR(VLOOKUP(M46,'Input| Setup'!$E$8:$F$57,2,FALSE),"") -> Tx | O46: =IFERROR(D46*'Input| Escalations'!$K$19,"") -> 0 | P46: =IFERROR(E46*'Input| Escalations'!$K$19,"") -> 0 | Q46: =IFERROR(F46*'Input| Escalations'!$K$19,"") -> 0 | R46: =IFERROR(G46*'Input| Escalations'!$K$19,"") -> 0 | S46: =IFERROR(H46*'Input| Escalations'!$K$19,"") -> 0 | T46: =IFERROR(I46*'Input| Escalations'!$K$19,"") -> 0 | U46: =IFERROR(J46*'Input| Escalations'!$K$19,"") -> 0
B47: 40 | C47: =IFERROR(IF('Input| Setup'!E47="","",'Input| Setup'!E47),"") -> Transmission Leases (tx) | F47: 0 | G47: 0 | H47: 0 | I47: 0 | J47: 0 | M47: Transmission Leases (tx) | N47: =IFERROR(VLOOKUP(M47,'Input| Setup'!$E$8:$F$57,2,FALSE),"") -> Tx | O47: =IFERROR(D47*'Input| Escalations'!$K$19,"") -> 0 | P47: =IFERROR(E47*'Input| Escalations'!$K$19,"") -> 0 | Q47: =IFERROR(F47*'Input| Escalations'!$K$19,"") -> 0 | R47: =IFERROR(G47*'Input| Escalations'!$K$19,"") -> 0 | S47: =IFERROR(H47*'Input| Escalations'!$K$19,"") -> 0 | T47: =IFERROR(I47*'Input| Escalations'!$K$19,"") -> 0 | U47: =IFERROR(J47*'Input| Escalations'!$K$19,"") -> 0
B48: 41 | C48: =IFERROR(IF('Input| Setup'!E48="","",'Input| Setup'!E48),"") -> Transmission Leases (non-network) (tx) | M48: Transmission Leases (non-network) (tx) | N48: =IFERROR(VLOOKUP(M48,'Input| Setup'!$E$8:$F$57,2,FALSE),"") -> Tx | O48: =IFERROR(D48*'Input| Escalations'!$K$19,"") -> 0 | P48: =IFERROR(E48*'Input| Escalations'!$K$19,"") -> 0 | Q48: =IFERROR(F48*'Input| Escalations'!$K$19,"") -> 0 | R48: =IFERROR(G48*'Input| Escalations'!$K$19,"") -> 0 | S48: =IFERROR(H48*'Input| Escalations'!$K$19,"") -> 0 | T48: =IFERROR(I48*'Input| Escalations'!$K$19,"") -> 0 | U48: =IFERROR(J48*'Input| Escalations'!$K$19,"") -> 0
B49: 42 | C49: =IFERROR(IF('Input| Setup'!E49="","",'Input| Setup'!E49),"") -> Composite poles (tx) | M49: Composite poles (tx) | N49: =IFERROR(VLOOKUP(M49,'Input| Setup'!$E$8:$F$57,2,FALSE),"") -> Tx | O49: =IFERROR(D49*'Input| Escalations'!$K$19,"") -> 0 | P49: =IFERROR(E49*'Input| Escalations'!$K$19,"") -> 0 | Q49: =IFERROR(F49*'Input| Escalations'!$K$19,"") -> 0 | R49: =IFERROR(G49*'Input| Escalations'!$K$19,"") -> 0 | S49: =IFERROR(H49*'Input| Escalations'!$K$19,"") -> 0 | T49: =IFERROR(I49*'Input| Escalations'!$K$19,"") -> 0 | U49: =IFERROR(J49*'Input| Escalations'!$K$19,"") -> 0
B50: 43 | C50: =IFERROR(IF('Input| Setup'!E50="","",'Input| Setup'!E50),"") ->  | N50: =IFERROR(VLOOKUP(M50,'Input| Setup'!$E$8:$F$57,2,FALSE),"") ->  | O50: =IFERROR(D50*'Input| Escalations'!$K$19,"") -> 0 | P50: =IFERROR(E50*'Input| Escalations'!$K$19,"") -> 0 | Q50: =IFERROR(F50*'Input| Escalations'!$K$19,"") -> 0 | R50: =IFERROR(G50*'Input| Escalations'!$K$19,"") -> 0 | S50: =IFERROR(H50*'Input| Escalations'!$K$19,"") -> 0 | T50: =IFERROR(I50*'Input| Escalations'!$K$19,"") -> 0 | U50: =IFERROR(J50*'Input| Escalations'!$K$19,"") -> 0
B51: 44 | C51: =IFERROR(IF('Input| Setup'!E51="","",'Input| Setup'!E51),"") ->  | N51: =IFERROR(VLOOKUP(M51,'Input| Setup'!$E$8:$F$57,2,FALSE),"") ->  | O51: =IFERROR(D51*'Input| Escalations'!$K$19,"") -> 0 | P51: =IFERROR(E51*'Input| Escalations'!$K$19,"") -> 0 | Q51: =IFERROR(F51*'Input| Escalations'!$K$19,"") -> 0 | R51: =IFERROR(G51*'Input| Escalations'!$K$19,"") -> 0 | S51: =IFERROR(H51*'Input| Escalations'!$K$19,"") -> 0 | T51: =IFERROR(I51*'Input| Escalations'!$K$19,"") -> 0 | U51: =IFERROR(J51*'Input| Escalations'!$K$19,"") -> 0
B52: 45 | C52: =IFERROR(IF('Input| Setup'!E52="","",'Input| Setup'!E52),"") ->  | N52: =IFERROR(VLOOKUP(M52,'Input| Setup'!$E$8:$F$57,2,FALSE),"") ->  | O52: =IFERROR(D52*'Input| Escalations'!$K$19,"") -> 0 | P52: =IFERROR(E52*'Input| Escalations'!$K$19,"") -> 0 | Q52: =IFERROR(F52*'Input| Escalations'!$K$19,"") -> 0 | R52: =IFERROR(G52*'Input| Escalations'!$K$19,"") -> 0 | S52: =IFERROR(H52*'Input| Escalations'!$K$19,"") -> 0 | T52: =IFERROR(I52*'Input| Escalations'!$K$19,"") -> 0 | U52: =IFERROR(J52*'Input| Escalations'!$K$19,"") -> 0
B53: 46 | C53: =IFERROR(IF('Input| Setup'!E53="","",'Input| Setup'!E53),"") ->  | N53: =IFERROR(VLOOKUP(M53,'Input| Setup'!$E$8:$F$57,2,FALSE),"") ->  | O53: =IFERROR(D53*'Input| Escalations'!$K$19,"") -> 0 | P53: =IFERROR(E53*'Input| Escalations'!$K$19,"") -> 0 | Q53: =IFERROR(F53*'Input| Escalations'!$K$19,"") -> 0 | R53: =IFERROR(G53*'Input| Escalations'!$K$19,"") -> 0 | S53: =IFERROR(H53*'Input| Escalations'!$K$19,"") -> 0 | T53: =IFERROR(I53*'Input| Escalations'!$K$19,"") -> 0 | U53: =IFERROR(J53*'Input| Escalations'!$K$19,"") -> 0
B54: 47 | C54: =IFERROR(IF('Input| Setup'!E54="","",'Input| Setup'!E54),"") ->  | N54: =IFERROR(VLOOKUP(M54,'Input| Setup'!$E$8:$F$57,2,FALSE),"") ->  | O54: =IFERROR(D54*'Input| Escalations'!$K$19,"") -> 0 | P54: =IFERROR(E54*'Input| Escalations'!$K$19,"") -> 0 | Q54: =IFERROR(F54*'Input| Escalations'!$K$19,"") -> 0 | R54: =IFERROR(G54*'Input| Escalations'!$K$19,"") -> 0 | S54: =IFERROR(H54*'Input| Escalations'!$K$19,"") -> 0 | T54: =IFERROR(I54*'Input| Escalations'!$K$19,"") -> 0 | U54: =IFERROR(J54*'Input| Escalations'!$K$19,"") -> 0
B55: 48 | C55: =IFERROR(IF('Input| Setup'!E55="","",'Input| Setup'!E55),"") ->  | N55: =IFERROR(VLOOKUP(M55,'Input| Setup'!$E$8:$F$57,2,FALSE),"") ->  | O55: =IFERROR(D55*'Input| Escalations'!$K$19,"") -> 0 | P55: =IFERROR(E55*'Input| Escalations'!$K$19,"") -> 0 | Q55: =IFERROR(F55*'Input| Escalations'!$K$19,"") -> 0 | R55: =IFERROR(G55*'Input| Escalations'!$K$19,"") -> 0 | S55: =IFERROR(H55*'Input| Escalations'!$K$19,"") -> 0 | T55: =IFERROR(I55*'Input| Escalations'!$K$19,"") -> 0 | U55: =IFERROR(J55*'Input| Escalations'!$K$19,"") -> 0
B56: 49 | C56: =IFERROR(IF('Input| Setup'!E56="","",'Input| Setup'!E56),"") ->  | N56: =IFERROR(VLOOKUP(M56,'Input| Setup'!$E$8:$F$57,2,FALSE),"") ->  | O56: =IFERROR(D56*'Input| Escalations'!$K$19,"") -> 0 | P56: =IFERROR(E56*'Input| Escalations'!$K$19,"") -> 0 | Q56: =IFERROR(F56*'Input| Escalations'!$K$19,"") -> 0 | R56: =IFERROR(G56*'Input| Escalations'!$K$19,"") -> 0 | S56: =IFERROR(H56*'Input| Escalations'!$K$19,"") -> 0 | T56: =IFERROR(I56*'Input| Escalations'!$K$19,"") -> 0 | U56: =IFERROR(J56*'Input| Escalations'!$K$19,"") -> 0
B57: 50 | C57: =IFERROR(IF('Input| Setup'!E57="","",'Input| Setup'!E57),"") ->  | N57: =IFERROR(VLOOKUP(M57,'Input| Setup'!$E$8:$F$57,2,FALSE),"") ->  | O57: =IFERROR(D57*'Input| Escalations'!$K$19,"") -> 0 | P57: =IFERROR(E57*'Input| Escalations'!$K$19,"") -> 0 | Q57: =IFERROR(F57*'Input| Escalations'!$K$19,"") -> 0 | R57: =IFERROR(G57*'Input| Escalations'!$K$19,"") -> 0 | S57: =IFERROR(H57*'Input| Escalations'!$K$19,"") -> 0 | T57: =IFERROR(I57*'Input| Escalations'!$K$19,"") -> 0 | U57: =IFERROR(J57*'Input| Escalations'!$K$19,"") -> 0
C58: =IFERROR(IF('Input| Setup'!E58="","",'Input| Setup'!E58),"") ->  | D58: =IFERROR(SUM(D8:D57),"") -> 0 | E58: 0 | F58: 7065.730193 | G58: 8100.393903 | H58: 6197.181313 | I58: 22160.15659 | J58: 30087.82313 | K58: 73611.28512 | O58: =IFERROR(SUM(O8:O57),"") -> 0 | P58: =IFERROR(SUM(P8:P57),"") -> 0 | Q58: =IFERROR(SUM(Q8:Q57),"") -> 7931.488787 | R58: 9092.929061 | S58: 6956.517268 | T58: 24875.42387 | U58: 33774.46141 | V58: 82630.8204
C59: =IFERROR(IF('Input| Setup'!#REF!="","",'Input| Setup'!#REF!),"") -> 

Sheet Input| Type 2 capcons
A1: ='Input| Setup'!E5&" "&'Input| Escalations'!D8 -> Ausgrid 2024-25
B2: =IFERROR(Index!B2,"") -> AER Capex Forecast Model | C2: Sheet Validation | E2: ='Model Validation'!$C$18 -> 0 | G2: Key: | H2: Input | I2: Formula - do not edit
B3: =IFERROR(MID(CELL("filename",A2),FIND("]",CELL("filename",A2))+1,255),"") -> Input| Type 2 capcons
B5: =IFERROR(LEFT('Input| Disposals'!O5,2)+1&". Forecast type 2 capital contributions ($'000s "&'Input| Escalations'!$D$9&" "&'Input| Escalations'!$E$9&")","") -> 24. Forecast type 2 capital contributions ($'000s 2021-22 June)
B7: Definition for type 1 capital contributions | C7: Cash contributions received by a DNSP: - with respect to standard control services, where tax payable on the capital contribution is recovered via the corporate income tax allowance used to derive the annual revenue requirement. For clarity, type 1 capital contributions do not include PWC undergrounding capex (equity funded).
B11: Definition for type 2 capital contributions | C11: Any form of capital contributions received by a DNSP (including gifted assets or cash contributions) that do not meet the definition of Type 1 capital contributions, or are PWC undergrounding capex (equity funded).
C13: Distribution Assets | L13: Transmission Assets
B14: Forecast type 2 capcons by RIN category: | C14: =IFERROR('Input| Escalations'!H23,"") -> 2022-23 | D14: =IFERROR('Input| Escalations'!I23,"") -> 2023-24 | E14: =IFERROR('Input| Escalations'!J23,"") -> 2024-25 | F14: =IFERROR('Input| Escalations'!K23,"") -> 2025-26 | G14: =IFERROR('Input| Escalations'!L23,"") -> 2026-27 | H14: =IFERROR('Input| Escalations'!M23,"") -> 2027-28 | I14: =IFERROR('Input| Escalations'!N23,"") -> 2028-29 | J14: Forecast period | L14: =IFERROR('Input| Escalations'!H23,"") -> 2022-23 | M14: =IFERROR('Input| Escalations'!I23,"") -> 2023-24 | N14: =IFERROR('Input| Escalations'!J23,"") -> 2024-25 | O14: =IFERROR('Input| Escalations'!K23,"") -> 2025-26 | P14: =IFERROR('Input| Escalations'!L23,"") -> 2026-27 | Q14: =IFERROR('Input| Escalations'!M23,"") -> 2027-28 | R14: =IFERROR('Input| Escalations'!N23,"") -> 2028-29 | S14: Forecast period
B15: =IFERROR(IF('Input| Setup'!B19="","",'Input| Setup'!B19),"") -> Replacement | C15: 0 | D15: 0 | E15: 0 | F15: 0 | G15: 0 | H15: 0 | I15: 0 | J15: =IFERROR(SUM(E15:I15),"") -> 0 | M15: 0 | N15: 0 | O15: 0 | P15: 0 | Q15: 0 | S15: =IFERROR(SUM(N15:R15),"") -> 0
B16: =IFERROR(IF('Input| Setup'!B20="","",'Input| Setup'!B20),"") -> Augmentation | C16: 0 | D16: 0 | E16: 0 | F16: 0 | G16: 0 | H16: 0 | I16: 0 | J16: =IFERROR(SUM(E16:I16),"") -> 0 | S16: =IFERROR(SUM(N16:R16),"") -> 0
B17: =IFERROR(IF('Input| Setup'!B21="","",'Input| Setup'!B21),"") -> Connections | C17: 0 | D17: 0 | E17: 109878.1529 | F17: 101733.4828 | G17: 96269.43231 | H17: 95054.65088 | I17: 93818.24354 | J17: =IFERROR(SUM(E17:I17),"") -> 496753.9624 | S17: =IFERROR(SUM(N17:R17),"") -> 0
B18: =IFERROR(IF('Input| Setup'!B22="","",'Input| Setup'!B22),"") -> Other Non-network capex | C18: 0 | D18: 0 | E18: 0 | F18: 0 | G18: 0 | H18: 0 | I18: 0 | J18: =IFERROR(SUM(E18:I18),"") -> 0 | S18: =IFERROR(SUM(N18:R18),"") -> 0
B19: Total type 2 capital contributions | C19: =SUM(C15:C18) -> 0 | D19: =SUM(D15:D18) -> 0 | E19: =SUM(E15:E18) -> 109878.1529 | F19: 101733.4828 | G19: 96269.43231 | H19: 95054.65088 | I19: 93818.24354 | J19: 496753.9624 | L19: =SUM(L15:L18) -> 0 | M19: =SUM(M15:M18) -> 0 | N19: =SUM(N15:N18) -> 0 | O19: 0 | P19: 0 | Q19: 0 | R19: 0 | S19: 0
B22: =IFERROR(LEFT(B5,2)+1&". Cost components of type 2 capital contributions","") -> 25. Cost components of type 2 capital contributions
C24: =IFERROR('Input| Escalations'!B25,"") -> Internal labour | D24: =IFERROR('Input| Escalations'!B26,"") -> Contract labour | E24: =IFERROR('Input| Escalations'!B27,"") -> Non-labour | G24: =IF(G25=0,0,1) -> 0
B25: Cost components as % of direct costs | C25: 0.01201565075 | D25: 0.05774667631 | E25: 0.9302376729 | G25: =IF(OR(C25<0,C25>1,D25<0,D25>1,E25<0,E25>1,SUM(C25:E25)<0,SUM(C25:E25)>1),1,0) -> 0
B28: =IFERROR(LEFT(B22,2)+1&". Real price escalators for type 2 capital contributions","") -> 26. Real price escalators for type 2 capital contributions
B30: Real cost escalation - cumulative | C30: =IFERROR('Input| Escalations'!H23,"") -> 2022-23 | D30: =IFERROR('Input| Escalations'!I23,"") -> 2023-24 | E30: =IFERROR('Input| Escalations'!J23,"") -> 2024-25 | F30: =IFERROR('Input| Escalations'!K23,"") -> 2025-26 | G30: =IFERROR('Input| Escalations'!L23,"") -> 2026-27 | H30: =IFERROR('Input| Escalations'!M23,"") -> 2027-28 | I30: =IFERROR('Input| Escalations'!N23,"") -> 2028-29
B31: Real Cost Escalation - Network overheads | C31: =$C$25*INDEX('Input| Escalations'!$H$33:$N$33,MATCH(C$30,'Input| Escalations'!$H$23:$N$23,0))+$D$25*INDEX('Input| Escalations'!$H$34:$N$34,MATCH(C$30,'Input| Escalations'!$H$23:$N$23,0))+$E$25*INDEX('Input| Escalations'!$H$35:$N$35,MATCH(C$30,'Input| Escalations'!$H$23:$N$23,0))+1 -> 0.999586634 | D31: =$C$25*INDEX('Input| Escalations'!$H$33:$N$33,MATCH(D$30,'Input| Escalations'!$H$23:$N$23,0))+$D$25*INDEX('Input| Escalations'!$H$34:$N$34,MATCH(D$30,'Input| Escalations'!$H$23:$N$23,0))+$E$25*INDEX('Input| Escalations'!$H$35:$N$35,MATCH(D$30,'Input| Escalations'!$H$23:$N$23,0))+1 -> 0.9996549146 | E31: =$C$25*INDEX('Input| Escalations'!$H$33:$N$33,MATCH(E$30,'Input| Escalations'!$H$23:$N$23,0))+$D$25*INDEX('Input| Escalations'!$H$34:$N$34,MATCH(E$30,'Input| Escalations'!$H$23:$N$23,0))+$E$25*INDEX('Input| Escalations'!$H$35:$N$35,MATCH(E$30,'Input| Escalations'!$H$23:$N$23,0))+1 -> 0.9998129165 | F31: =$C$25*INDEX('Input| Escalations'!$H$33:$N$33,MATCH(F$30,'Input| Escalations'!$H$23:$N$23,0))+$D$25*INDEX('Input| Escalations'!$H$34:$N$34,MATCH(F$30,'Input| Escalations'!$H$23:$N$23,0))+$E$25*INDEX('Input| Escalations'!$H$35:$N$35,MATCH(F$30,'Input| Escalations'!$H$23:$N$23,0))+1 -> 0.9999817173 | G31: =$C$25*INDEX('Input| Escalations'!$H$33:$N$33,MATCH(G$30,'Input| Escalations'!$H$23:$N$23,0))+$D$25*INDEX('Input| Escalations'!$H$34:$N$34,MATCH(G$30,'Input| Escalations'!$H$23:$N$23,0))+$E$25*INDEX('Input| Escalations'!$H$35:$N$35,MATCH(G$30,'Input| Escalations'!$H$23:$N$23,0))+1 -> 1.000088778 | H31: =$C$25*INDEX('Input| Escalations'!$H$33:$N$33,MATCH(H$30,'Input| Escalations'!$H$23:$N$23,0))+$D$25*INDEX('Input| Escalations'!$H$34:$N$34,MATCH(H$30,'Input| Escalations'!$H$23:$N$23,0))+$E$25*INDEX('Input| Escalations'!$H$35:$N$35,MATCH(H$30,'Input| Escalations'!$H$23:$N$23,0))+1 -> 1.000187654 | I31: =$C$25*INDEX('Input| Escalations'!$H$33:$N$33,MATCH(I$30,'Input| Escalations'!$H$23:$N$23,0))+$D$25*INDEX('Input| Escalations'!$H$34:$N$34,MATCH(I$30,'Input| Escalations'!$H$23:$N$23,0))+$E$25*INDEX('Input| Escalations'!$H$35:$N$35,MATCH(I$30,'Input| Escalations'!$H$23:$N$23,0))+1 -> 1.000306805
B34: =IFERROR(LEFT(B28,2)+1&". Forecast type 2 capital contributions, escalated ($'000s "&'Input| Escalations'!$K$14&")","") -> 27. Forecast type 2 capital contributions, escalated ($'000s June 2024)
C36: Distribution Assets | L36: Transmission Assets
B37: Forecast type 2 capcons by RIN category: | C37: =IFERROR('Input| Escalations'!H23,"") -> 2022-23 | D37: =IFERROR('Input| Escalations'!I23,"") -> 2023-24 | E37: =IFERROR('Input| Escalations'!J23,"") -> 2024-25 | F37: =IFERROR('Input| Escalations'!K23,"") -> 2025-26 | G37: =IFERROR('Input| Escalations'!L23,"") -> 2026-27 | H37: =IFERROR('Input| Escalations'!M23,"") -> 2027-28 | I37: =IFERROR('Input| Escalations'!N23,"") -> 2028-29 | J37: Forecast period | L37: =IFERROR('Input| Escalations'!H23,"") -> 2022-23 | M37: =IFERROR('Input| Escalations'!I23,"") -> 2023-24 | N37: =IFERROR('Input| Escalations'!J23,"") -> 2024-25 | O37: =IFERROR('Input| Escalations'!K23,"") -> 2025-26 | P37: =IFERROR('Input| Escalations'!L23,"") -> 2026-27 | Q37: =IFERROR('Input| Escalations'!M23,"") -> 2027-28 | R37: =IFERROR('Input| Escalations'!N23,"") -> 2028-29 | S37: Forecast period
B38: =IFERROR(B15,"") -> Replacement | C38: =C15*C$31*'Input| Escalations'!$K$19 -> 0 | D38: =D15*D$31*'Input| Escalations'!$K$19 -> 0 | E38: =E15*E$31*'Input| Escalations'!$K$19 -> 0 | F38: =F15*F$31*'Input| Escalations'!$K$19 -> 0 | G38: =G15*G$31*'Input| Escalations'!$K$19 -> 0 | H38: =H15*H$31*'Input| Escalations'!$K$19 -> 0 | I38: =I15*I$31*'Input| Escalations'!$K$19 -> 0 | J38: =IFERROR(SUM(E38:I38),"") -> 0 | L38: =L15*C$31*'Input| Escalations'!$K$19 -> 0 | M38: =M15*D$31*'Input| Escalations'!$K$19 -> 0 | N38: =N15*E$31*'Input| Escalations'!$K$19 -> 0 | O38: =O15*F$31*'Input| Escalations'!$K$19 -> 0 | P38: =P15*G$31*'Input| Escalations'!$K$19 -> 0 | Q38: =Q15*H$31*'Input| Escalations'!$K$19 -> 0 | R38: =R15*I$31*'Input| Escalations'!$K$19 -> 0 | S38: =IFERROR(SUM(N38:R38),"") -> 0
B39: =IFERROR(B16,"") -> Augmentation | C39: =C16*C$31*'Input| Escalations'!$K$19 -> 0 | D39: =D16*D$31*'Input| Escalations'!$K$19 -> 0 | E39: =E16*E$31*'Input| Escalations'!$K$19 -> 0 | F39: =F16*F$31*'Input| Escalations'!$K$19 -> 0 | G39: =G16*G$31*'Input| Escalations'!$K$19 -> 0 | H39: =H16*H$31*'Input| Escalations'!$K$19 -> 0 | I39: =I16*I$31*'Input| Escalations'!$K$19 -> 0 | J39: =IFERROR(SUM(E39:I39),"") -> 0 | L39: =L16*C$31*'Input| Escalations'!$K$19 -> 0 | M39: =M16*D$31*'Input| Escalations'!$K$19 -> 0 | N39: =N16*E$31*'Input| Escalations'!$K$19 -> 0 | O39: =O16*F$31*'Input| Escalations'!$K$19 -> 0 | P39: =P16*G$31*'Input| Escalations'!$K$19 -> 0 | Q39: =Q16*H$31*'Input| Escalations'!$K$19 -> 0 | R39: =R16*I$31*'Input| Escalations'!$K$19 -> 0 | S39: =IFERROR(SUM(N39:R39),"") -> 0 | U39: =SUM(S38:S41) -> 0
B40: =IFERROR(B17,"") -> Connections | C40: =C17*C$31*'Input| Escalations'!$K$19 -> 0 | D40: =D17*D$31*'Input| Escalations'!$K$19 -> 0 | E40: =E17*E$31*'Input| Escalations'!$K$19 -> 123318.365 | F40: =F17*F$31*'Input| Escalations'!$K$19 -> 114196.7219 | G40: =G17*G$31*'Input| Escalations'!$K$19 -> 108074.8471 | H40: =H17*H$31*'Input| Escalations'!$K$19 -> 106721.6486 | I40: =I17*I$31*'Input| Escalations'!$K$19 -> 105346.033 | J40: =IFERROR(SUM(E40:I40),"") -> 557657.6156 | L40: =L17*C$31*'Input| Escalations'!$K$19 -> 0 | M40: =M17*D$31*'Input| Escalations'!$K$19 -> 0 | N40: =N17*E$31*'Input| Escalations'!$K$19 -> 0 | O40: =O17*F$31*'Input| Escalations'!$K$19 -> 0 | P40: =P17*G$31*'Input| Escalations'!$K$19 -> 0 | Q40: =Q17*H$31*'Input| Escalations'!$K$19 -> 0 | R40: =R17*I$31*'Input| Escalations'!$K$19 -> 0 | S40: =IFERROR(SUM(N40:R40),"") -> 0
B41: =IFERROR(B18,"") -> Other Non-network capex | C41: =C18*C$31*'Input| Escalations'!$K$19 -> 0 | D41: =D18*D$31*'Input| Escalations'!$K$19 -> 0 | E41: =E18*E$31*'Input| Escalations'!$K$19 -> 0 | F41: =F18*F$31*'Input| Escalations'!$K$19 -> 0 | G41: =G18*G$31*'Input| Escalations'!$K$19 -> 0 | H41: =H18*H$31*'Input| Escalations'!$K$19 -> 0 | I41: =I18*I$31*'Input| Escalations'!$K$19 -> 0 | J41: =IFERROR(SUM(E41:I41),"") -> 0 | L41: =L18*C$31*'Input| Escalations'!$K$19 -> 0 | M41: =M18*D$31*'Input| Escalations'!$K$19 -> 0 | N41: =N18*E$31*'Input| Escalations'!$K$19 -> 0 | O41: =O18*F$31*'Input| Escalations'!$K$19 -> 0 | P41: =P18*G$31*'Input| Escalations'!$K$19 -> 0 | Q41: =Q18*H$31*'Input| Escalations'!$K$19 -> 0 | R41: =R18*I$31*'Input| Escalations'!$K$19 -> 0 | S41: =IFERROR(SUM(N41:R41),"") -> 0
B42: =IFERROR(B19,"") -> Total type 2 capital contributions | C42: =C19*C$31*'Input| Escalations'!$K$19 -> 0 | D42: =D19*D$31*'Input| Escalations'!$K$19 -> 0 | E42: =E19*E$31*'Input| Escalations'!$K$19 -> 123318.365 | F42: =F19*F$31*'Input| Escalations'!$K$19 -> 114196.7219 | G42: =G19*G$31*'Input| Escalations'!$K$19 -> 108074.8471 | H42: =H19*H$31*'Input| Escalations'!$K$19 -> 106721.6486 | I42: =I19*I$31*'Input| Escalations'!$K$19 -> 105346.033 | J42: =SUM(J38:J41) -> 557657.6156 | L42: =L19*C$31*'Input| Escalations'!$K$19 -> 0 | M42: =M19*D$31*'Input| Escalations'!$K$19 -> 0 | N42: =N19*E$31*'Input| Escalations'!$K$19 -> 0 | O42: =O19*F$31*'Input| Escalations'!$K$19 -> 0 | P42: =P19*G$31*'Input| Escalations'!$K$19 -> 0 | Q42: =Q19*H$31*'Input| Escalations'!$K$19 -> 0 | R42: =R19*I$31*'Input| Escalations'!$K$19 -> 0 | S42: =SUM(S38:S41) -> 0
C43: =IF(ABS(C19*'Input| Escalations'!$K$19*C31-C42)<0.000001,0,1) -> 0 | D43: =IF(ABS(D19*'Input| Escalations'!$K$19*D31-D42)<0.000001,0,1) -> 0 | E43: =IF(ABS(E19*'Input| Escalations'!$K$19*E31-E42)<0.000001,0,1) -> 0 | F43: =IF(ABS(F19*'Input| Escalations'!$K$19*F31-F42)<0.000001,0,1) -> 0 | G43: =IF(ABS(G19*'Input| Escalations'!$K$19*G31-G42)<0.000001,0,1) -> 0 | H43: =IF(ABS(H19*'Input| Escalations'!$K$19*H31-H42)<0.000001,0,1) -> 0 | I43: =IF(ABS(I19*'Input| Escalations'!$K$19*I31-I42)<0.000001,0,1) -> 0 | L43: =IF(ABS(L19*'Input| Escalations'!$K$19*C31-L42)<0.000001,0,1) -> 0 | M43: =IF(ABS(M19*'Input| Escalations'!$K$19*D31-M42)<0.000001,0,1) -> 0 | N43: =IF(ABS(N19*'Input| Escalations'!$K$19*E31-N42)<0.000001,0,1) -> 0 | O43: =IF(ABS(O19*'Input| Escalations'!$K$19*F31-O42)<0.000001,0,1) -> 0 | P43: =IF(ABS(P19*'Input| Escalations'!$K$19*G31-P42)<0.000001,0,1) -> 0 | Q43: =IF(ABS(Q19*'Input| Escalations'!$K$19*H31-Q42)<0.000001,0,1) -> 0 | R43: =IF(ABS(R19*'Input| Escalations'!$K$19*I31-R42)<0.000001,0,1) -> 0

Sheet Input| Expensing
A1: ='Input| Setup'!E5&" "&'Input| Escalations'!D8 -> Ausgrid 2024-25
B2: =IFERROR(Index!B2,"") -> AER Capex Forecast Model | D2: Sheet Validation | F2: ='Model Validation'!$C$12 -> 0 | H2: Key: | I2: Input | J2: Formula - do not edit
B3: =IFERROR(MID(CELL("filename",A2),FIND("]",CELL("filename",A2))+1,255),"") -> Input| Expensing
K4: =IF(OR(J9>1,J9<0),1,IF(OR(I9>1,I9<0),1,IF(OR(H9>1,H9<0),1,IF(OR(G9>1,G9<0),1,IF(OR(F9>1,F9<0),1,IF(OR(E9>1,E9<0),1,IF(OR(D9>1,D9<0),1,""))))))) -> 
C5: =LEFT('Input| Type 2 capcons'!B34,2)+1&". Immediate expensing (% to be immediately expensed)" -> 28. Immediate expensing (% to be immediately expensed) | M5: =LEFT(C5,2)+1&". Immediate expensing (% to be immediately expensed) - Distribution" -> 29. Immediate expensing (% to be immediately expensed) - Distribution | W5: =LEFT(M5,2)+1&". Immediate expensing (% to be immediately expensed) - Transmission" -> 30. Immediate expensing (% to be immediately expensed) - Transmission
D6: % | E6: % | F6: % | G6: % | H6: % | I6: % | J6: % | K6: =IF(SUM(K8:K57)=0,0,1) -> 0 | N6: % | O6: % | P6: % | Q6: % | R6: % | S6: % | T6: % | U6: =IF(SUM(U8:U57)=0,0,1) -> 0 | AE6: =IF(SUM(AE8:AE57)=0,0,1) -> 0
C7: PTRM asset class | D7: =IFERROR('Input| Escalations'!H23,"") -> 2022-23 | E7: =IFERROR('Input| Escalations'!I23,"") -> 2023-24 | F7: =IFERROR('Input| Escalations'!J23,"") -> 2024-25 | G7: =IFERROR('Input| Escalations'!K23,"") -> 2025-26 | H7: =IFERROR('Input| Escalations'!L23,"") -> 2026-27 | I7: =IFERROR('Input| Escalations'!M23,"") -> 2027-28 | J7: =IFERROR('Input| Escalations'!N23,"") -> 2028-29 | M7: PTRM asset class | N7: =D7 -> 2022-23 | O7: 2023-24 | P7: 2024-25 | Q7: 2025-26 | R7: 2026-27 | S7: 2027-28 | T7: 2028-29 | W7: PTRM asset class | X7: =N7 -> 2022-23 | Y7: 2023-24 | Z7: 2024-25 | AA7: 2025-26 | AB7: 2026-27 | AC7: 2027-28 | AD7: 2028-29
B8: 1 | C8: =IFERROR(IF('Input| Setup'!E8="","",'Input| Setup'!E8),"") -> Ancillary substation equipment (dx) | K8: =IF(OR(J8>1,J8<0),1,IF(OR(I8>1,I8<0),1,IF(OR(H8>1,H8<0),1,IF(OR(G8>1,G8<0),1,IF(OR(F8>1,F8<0),1,IF(OR(E8>1,E8<0),1,IF(OR(D8>1,D8<0),1,""))))))) ->  | M8: =IFERROR(INDEX('Input| Setup'!$E$8:$E$37,SMALL(IF('Input| Setup'!$F$8:$F$37="Dx",ROW('Input| Setup'!$F$8:$F$37)-ROW('Input| Setup'!$F$8)+1),ROWS('Input| Setup'!$F$8:$F8))),"") -> Ancillary substation equipment (dx) | N8: =INDEX($D$8:$J$57,MATCH($M8,$C$8:$C$57,0),MATCH(N$7,$D$7:$J$7,0)) -> 0 | O8: 0 | P8: 0 | Q8: 0 | R8: 0 | S8: 0 | T8: 0 | U8: =IF(OR(T8>1,S8>1,R8>1,Q8>1,P8>1,O8>1,N8>1),1,"") ->  | W8: =IFERROR(INDEX('Input| Setup'!$E$8:$E$37,SMALL(IF('Input| Setup'!$F$8:$F$37="Tx",ROW('Input| Setup'!$F$8:$F$37)-ROW('Input| Setup'!$F$8)+1),ROWS('Input| Setup'!$F$8:$F8))),"") -> 132kV concrete & steel pole lines (tx) | X8: =INDEX($D$8:$J$57,MATCH($W8,$C$8:$C$57,0),MATCH(X$7,$D$7:$J$7,0)) -> 0 | Y8: 0 | Z8: 0 | AA8: 0 | AB8: 0 | AC8: 0 | AD8: 0 | AE8: =IF(OR(AD8>1,AC8>1,AB8>1,AA8>1,Z8>1,Y8>1,X8>1),1,"") -> 
B9: =IFERROR(B8+1,"") -> 2 | C9: =IFERROR(IF('Input| Setup'!E9="","",'Input| Setup'!E9),"") -> Buildings (non-system) (dx) | K9: =IF(OR(J9>1,J9<0),1,IF(OR(I9>1,I9<0),1,IF(OR(H9>1,H9<0),1,IF(OR(G9>1,G9<0),1,IF(OR(F9>1,F9<0),1,IF(OR(E9>1,E9<0),1,IF(OR(D9>1,D9<0),1,""))))))) ->  | M9: =IFERROR(INDEX('Input| Setup'!$E$8:$E$37,SMALL(IF('Input| Setup'!$F$8:$F$37="Dx",ROW('Input| Setup'!$F$8:$F$37)-ROW('Input| Setup'!$F$8)+1),ROWS('Input| Setup'!$F$8:$F9))),"") -> Buildings (non-system) (dx) | N9: 0 | O9: 0 | P9: 0 | Q9: 0 | R9: 0 | S9: 0 | T9: 0 | U9: =IF(OR(T9>1,S9>1,R9>1,Q9>1,P9>1,O9>1,N9>1),1,"") ->  | W9: =IFERROR(INDEX('Input| Setup'!$E$8:$E$37,SMALL(IF('Input| Setup'!$F$8:$F$37="Tx",ROW('Input| Setup'!$F$8:$F$37)-ROW('Input| Setup'!$F$8)+1),ROWS('Input| Setup'!$F$8:$F9))),"") -> 132kV feeders underground (tx) | X9: 0 | Y9: 0 | Z9: 0.208560566 | AA9: 0.07314362103 | AB9: 0.1862366144 | AC9: 0.2455978284 | AD9: 0.111001306 | AE9: =IF(OR(AD9>1,AC9>1,AB9>1,AA9>1,Z9>1,Y9>1,X9>1),1,"") -> 
B10: =IFERROR(B9+1,"") -> 3 | C10: =IFERROR(IF('Input| Setup'!E10="","",'Input| Setup'!E10),"") -> Buildings (system) (dx) | M10: =IFERROR(INDEX('Input| Setup'!$E$8:$E$37,SMALL(IF('Input| Setup'!$F$8:$F$37="Dx",ROW('Input| Setup'!$F$8:$F$37)-ROW('Input| Setup'!$F$8)+1),ROWS('Input| Setup'!$F$8:$F10))),"") -> Buildings (system) (dx) | N10: 0 | O10: 0 | P10: 0 | Q10: 0 | R10: 0 | S10: 0 | T10: 0 | W10: =IFERROR(INDEX('Input| Setup'!$E$8:$E$37,SMALL(IF('Input| Setup'!$F$8:$F$37="Tx",ROW('Input| Setup'!$F$8:$F$37)-ROW('Input| Setup'!$F$8)+1),ROWS('Input| Setup'!$F$8:$F10))),"") -> 132kV tower lines (tx) | X10: 0 | Y10: 0 | Z10: 0 | AA10: 0 | AB10: 0 | AC10: 0 | AD10: 0
B11: 4 | C11: =IFERROR(IF('Input| Setup'!E11="","",'Input| Setup'!E11),"") -> Cable tunnel (dx) | M11: =IFERROR(INDEX('Input| Setup'!$E$8:$E$37,SMALL(IF('Input| Setup'!$F$8:$F$37="Dx",ROW('Input| Setup'!$F$8:$F$37)-ROW('Input| Setup'!$F$8)+1),ROWS('Input| Setup'!$F$8:$F11))),"") -> Cable tunnel (dx) | N11: 0 | O11: 0 | P11: 0 | Q11: 0 | R11: 0 | S11: 0 | T11: 0 | W11: =IFERROR(INDEX('Input| Setup'!$E$8:$E$37,SMALL(IF('Input| Setup'!$F$8:$F$37="Tx",ROW('Input| Setup'!$F$8:$F$37)-ROW('Input| Setup'!$F$8)+1),ROWS('Input| Setup'!$F$8:$F11))),"") -> 132kV wood pole lines (tx) | X11: 0 | Y11: 0 | Z11: 0 | AA11: 0 | AB11: 0 | AC11: 0 | AD11: 0
B12: 5 | C12: =IFERROR(IF('Input| Setup'!E12="","",'Input| Setup'!E12),"") -> Distribution lines and cables (dx) | F12: 0.000122165674 | G12: 0.0001159750391 | H12: 0.0001105713738 | I12: 0.0001148130142 | J12: 0.0001180747638 | M12: =IFERROR(INDEX('Input| Setup'!$E$8:$E$37,SMALL(IF('Input| Setup'!$F$8:$F$37="Dx",ROW('Input| Setup'!$F$8:$F$37)-ROW('Input| Setup'!$F$8)+1),ROWS('Input| Setup'!$F$8:$F12))),"") -> Distribution lines and cables (dx) | N12: 0 | O12: 0 | P12: 0.000122165674 | Q12: 0.0001159750391 | R12: 0.0001105713738 | S12: 0.0001148130142 | T12: 0.0001180747638 | W12: =IFERROR(INDEX('Input| Setup'!$E$8:$E$37,SMALL(IF('Input| Setup'!$F$8:$F$37="Tx",ROW('Input| Setup'!$F$8:$F$37)-ROW('Input| Setup'!$F$8)+1),ROWS('Input| Setup'!$F$8:$F12))),"") -> Ancillary substation equipment (tx) | X12: 0 | Y12: 0 | Z12: 0 | AA12: 0 | AB12: 0 | AC12: 0 | AD12: 0
B13: 6 | C13: =IFERROR(IF('Input| Setup'!E13="","",'Input| Setup'!E13),"") -> Furniture, fittings, plant and equipment (dx) | M13: =IFERROR(INDEX('Input| Setup'!$E$8:$E$37,SMALL(IF('Input| Setup'!$F$8:$F$37="Dx",ROW('Input| Setup'!$F$8:$F$37)-ROW('Input| Setup'!$F$8)+1),ROWS('Input| Setup'!$F$8:$F13))),"") -> Furniture, fittings, plant and equipment (dx) | N13: 0 | O13: 0 | P13: 0 | Q13: 0 | R13: 0 | S13: 0 | T13: 0 | W13: =IFERROR(INDEX('Input| Setup'!$E$8:$E$37,SMALL(IF('Input| Setup'!$F$8:$F$37="Tx",ROW('Input| Setup'!$F$8:$F$37)-ROW('Input| Setup'!$F$8)+1),ROWS('Input| Setup'!$F$8:$F13))),"") -> Buildings (non-system) (tx) | X13: 0 | Y13: 0 | Z13: 0 | AA13: 0 | AB13: 0 | AC13: 0 | AD13: 0
B14: 7 | C14: =IFERROR(IF('Input| Setup'!E14="","",'Input| Setup'!E14),"") -> IT systems (dx) | M14: =IFERROR(INDEX('Input| Setup'!$E$8:$E$37,SMALL(IF('Input| Setup'!$F$8:$F$37="Dx",ROW('Input| Setup'!$F$8:$F$37)-ROW('Input| Setup'!$F$8)+1),ROWS('Input| Setup'!$F$8:$F14))),"") -> IT systems (dx) | N14: 0 | O14: 0 | P14: 0 | Q14: 0 | R14: 0 | S14: 0 | T14: 0 | W14: =IFERROR(INDEX('Input| Setup'!$E$8:$E$37,SMALL(IF('Input| Setup'!$F$8:$F$37="Tx",ROW('Input| Setup'!$F$8:$F$37)-ROW('Input| Setup'!$F$8)+1),ROWS('Input| Setup'!$F$8:$F14))),"") -> Buildings (system) (tx) | X14: 0 | Y14: 0 | Z14: 0 | AA14: 0 | AB14: 0 | AC14: 0 | AD14: 0
B15: 8 | C15: =IFERROR(IF('Input| Setup'!E15="","",'Input| Setup'!E15),"") -> In-house software (dx) | M15: =IFERROR(INDEX('Input| Setup'!$E$8:$E$37,SMALL(IF('Input| Setup'!$F$8:$F$37="Dx",ROW('Input| Setup'!$F$8:$F$37)-ROW('Input| Setup'!$F$8)+1),ROWS('Input| Setup'!$F$8:$F15))),"") -> In-house software (dx) | N15: 0 | O15: 0 | P15: 0 | Q15: 0 | R15: 0 | S15: 0 | T15: 0 | W15: =IFERROR(INDEX('Input| Setup'!$E$8:$E$37,SMALL(IF('Input| Setup'!$F$8:$F$37="Tx",ROW('Input| Setup'!$F$8:$F$37)-ROW('Input| Setup'!$F$8)+1),ROWS('Input| Setup'!$F$8:$F15))),"") -> Furniture, fittings, plant and equipment (tx) | X15: 0 | Y15: 0 | Z15: 0 | AA15: 0 | AB15: 0 | AC15: 0 | AD15: 0
B16: 9 | C16: =IFERROR(IF('Input| Setup'!E16="","",'Input| Setup'!E16),"") -> Land and Easements (dx) | M16: =IFERROR(INDEX('Input| Setup'!$E$8:$E$37,SMALL(IF('Input| Setup'!$F$8:$F$37="Dx",ROW('Input| Setup'!$F$8:$F$37)-ROW('Input| Setup'!$F$8)+1),ROWS('Input| Setup'!$F$8:$F16))),"") -> Land and Easements (dx) | N16: 0 | O16: 0 | P16: 0 | Q16: 0 | R16: 0 | S16: 0 | T16: 0 | W16: =IFERROR(INDEX('Input| Setup'!$E$8:$E$37,SMALL(IF('Input| Setup'!$F$8:$F$37="Tx",ROW('Input| Setup'!$F$8:$F$37)-ROW('Input| Setup'!$F$8)+1),ROWS('Input| Setup'!$F$8:$F16))),"") -> IT systems (tx) | X16: 0 | Y16: 0 | Z16: 0 | AA16: 0 | AB16: 0 | AC16: 0 | AD16: 0
B17: 10 | C17: =IFERROR(IF('Input| Setup'!E17="","",'Input| Setup'!E17),"") -> Low Voltage Lines and Cables (dx) | M17: =IFERROR(INDEX('Input| Setup'!$E$8:$E$37,SMALL(IF('Input| Setup'!$F$8:$F$37="Dx",ROW('Input| Setup'!$F$8:$F$37)-ROW('Input| Setup'!$F$8)+1),ROWS('Input| Setup'!$F$8:$F17))),"") -> Low Voltage Lines and Cables (dx) | N17: 0 | O17: 0 | P17: 0 | Q17: 0 | R17: 0 | S17: 0 | T17: 0 | W17: =IFERROR(INDEX('Input| Setup'!$E$8:$E$37,SMALL(IF('Input| Setup'!$F$8:$F$37="Tx",ROW('Input| Setup'!$F$8:$F$37)-ROW('Input| Setup'!$F$8)+1),ROWS('Input| Setup'!$F$8:$F17))),"") -> In-house software (tx) | X17: 0 | Y17: 0 | Z17: 0 | AA17: 0 | AB17: 0 | AC17: 0 | AD17: 0
B18: 11 | C18: =IFERROR(IF('Input| Setup'!E18="","",'Input| Setup'!E18),"") -> Motor vehicles (dx) | M18: =IFERROR(INDEX('Input| Setup'!$E$8:$E$37,SMALL(IF('Input| Setup'!$F$8:$F$37="Dx",ROW('Input| Setup'!$F$8:$F$37)-ROW('Input| Setup'!$F$8)+1),ROWS('Input| Setup'!$F$8:$F18))),"") -> Motor vehicles (dx) | N18: =INDEX($D$8:$J$57,MATCH($M18,$C$8:$C$57,0),MATCH(N$7,$D$7:$J$7,0)) -> 0 | O18: 0 | P18: 0 | Q18: 0 | R18: 0 | S18: 0 | T18: 0 | W18: =IFERROR(INDEX('Input| Setup'!$E$8:$E$37,SMALL(IF('Input| Setup'!$F$8:$F$37="Tx",ROW('Input| Setup'!$F$8:$F$37)-ROW('Input| Setup'!$F$8)+1),ROWS('Input| Setup'!$F$8:$F18))),"") ->  | X18: =INDEX($D$8:$J$57,MATCH($W18,$C$8:$C$57,0),MATCH(X$7,$D$7:$J$7,0)) -> 0 | Y18: 0 | Z18: 0 | AA18: 0 | AB18: 0 | AC18: 0 | AD18: 0
B19: 12 | C19: =IFERROR(IF('Input| Setup'!E19="","",'Input| Setup'!E19),"") -> Sub-transmission lines and cables (dx) | F19: 0.08354906755 | G19: 0 | H19: 0 | I19: 0 | J19: 0 | M19: =IFERROR(INDEX('Input| Setup'!$E$8:$E$37,SMALL(IF('Input| Setup'!$F$8:$F$37="Dx",ROW('Input| Setup'!$F$8:$F$37)-ROW('Input| Setup'!$F$8)+1),ROWS('Input| Setup'!$F$8:$F19))),"") -> Sub-transmission lines and cables (dx) | N19: 0 | O19: 0 | P19: 0.08354906755 | Q19: 0 | R19: 0 | S19: 0 | T19: 0 | W19: =IFERROR(INDEX('Input| Setup'!$E$8:$E$37,SMALL(IF('Input| Setup'!$F$8:$F$37="Tx",ROW('Input| Setup'!$F$8:$F$37)-ROW('Input| Setup'!$F$8)+1),ROWS('Input| Setup'!$F$8:$F19))),"") ->  | X19: 0 | Y19: 0 | Z19: 0 | AA19: 0 | AB19: 0 | AC19: 0 | AD19: 0
B20: 13 | C20: =IFERROR(IF('Input| Setup'!E20="","",'Input| Setup'!E20),"") -> Substations (dx) | F20: 0.01513799952 | G20: 0.0099596437 | H20: 0.009390177566 | I20: 0.002652082607 | J20: 0.002691250025 | M20: =IFERROR(INDEX('Input| Setup'!$E$8:$E$37,SMALL(IF('Input| Setup'!$F$8:$F$37="Dx",ROW('Input| Setup'!$F$8:$F$37)-ROW('Input| Setup'!$F$8)+1),ROWS('Input| Setup'!$F$8:$F20))),"") -> Substations (dx) | N20: 0 | O20: 0 | P20: 0.01513799952 | Q20: 0.0099596437 | R20: 0.009390177566 | S20: 0.002652082607 | T20: 0.002691250025 | W20: =IFERROR(INDEX('Input| Setup'!$E$8:$E$37,SMALL(IF('Input| Setup'!$F$8:$F$37="Tx",ROW('Input| Setup'!$F$8:$F$37)-ROW('Input| Setup'!$F$8)+1),ROWS('Input| Setup'!$F$8:$F20))),"") ->  | X20: 0 | Y20: 0 | Z20: 0 | AA20: 0 | AB20: 0 | AC20: 0 | AD20: 0
B21: 14 | C21: =IFERROR(IF('Input| Setup'!E21="","",'Input| Setup'!E21),"") -> System IT (dx) | M21: =IFERROR(INDEX('Input| Setup'!$E$8:$E$37,SMALL(IF('Input| Setup'!$F$8:$F$37="Dx",ROW('Input| Setup'!$F$8:$F$37)-ROW('Input| Setup'!$F$8)+1),ROWS('Input| Setup'!$F$8:$F21))),"") -> System IT (dx) | N21: 0 | O21: 0 | P21: 0 | Q21: 0 | R21: 0 | S21: 0 | T21: 0 | W21: =IFERROR(INDEX('Input| Setup'!$E$8:$E$37,SMALL(IF('Input| Setup'!$F$8:$F$37="Tx",ROW('Input| Setup'!$F$8:$F$37)-ROW('Input| Setup'!$F$8)+1),ROWS('Input| Setup'!$F$8:$F21))),"") ->  | X21: 0 | Y21: 0 | Z21: 0 | AA21: 0 | AB21: 0 | AC21: 0 | AD21: 0
B22: 15 | C22: =IFERROR(IF('Input| Setup'!E22="","",'Input| Setup'!E22),"") -> Transformers (dx) | M22: =IFERROR(INDEX('Input| Setup'!$E$8:$E$37,SMALL(IF('Input| Setup'!$F$8:$F$37="Dx",ROW('Input| Setup'!$F$8:$F$37)-ROW('Input| Setup'!$F$8)+1),ROWS('Input| Setup'!$F$8:$F22))),"") -> Transformers (dx) | N22: 0 | O22: 0 | P22: 0 | Q22: 0 | R22: 0 | S22: 0 | T22: 0 | W22: =IFERROR(INDEX('Input| Setup'!$E$8:$E$37,SMALL(IF('Input| Setup'!$F$8:$F$37="Tx",ROW('Input| Setup'!$F$8:$F$37)-ROW('Input| Setup'!$F$8)+1),ROWS('Input| Setup'!$F$8:$F22))),"") ->  | X22: 0 | Y22: 0 | Z22: 0 | AA22: 0 | AB22: 0 | AC22: 0 | AD22: 0
B23: 16 | C23: =IFERROR(IF('Input| Setup'!E23="","",'Input| Setup'!E23),"") -> Land (non-system) (dx) | M23: =IFERROR(INDEX('Input| Setup'!$E$8:$E$37,SMALL(IF('Input| Setup'!$F$8:$F$37="Dx",ROW('Input| Setup'!$F$8:$F$37)-ROW('Input| Setup'!$F$8)+1),ROWS('Input| Setup'!$F$8:$F23))),"") -> Land (non-system) (dx) | N23: 0 | O23: 0 | P23: 0 | Q23: 0 | R23: 0 | S23: 0 | T23: 0 | W23: =IFERROR(INDEX('Input| Setup'!$E$8:$E$37,SMALL(IF('Input| Setup'!$F$8:$F$37="Tx",ROW('Input| Setup'!$F$8:$F$37)-ROW('Input| Setup'!$F$8)+1),ROWS('Input| Setup'!$F$8:$F23))),"") ->  | X23: 0 | Y23: 0 | Z23: 0 | AA23: 0 | AB23: 0 | AC23: 0 | AD23: 0
B24: 17 | C24: =IFERROR(IF('Input| Setup'!E24="","",'Input| Setup'!E24),"") -> ERP (dx) | M24: =IFERROR(INDEX('Input| Setup'!$E$8:$E$37,SMALL(IF('Input| Setup'!$F$8:$F$37="Dx",ROW('Input| Setup'!$F$8:$F$37)-ROW('Input| Setup'!$F$8)+1),ROWS('Input| Setup'!$F$8:$F24))),"") -> ERP (dx) | N24: =INDEX($D$8:$J$57,MATCH($M24,$C$8:$C$57,0),MATCH(N$7,$D$7:$J$7,0)) -> 0 | O24: 0 | P24: 0 | Q24: 0 | R24: 0 | S24: 0 | T24: 0 | W24: =IFERROR(INDEX('Input| Setup'!$E$8:$E$37,SMALL(IF('Input| Setup'!$F$8:$F$37="Tx",ROW('Input| Setup'!$F$8:$F$37)-ROW('Input| Setup'!$F$8)+1),ROWS('Input| Setup'!$F$8:$F24))),"") ->  | X24: =INDEX($D$8:$J$57,MATCH($W24,$C$8:$C$57,0),MATCH(X$7,$D$7:$J$7,0)) -> 0 | Y24: 0 | Z24: 0 | AA24: 0 | AB24: 0 | AC24: 0 | AD24: 0
B25: 18 | C25: =IFERROR(IF('Input| Setup'!E25="","",'Input| Setup'!E25),"") -> Distribution Leases (dx) | M25: =IFERROR(INDEX('Input| Setup'!$E$8:$E$37,SMALL(IF('Input| Setup'!$F$8:$F$37="Dx",ROW('Input| Setup'!$F$8:$F$37)-ROW('Input| Setup'!$F$8)+1),ROWS('Input| Setup'!$F$8:$F25))),"") -> Distribution Leases (dx) | N25: 0 | O25: 0 | P25: 0 | Q25: 0 | R25: 0 | S25: 0 | T25: 0 | W25: =IFERROR(INDEX('Input| Setup'!$E$8:$E$37,SMALL(IF('Input| Setup'!$F$8:$F$37="Tx",ROW('Input| Setup'!$F$8:$F$37)-ROW('Input| Setup'!$F$8)+1),ROWS('Input| Setup'!$F$8:$F25))),"") ->  | X25: 0 | Y25: 0 | Z25: 0 | AA25: 0 | AB25: 0 | AC25: 0 | AD25: 0
B26: 19 | C26: =IFERROR(IF('Input| Setup'!E26="","",'Input| Setup'!E26),"") -> Distribution Leases (non-network) (dx) | M26: =IFERROR(INDEX('Input| Setup'!$E$8:$E$37,SMALL(IF('Input| Setup'!$F$8:$F$37="Dx",ROW('Input| Setup'!$F$8:$F$37)-ROW('Input| Setup'!$F$8)+1),ROWS('Input| Setup'!$F$8:$F26))),"") -> Distribution Leases (non-network) (dx) | N26: 0 | O26: 0 | P26: 0 | Q26: 0 | R26: 0 | S26: 0 | T26: 0 | W26: =IFERROR(INDEX('Input| Setup'!$E$8:$E$37,SMALL(IF('Input| Setup'!$F$8:$F$37="Tx",ROW('Input| Setup'!$F$8:$F$37)-ROW('Input| Setup'!$F$8)+1),ROWS('Input| Setup'!$F$8:$F26))),"") ->  | X26: 0 | Y26: 0 | Z26: 0 | AA26: 0 | AB26: 0 | AC26: 0 | AD26: 0
B27: 20 | C27: =IFERROR(IF('Input| Setup'!E27="","",'Input| Setup'!E27),"") -> Composite poles (dx) | M27: =IFERROR(INDEX('Input| Setup'!$E$8:$E$37,SMALL(IF('Input| Setup'!$F$8:$F$37="Dx",ROW('Input| Setup'!$F$8:$F$37)-ROW('Input| Setup'!$F$8)+1),ROWS('Input| Setup'!$F$8:$F27))),"") -> Composite poles (dx) | N27: 0 | O27: 0 | P27: 0 | Q27: 0 | R27: 0 | S27: 0 | T27: 0 | W27: =IFERROR(INDEX('Input| Setup'!$E$8:$E$37,SMALL(IF('Input| Setup'!$F$8:$F$37="Tx",ROW('Input| Setup'!$F$8:$F$37)-ROW('Input| Setup'!$F$8)+1),ROWS('Input| Setup'!$F$8:$F27))),"") ->  | X27: 0 | Y27: 0 | Z27: 0 | AA27: 0 | AB27: 0 | AC27: 0 | AD27: 0
B28: 21 | C28: =IFERROR(IF('Input| Setup'!E28="","",'Input| Setup'!E28),"") -> 132kV concrete & steel pole lines (tx) | M28: =IFERROR(INDEX('Input| Setup'!$E$8:$E$37,SMALL(IF('Input| Setup'!$F$8:$F$37="Dx",ROW('Input| Setup'!$F$8:$F$37)-ROW('Input| Setup'!$F$8)+1),ROWS('Input| Setup'!$F$8:$F28))),"") ->  | N28: 0 | O28: 0 | P28: 0 | Q28: 0 | R28: 0 | S28: 0 | T28: 0 | W28: =IFERROR(INDEX('Input| Setup'!$E$8:$E$37,SMALL(IF('Input| Setup'!$F$8:$F$37="Tx",ROW('Input| Setup'!$F$8:$F$37)-ROW('Input| Setup'!$F$8)+1),ROWS('Input| Setup'!$F$8:$F28))),"") ->  | X28: 0 | Y28: 0 | Z28: 0 | AA28: 0 | AB28: 0 | AC28: 0 | AD28: 0
B29: 22 | C29: =IFERROR(IF('Input| Setup'!E29="","",'Input| Setup'!E29),"") -> 132kV feeders underground (tx) | F29: 0.208560566 | G29: 0.07314362103 | H29: 0.1862366144 | I29: 0.2455978284 | J29: 0.111001306 | M29: =IFERROR(INDEX('Input| Setup'!$E$8:$E$37,SMALL(IF('Input| Setup'!$F$8:$F$37="Dx",ROW('Input| Setup'!$F$8:$F$37)-ROW('Input| Setup'!$F$8)+1),ROWS('Input| Setup'!$F$8:$F29))),"") ->  | N29: 0 | O29: 0 | P29: 0 | Q29: 0 | R29: 0 | S29: 0 | T29: 0 | W29: =IFERROR(INDEX('Input| Setup'!$E$8:$E$37,SMALL(IF('Input| Setup'!$F$8:$F$37="Tx",ROW('Input| Setup'!$F$8:$F$37)-ROW('Input| Setup'!$F$8)+1),ROWS('Input| Setup'!$F$8:$F29))),"") ->  | X29: 0 | Y29: 0 | Z29: 0 | AA29: 0 | AB29: 0 | AC29: 0 | AD29: 0
B30: 23 | C30: =IFERROR(IF('Input| Setup'!E30="","",'Input| Setup'!E30),"") -> 132kV tower lines (tx) | M30: =IFERROR(INDEX('Input| Setup'!$E$8:$E$37,SMALL(IF('Input| Setup'!$F$8:$F$37="Dx",ROW('Input| Setup'!$F$8:$F$37)-ROW('Input| Setup'!$F$8)+1),ROWS('Input| Setup'!$F$8:$F30))),"") ->  | N30: 0 | O30: 0 | P30: 0 | Q30: 0 | R30: 0 | S30: 0 | T30: 0 | W30: =IFERROR(INDEX('Input| Setup'!$E$8:$E$37,SMALL(IF('Input| Setup'!$F$8:$F$37="Tx",ROW('Input| Setup'!$F$8:$F$37)-ROW('Input| Setup'!$F$8)+1),ROWS('Input| Setup'!$F$8:$F30))),"") ->  | X30: 0 | Y30: 0 | Z30: 0 | AA30: 0 | AB30: 0 | AC30: 0 | AD30: 0
B31: 24 | C31: =IFERROR(IF('Input| Setup'!E31="","",'Input| Setup'!E31),"") -> 132kV wood pole lines (tx) | M31: =IFERROR(INDEX('Input| Setup'!$E$8:$E$37,SMALL(IF('Input| Setup'!$F$8:$F$37="Dx",ROW('Input| Setup'!$F$8:$F$37)-ROW('Input| Setup'!$F$8)+1),ROWS('Input| Setup'!$F$8:$F31))),"") ->  | N31: 0 | O31: 0 | P31: 0 | Q31: 0 | R31: 0 | S31: 0 | T31: 0 | W31: =IFERROR(INDEX('Input| Setup'!$E$8:$E$37,SMALL(IF('Input| Setup'!$F$8:$F$37="Tx",ROW('Input| Setup'!$F$8:$F$37)-ROW('Input| Setup'!$F$8)+1),ROWS('Input| Setup'!$F$8:$F31))),"") ->  | X31: 0 | Y31: 0 | Z31: 0 | AA31: 0 | AB31: 0 | AC31: 0 | AD31: 0
B32: 25 | C32: =IFERROR(IF('Input| Setup'!E32="","",'Input| Setup'!E32),"") -> Ancillary substation equipment (tx) | M32: =IFERROR(INDEX('Input| Setup'!$E$8:$E$37,SMALL(IF('Input| Setup'!$F$8:$F$37="Dx",ROW('Input| Setup'!$F$8:$F$37)-ROW('Input| Setup'!$F$8)+1),ROWS('Input| Setup'!$F$8:$F32))),"") ->  | N32: 0 | O32: 0 | P32: 0 | Q32: 0 | R32: 0 | S32: 0 | T32: 0 | W32: =IFERROR(INDEX('Input| Setup'!$E$8:$E$37,SMALL(IF('Input| Setup'!$F$8:$F$37="Tx",ROW('Input| Setup'!$F$8:$F$37)-ROW('Input| Setup'!$F$8)+1),ROWS('Input| Setup'!$F$8:$F32))),"") ->  | X32: 0 | Y32: 0 | Z32: 0 | AA32: 0 | AB32: 0 | AC32: 0 | AD32: 0
B33: 26 | C33: =IFERROR(IF('Input| Setup'!E33="","",'Input| Setup'!E33),"") -> Buildings (non-system) (tx) | M33: =IFERROR(INDEX('Input| Setup'!$E$8:$E$37,SMALL(IF('Input| Setup'!$F$8:$F$37="Dx",ROW('Input| Setup'!$F$8:$F$37)-ROW('Input| Setup'!$F$8)+1),ROWS('Input| Setup'!$F$8:$F33))),"") ->  | N33: 0 | O33: 0 | P33: 0 | Q33: 0 | R33: 0 | S33: 0 | T33: 0 | W33: =IFERROR(INDEX('Input| Setup'!$E$8:$E$37,SMALL(IF('Input| Setup'!$F$8:$F$37="Tx",ROW('Input| Setup'!$F$8:$F$37)-ROW('Input| Setup'!$F$8)+1),ROWS('Input| Setup'!$F$8:$F33))),"") ->  | X33: 0 | Y33: 0 | Z33: 0 | AA33: 0 | AB33: 0 | AC33: 0 | AD33: 0
B34: 27 | C34: =IFERROR(IF('Input| Setup'!E34="","",'Input| Setup'!E34),"") -> Buildings (system) (tx) | M34: =IFERROR(INDEX('Input| Setup'!$E$8:$E$37,SMALL(IF('Input| Setup'!$F$8:$F$37="Dx",ROW('Input| Setup'!$F$8:$F$37)-ROW('Input| Setup'!$F$8)+1),ROWS('Input| Setup'!$F$8:$F34))),"") ->  | N34: 0 | O34: 0 | P34: 0 | Q34: 0 | R34: 0 | S34: 0 | T34: 0 | W34: =IFERROR(INDEX('Input| Setup'!$E$8:$E$37,SMALL(IF('Input| Setup'!$F$8:$F$37="Tx",ROW('Input| Setup'!$F$8:$F$37)-ROW('Input| Setup'!$F$8)+1),ROWS('Input| Setup'!$F$8:$F34))),"") ->  | X34: 0 | Y34: 0 | Z34: 0 | AA34: 0 | AB34: 0 | AC34: 0 | AD34: 0
B35: 28 | C35: =IFERROR(IF('Input| Setup'!E35="","",'Input| Setup'!E35),"") -> Furniture, fittings, plant and equipment (tx) | M35: =IFERROR(INDEX('Input| Setup'!$E$8:$E$37,SMALL(IF('Input| Setup'!$F$8:$F$37="Dx",ROW('Input| Setup'!$F$8:$F$37)-ROW('Input| Setup'!$F$8)+1),ROWS('Input| Setup'!$F$8:$F35))),"") ->  | N35: 0 | O35: 0 | P35: 0 | Q35: 0 | R35: 0 | S35: 0 | T35: 0 | W35: =IFERROR(INDEX('Input| Setup'!$E$8:$E$37,SMALL(IF('Input| Setup'!$F$8:$F$37="Tx",ROW('Input| Setup'!$F$8:$F$37)-ROW('Input| Setup'!$F$8)+1),ROWS('Input| Setup'!$F$8:$F35))),"") ->  | X35: 0 | Y35: 0 | Z35: 0 | AA35: 0 | AB35: 0 | AC35: 0 | AD35: 0
B36: 29 | C36: =IFERROR(IF('Input| Setup'!E36="","",'Input| Setup'!E36),"") -> IT systems (tx) | M36: =IFERROR(INDEX('Input| Setup'!$E$8:$E$37,SMALL(IF('Input| Setup'!$F$8:$F$37="Dx",ROW('Input| Setup'!$F$8:$F$37)-ROW('Input| Setup'!$F$8)+1),ROWS('Input| Setup'!$F$8:$F36))),"") ->  | N36: 0 | O36: 0 | P36: 0 | Q36: 0 | R36: 0 | S36: 0 | T36: 0 | W36: =IFERROR(INDEX('Input| Setup'!$E$8:$E$37,SMALL(IF('Input| Setup'!$F$8:$F$37="Tx",ROW('Input| Setup'!$F$8:$F$37)-ROW('Input| Setup'!$F$8)+1),ROWS('Input| Setup'!$F$8:$F36))),"") ->  | X36: 0 | Y36: 0 | Z36: 0 | AA36: 0 | AB36: 0 | AC36: 0 | AD36: 0
B37: 30 | C37: =IFERROR(IF('Input| Setup'!E37="","",'Input| Setup'!E37),"") -> In-house software (tx) | M37: =IFERROR(INDEX('Input| Setup'!$E$8:$E$37,SMALL(IF('Input| Setup'!$F$8:$F$37="Dx",ROW('Input| Setup'!$F$8:$F$37)-ROW('Input| Setup'!$F$8)+1),ROWS('Input| Setup'!$F$8:$F37))),"") ->  | N37: 0 | O37: 0 | P37: 0 | Q37: 0 | R37: 0 | S37: 0 | T37: 0 | W37: =IFERROR(INDEX('Input| Setup'!$E$8:$E$37,SMALL(IF('Input| Setup'!$F$8:$F$37="Tx",ROW('Input| Setup'!$F$8:$F$37)-ROW('Input| Setup'!$F$8)+1),ROWS('Input| Setup'!$F$8:$F37))),"") ->  | X37: 0 | Y37: 0 | Z37: 0 | AA37: 0 | AB37: 0 | AC37: 0 | AD37: 0
B38: 31 | C38: =IFERROR(IF('Input| Setup'!E38="","",'Input| Setup'!E38),"") -> Motor vehicles (tx) | M38: =IFERROR(INDEX('Input| Setup'!$E$8:$E$37,SMALL(IF('Input| Setup'!$F$8:$F$37="Dx",ROW('Input| Setup'!$F$8:$F$37)-ROW('Input| Setup'!$F$8)+1),ROWS('Input| Setup'!$F$8:$F38))),"") ->  | N38: 0 | O38: 0 | P38: 0 | Q38: 0 | R38: 0 | S38: 0 | T38: 0 | W38: =IFERROR(INDEX('Input| Setup'!$E$8:$E$37,SMALL(IF('Input| Setup'!$F$8:$F$37="Tx",ROW('Input| Setup'!$F$8:$F$37)-ROW('Input| Setup'!$F$8)+1),ROWS('Input| Setup'!$F$8:$F38))),"") ->  | X38: 0 | Y38: 0 | Z38: 0 | AA38: 0 | AB38: 0 | AC38: 0 | AD38: 0
B39: 32 | C39: =IFERROR(IF('Input| Setup'!E39="","",'Input| Setup'!E39),"") -> System IT (tx) | M39: =IFERROR(INDEX('Input| Setup'!$E$8:$E$37,SMALL(IF('Input| Setup'!$F$8:$F$37="Dx",ROW('Input| Setup'!$F$8:$F$37)-ROW('Input| Setup'!$F$8)+1),ROWS('Input| Setup'!$F$8:$F39))),"") ->  | N39: 0 | O39: 0 | P39: 0 | Q39: 0 | R39: 0 | S39: 0 | T39: 0 | W39: =IFERROR(INDEX('Input| Setup'!$E$8:$E$37,SMALL(IF('Input| Setup'!$F$8:$F$37="Tx",ROW('Input| Setup'!$F$8:$F$37)-ROW('Input| Setup'!$F$8)+1),ROWS('Input| Setup'!$F$8:$F39))),"") ->  | X39: 0 | Y39: 0 | Z39: 0 | AA39: 0 | AB39: 0 | AC39: 0 | AD39: 0
B40: 33 | C40: =IFERROR(IF('Input| Setup'!E40="","",'Input| Setup'!E40),"") -> Transmission & Zone land & easements (tx) | M40: =IFERROR(INDEX('Input| Setup'!$E$8:$E$37,SMALL(IF('Input| Setup'!$F$8:$F$37="Dx",ROW('Input| Setup'!$F$8:$F$37)-ROW('Input| Setup'!$F$8)+1),ROWS('Input| Setup'!$F$8:$F40))),"") ->  | N40: 0 | O40: 0 | P40: 0 | Q40: 0 | R40: 0 | S40: 0 | T40: 0 | W40: =IFERROR(INDEX('Input| Setup'!$E$8:$E$37,SMALL(IF('Input| Setup'!$F$8:$F$37="Tx",ROW('Input| Setup'!$F$8:$F$37)-ROW('Input| Setup'!$F$8)+1),ROWS('Input| Setup'!$F$8:$F40))),"") ->  | X40: 0 | Y40: 0 | Z40: 0 | AA40: 0 | AB40: 0 | AC40: 0 | AD40: 0
B41: 34 | C41: =IFERROR(IF('Input| Setup'!E41="","",'Input| Setup'!E41),"") -> Transmission substation equip 132/66kV (tx) | M41: =IFERROR(INDEX('Input| Setup'!$E$8:$E$37,SMALL(IF('Input| Setup'!$F$8:$F$37="Dx",ROW('Input| Setup'!$F$8:$F$37)-ROW('Input| Setup'!$F$8)+1),ROWS('Input| Setup'!$F$8:$F41))),"") ->  | N41: 0 | O41: 0 | P41: 0 | Q41: 0 | R41: 0 | S41: 0 | T41: 0 | W41: =IFERROR(INDEX('Input| Setup'!$E$8:$E$37,SMALL(IF('Input| Setup'!$F$8:$F$37="Tx",ROW('Input| Setup'!$F$8:$F$37)-ROW('Input| Setup'!$F$8)+1),ROWS('Input| Setup'!$F$8:$F41))),"") ->  | X41: 0 | Y41: 0 | Z41: 0 | AA41: 0 | AB41: 0 | AC41: 0 | AD41: 0
B42: 35 | C42: =IFERROR(IF('Input| Setup'!E42="","",'Input| Setup'!E42),"") -> Transmission transformers 132/66kV (tx) | M42: =IFERROR(INDEX('Input| Setup'!$E$8:$E$37,SMALL(IF('Input| Setup'!$F$8:$F$37="Dx",ROW('Input| Setup'!$F$8:$F$37)-ROW('Input| Setup'!$F$8)+1),ROWS('Input| Setup'!$F$8:$F42))),"") ->  | N42: 0 | O42: 0 | P42: 0 | Q42: 0 | R42: 0 | S42: 0 | T42: 0 | W42: =IFERROR(INDEX('Input| Setup'!$E$8:$E$37,SMALL(IF('Input| Setup'!$F$8:$F$37="Tx",ROW('Input| Setup'!$F$8:$F$37)-ROW('Input| Setup'!$F$8)+1),ROWS('Input| Setup'!$F$8:$F42))),"") ->  | X42: 0 | Y42: 0 | Z42: 0 | AA42: 0 | AB42: 0 | AC42: 0 | AD42: 0
B43: 36 | C43: =IFERROR(IF('Input| Setup'!E43="","",'Input| Setup'!E43),"") -> Zone substation equip 132/66kV (tx) | M43: =IFERROR(INDEX('Input| Setup'!$E$8:$E$37,SMALL(IF('Input| Setup'!$F$8:$F$37="Dx",ROW('Input| Setup'!$F$8:$F$37)-ROW('Input| Setup'!$F$8)+1),ROWS('Input| Setup'!$F$8:$F43))),"") ->  | N43: 0 | O43: 0 | P43: 0 | Q43: 0 | R43: 0 | S43: 0 | T43: 0 | W43: =IFERROR(INDEX('Input| Setup'!$E$8:$E$37,SMALL(IF('Input| Setup'!$F$8:$F$37="Tx",ROW('Input| Setup'!$F$8:$F$37)-ROW('Input| Setup'!$F$8)+1),ROWS('Input| Setup'!$F$8:$F43))),"") ->  | X43: 0 | Y43: 0 | Z43: 0 | AA43: 0 | AB43: 0 | AC43: 0 | AD43: 0
B44: 37 | C44: =IFERROR(IF('Input| Setup'!E44="","",'Input| Setup'!E44),"") -> Zone transformers 132/66kV (tx) | M44: =IFERROR(INDEX('Input| Setup'!$E$8:$E$37,SMALL(IF('Input| Setup'!$F$8:$F$37="Dx",ROW('Input| Setup'!$F$8:$F$37)-ROW('Input| Setup'!$F$8)+1),ROWS('Input| Setup'!$F$8:$F44))),"") ->  | N44: 0 | O44: 0 | P44: 0 | Q44: 0 | R44: 0 | S44: 0 | T44: 0 | W44: =IFERROR(INDEX('Input| Setup'!$E$8:$E$37,SMALL(IF('Input| Setup'!$F$8:$F$37="Tx",ROW('Input| Setup'!$F$8:$F$37)-ROW('Input| Setup'!$F$8)+1),ROWS('Input| Setup'!$F$8:$F44))),"") ->  | X44: 0 | Y44: 0 | Z44: 0 | AA44: 0 | AB44: 0 | AC44: 0 | AD44: 0
B45: 38 | C45: =IFERROR(IF('Input| Setup'!E45="","",'Input| Setup'!E45),"") -> Land (non-system) (tx) | M45: =IFERROR(INDEX('Input| Setup'!$E$8:$E$37,SMALL(IF('Input| Setup'!$F$8:$F$37="Dx",ROW('Input| Setup'!$F$8:$F$37)-ROW('Input| Setup'!$F$8)+1),ROWS('Input| Setup'!$F$8:$F45))),"") ->  | N45: 0 | O45: 0 | P45: 0 | Q45: 0 | R45: 0 | S45: 0 | T45: 0 | W45: =IFERROR(INDEX('Input| Setup'!$E$8:$E$37,SMALL(IF('Input| Setup'!$F$8:$F$37="Tx",ROW('Input| Setup'!$F$8:$F$37)-ROW('Input| Setup'!$F$8)+1),ROWS('Input| Setup'!$F$8:$F45))),"") ->  | X45: 0 | Y45: 0 | Z45: 0 | AA45: 0 | AB45: 0 | AC45: 0 | AD45: 0
B46: 39 | C46: =IFERROR(IF('Input| Setup'!E46="","",'Input| Setup'!E46),"") -> ERP (tx) | M46: =IFERROR(INDEX('Input| Setup'!$E$8:$E$37,SMALL(IF('Input| Setup'!$F$8:$F$37="Dx",ROW('Input| Setup'!$F$8:$F$37)-ROW('Input| Setup'!$F$8)+1),ROWS('Input| Setup'!$F$8:$F46))),"") ->  | N46: 0 | O46: 0 | P46: 0 | Q46: 0 | R46: 0 | S46: 0 | T46: 0 | W46: =IFERROR(INDEX('Input| Setup'!$E$8:$E$37,SMALL(IF('Input| Setup'!$F$8:$F$37="Tx",ROW('Input| Setup'!$F$8:$F$37)-ROW('Input| Setup'!$F$8)+1),ROWS('Input| Setup'!$F$8:$F46))),"") ->  | X46: 0 | Y46: 0 | Z46: 0 | AA46: 0 | AB46: 0 | AC46: 0 | AD46: 0
B47: 40 | C47: =IFERROR(IF('Input| Setup'!E47="","",'Input| Setup'!E47),"") -> Transmission Leases (tx) | M47: =IFERROR(INDEX('Input| Setup'!$E$8:$E$37,SMALL(IF('Input| Setup'!$F$8:$F$37="Dx",ROW('Input| Setup'!$F$8:$F$37)-ROW('Input| Setup'!$F$8)+1),ROWS('Input| Setup'!$F$8:$F47))),"") ->  | N47: 0 | O47: 0 | P47: 0 | Q47: 0 | R47: 0 | S47: 0 | T47: 0 | W47: =IFERROR(INDEX('Input| Setup'!$E$8:$E$37,SMALL(IF('Input| Setup'!$F$8:$F$37="Tx",ROW('Input| Setup'!$F$8:$F$37)-ROW('Input| Setup'!$F$8)+1),ROWS('Input| Setup'!$F$8:$F47))),"") ->  | X47: 0 | Y47: 0 | Z47: 0 | AA47: 0 | AB47: 0 | AC47: 0 | AD47: 0
B48: 41 | C48: =IFERROR(IF('Input| Setup'!E48="","",'Input| Setup'!E48),"") -> Transmission Leases (non-network) (tx) | M48: =IFERROR(INDEX('Input| Setup'!$E$8:$E$37,SMALL(IF('Input| Setup'!$F$8:$F$37="Dx",ROW('Input| Setup'!$F$8:$F$37)-ROW('Input| Setup'!$F$8)+1),ROWS('Input| Setup'!$F$8:$F48))),"") ->  | N48: 0 | O48: 0 | P48: 0 | Q48: 0 | R48: 0 | S48: 0 | T48: 0 | W48: =IFERROR(INDEX('Input| Setup'!$E$8:$E$37,SMALL(IF('Input| Setup'!$F$8:$F$37="Tx",ROW('Input| Setup'!$F$8:$F$37)-ROW('Input| Setup'!$F$8)+1),ROWS('Input| Setup'!$F$8:$F48))),"") ->  | X48: 0 | Y48: 0 | Z48: 0 | AA48: 0 | AB48: 0 | AC48: 0 | AD48: 0
B49: 42 | C49: =IFERROR(IF('Input| Setup'!E49="","",'Input| Setup'!E49),"") -> Composite poles (tx) | M49: =IFERROR(INDEX('Input| Setup'!$E$8:$E$37,SMALL(IF('Input| Setup'!$F$8:$F$37="Dx",ROW('Input| Setup'!$F$8:$F$37)-ROW('Input| Setup'!$F$8)+1),ROWS('Input| Setup'!$F$8:$F49))),"") ->  | N49: 0 | O49: 0 | P49: 0 | Q49: 0 | R49: 0 | S49: 0 | T49: 0 | W49: =IFERROR(INDEX('Input| Setup'!$E$8:$E$37,SMALL(IF('Input| Setup'!$F$8:$F$37="Tx",ROW('Input| Setup'!$F$8:$F$37)-ROW('Input| Setup'!$F$8)+1),ROWS('Input| Setup'!$F$8:$F49))),"") ->  | X49: 0 | Y49: 0 | Z49: 0 | AA49: 0 | AB49: 0 | AC49: 0 | AD49: 0
B50: 43 | C50: =IFERROR(IF('Input| Setup'!E50="","",'Input| Setup'!E50),"") ->  | M50: =IFERROR(INDEX('Input| Setup'!$E$8:$E$37,SMALL(IF('Input| Setup'!$F$8:$F$37="Dx",ROW('Input| Setup'!$F$8:$F$37)-ROW('Input| Setup'!$F$8)+1),ROWS('Input| Setup'!$F$8:$F50))),"") ->  | N50: 0 | O50: 0 | P50: 0 | Q50: 0 | R50: 0 | S50: 0 | T50: 0 | W50: =IFERROR(INDEX('Input| Setup'!$E$8:$E$37,SMALL(IF('Input| Setup'!$F$8:$F$37="Tx",ROW('Input| Setup'!$F$8:$F$37)-ROW('Input| Setup'!$F$8)+1),ROWS('Input| Setup'!$F$8:$F50))),"") ->  | X50: 0 | Y50: 0 | Z50: 0 | AA50: 0 | AB50: 0 | AC50: 0 | AD50: 0
B51: 44 | C51: =IFERROR(IF('Input| Setup'!E51="","",'Input| Setup'!E51),"") ->  | M51: =IFERROR(INDEX('Input| Setup'!$E$8:$E$37,SMALL(IF('Input| Setup'!$F$8:$F$37="Dx",ROW('Input| Setup'!$F$8:$F$37)-ROW('Input| Setup'!$F$8)+1),ROWS('Input| Setup'!$F$8:$F51))),"") ->  | N51: 0 | O51: 0 | P51: 0 | Q51: 0 | R51: 0 | S51: 0 | T51: 0 | W51: =IFERROR(INDEX('Input| Setup'!$E$8:$E$37,SMALL(IF('Input| Setup'!$F$8:$F$37="Tx",ROW('Input| Setup'!$F$8:$F$37)-ROW('Input| Setup'!$F$8)+1),ROWS('Input| Setup'!$F$8:$F51))),"") ->  | X51: 0 | Y51: 0 | Z51: 0 | AA51: 0 | AB51: 0 | AC51: 0 | AD51: 0
B52: 45 | C52: =IFERROR(IF('Input| Setup'!E52="","",'Input| Setup'!E52),"") ->  | M52: =IFERROR(INDEX('Input| Setup'!$E$8:$E$37,SMALL(IF('Input| Setup'!$F$8:$F$37="Dx",ROW('Input| Setup'!$F$8:$F$37)-ROW('Input| Setup'!$F$8)+1),ROWS('Input| Setup'!$F$8:$F52))),"") ->  | N52: 0 | O52: 0 | P52: 0 | Q52: 0 | R52: 0 | S52: 0 | T52: 0 | W52: =IFERROR(INDEX('Input| Setup'!$E$8:$E$37,SMALL(IF('Input| Setup'!$F$8:$F$37="Tx",ROW('Input| Setup'!$F$8:$F$37)-ROW('Input| Setup'!$F$8)+1),ROWS('Input| Setup'!$F$8:$F52))),"") ->  | X52: 0 | Y52: 0 | Z52: 0 | AA52: 0 | AB52: 0 | AC52: 0 | AD52: 0
B53: 46 | C53: =IFERROR(IF('Input| Setup'!E53="","",'Input| Setup'!E53),"") ->  | M53: =IFERROR(INDEX('Input| Setup'!$E$8:$E$37,SMALL(IF('Input| Setup'!$F$8:$F$37="Dx",ROW('Input| Setup'!$F$8:$F$37)-ROW('Input| Setup'!$F$8)+1),ROWS('Input| Setup'!$F$8:$F53))),"") ->  | N53: 0 | O53: 0 | P53: 0 | Q53: 0 | R53: 0 | S53: 0 | T53: 0 | W53: =IFERROR(INDEX('Input| Setup'!$E$8:$E$37,SMALL(IF('Input| Setup'!$F$8:$F$37="Tx",ROW('Input| Setup'!$F$8:$F$37)-ROW('Input| Setup'!$F$8)+1),ROWS('Input| Setup'!$F$8:$F53))),"") ->  | X53: 0 | Y53: 0 | Z53: 0 | AA53: 0 | AB53: 0 | AC53: 0 | AD53: 0
B54: 47 | C54: =IFERROR(IF('Input| Setup'!E54="","",'Input| Setup'!E54),"") ->  | M54: =IFERROR(INDEX('Input| Setup'!$E$8:$E$37,SMALL(IF('Input| Setup'!$F$8:$F$37="Dx",ROW('Input| Setup'!$F$8:$F$37)-ROW('Input| Setup'!$F$8)+1),ROWS('Input| Setup'!$F$8:$F54))),"") ->  | N54: 0 | O54: 0 | P54: 0 | Q54: 0 | R54: 0 | S54: 0 | T54: 0 | W54: =IFERROR(INDEX('Input| Setup'!$E$8:$E$37,SMALL(IF('Input| Setup'!$F$8:$F$37="Tx",ROW('Input| Setup'!$F$8:$F$37)-ROW('Input| Setup'!$F$8)+1),ROWS('Input| Setup'!$F$8:$F54))),"") ->  | X54: 0 | Y54: 0 | Z54: 0 | AA54: 0 | AB54: 0 | AC54: 0 | AD54: 0
B55: 48 | C55: =IFERROR(IF('Input| Setup'!E55="","",'Input| Setup'!E55),"") ->  | M55: =IFERROR(INDEX('Input| Setup'!$E$8:$E$37,SMALL(IF('Input| Setup'!$F$8:$F$37="Dx",ROW('Input| Setup'!$F$8:$F$37)-ROW('Input| Setup'!$F$8)+1),ROWS('Input| Setup'!$F$8:$F55))),"") ->  | N55: 0 | O55: 0 | P55: 0 | Q55: 0 | R55: 0 | S55: 0 | T55: 0 | W55: =IFERROR(INDEX('Input| Setup'!$E$8:$E$37,SMALL(IF('Input| Setup'!$F$8:$F$37="Tx",ROW('Input| Setup'!$F$8:$F$37)-ROW('Input| Setup'!$F$8)+1),ROWS('Input| Setup'!$F$8:$F55))),"") ->  | X55: 0 | Y55: 0 | Z55: 0 | AA55: 0 | AB55: 0 | AC55: 0 | AD55: 0
B56: 49 | C56: =IFERROR(IF('Input| Setup'!E56="","",'Input| Setup'!E56),"") ->  | M56: =IFERROR(INDEX('Input| Setup'!$E$8:$E$37,SMALL(IF('Input| Setup'!$F$8:$F$37="Dx",ROW('Input| Setup'!$F$8:$F$37)-ROW('Input| Setup'!$F$8)+1),ROWS('Input| Setup'!$F$8:$F56))),"") ->  | N56: 0 | O56: 0 | P56: 0 | Q56: 0 | R56: 0 | S56: 0 | T56: 0 | W56: =IFERROR(INDEX('Input| Setup'!$E$8:$E$37,SMALL(IF('Input| Setup'!$F$8:$F$37="Tx",ROW('Input| Setup'!$F$8:$F$37)-ROW('Input| Setup'!$F$8)+1),ROWS('Input| Setup'!$F$8:$F56))),"") ->  | X56: 0 | Y56: 0 | Z56: 0 | AA56: 0 | AB56: 0 | AC56: 0 | AD56: 0
B57: 50 | C57: =IFERROR(IF('Input| Setup'!E57="","",'Input| Setup'!E57),"") ->  | M57: =IFERROR(INDEX('Input| Setup'!$E$8:$E$37,SMALL(IF('Input| Setup'!$F$8:$F$37="Dx",ROW('Input| Setup'!$F$8:$F$37)-ROW('Input| Setup'!$F$8)+1),ROWS('Input| Setup'!$F$8:$F57))),"") ->  | N57: 0 | O57: 0 | P57: 0 | Q57: 0 | R57: 0 | S57: 0 | T57: 0 | W57: =IFERROR(INDEX('Input| Setup'!$E$8:$E$37,SMALL(IF('Input| Setup'!$F$8:$F$37="Tx",ROW('Input| Setup'!$F$8:$F$37)-ROW('Input| Setup'!$F$8)+1),ROWS('Input| Setup'!$F$8:$F57))),"") ->  | X57: 0 | Y57: 0 | Z57: 0 | AA57: 0 | AB57: 0 | AC57: 0 | AD57: 0

Sheet Input| Overheads
A1: ='Input| Setup'!E5&" "&'Input| Escalations'!D8 -> Ausgrid 2024-25
B2: =IFERROR(Index!B2,"") -> AER Capex Forecast Model | C2: Sheet Validation | D2: ='Model Validation'!$C$13 -> 0 | F2: Key: | G2: Input | H2: Input - optional | I2: Formula - do not edit
B3: =IFERROR(MID(CELL("filename",A2),FIND("]",CELL("filename",A2))+1,255),"") -> Input| Overheads
B5: =LEFT('Input| Expensing'!W5,2)+1&". Forecast capitalised overheads for current period" -> 31. Forecast capitalised overheads for current period | C5: ="Note: enter only forecast costs. If "&C7&" overheads are historical actual expenditure, enter them in table "&LEFT(B21,2)&" and leave cells in this table blank." -> Note: enter only forecast costs. If 2022-23 overheads are historical actual expenditure, enter them in table 33 and leave cells in this table blank.
B7: ="Unescalated capitalised overheads ($'000 "&'Input| Escalations'!E9&" "&'Input| Escalations'!D9&")" -> Unescalated capitalised overheads ($'000 June 2021-22) | C7: =IFERROR('Input| Escalations'!H23,"") -> 2022-23 | D7: =IFERROR('Input| Escalations'!I23,"") -> 2023-24
B8: Capitalised overheads - network
B9: Capitalised overheads - corporate
B10: Total forecast capitalised overheads | C10: =IF(AND(C8="",C9=""),"",C8+C9) ->  | D10: =IF(AND(D8="",D9=""),"",D8+D9) -> 
B13: =LEFT(B5,2)+1&". Forecast capitalised overheads for forecast period - alternative method" -> 32. Forecast capitalised overheads for forecast period - alternative method | C13: NOTE: only fill in this table if you wish to substitute forecast capitalised overheads using an alternative method
B15: ="Unescalated capitalised overheads ($'000 "&'Input| Escalations'!E9&" "&'Input| Escalations'!D9&")" -> Unescalated capitalised overheads ($'000 June 2021-22) | E15: =IFERROR('Input| Escalations'!J23,"") -> 2024-25 | F15: =IFERROR('Input| Escalations'!K23,"") -> 2025-26 | G15: =IFERROR('Input| Escalations'!L23,"") -> 2026-27 | H15: =IFERROR('Input| Escalations'!M23,"") -> 2027-28 | I15: =IFERROR('Input| Escalations'!N23,"") -> 2028-29 | J15: Total
B16: Capitalised overheads - network | E16: 100910.9496 | F16: 99852.17788 | G16: 101054.5262 | H16: 98601.68252 | I16: 94059.9644 | J16: =IF(SUM(E16:I16)>0,SUM(E16:I16),"") -> 494479.3006
B17: Capitalised overheads - corporate | E17: 4654.882892 | F17: 5507.956916 | G17: 5582.440865 | H17: 4331.862628 | I17: 4118.803827 | J17: =IF(SUM(E17:I17)>0,SUM(E17:I17),"") -> 24195.94713
B18: Total forecast capitalised overheads | E18: =IF((E16+E17)>0,E16+E17,"") -> 105565.8325 | F18: =IF((F16+F17)>0,F16+F17,"") -> 105360.1348 | G18: =IF((G16+G17)>0,G16+G17,"") -> 106636.9671 | H18: =IF((H16+H17)>0,H16+H17,"") -> 102933.5451 | I18: =IF((I16+I17)>0,I16+I17,"") -> 98178.76822 | J18: =IF(SUM(E18:I18)>0,SUM(E18:I18),"") -> 518675.2478
B21: =LEFT(B13,2)+1&". Historical expenditure (nominal)" -> 33. Historical expenditure (nominal) | C21: NOTE: please only include historical actual expenditure only
B23: Capitalised overheads, nominal ($'000) | C23: =IFERROR('Input| Escalations'!E14,"") -> 2019-20 | D23: =IFERROR('Input| Escalations'!F14,"") -> 2020-21 | E23: =IFERROR('Input| Escalations'!G14,"") -> 2021-22 | F23: =IFERROR('Input| Escalations'!H14,"") -> 2022-23
B24: Capitalised overheads - network
B25: Capitalised overheads - corporate
B28: Total costs that attract overheads, nominal ($'000) | C28: =IFERROR(C23,"") -> 2019-20 | D28: =IFERROR(D23,"") -> 2020-21 | E28: =IFERROR(E23,"") -> 2021-22 | F28: =IFERROR(F23,"") -> 2022-23
B29: ="Total Capex - all costs that attract network OHs" -> Total Capex - all costs that attract network OHs
B30: ="Total Capex - all costs that attract corporate OHs" -> Total Capex - all costs that attract corporate OHs
B33: =LEFT(B21,2)+1&". Forecast cost components of capitalised overheads" -> 34. Forecast cost components of capitalised overheads
C35: =IFERROR('Input| Escalations'!B25,"") -> Internal labour | D35: =IFERROR('Input| Escalations'!B26,"") -> Contract labour | E35: =IFERROR('Input| Escalations'!B27,"") -> Non-labour | G35: =IF(SUM(G36:G37)=0,0,1) -> 0
B36: Real cost escalation split - Network | C36: 1 | G36: =IF(OR(C36<0,C36>1,D36<0,D36>1,E36<0,E36>1,SUM(C36:E36)<0,SUM(C36:E36)>1),1,0) -> 0
B37: Real cost escalation split - Corporate | C37: 1 | G37: =IF(OR(C37<0,C37>1,D37<0,D37>1,E37<0,E37>1,SUM(C37:E37)<0,SUM(C37:E37)>1),1,0) -> 0
B40: =LEFT(B33,2)+1&". Select an overheads allocation method" -> 35. Select an overheads allocation method
B42: Driver by which capitalised overheads are allocated to capex programs | C42: DNSP defined | G42: =IF(SUM('Input| Projects'!AF5,'Input| Projects'!AG5)=0,0,1) -> 0
